Workbook

Sheet Fleet Info
A1: Agency Name | B1: ID | C1: Primary Mode of Service | D1: Vehicle Type | E1: Fuel Type | F1: ADA Status | G1: Vehicle Count | H1: Vehicle Length | I1: Seating Capacity | J1: Manufacture Year | K1: =Model!D2 -> CDOT/FTA MUL | L1: ZEV Code | M1: ZEV Repl Type | N1: ZEV Cost 2022 | O1: ZEV Cost Parity | P1: ZEV Charger Costs | Q1: Replacement Cycle # | Y1: ZEV Replacement Year | AH1: Replacement Plan | BK1: Annual Red in ZEV Cost | BL1: ZEV Replacement Costs | CO1: NON-ZEV Replacement Costs
B2: ID | Q2: 1 | R2: 2 | S2: 3 | T2: 4 | U2: 5 | V2: 6 | W2: 7 | X2: 8 | Y2: 2022 | Z2: 2023 | AA2: 2024 | AB2: 2025 | AC2: 2026 | AD2: 2027 | AE2: 2028 | AF2: 2029 | AG2: 2030 | AH2: 2022 | AI2: 2023 | AJ2: 2024 | AK2: 2025 | AL2: 2026 | AM2: 2027 | AN2: 2028 | AO2: 2029 | AP2: 2030 | AQ2: 2031 | AR2: 2032 | AS2: 2033 | AT2: 2034 | AU2: 2035 | AV2: 2036 | AW2: 2037 | AX2: 2038 | AY2: 2039 | AZ2: 2040 | BA2: 2041 | BB2: 2042 | BC2: 2043 | BD2: 2044 | BE2: 2045 | BF2: 2046 | BG2: 2047 | BH2: 2048 | BI2: 2049 | BJ2: 2050 | BL2: 2022 | BM2: 2023 | BN2: 2024 | BO2: 2025 | BP2: 2026 | BQ2: 2027 | BR2: 2028 | BS2: 2029 | BT2: 2030 | BU2: 2031 | BV2: 2032 | BW2: 2033 | BX2: 2034 | BY2: 2035 | BZ2: 2036 | CA2: 2037 | CB2: 2038 | CC2: 2039 | CD2: 2040 | CE2: 2041 | CF2: 2042 | CG2: 2043 | CH2: 2044 | CI2: 2045 | CJ2: 2046 | CK2: 2047 | CL2: 2048 | CM2: 2049 | CN2: 2050 | CO2: 2022 | CP2: 2023 | CQ2: 2024 | CR2: 2025 | CS2: 2026 | CT2: 2027 | CU2: 2028 | CV2: 2029 | CW2: 2030 | CX2: 2031 | CY2: 2032 | CZ2: 2033 | DA2: 2034 | DB2: 2035 | DC2: 2036 | DD2: 2037 | DE2: 2038 | DF2: 2039 | DG2: 2040 | DH2: 2041 | DI2: 2042 | DJ2: 2043 | DK2: 2044 | DL2: 2045 | DM2: 2046 | DN2: 2047 | DO2: 2048 | DP2: 2049 | DQ2: 2050
A3: Archuleta County | B3: 1 | C3: DR - Demand Response | D3: Minivan (MV) | E3: Gasoline | F3: Non-ADA | G3: 1 | H3: 16 | I3: 4 | J3: 2016 | K3: =IF(K$1=Reference!$D$1,_xlfn.XLOOKUP('Fleet Info'!$L3,Reference!$A$2:$A$11,Reference!$D$2:$D$11),IF(K$1=Reference!$E$1,_xlfn.XLOOKUP('Fleet Info'!$L3,Reference!$A$2:$A$11,Reference!$E$2:$E$11),"ERROR")) -> 4 | L3: =IF($D3=Reference!$B$2,Reference!$A$2,IF($D3=Reference!$B$3,IF('Fleet Info'!$H3<=30,Reference!$A$4,Reference!$A$3),IF($D3=Reference!$B$5,IF('Fleet Info'!$I3>20,Reference!$A$5,Reference!$A$6),IF($D3=Reference!$B$7,Reference!$A$7,IF($D3=Reference!$B$8,IF('Fleet Info'!$F3="Non-ADA",Reference!$A$8,Reference!$A$7),IF($D3=Reference!$B$9,IF('Fleet Info'!$F3="Non-ADA",Reference!$A$9,Reference!$A$7),IF($D3=Reference!$B$10,IF('Fleet Info'!$F3="Non-ADA",Reference!$A$10,Reference!$A$7),IF($D3=Reference!$B$11,Reference!$A$11,IF($D3="Battery Electric Bus (BEB)",IF($H3<=30,Reference!$A$4,Reference!$A$3)))))))))) -> 8 | M3: =_xlfn.XLOOKUP(L3,Reference!$A$2:$A$11,Reference!$C$2:$C$11) -> Electric SUV | N3: =_xlfn.XLOOKUP($L3,Reference!$A$2:$A$11,Reference!$J$2:$J$11) -> 60000 | O3: =_xlfn.XLOOKUP($L3,Reference!$A$2:$A$11,Reference!$P$2:$P$11) -> 33500 | P3: =IF(D3="Battery Electric Bus (BEB)",0,_xlfn.XLOOKUP($L3,Reference!$A$2:$A$11,Reference!$O$2:$O$11))*G3 -> 50000 | Q3: =IF(J3+K3<2021,2021+K3,J3+K3) -> 2025 | R3: =Q3+$K3 -> 2029 | S3: 2033 | T3: 2037 | U3: 2041 | V3: 2045 | W3: 2049 | X3: 2053 | Y3: =IF($D3<>"Battery Electric Bus (BEB)",MIN(IF($Q3:$X3>=Y$2,$Q3:$X3)),2021) -> 2025 | Z3: =IF($D3<>"Battery Electric Bus (BEB)",MIN(IF($Q3:$X3>=Z$2,$Q3:$X3)),2021) -> 2025 | AA3: =IF($D3<>"Battery Electric Bus (BEB)",MIN(IF($Q3:$X3>=AA$2,$Q3:$X3)),2021) -> 2025 | AB3: =IF($D3<>"Battery Electric Bus (BEB)",MIN(IF($Q3:$X3>=AB$2,$Q3:$X3)),2021) -> 2025 | AC3: =IF($D3<>"Battery Electric Bus (BEB)",MIN(IF($Q3:$X3>=AC$2,$Q3:$X3)),2021) -> 2029 | AD3: =IF($D3<>"Battery Electric Bus (BEB)",MIN(IF($Q3:$X3>=AD$2,$Q3:$X3)),2021) -> 2029 | AE3: =IF($D3<>"Battery Electric Bus (BEB)",MIN(IF($Q3:$X3>=AE$2,$Q3:$X3)),2021) -> 2029 | AF3: =IF($D3<>"Battery Electric Bus (BEB)",MIN(IF($Q3:$X3>=AF$2,$Q3:$X3)),2021) -> 2029 | AG3: =IF($D3<>"Battery Electric Bus (BEB)",MIN(IF($Q3:$X3>=AG$2,$Q3:$X3)),2021) -> 2033 | AH3: =IF(OR($Q3=AH$2,$R3=AH$2,$S3=AH$2,$T3=AH$2,$U3=AH$2,$V3=AH$2,$W3=AH$2,$X3=AH$2),"Yes","No") -> No | AI3: =IF(OR($Q3=AI$2,$R3=AI$2,$S3=AI$2,$T3=AI$2,$U3=AI$2,$V3=AI$2,$W3=AI$2,$X3=AI$2),"Yes","No") -> No | AJ3: No | AK3: Yes | AL3: No | AM3: No | AN3: No | AO3: Yes | AP3: No | AQ3: No | AR3: No | AS3: Yes | AT3: No | AU3: No | AV3: No | AW3: Yes | AX3: No | AY3: No | AZ3: No | BA3: Yes | BB3: No | BC3: No | BD3: No | BE3: Yes | BF3: No | BG3: No | BH3: No | BI3: Yes | BJ3: No | BK3: =_xlfn.XLOOKUP($L3,Reference!$A$2:$A$11,Reference!$S$2:$S$11) -> 0.08 | BL3: =N3 -> 60000 | BM3: =IF(BL3*(1-$BK3)>$O3,BL3*(1-$BK3),$O3) -> 55200 | BN3: =IF(BM3*(1-$BK3)>$O3,BM3*(1-$BK3),$O3) -> 50784 | BO3: 46721.28 | BP3: 42983.5776 | BQ3: 39544.89139 | BR3: 36381.30008 | BS3: 33500 | BT3: 33500 | BU3: 33500 | BV3: 33500 | BW3: 33500 | BX3: 33500 | BY3: 33500 | BZ3: 33500 | CA3: 33500 | CB3: 33500 | CC3: 33500 | CD3: 33500 | CE3: 33500 | CF3: 33500 | CG3: 33500 | CH3: 33500 | CI3: 33500 | CJ3: 33500 | CK3: 33500 | CL3: 33500 | CM3: 33500 | CN3: 33500 | CO3: =IF($D3="Battery Electric Bus (BEB)",BL3,$O3) -> 33500 | CP3: =IF($D3="Battery Electric Bus (BEB)",BM3,$O3) -> 33500 | CQ3: 33500 | CR3: 33500 | CS3: 33500 | CT3: 33500 | CU3: 33500 | CV3: 33500 | CW3: 33500 | CX3: 33500 | CY3: 33500 | CZ3: 33500 | DA3: 33500 | DB3: 33500 | DC3: 33500 | DD3: 33500 | DE3: 33500 | DF3: 33500 | DG3: 33500 | DH3: 33500 | DI3: 33500 | DJ3: 33500 | DK3: 33500 | DL3: 33500 | DM3: 33500 | DN3: 33500 | DO3: 33500 | DP3: 33500 | DQ3: 33500
A4: Archuleta County | B4: 2 | C4: MB - Bus | D4: Van (VN) | E4: Gasoline | F4: Non-ADA | G4: 1 | H4: 22 | I4: 9 | J4: 2017 | K4: =IF(K$1=Reference!$D$1,_xlfn.XLOOKUP('Fleet Info'!$L4,Reference!$A$2:$A$11,Reference!$D$2:$D$11),IF(K$1=Reference!$E$1,_xlfn.XLOOKUP('Fleet Info'!$L4,Reference!$A$2:$A$11,Reference!$E$2:$E$11),"ERROR")) -> 4 | L4: =IF($D4=Reference!$B$2,Reference!$A$2,IF($D4=Reference!$B$3,IF('Fleet Info'!$H4<=30,Reference!$A$4,Reference!$A$3),IF($D4=Reference!$B$5,IF('Fleet Info'!$I4>20,Reference!$A$5,Reference!$A$6),IF($D4=Reference!$B$7,Reference!$A$7,IF($D4=Reference!$B$8,IF('Fleet Info'!$F4="Non-ADA",Reference!$A$8,Reference!$A$7),IF($D4=Reference!$B$9,IF('Fleet Info'!$F4="Non-ADA",Reference!$A$9,Reference!$A$7),IF($D4=Reference!$B$10,IF('Fleet Info'!$F4="Non-ADA",Reference!$A$10,Reference!$A$7),IF($D4=Reference!$B$11,Reference!$A$11,IF($D4="Battery Electric Bus (BEB)",IF($H4<=30,Reference!$A$4,Reference!$A$3)))))))))) -> 6 | M4: =_xlfn.XLOOKUP(L4,Reference!$A$2:$A$11,Reference!$C$2:$C$11) -> Passenger Van | N4: =_xlfn.XLOOKUP($L4,Reference!$A$2:$A$11,Reference!$J$2:$J$11) -> 100000 | O4: =_xlfn.XLOOKUP($L4,Reference!$A$2:$A$11,Reference!$P$2:$P$11) -> 55000 | P4: =IF(D4="Battery Electric Bus (BEB)",0,_xlfn.XLOOKUP($L4,Reference!$A$2:$A$11,Reference!$O$2:$O$11))*G4 -> 50000 | Q4: =IF(J4+K4<2021,2021+K4,J4+K4) -> 2021 | R4: =Q4+$K4 -> 2025 | S4: 2029 | T4: 2033 | U4: 2037 | V4: =U4+$K4 -> 2041 | W4: 2045 | X4: =W4+$K4 -> 2049 | Y4: =IF($D4<>"Battery Electric Bus (BEB)",MIN(IF($Q4:$X4>=Y$2,$Q4:$X4)),2021) -> 2025 | Z4: =IF($D4<>"Battery Electric Bus (BEB)",MIN(IF($Q4:$X4>=Z$2,$Q4:$X4)),2021) -> 2025 | AA4: =IF($D4<>"Battery Electric Bus (BEB)",MIN(IF($Q4:$X4>=AA$2,$Q4:$X4)),2021) -> 2025 | AB4: =IF($D4<>"Battery Electric Bus (BEB)",MIN(IF($Q4:$X4>=AB$2,$Q4:$X4)),2021) -> 2025 | AC4: =IF($D4<>"Battery Electric Bus (BEB)",MIN(IF($Q4:$X4>=AC$2,$Q4:$X4)),2021) -> 2029 | AD4: =IF($D4<>"Battery Electric Bus (BEB)",MIN(IF($Q4:$X4>=AD$2,$Q4:$X4)),2021) -> 2029 | AE4: =IF($D4<>"Battery Electric Bus (BEB)",MIN(IF($Q4:$X4>=AE$2,$Q4:$X4)),2021) -> 2029 | AF4: =IF($D4<>"Battery Electric Bus (BEB)",MIN(IF($Q4:$X4>=AF$2,$Q4:$X4)),2021) -> 2029 | AG4: =IF($D4<>"Battery Electric Bus (BEB)",MIN(IF($Q4:$X4>=AG$2,$Q4:$X4)),2021) -> 2033 | AH4: =IF(OR($Q4=AH$2,$R4=AH$2,$S4=AH$2,$T4=AH$2,$U4=AH$2,$V4=AH$2,$W4=AH$2,$X4=AH$2),"Yes","No") -> No | AI4: No | AJ4: No | AK4: Yes | AL4: No | AM4: No | AN4: No | AO4: Yes | AP4: No | AQ4: No | AR4: No | AS4: Yes | AT4: No | AU4: No | AV4: No | AW4: Yes | AX4: No | AY4: No | AZ4: No | BA4: Yes | BB4: No | BC4: No | BD4: No | BE4: Yes | BF4: No | BG4: No | BH4: No | BI4: Yes | BJ4: No | BK4: =_xlfn.XLOOKUP($L4,Reference!$A$2:$A$11,Reference!$S$2:$S$11) -> 0.08 | BL4: =N4 -> 100000 | BM4: =IF(BL4*(1-$BK4)>$O4,BL4*(1-$BK4),$O4) -> 92000 | BN4: 84640 | BO4: 77868.8 | BP4: 71639.296 | BQ4: 65908.15232 | BR4: =IF(BQ4*(1-$BK4)>$O4,BQ4*(1-$BK4),$O4) -> 60635.50013 | BS4: 55784.66012 | BT4: 55000 | BU4: 55000 | BV4: 55000 | BW4: 55000 | BX4: 55000 | BY4: 55000 | BZ4: 55000 | CA4: 55000 | CB4: 55000 | CC4: 55000 | CD4: 55000 | CE4: 55000 | CF4: 55000 | CG4: 55000 | CH4: 55000 | CI4: 55000 | CJ4: 55000 | CK4: 55000 | CL4: 55000 | CM4: 55000 | CN4: 55000 | CO4: =IF($D4="Battery Electric Bus (BEB)",BL4,$O4) -> 55000 | CP4: =IF($D4="Battery Electric Bus (BEB)",BM4,$O4) -> 55000 | CQ4: =IF($D4="Battery Electric Bus (BEB)",BN4,$O4) -> 55000 | CR4: =IF($D4="Battery Electric Bus (BEB)",BO4,$O4) -> 55000 | CS4: =IF($D4="Battery Electric Bus (BEB)",BP4,$O4) -> 55000 | CT4: =IF($D4="Battery Electric Bus (BEB)",BQ4,$O4) -> 55000 | CU4: =IF($D4="Battery Electric Bus (BEB)",BR4,$O4) -> 55000 | CV4: =IF($D4="Battery Electric Bus (BEB)",BS4,$O4) -> 55000 | CW4: =IF($D4="Battery Electric Bus (BEB)",BT4,$O4) -> 55000 | CX4: =IF($D4="Battery Electric Bus (BEB)",BU4,$O4) -> 55000 | CY4: =IF($D4="Battery Electric Bus (BEB)",BV4,$O4) -> 55000 | CZ4: =IF($D4="Battery Electric Bus (BEB)",BW4,$O4) -> 55000 | DA4: =IF($D4="Battery Electric Bus (BEB)",BX4,$O4) -> 55000 | DB4: =IF($D4="Battery Electric Bus (BEB)",BY4,$O4) -> 55000 | DC4: =IF($D4="Battery Electric Bus (BEB)",BZ4,$O4) -> 55000 | DD4: =IF($D4="Battery Electric Bus (BEB)",CA4,$O4) -> 55000 | DE4: =IF($D4="Battery Electric Bus (BEB)",CB4,$O4) -> 55000 | DF4: =IF($D4="Battery Electric Bus (BEB)",CC4,$O4) -> 55000 | DG4: =IF($D4="Battery Electric Bus (BEB)",CD4,$O4) -> 55000 | DH4: =IF($D4="Battery Electric Bus (BEB)",CE4,$O4) -> 55000 | DI4: =IF($D4="Battery Electric Bus (BEB)",CF4,$O4) -> 55000 | DJ4: =IF($D4="Battery Electric Bus (BEB)",CG4,$O4) -> 55000 | DK4: =IF($D4="Battery Electric Bus (BEB)",CH4,$O4) -> 55000 | DL4: =IF($D4="Battery Electric Bus (BEB)",CI4,$O4) -> 55000 | DM4: =IF($D4="Battery Electric Bus (BEB)",CJ4,$O4) -> 55000 | DN4: =IF($D4="Battery Electric Bus (BEB)",CK4,$O4) -> 55000 | DO4: =IF($D4="Battery Electric Bus (BEB)",CL4,$O4) -> 55000 | DP4: =IF($D4="Battery Electric Bus (BEB)",CM4,$O4) -> 55000 | DQ4: =IF($D4="Battery Electric Bus (BEB)",CN4,$O4) -> 55000
A5: Archuleta County | B5: 3 | C5: MB - Bus | D5: Cutaway (CU) | E5: Gasoline | F5: Non-ADA | G5: 1 | H5: 25 | I5: 15 | J5: 2017 | K5: =IF(K$1=Reference!$D$1,_xlfn.XLOOKUP('Fleet Info'!$L5,Reference!$A$2:$A$11,Reference!$D$2:$D$11),IF(K$1=Reference!$E$1,_xlfn.XLOOKUP('Fleet Info'!$L5,Reference!$A$2:$A$11,Reference!$E$2:$E$11),"ERROR")) -> 5 | L5: =IF($D5=Reference!$B$2,Reference!$A$2,IF($D5=Reference!$B$3,IF('Fleet Info'!$H5<=30,Reference!$A$4,Reference!$A$3),IF($D5=Reference!$B$5,IF('Fleet Info'!$I5>20,Reference!$A$5,Reference!$A$6),IF($D5=Reference!$B$7,Reference!$A$7,IF($D5=Reference!$B$8,IF('Fleet Info'!$F5="Non-ADA",Reference!$A$8,Reference!$A$7),IF($D5=Reference!$B$9,IF('Fleet Info'!$F5="Non-ADA",Reference!$A$9,Reference!$A$7),IF($D5=Reference!$B$10,IF('Fleet Info'!$F5="Non-ADA",Reference!$A$10,Reference!$A$7),IF($D5=Reference!$B$11,Reference!$A$11,IF($D5="Battery Electric Bus (BEB)",IF($H5<=30,Reference!$A$4,Reference!$A$3)))))))))) -> 5 | M5: =_xlfn.XLOOKUP(L5,Reference!$A$2:$A$11,Reference!$C$2:$C$11) -> Standard Cutaway | N5: =_xlfn.XLOOKUP($L5,Reference!$A$2:$A$11,Reference!$J$2:$J$11) -> 170000 | O5: =_xlfn.XLOOKUP($L5,Reference!$A$2:$A$11,Reference!$P$2:$P$11) -> 88000 | P5: =IF(D5="Battery Electric Bus (BEB)",0,_xlfn.XLOOKUP($L5,Reference!$A$2:$A$11,Reference!$O$2:$O$11))*G5 -> 50000 | Q5: 2022 | R5: 2027 | S5: 2032 | T5: 2037 | U5: 2042 | V5: 2047 | W5: 2052 | X5: =W5+$K5 -> 2057 | Y5: =IF($D5<>"Battery Electric Bus (BEB)",MIN(IF($Q5:$X5>=Y$2,$Q5:$X5)),2021) -> 2022 | Z5: =IF($D5<>"Battery Electric Bus (BEB)",MIN(IF($Q5:$X5>=Z$2,$Q5:$X5)),2021) -> 2027 | AA5: =IF($D5<>"Battery Electric Bus (BEB)",MIN(IF($Q5:$X5>=AA$2,$Q5:$X5)),2021) -> 2027 | AB5: =IF($D5<>"Battery Electric Bus (BEB)",MIN(IF($Q5:$X5>=AB$2,$Q5:$X5)),2021) -> 2027 | AC5: =IF($D5<>"Battery Electric Bus (BEB)",MIN(IF($Q5:$X5>=AC$2,$Q5:$X5)),2021) -> 2027 | AD5: =IF($D5<>"Battery Electric Bus (BEB)",MIN(IF($Q5:$X5>=AD$2,$Q5:$X5)),2021) -> 2027 | AE5: =IF($D5<>"Battery Electric Bus (BEB)",MIN(IF($Q5:$X5>=AE$2,$Q5:$X5)),2021) -> 2032 | AF5: =IF($D5<>"Battery Electric Bus (BEB)",MIN(IF($Q5:$X5>=AF$2,$Q5:$X5)),2021) -> 2032 | AG5: =IF($D5<>"Battery Electric Bus (BEB)",MIN(IF($Q5:$X5>=AG$2,$Q5:$X5)),2021) -> 2032 | AH5: Yes | AI5: No | AJ5: No | AK5: No | AL5: No | AM5: Yes | AN5: No | AO5: No | AP5: No | AQ5: No | AR5: Yes | AS5: No | AT5: No | AU5: No | AV5: No | AW5: Yes | AX5: No | AY5: No | AZ5: No | BA5: No | BB5: Yes | BC5: No | BD5: No | BE5: No | BF5: No | BG5: Yes | BH5: No | BI5: No | BJ5: No | BK5: =_xlfn.XLOOKUP($L5,Reference!$A$2:$A$11,Reference!$S$2:$S$11) -> 0.08 | BL5: 170000 | BM5: 156400 | BN5: 143888 | BO5: 132376.96 | BP5: 121786.8032 | BQ5: 112043.8589 | BR5: =IF(BQ5*(1-$BK5)>$O5,BQ5*(1-$BK5),$O5) -> 103080.3502 | BS5: 94833.92221 | BT5: 88000 | BU5: 88000 | BV5: 88000 | BW5: 88000 | BX5: 88000 | BY5: 88000 | BZ5: 88000 | CA5: 88000 | CB5: 88000 | CC5: 88000 | CD5: 88000 | CE5: 88000 | CF5: 88000 | CG5: 88000 | CH5: 88000 | CI5: 88000 | CJ5: 88000 | CK5: 88000 | CL5: 88000 | CM5: 88000 | CN5: 88000 | CO5: 88000 | CP5: 88000 | CQ5: 88000 | CR5: 88000 | CS5: 88000 | CT5: 88000 | CU5: 88000 | CV5: 88000 | CW5: 88000 | CX5: 88000 | CY5: 88000 | CZ5: 88000 | DA5: 88000 | DB5: 88000 | DC5: 88000 | DD5: 88000 | DE5: 88000 | DF5: 88000 | DG5: 88000 | DH5: 88000 | DI5: 88000 | DJ5: 88000 | DK5: 88000 | DL5: 88000 | DM5: 88000 | DN5: 88000 | DO5: 88000 | DP5: 88000 | DQ5: 88000
A6: Baca County Seniors Van | B6: 5 | C6: MB - Bus | D6: Bus (BU) | E6: Gasoline | F6: Non-ADA | G6: 1 | H6: 20 | I6: 12 | J6: 2017 | K6: =IF(K$1=Reference!$D$1,_xlfn.XLOOKUP('Fleet Info'!$L6,Reference!$A$2:$A$11,Reference!$D$2:$D$11),IF(K$1=Reference!$E$1,_xlfn.XLOOKUP('Fleet Info'!$L6,Reference!$A$2:$A$11,Reference!$E$2:$E$11),"ERROR")) -> 10 | L6: =IF($D6=Reference!$B$2,Reference!$A$2,IF($D6=Reference!$B$3,IF('Fleet Info'!$H6<=30,Reference!$A$4,Reference!$A$3),IF($D6=Reference!$B$5,IF('Fleet Info'!$I6>20,Reference!$A$5,Reference!$A$6),IF($D6=Reference!$B$7,Reference!$A$7,IF($D6=Reference!$B$8,IF('Fleet Info'!$F6="Non-ADA",Reference!$A$8,Reference!$A$7),IF($D6=Reference!$B$9,IF('Fleet Info'!$F6="Non-ADA",Reference!$A$9,Reference!$A$7),IF($D6=Reference!$B$10,IF('Fleet Info'!$F6="Non-ADA",Reference!$A$10,Reference!$A$7),IF($D6=Reference!$B$11,Reference!$A$11,IF($D6="Battery Electric Bus (BEB)",IF($H6<=30,Reference!$A$4,Reference!$A$3)))))))))) -> 3 | M6: =_xlfn.XLOOKUP(L6,Reference!$A$2:$A$11,Reference!$C$2:$C$11) -> Small Bus | N6: =_xlfn.XLOOKUP($L6,Reference!$A$2:$A$11,Reference!$J$2:$J$11) -> 580000 | O6: =_xlfn.XLOOKUP($L6,Reference!$A$2:$A$11,Reference!$P$2:$P$11) -> 350000 | P6: =IF(D6="Battery Electric Bus (BEB)",0,_xlfn.XLOOKUP($L6,Reference!$A$2:$A$11,Reference!$O$2:$O$11))*G6 -> 110000 | Q6: 2027 | R6: 2037 | S6: 2047 | T6: 2057 | U6: 2067 | V6: 2077 | W6: 2087 | X6: =W6+$K6 -> 2097 | Y6: =IF($D6<>"Battery Electric Bus (BEB)",MIN(IF($Q6:$X6>=Y$2,$Q6:$X6)),2021) -> 2027 | Z6: =IF($D6<>"Battery Electric Bus (BEB)",MIN(IF($Q6:$X6>=Z$2,$Q6:$X6)),2021) -> 2027 | AA6: =IF($D6<>"Battery Electric Bus (BEB)",MIN(IF($Q6:$X6>=AA$2,$Q6:$X6)),2021) -> 2027 | AB6: =IF($D6<>"Battery Electric Bus (BEB)",MIN(IF($Q6:$X6>=AB$2,$Q6:$X6)),2021) -> 2027 | AC6: =IF($D6<>"Battery Electric Bus (BEB)",MIN(IF($Q6:$X6>=AC$2,$Q6:$X6)),2021) -> 2027 | AD6: =IF($D6<>"Battery Electric Bus (BEB)",MIN(IF($Q6:$X6>=AD$2,$Q6:$X6)),2021) -> 2027 | AE6: =IF($D6<>"Battery Electric Bus (BEB)",MIN(IF($Q6:$X6>=AE$2,$Q6:$X6)),2021) -> 2037 | AF6: =IF($D6<>"Battery Electric Bus (BEB)",MIN(IF($Q6:$X6>=AF$2,$Q6:$X6)),2021) -> 2037 | AG6: =IF($D6<>"Battery Electric Bus (BEB)",MIN(IF($Q6:$X6>=AG$2,$Q6:$X6)),2021) -> 2037 | AH6: No | AI6: No | AJ6: No | AK6: No | AL6: No | AM6: Yes | AN6: No | AO6: No | AP6: No | AQ6: No | AR6: No | AS6: No | AT6: No | AU6: No | AV6: No | AW6: Yes | AX6: No | AY6: No | AZ6: No | BA6: No | BB6: No | BC6: No | BD6: No | BE6: No | BF6: No | BG6: Yes | BH6: No | BI6: No | BJ6: No | BK6: =_xlfn.XLOOKUP($L6,Reference!$A$2:$A$11,Reference!$S$2:$S$11) -> 0.08 | BL6: 580000 | BM6: 533600 | BN6: 490912 | BO6: 451639.04 | BP6: 415507.9168 | BQ6: 382267.2835 | BR6: =IF(BQ6*(1-$BK6)>$O6,BQ6*(1-$BK6),$O6) -> 351685.9008 | BS6: 350000 | BT6: 350000 | BU6: 350000 | BV6: 350000 | BW6: 350000 | BX6: 350000 | BY6: 350000 | BZ6: 350000 | CA6: 350000 | CB6: 350000 | CC6: 350000 | CD6: 350000 | CE6: 350000 | CF6: 350000 | CG6: 350000 | CH6: 350000 | CI6: 350000 | CJ6: 350000 | CK6: 350000 | CL6: 350000 | CM6: 350000 | CN6: 350000 | CO6: 350000 | CP6: 350000 | CQ6: 350000 | CR6: 350000 | CS6: 350000 | CT6: 350000 | CU6: 350000 | CV6: 350000 | CW6: 350000 | CX6: 350000 | CY6: 350000 | CZ6: 350000 | DA6: 350000 | DB6: 350000 | DC6: 350000 | DD6: 350000 | DE6: 350000 | DF6: 350000 | DG6: 350000 | DH6: 350000 | DI6: 350000 | DJ6: 350000 | DK6: 350000 | DL6: 350000 | DM6: 350000 | DN6: 350000 | DO6: 350000 | DP6: 350000 | DQ6: 350000
A7: Bent County | B7: 6 | C7: DR - Demand Response | D7: Cutaway (CU) | E7: Gasoline | F7: Non-ADA | G7: 1 | H7: 18 | I7: 14 | J7: 2010 | K7: =IF(K$1=Reference!$D$1,_xlfn.XLOOKUP('Fleet Info'!$L7,Reference!$A$2:$A$11,Reference!$D$2:$D$11),IF(K$1=Reference!$E$1,_xlfn.XLOOKUP('Fleet Info'!$L7,Reference!$A$2:$A$11,Reference!$E$2:$E$11),"ERROR")) -> 5 | L7: =IF($D7=Reference!$B$2,Reference!$A$2,IF($D7=Reference!$B$3,IF('Fleet Info'!$H7<=30,Reference!$A$4,Reference!$A$3),IF($D7=Reference!$B$5,IF('Fleet Info'!$I7>20,Reference!$A$5,Reference!$A$6),IF($D7=Reference!$B$7,Reference!$A$7,IF($D7=Reference!$B$8,IF('Fleet Info'!$F7="Non-ADA",Reference!$A$8,Reference!$A$7),IF($D7=Reference!$B$9,IF('Fleet Info'!$F7="Non-ADA",Reference!$A$9,Reference!$A$7),IF($D7=Reference!$B$10,IF('Fleet Info'!$F7="Non-ADA",Reference!$A$10,Reference!$A$7),IF($D7=Reference!$B$11,Reference!$A$11,IF($D7="Battery Electric Bus (BEB)",IF($H7<=30,Reference!$A$4,Reference!$A$3)))))))))) -> 5 | M7: =_xlfn.XLOOKUP(L7,Reference!$A$2:$A$11,Reference!$C$2:$C$11) -> Standard Cutaway | N7: =_xlfn.XLOOKUP($L7,Reference!$A$2:$A$11,Reference!$J$2:$J$11) -> 170000 | O7: =_xlfn.XLOOKUP($L7,Reference!$A$2:$A$11,Reference!$P$2:$P$11) -> 88000 | P7: =IF(D7="Battery Electric Bus (BEB)",0,_xlfn.XLOOKUP($L7,Reference!$A$2:$A$11,Reference!$O$2:$O$11))*G7 -> 50000 | Q7: 2026 | R7: 2031 | S7: 2036 | T7: 2041 | U7: 2046 | V7: 2051 | W7: 2056 | X7: =W7+$K7 -> 2061 | Y7: =IF($D7<>"Battery Electric Bus (BEB)",MIN(IF($Q7:$X7>=Y$2,$Q7:$X7)),2021) -> 2026 | Z7: =IF($D7<>"Battery Electric Bus (BEB)",MIN(IF($Q7:$X7>=Z$2,$Q7:$X7)),2021) -> 2026 | AA7: =IF($D7<>"Battery Electric Bus (BEB)",MIN(IF($Q7:$X7>=AA$2,$Q7:$X7)),2021) -> 2026 | AB7: =IF($D7<>"Battery Electric Bus (BEB)",MIN(IF($Q7:$X7>=AB$2,$Q7:$X7)),2021) -> 2026 | AC7: =IF($D7<>"Battery Electric Bus (BEB)",MIN(IF($Q7:$X7>=AC$2,$Q7:$X7)),2021) -> 2026 | AD7: =IF($D7<>"Battery Electric Bus (BEB)",MIN(IF($Q7:$X7>=AD$2,$Q7:$X7)),2021) -> 2031 | AE7: =IF($D7<>"Battery Electric Bus (BEB)",MIN(IF($Q7:$X7>=AE$2,$Q7:$X7)),2021) -> 2031 | AF7: =IF($D7<>"Battery Electric Bus (BEB)",MIN(IF($Q7:$X7>=AF$2,$Q7:$X7)),2021) -> 2031 | AG7: =IF($D7<>"Battery Electric Bus (BEB)",MIN(IF($Q7:$X7>=AG$2,$Q7:$X7)),2021) -> 2031 | AH7: No | AI7: No | AJ7: No | AK7: No | AL7: Yes | AM7: No | AN7: No | AO7: No | AP7: No | AQ7: Yes | AR7: No | AS7: No | AT7: No | AU7: No | AV7: Yes | AW7: No | AX7: No | AY7: No | AZ7: No | BA7: Yes | BB7: No | BC7: No | BD7: No | BE7: No | BF7: Yes | BG7: No | BH7: No | BI7: No | BJ7: No | BK7: =_xlfn.XLOOKUP($L7,Reference!$A$2:$A$11,Reference!$S$2:$S$11) -> 0.08 | BL7: 170000 | BM7: 156400 | BN7: 143888 | BO7: 132376.96 | BP7: 121786.8032 | BQ7: 112043.8589 | BR7: =IF(BQ7*(1-$BK7)>$O7,BQ7*(1-$BK7),$O7) -> 103080.3502 | BS7: 94833.92221 | BT7: 88000 | BU7: 88000 | BV7: 88000 | BW7: 88000 | BX7: 88000 | BY7: 88000 | BZ7: 88000 | CA7: 88000 | CB7: 88000 | CC7: 88000 | CD7: 88000 | CE7: 88000 | CF7: 88000 | CG7: 88000 | CH7: 88000 | CI7: 88000 | CJ7: 88000 | CK7: 88000 | CL7: 88000 | CM7: 88000 | CN7: 88000 | CO7: 88000 | CP7: 88000 | CQ7: 88000 | CR7: 88000 | CS7: 88000 | CT7: 88000 | CU7: 88000 | CV7: 88000 | CW7: 88000 | CX7: 88000 | CY7: 88000 | CZ7: 88000 | DA7: 88000 | DB7: 88000 | DC7: 88000 | DD7: 88000 | DE7: 88000 | DF7: 88000 | DG7: 88000 | DH7: 88000 | DI7: 88000 | DJ7: 88000 | DK7: 88000 | DL7: 88000 | DM7: 88000 | DN7: 88000 | DO7: 88000 | DP7: 88000 | DQ7: 88000
A8: Bent County | B8: 7 | C8: MB - Bus | D8: Cutaway (CU) | E8: Gasoline | F8: Non-ADA | G8: 1 | H8: 24 | I8: 14 | J8: 2017 | K8: =IF(K$1=Reference!$D$1,_xlfn.XLOOKUP('Fleet Info'!$L8,Reference!$A$2:$A$11,Reference!$D$2:$D$11),IF(K$1=Reference!$E$1,_xlfn.XLOOKUP('Fleet Info'!$L8,Reference!$A$2:$A$11,Reference!$E$2:$E$11),"ERROR")) -> 5 | L8: =IF($D8=Reference!$B$2,Reference!$A$2,IF($D8=Reference!$B$3,IF('Fleet Info'!$H8<=30,Reference!$A$4,Reference!$A$3),IF($D8=Reference!$B$5,IF('Fleet Info'!$I8>20,Reference!$A$5,Reference!$A$6),IF($D8=Reference!$B$7,Reference!$A$7,IF($D8=Reference!$B$8,IF('Fleet Info'!$F8="Non-ADA",Reference!$A$8,Reference!$A$7),IF($D8=Reference!$B$9,IF('Fleet Info'!$F8="Non-ADA",Reference!$A$9,Reference!$A$7),IF($D8=Reference!$B$10,IF('Fleet Info'!$F8="Non-ADA",Reference!$A$10,Reference!$A$7),IF($D8=Reference!$B$11,Reference!$A$11,IF($D8="Battery Electric Bus (BEB)",IF($H8<=30,Reference!$A$4,Reference!$A$3)))))))))) -> 5 | M8: =_xlfn.XLOOKUP(L8,Reference!$A$2:$A$11,Reference!$C$2:$C$11) -> Standard Cutaway | N8: =_xlfn.XLOOKUP($L8,Reference!$A$2:$A$11,Reference!$J$2:$J$11) -> 170000 | O8: =_xlfn.XLOOKUP($L8,Reference!$A$2:$A$11,Reference!$P$2:$P$11) -> 88000 | P8: =IF(D8="Battery Electric Bus (BEB)",0,_xlfn.XLOOKUP($L8,Reference!$A$2:$A$11,Reference!$O$2:$O$11))*G8 -> 50000 | Q8: 2022 | R8: 2027 | S8: 2032 | T8: 2037 | U8: 2042 | V8: 2047 | W8: 2052 | X8: =W8+$K8 -> 2057 | Y8: =IF($D8<>"Battery Electric Bus (BEB)",MIN(IF($Q8:$X8>=Y$2,$Q8:$X8)),2021) -> 2022 | Z8: =IF($D8<>"Battery Electric Bus (BEB)",MIN(IF($Q8:$X8>=Z$2,$Q8:$X8)),2021) -> 2027 | AA8: =IF($D8<>"Battery Electric Bus (BEB)",MIN(IF($Q8:$X8>=AA$2,$Q8:$X8)),2021) -> 2027 | AB8: =IF($D8<>"Battery Electric Bus (BEB)",MIN(IF($Q8:$X8>=AB$2,$Q8:$X8)),2021) -> 2027 | AC8: =IF($D8<>"Battery Electric Bus (BEB)",MIN(IF($Q8:$X8>=AC$2,$Q8:$X8)),2021) -> 2027 | AD8: =IF($D8<>"Battery Electric Bus (BEB)",MIN(IF($Q8:$X8>=AD$2,$Q8:$X8)),2021) -> 2027 | AE8: =IF($D8<>"Battery Electric Bus (BEB)",MIN(IF($Q8:$X8>=AE$2,$Q8:$X8)),2021) -> 2032 | AF8: =IF($D8<>"Battery Electric Bus (BEB)",MIN(IF($Q8:$X8>=AF$2,$Q8:$X8)),2021) -> 2032 | AG8: =IF($D8<>"Battery Electric Bus (BEB)",MIN(IF($Q8:$X8>=AG$2,$Q8:$X8)),2021) -> 2032 | AH8: Yes | AI8: No | AJ8: No | AK8: No | AL8: No | AM8: Yes | AN8: No | AO8: No | AP8: No | AQ8: No | AR8: Yes | AS8: No | AT8: No | AU8: No | AV8: No | AW8: Yes | AX8: No | AY8: No | AZ8: No | BA8: No | BB8: Yes | BC8: No | BD8: No | BE8: No | BF8: No | BG8: Yes | BH8: No | BI8: No | BJ8: No | BK8: =_xlfn.XLOOKUP($L8,Reference!$A$2:$A$11,Reference!$S$2:$S$11) -> 0.08 | BL8: 170000 | BM8: 156400 | BN8: 143888 | BO8: 132376.96 | BP8: 121786.8032 | BQ8: 112043.8589 | BR8: =IF(BQ8*(1-$BK8)>$O8,BQ8*(1-$BK8),$O8) -> 103080.3502 | BS8: 94833.92221 | BT8: 88000 | BU8: 88000 | BV8: 88000 | BW8: 88000 | BX8: 88000 | BY8: 88000 | BZ8: 88000 | CA8: 88000 | CB8: 88000 | CC8: 88000 | CD8: 88000 | CE8: 88000 | CF8: 88000 | CG8: 88000 | CH8: 88000 | CI8: 88000 | CJ8: 88000 | CK8: 88000 | CL8: 88000 | CM8: 88000 | CN8: 88000 | CO8: 88000 | CP8: 88000 | CQ8: 88000 | CR8: 88000 | CS8: 88000 | CT8: 88000 | CU8: 88000 | CV8: 88000 | CW8: 88000 | CX8: 88000 | CY8: 88000 | CZ8: 88000 | DA8: 88000 | DB8: 88000 | DC8: 88000 | DD8: 88000 | DE8: 88000 | DF8: 88000 | DG8: 88000 | DH8: 88000 | DI8: 88000 | DJ8: 88000 | DK8: 88000 | DL8: 88000 | DM8: 88000 | DN8: 88000 | DO8: 88000 | DP8: 88000 | DQ8: 88000
A9: Bent County | B9: 8 | C9: MB - Bus | D9: Van (VN) | E9: Gasoline | F9: Non-ADA | G9: 1 | H9: 20 | I9: 14 | J9: 2013 | K9: =IF(K$1=Reference!$D$1,_xlfn.XLOOKUP('Fleet Info'!$L9,Reference!$A$2:$A$11,Reference!$D$2:$D$11),IF(K$1=Reference!$E$1,_xlfn.XLOOKUP('Fleet Info'!$L9,Reference!$A$2:$A$11,Reference!$E$2:$E$11),"ERROR")) -> 4 | L9: =IF($D9=Reference!$B$2,Reference!$A$2,IF($D9=Reference!$B$3,IF('Fleet Info'!$H9<=30,Reference!$A$4,Reference!$A$3),IF($D9=Reference!$B$5,IF('Fleet Info'!$I9>20,Reference!$A$5,Reference!$A$6),IF($D9=Reference!$B$7,Reference!$A$7,IF($D9=Reference!$B$8,IF('Fleet Info'!$F9="Non-ADA",Reference!$A$8,Reference!$A$7),IF($D9=Reference!$B$9,IF('Fleet Info'!$F9="Non-ADA",Reference!$A$9,Reference!$A$7),IF($D9=Reference!$B$10,IF('Fleet Info'!$F9="Non-ADA",Reference!$A$10,Reference!$A$7),IF($D9=Reference!$B$11,Reference!$A$11,IF($D9="Battery Electric Bus (BEB)",IF($H9<=30,Reference!$A$4,Reference!$A$3)))))))))) -> 6 | M9: =_xlfn.XLOOKUP(L9,Reference!$A$2:$A$11,Reference!$C$2:$C$11) -> Passenger Van | N9: =_xlfn.XLOOKUP($L9,Reference!$A$2:$A$11,Reference!$J$2:$J$11) -> 100000 | O9: =_xlfn.XLOOKUP($L9,Reference!$A$2:$A$11,Reference!$P$2:$P$11) -> 55000 | P9: =IF(D9="Battery Electric Bus (BEB)",0,_xlfn.XLOOKUP($L9,Reference!$A$2:$A$11,Reference!$O$2:$O$11))*G9 -> 50000 | Q9: =IF(J9+K9<=2021,2021+K9,J9+K9) -> 2025 | R9: 2029 | S9: 2033 | T9: 2037 | U9: 2041 | V9: 2045 | W9: 2049 | X9: =W9+$K9 -> 2053 | Y9: =IF($D9<>"Battery Electric Bus (BEB)",MIN(IF($Q9:$X9>=Y$2,$Q9:$X9)),2021) -> 2025 | Z9: =IF($D9<>"Battery Electric Bus (BEB)",MIN(IF($Q9:$X9>=Z$2,$Q9:$X9)),2021) -> 2025 | AA9: =IF($D9<>"Battery Electric Bus (BEB)",MIN(IF($Q9:$X9>=AA$2,$Q9:$X9)),2021) -> 2025 | AB9: =IF($D9<>"Battery Electric Bus (BEB)",MIN(IF($Q9:$X9>=AB$2,$Q9:$X9)),2021) -> 2025 | AC9: =IF($D9<>"Battery Electric Bus (BEB)",MIN(IF($Q9:$X9>=AC$2,$Q9:$X9)),2021) -> 2029 | AD9: =IF($D9<>"Battery Electric Bus (BEB)",MIN(IF($Q9:$X9>=AD$2,$Q9:$X9)),2021) -> 2029 | AE9: =IF($D9<>"Battery Electric Bus (BEB)",MIN(IF($Q9:$X9>=AE$2,$Q9:$X9)),2021) -> 2029 | AF9: =IF($D9<>"Battery Electric Bus (BEB)",MIN(IF($Q9:$X9>=AF$2,$Q9:$X9)),2021) -> 2029 | AG9: =IF($D9<>"Battery Electric Bus (BEB)",MIN(IF($Q9:$X9>=AG$2,$Q9:$X9)),2021) -> 2033 | AH9: No | AI9: No | AJ9: No | AK9: Yes | AL9: No | AM9: No | AN9: No | AO9: Yes | AP9: No | AQ9: No | AR9: No | AS9: Yes | AT9: No | AU9: No | AV9: No | AW9: Yes | AX9: No | AY9: No | AZ9: No | BA9: Yes | BB9: No | BC9: No | BD9: No | BE9: Yes | BF9: No | BG9: No | BH9: No | BI9: Yes | BJ9: No | BK9: =_xlfn.XLOOKUP($L9,Reference!$A$2:$A$11,Reference!$S$2:$S$11) -> 0.08 | BL9: 100000 | BM9: 92000 | BN9: 84640 | BO9: 77868.8 | BP9: 71639.296 | BQ9: 65908.15232 | BR9: =IF(BQ9*(1-$BK9)>$O9,BQ9*(1-$BK9),$O9) -> 60635.50013 | BS9: 55784.66012 | BT9: 55000 | BU9: 55000 | BV9: 55000 | BW9: 55000 | BX9: 55000 | BY9: 55000 | BZ9: 55000 | CA9: 55000 | CB9: 55000 | CC9: 55000 | CD9: 55000 | CE9: 55000 | CF9: 55000 | CG9: 55000 | CH9: 55000 | CI9: 55000 | CJ9: 55000 | CK9: 55000 | CL9: 55000 | CM9: 55000 | CN9: 55000 | CO9: 55000 | CP9: 55000 | CQ9: 55000 | CR9: 55000 | CS9: 55000 | CT9: 55000 | CU9: 55000 | CV9: 55000 | CW9: 55000 | CX9: 55000 | CY9: 55000 | CZ9: 55000 | DA9: 55000 | DB9: 55000 | DC9: 55000 | DD9: 55000 | DE9: 55000 | DF9: 55000 | DG9: 55000 | DH9: 55000 | DI9: 55000 | DJ9: 55000 | DK9: 55000 | DL9: 55000 | DM9: 55000 | DN9: 55000 | DO9: 55000 | DP9: 55000 | DQ9: 55000
A10: Bent County | B10: 9 | C10: MB - Bus | D10: Cutaway (CU) | E10: Diesel Fuel | F10: Non-ADA | G10: 1 | H10: 31 | I10: 24 | J10: 2016 | K10: =IF(K$1=Reference!$D$1,_xlfn.XLOOKUP('Fleet Info'!$L10,Reference!$A$2:$A$11,Reference!$D$2:$D$11),IF(K$1=Reference!$E$1,_xlfn.XLOOKUP('Fleet Info'!$L10,Reference!$A$2:$A$11,Reference!$E$2:$E$11),"ERROR")) -> 7 | L10: =IF($D10=Reference!$B$2,Reference!$A$2,IF($D10=Reference!$B$3,IF('Fleet Info'!$H10<=30,Reference!$A$4,Reference!$A$3),IF($D10=Reference!$B$5,IF('Fleet Info'!$I10>20,Reference!$A$5,Reference!$A$6),IF($D10=Reference!$B$7,Reference!$A$7,IF($D10=Reference!$B$8,IF('Fleet Info'!$F10="Non-ADA",Reference!$A$8,Reference!$A$7),IF($D10=Reference!$B$9,IF('Fleet Info'!$F10="Non-ADA",Reference!$A$9,Reference!$A$7),IF($D10=Reference!$B$10,IF('Fleet Info'!$F10="Non-ADA",Reference!$A$10,Reference!$A$7),IF($D10=Reference!$B$11,Reference!$A$11,IF($D10="Battery Electric Bus (BEB)",IF($H10<=30,Reference!$A$4,Reference!$A$3)))))))))) -> 4 | M10: =_xlfn.XLOOKUP(L10,Reference!$A$2:$A$11,Reference!$C$2:$C$11) -> Large Cutaway | N10: =_xlfn.XLOOKUP($L10,Reference!$A$2:$A$11,Reference!$J$2:$J$11) -> 360000 | O10: =_xlfn.XLOOKUP($L10,Reference!$A$2:$A$11,Reference!$P$2:$P$11) -> 200000 | P10: =IF(D10="Battery Electric Bus (BEB)",0,_xlfn.XLOOKUP($L10,Reference!$A$2:$A$11,Reference!$O$2:$O$11))*G10 -> 50000 | Q10: 2023 | R10: 2030 | S10: 2037 | T10: 2044 | U10: 2051 | V10: 2058 | W10: 2065 | X10: =W10+$K10 -> 2072 | Y10: =IF($D10<>"Battery Electric Bus (BEB)",MIN(IF($Q10:$X10>=Y$2,$Q10:$X10)),2021) -> 2023 | Z10: =IF($D10<>"Battery Electric Bus (BEB)",MIN(IF($Q10:$X10>=Z$2,$Q10:$X10)),2021) -> 2023 | AA10: =IF($D10<>"Battery Electric Bus (BEB)",MIN(IF($Q10:$X10>=AA$2,$Q10:$X10)),2021) -> 2030 | AB10: =IF($D10<>"Battery Electric Bus (BEB)",MIN(IF($Q10:$X10>=AB$2,$Q10:$X10)),2021) -> 2030 | AC10: =IF($D10<>"Battery Electric Bus (BEB)",MIN(IF($Q10:$X10>=AC$2,$Q10:$X10)),2021) -> 2030 | AD10: =IF($D10<>"Battery Electric Bus (BEB)",MIN(IF($Q10:$X10>=AD$2,$Q10:$X10)),2021) -> 2030 | AE10: =IF($D10<>"Battery Electric Bus (BEB)",MIN(IF($Q10:$X10>=AE$2,$Q10:$X10)),2021) -> 2030 | AF10: =IF($D10<>"Battery Electric Bus (BEB)",MIN(IF($Q10:$X10>=AF$2,$Q10:$X10)),2021) -> 2030 | AG10: =IF($D10<>"Battery Electric Bus (BEB)",MIN(IF($Q10:$X10>=AG$2,$Q10:$X10)),2021) -> 2030 | AH10: No | AI10: Yes | AJ10: No | AK10: No | AL10: No | AM10: No | AN10: No | AO10: No | AP10: Yes | AQ10: No | AR10: No | AS10: No | AT10: No | AU10: No | AV10: No | AW10: Yes | AX10: No | AY10: No | AZ10: No | BA10: No | BB10: No | BC10: No | BD10: Yes | BE10: No | BF10: No | BG10: No | BH10: No | BI10: No | BJ10: No | BK10: =_xlfn.XLOOKUP($L10,Reference!$A$2:$A$11,Reference!$S$2:$S$11) -> 0.08 | BL10: 360000 | BM10: 331200 | BN10: 304704 | BO10: 280327.68 | BP10: 257901.4656 | BQ10: 237269.3484 | BR10: =IF(BQ10*(1-$BK10)>$O10,BQ10*(1-$BK10),$O10) -> 218287.8005 | BS10: 200824.7764 | BT10: 200000 | BU10: 200000 | BV10: 200000 | BW10: 200000 | BX10: 200000 | BY10: 200000 | BZ10: 200000 | CA10: 200000 | CB10: 200000 | CC10: 200000 | CD10: 200000 | CE10: 200000 | CF10: 200000 | CG10: 200000 | CH10: 200000 | CI10: 200000 | CJ10: 200000 | CK10: 200000 | CL10: 200000 | CM10: 200000 | CN10: 200000 | CO10: 200000 | CP10: 200000 | CQ10: 200000 | CR10: 200000 | CS10: 200000 | CT10: 200000 | CU10: 200000 | CV10: 200000 | CW10: 200000 | CX10: 200000 | CY10: 200000 | CZ10: 200000 | DA10: 200000 | DB10: 200000 | DC10: 200000 | DD10: 200000 | DE10: 200000 | DF10: 200000 | DG10: 200000 | DH10: 200000 | DI10: 200000 | DJ10: 200000 | DK10: 200000 | DL10: 200000 | DM10: 200000 | DN10: 200000 | DO10: 200000 | DP10: 200000 | DQ10: 200000
A11: Bent County | B11: 10 | C11: MB - Bus | D11: Bus (BU) | E11: Diesel Fuel | F11: Non-ADA | G11: 1 | H11: 36 | I11: 40 | J11: 1992 | K11: =IF(K$1=Reference!$D$1,_xlfn.XLOOKUP('Fleet Info'!$L11,Reference!$A$2:$A$11,Reference!$D$2:$D$11),IF(K$1=Reference!$E$1,_xlfn.XLOOKUP('Fleet Info'!$L11,Reference!$A$2:$A$11,Reference!$E$2:$E$11),"ERROR")) -> 12 | L11: =IF($D11=Reference!$B$2,Reference!$A$2,IF($D11=Reference!$B$3,IF('Fleet Info'!$H11<=30,Reference!$A$4,Reference!$A$3),IF($D11=Reference!$B$5,IF('Fleet Info'!$I11>20,Reference!$A$5,Reference!$A$6),IF($D11=Reference!$B$7,Reference!$A$7,IF($D11=Reference!$B$8,IF('Fleet Info'!$F11="Non-ADA",Reference!$A$8,Reference!$A$7),IF($D11=Reference!$B$9,IF('Fleet Info'!$F11="Non-ADA",Reference!$A$9,Reference!$A$7),IF($D11=Reference!$B$10,IF('Fleet Info'!$F11="Non-ADA",Reference!$A$10,Reference!$A$7),IF($D11=Reference!$B$11,Reference!$A$11,IF($D11="Battery Electric Bus (BEB)",IF($H11<=30,Reference!$A$4,Reference!$A$3)))))))))) -> 2 | M11: =_xlfn.XLOOKUP(L11,Reference!$A$2:$A$11,Reference!$C$2:$C$11) -> Standard Bus | N11: =_xlfn.XLOOKUP($L11,Reference!$A$2:$A$11,Reference!$J$2:$J$11) -> 950000 | O11: =_xlfn.XLOOKUP($L11,Reference!$A$2:$A$11,Reference!$P$2:$P$11) -> 500000 | P11: =IF(D11="Battery Electric Bus (BEB)",0,_xlfn.XLOOKUP($L11,Reference!$A$2:$A$11,Reference!$O$2:$O$11))*G11 -> 110000 | Q11: 2033 | R11: 2045 | S11: 2057 | T11: 2069 | U11: 2081 | V11: 2093 | W11: 2105 | X11: =W11+$K11 -> 2117 | Y11: =IF($D11<>"Battery Electric Bus (BEB)",MIN(IF($Q11:$X11>=Y$2,$Q11:$X11)),2021) -> 2033 | Z11: =IF($D11<>"Battery Electric Bus (BEB)",MIN(IF($Q11:$X11>=Z$2,$Q11:$X11)),2021) -> 2033 | AA11: =IF($D11<>"Battery Electric Bus (BEB)",MIN(IF($Q11:$X11>=AA$2,$Q11:$X11)),2021) -> 2033 | AB11: =IF($D11<>"Battery Electric Bus (BEB)",MIN(IF($Q11:$X11>=AB$2,$Q11:$X11)),2021) -> 2033 | AC11: =IF($D11<>"Battery Electric Bus (BEB)",MIN(IF($Q11:$X11>=AC$2,$Q11:$X11)),2021) -> 2033 | AD11: =IF($D11<>"Battery Electric Bus (BEB)",MIN(IF($Q11:$X11>=AD$2,$Q11:$X11)),2021) -> 2033 | AE11: =IF($D11<>"Battery Electric Bus (BEB)",MIN(IF($Q11:$X11>=AE$2,$Q11:$X11)),2021) -> 2033 | AF11: =IF($D11<>"Battery Electric Bus (BEB)",MIN(IF($Q11:$X11>=AF$2,$Q11:$X11)),2021) -> 2033 | AG11: =IF($D11<>"Battery Electric Bus (BEB)",MIN(IF($Q11:$X11>=AG$2,$Q11:$X11)),2021) -> 2033 | AH11: No | AI11: No | AJ11: No | AK11: No | AL11: No | AM11: No | AN11: No | AO11: No | AP11: No | AQ11: No | AR11: No | AS11: Yes | AT11: No | AU11: No | AV11: No | AW11: No | AX11: No | AY11: No | AZ11: No | BA11: No | BB11: No | BC11: No | BD11: No | BE11: Yes | BF11: No | BG11: No | BH11: No | BI11: No | BJ11: No | BK11: =_xlfn.XLOOKUP($L11,Reference!$A$2:$A$11,Reference!$S$2:$S$11) -> 0.08 | BL11: 950000 | BM11: 874000 | BN11: 804080 | BO11: 739753.6 | BP11: 680573.312 | BQ11: 626127.447 | BR11: =IF(BQ11*(1-$BK11)>$O11,BQ11*(1-$BK11),$O11) -> 576037.2513 | BS11: 529954.2712 | BT11: 500000 | BU11: 500000 | BV11: 500000 | BW11: 500000 | BX11: 500000 | BY11: 500000 | BZ11: 500000 | CA11: 500000 | CB11: 500000 | CC11: 500000 | CD11: 500000 | CE11: 500000 | CF11: 500000 | CG11: 500000 | CH11: 500000 | CI11: 500000 | CJ11: 500000 | CK11: 500000 | CL11: 500000 | CM11: 500000 | CN11: 500000 | CO11: 500000 | CP11: 500000 | CQ11: 500000 | CR11: 500000 | CS11: 500000 | CT11: 500000 | CU11: 500000 | CV11: 500000 | CW11: 500000 | CX11: 500000 | CY11: 500000 | CZ11: 500000 | DA11: 500000 | DB11: 500000 | DC11: 500000 | DD11: 500000 | DE11: 500000 | DF11: 500000 | DG11: 500000 | DH11: 500000 | DI11: 500000 | DJ11: 500000 | DK11: 500000 | DL11: 500000 | DM11: 500000 | DN11: 500000 | DO11: 500000 | DP11: 500000 | DQ11: 500000
A12: Berthoud Area Transportation Service (BATS) | B12: 11 | C12: DR - Demand Response | D12: Van (VN) | E12: Gasoline | F12: Non-ADA | G12: 1 | H12: 19 | I12: 8 | J12: 2008 | K12: =IF(K$1=Reference!$D$1,_xlfn.XLOOKUP('Fleet Info'!$L12,Reference!$A$2:$A$11,Reference!$D$2:$D$11),IF(K$1=Reference!$E$1,_xlfn.XLOOKUP('Fleet Info'!$L12,Reference!$A$2:$A$11,Reference!$E$2:$E$11),"ERROR")) -> 4 | L12: =IF($D12=Reference!$B$2,Reference!$A$2,IF($D12=Reference!$B$3,IF('Fleet Info'!$H12<=30,Reference!$A$4,Reference!$A$3),IF($D12=Reference!$B$5,IF('Fleet Info'!$I12>20,Reference!$A$5,Reference!$A$6),IF($D12=Reference!$B$7,Reference!$A$7,IF($D12=Reference!$B$8,IF('Fleet Info'!$F12="Non-ADA",Reference!$A$8,Reference!$A$7),IF($D12=Reference!$B$9,IF('Fleet Info'!$F12="Non-ADA",Reference!$A$9,Reference!$A$7),IF($D12=Reference!$B$10,IF('Fleet Info'!$F12="Non-ADA",Reference!$A$10,Reference!$A$7),IF($D12=Reference!$B$11,Reference!$A$11,IF($D12="Battery Electric Bus (BEB)",IF($H12<=30,Reference!$A$4,Reference!$A$3)))))))))) -> 6 | M12: =_xlfn.XLOOKUP(L12,Reference!$A$2:$A$11,Reference!$C$2:$C$11) -> Passenger Van | N12: =_xlfn.XLOOKUP($L12,Reference!$A$2:$A$11,Reference!$J$2:$J$11) -> 100000 | O12: =_xlfn.XLOOKUP($L12,Reference!$A$2:$A$11,Reference!$P$2:$P$11) -> 55000 | P12: =IF(D12="Battery Electric Bus (BEB)",0,_xlfn.XLOOKUP($L12,Reference!$A$2:$A$11,Reference!$O$2:$O$11))*G12 -> 50000 | Q12: 2025 | R12: 2029 | S12: 2033 | T12: 2037 | U12: 2041 | V12: 2045 | W12: 2049 | X12: =W12+$K12 -> 2053 | Y12: =IF($D12<>"Battery Electric Bus (BEB)",MIN(IF($Q12:$X12>=Y$2,$Q12:$X12)),2021) -> 2025 | Z12: =IF($D12<>"Battery Electric Bus (BEB)",MIN(IF($Q12:$X12>=Z$2,$Q12:$X12)),2021) -> 2025 | AA12: =IF($D12<>"Battery Electric Bus (BEB)",MIN(IF($Q12:$X12>=AA$2,$Q12:$X12)),2021) -> 2025 | AB12: =IF($D12<>"Battery Electric Bus (BEB)",MIN(IF($Q12:$X12>=AB$2,$Q12:$X12)),2021) -> 2025 | AC12: =IF($D12<>"Battery Electric Bus (BEB)",MIN(IF($Q12:$X12>=AC$2,$Q12:$X12)),2021) -> 2029 | AD12: =IF($D12<>"Battery Electric Bus (BEB)",MIN(IF($Q12:$X12>=AD$2,$Q12:$X12)),2021) -> 2029 | AE12: =IF($D12<>"Battery Electric Bus (BEB)",MIN(IF($Q12:$X12>=AE$2,$Q12:$X12)),2021) -> 2029 | AF12: =IF($D12<>"Battery Electric Bus (BEB)",MIN(IF($Q12:$X12>=AF$2,$Q12:$X12)),2021) -> 2029 | AG12: =IF($D12<>"Battery Electric Bus (BEB)",MIN(IF($Q12:$X12>=AG$2,$Q12:$X12)),2021) -> 2033 | AH12: No | AI12: No | AJ12: No | AK12: Yes | AL12: =IF(OR($Q12=AL$2,$R12=AL$2,$S12=AL$2,$T12=AL$2,$U12=AL$2,$V12=AL$2,$W12=AL$2,$X12=AL$2),"Yes","No") -> No | AM12: No | AN12: No | AO12: Yes | AP12: No | AQ12: No | AR12: No | AS12: Yes | AT12: No | AU12: No | AV12: No | AW12: Yes | AX12: No | AY12: No | AZ12: No | BA12: Yes | BB12: =IF(OR($Q12=BB$2,$R12=BB$2,$S12=BB$2,$T12=BB$2,$U12=BB$2,$V12=BB$2,$W12=BB$2,$X12=BB$2),"Yes","No") -> No | BC12: No | BD12: No | BE12: Yes | BF12: No | BG12: No | BH12: No | BI12: Yes | BJ12: No | BK12: =_xlfn.XLOOKUP($L12,Reference!$A$2:$A$11,Reference!$S$2:$S$11) -> 0.08 | BL12: 100000 | BM12: 92000 | BN12: 84640 | BO12: 77868.8 | BP12: 71639.296 | BQ12: 65908.15232 | BR12: =IF(BQ12*(1-$BK12)>$O12,BQ12*(1-$BK12),$O12) -> 60635.50013 | BS12: 55784.66012 | BT12: 55000 | BU12: 55000 | BV12: 55000 | BW12: 55000 | BX12: 55000 | BY12: 55000 | BZ12: 55000 | CA12: 55000 | CB12: 55000 | CC12: 55000 | CD12: 55000 | CE12: 55000 | CF12: 55000 | CG12: 55000 | CH12: 55000 | CI12: 55000 | CJ12: 55000 | CK12: 55000 | CL12: 55000 | CM12: 55000 | CN12: 55000 | CO12: 55000 | CP12: 55000 | CQ12: 55000 | CR12: 55000 | CS12: 55000 | CT12: 55000 | CU12: 55000 | CV12: 55000 | CW12: 55000 | CX12: 55000 | CY12: 55000 | CZ12: 55000 | DA12: 55000 | DB12: 55000 | DC12: 55000 | DD12: 55000 | DE12: 55000 | DF12: 55000 | DG12: 55000 | DH12: 55000 | DI12: 55000 | DJ12: 55000 | DK12: 55000 | DL12: 55000 | DM12: 55000 | DN12: 55000 | DO12: 55000 | DP12: 55000 | DQ12: 55000
A13: Berthoud Area Transportation Service (BATS) | B13: 12 | C13: DR - Demand Response | D13: Cutaway (CU) | E13: Gasoline | F13: Non-ADA | G13: 1 | H13: 22 | I13: 10 | J13: 2010 | K13: =IF(K$1=Reference!$D$1,_xlfn.XLOOKUP('Fleet Info'!$L13,Reference!$A$2:$A$11,Reference!$D$2:$D$11),IF(K$1=Reference!$E$1,_xlfn.XLOOKUP('Fleet Info'!$L13,Reference!$A$2:$A$11,Reference!$E$2:$E$11),"ERROR")) -> 5 | L13: =IF($D13=Reference!$B$2,Reference!$A$2,IF($D13=Reference!$B$3,IF('Fleet Info'!$H13<=30,Reference!$A$4,Reference!$A$3),IF($D13=Reference!$B$5,IF('Fleet Info'!$I13>20,Reference!$A$5,Reference!$A$6),IF($D13=Reference!$B$7,Reference!$A$7,IF($D13=Reference!$B$8,IF('Fleet Info'!$F13="Non-ADA",Reference!$A$8,Reference!$A$7),IF($D13=Reference!$B$9,IF('Fleet Info'!$F13="Non-ADA",Reference!$A$9,Reference!$A$7),IF($D13=Reference!$B$10,IF('Fleet Info'!$F13="Non-ADA",Reference!$A$10,Reference!$A$7),IF($D13=Reference!$B$11,Reference!$A$11,IF($D13="Battery Electric Bus (BEB)",IF($H13<=30,Reference!$A$4,Reference!$A$3)))))))))) -> 5 | M13: =_xlfn.XLOOKUP(L13,Reference!$A$2:$A$11,Reference!$C$2:$C$11) -> Standard Cutaway | N13: =_xlfn.XLOOKUP($L13,Reference!$A$2:$A$11,Reference!$J$2:$J$11) -> 170000 | O13: =_xlfn.XLOOKUP($L13,Reference!$A$2:$A$11,Reference!$P$2:$P$11) -> 88000 | P13: =IF(D13="Battery Electric Bus (BEB)",0,_xlfn.XLOOKUP($L13,Reference!$A$2:$A$11,Reference!$O$2:$O$11))*G13 -> 50000 | Q13: 2026 | R13: 2031 | S13: 2036 | T13: 2041 | U13: 2046 | V13: 2051 | W13: 2056 | X13: =W13+$K13 -> 2061 | Y13: =IF($D13<>"Battery Electric Bus (BEB)",MIN(IF($Q13:$X13>=Y$2,$Q13:$X13)),2021) -> 2026 | Z13: =IF($D13<>"Battery Electric Bus (BEB)",MIN(IF($Q13:$X13>=Z$2,$Q13:$X13)),2021) -> 2026 | AA13: =IF($D13<>"Battery Electric Bus (BEB)",MIN(IF($Q13:$X13>=AA$2,$Q13:$X13)),2021) -> 2026 | AB13: =IF($D13<>"Battery Electric Bus (BEB)",MIN(IF($Q13:$X13>=AB$2,$Q13:$X13)),2021) -> 2026 | AC13: =IF($D13<>"Battery Electric Bus (BEB)",MIN(IF($Q13:$X13>=AC$2,$Q13:$X13)),2021) -> 2026 | AD13: =IF($D13<>"Battery Electric Bus (BEB)",MIN(IF($Q13:$X13>=AD$2,$Q13:$X13)),2021) -> 2031 | AE13: =IF($D13<>"Battery Electric Bus (BEB)",MIN(IF($Q13:$X13>=AE$2,$Q13:$X13)),2021) -> 2031 | AF13: =IF($D13<>"Battery Electric Bus (BEB)",MIN(IF($Q13:$X13>=AF$2,$Q13:$X13)),2021) -> 2031 | AG13: =IF($D13<>"Battery Electric Bus (BEB)",MIN(IF($Q13:$X13>=AG$2,$Q13:$X13)),2021) -> 2031 | AH13: No | AI13: No | AJ13: No | AK13: No | AL13: Yes | AM13: No | AN13: No | AO13: No | AP13: No | AQ13: Yes | AR13: No | AS13: No | AT13: No | AU13: No | AV13: Yes | AW13: No | AX13: No | AY13: No | AZ13: No | BA13: Yes | BB13: No | BC13: No | BD13: No | BE13: No | BF13: Yes | BG13: No | BH13: No | BI13: No | BJ13: No | BK13: =_xlfn.XLOOKUP($L13,Reference!$A$2:$A$11,Reference!$S$2:$S$11) -> 0.08 | BL13: 170000 | BM13: 156400 | BN13: 143888 | BO13: 132376.96 | BP13: 121786.8032 | BQ13: 112043.8589 | BR13: =IF(BQ13*(1-$BK13)>$O13,BQ13*(1-$BK13),$O13) -> 103080.3502 | BS13: 94833.92221 | BT13: 88000 | BU13: 88000 | BV13: 88000 | BW13: 88000 | BX13: 88000 | BY13: 88000 | BZ13: 88000 | CA13: 88000 | CB13: 88000 | CC13: 88000 | CD13: 88000 | CE13: 88000 | CF13: 88000 | CG13: 88000 | CH13: 88000 | CI13: 88000 | CJ13: 88000 | CK13: 88000 | CL13: 88000 | CM13: 88000 | CN13: 88000 | CO13: 88000 | CP13: 88000 | CQ13: 88000 | CR13: 88000 | CS13: 88000 | CT13: 88000 | CU13: 88000 | CV13: 88000 | CW13: 88000 | CX13: 88000 | CY13: 88000 | CZ13: 88000 | DA13: 88000 | DB13: 88000 | DC13: 88000 | DD13: 88000 | DE13: 88000 | DF13: 88000 | DG13: 88000 | DH13: 88000 | DI13: 88000 | DJ13: 88000 | DK13: 88000 | DL13: 88000 | DM13: 88000 | DN13: 88000 | DO13: 88000 | DP13: 88000 | DQ13: 88000
A14: Berthoud Area Transportation Service (BATS) | B14: 13 | C14: DR - Demand Response | D14: Cutaway (CU) | E14: Gasoline | F14: Non-ADA | G14: 1 | H14: 22 | I14: 12 | J14: 2009 | K14: =IF(K$1=Reference!$D$1,_xlfn.XLOOKUP('Fleet Info'!$L14,Reference!$A$2:$A$11,Reference!$D$2:$D$11),IF(K$1=Reference!$E$1,_xlfn.XLOOKUP('Fleet Info'!$L14,Reference!$A$2:$A$11,Reference!$E$2:$E$11),"ERROR")) -> 5 | L14: =IF($D14=Reference!$B$2,Reference!$A$2,IF($D14=Reference!$B$3,IF('Fleet Info'!$H14<=30,Reference!$A$4,Reference!$A$3),IF($D14=Reference!$B$5,IF('Fleet Info'!$I14>20,Reference!$A$5,Reference!$A$6),IF($D14=Reference!$B$7,Reference!$A$7,IF($D14=Reference!$B$8,IF('Fleet Info'!$F14="Non-ADA",Reference!$A$8,Reference!$A$7),IF($D14=Reference!$B$9,IF('Fleet Info'!$F14="Non-ADA",Reference!$A$9,Reference!$A$7),IF($D14=Reference!$B$10,IF('Fleet Info'!$F14="Non-ADA",Reference!$A$10,Reference!$A$7),IF($D14=Reference!$B$11,Reference!$A$11,IF($D14="Battery Electric Bus (BEB)",IF($H14<=30,Reference!$A$4,Reference!$A$3)))))))))) -> 5 | M14: =_xlfn.XLOOKUP(L14,Reference!$A$2:$A$11,Reference!$C$2:$C$11) -> Standard Cutaway | N14: =_xlfn.XLOOKUP($L14,Reference!$A$2:$A$11,Reference!$J$2:$J$11) -> 170000 | O14: =_xlfn.XLOOKUP($L14,Reference!$A$2:$A$11,Reference!$P$2:$P$11) -> 88000 | P14: =IF(D14="Battery Electric Bus (BEB)",0,_xlfn.XLOOKUP($L14,Reference!$A$2:$A$11,Reference!$O$2:$O$11))*G14 -> 50000 | Q14: 2026 | R14: 2031 | S14: 2036 | T14: 2041 | U14: 2046 | V14: 2051 | W14: 2056 | X14: =W14+$K14 -> 2061 | Y14: =IF($D14<>"Battery Electric Bus (BEB)",MIN(IF($Q14:$X14>=Y$2,$Q14:$X14)),2021) -> 2026 | Z14: =IF($D14<>"Battery Electric Bus (BEB)",MIN(IF($Q14:$X14>=Z$2,$Q14:$X14)),2021) -> 2026 | AA14: =IF($D14<>"Battery Electric Bus (BEB)",MIN(IF($Q14:$X14>=AA$2,$Q14:$X14)),2021) -> 2026 | AB14: =IF($D14<>"Battery Electric Bus (BEB)",MIN(IF($Q14:$X14>=AB$2,$Q14:$X14)),2021) -> 2026 | AC14: =IF($D14<>"Battery Electric Bus (BEB)",MIN(IF($Q14:$X14>=AC$2,$Q14:$X14)),2021) -> 2026 | AD14: =IF($D14<>"Battery Electric Bus (BEB)",MIN(IF($Q14:$X14>=AD$2,$Q14:$X14)),2021) -> 2031 | AE14: =IF($D14<>"Battery Electric Bus (BEB)",MIN(IF($Q14:$X14>=AE$2,$Q14:$X14)),2021) -> 2031 | AF14: =IF($D14<>"Battery Electric Bus (BEB)",MIN(IF($Q14:$X14>=AF$2,$Q14:$X14)),2021) -> 2031 | AG14: =IF($D14<>"Battery Electric Bus (BEB)",MIN(IF($Q14:$X14>=AG$2,$Q14:$X14)),2021) -> 2031 | AH14: No | AI14: No | AJ14: No | AK14: No | AL14: Yes | AM14: No | AN14: No | AO14: No | AP14: No | AQ14: Yes | AR14: No | AS14: No | AT14: No | AU14: No | AV14: Yes | AW14: No | AX14: No | AY14: No | AZ14: No | BA14: Yes | BB14: No | BC14: No | BD14: No | BE14: No | BF14: Yes | BG14: No | BH14: No | BI14: No | BJ14: No | BK14: =_xlfn.XLOOKUP($L14,Reference!$A$2:$A$11,Reference!$S$2:$S$11) -> 0.08 | BL14: 170000 | BM14: 156400 | BN14: 143888 | BO14: 132376.96 | BP14: 121786.8032 | BQ14: 112043.8589 | BR14: =IF(BQ14*(1-$BK14)>$O14,BQ14*(1-$BK14),$O14) -> 103080.3502 | BS14: 94833.92221 | BT14: 88000 | BU14: 88000 | BV14: 88000 | BW14: 88000 | BX14: 88000 | BY14: 88000 | BZ14: 88000 | CA14: 88000 | CB14: 88000 | CC14: 88000 | CD14: 88000 | CE14: 88000 | CF14: 88000 | CG14: 88000 | CH14: 88000 | CI14: 88000 | CJ14: 88000 | CK14: 88000 | CL14: 88000 | CM14: 88000 | CN14: 88000 | CO14: 88000 | CP14: 88000 | CQ14: 88000 | CR14: 88000 | CS14: 88000 | CT14: 88000 | CU14: 88000 | CV14: 88000 | CW14: 88000 | CX14: 88000 | CY14: 88000 | CZ14: 88000 | DA14: 88000 | DB14: 88000 | DC14: 88000 | DD14: 88000 | DE14: 88000 | DF14: 88000 | DG14: 88000 | DH14: 88000 | DI14: 88000 | DJ14: 88000 | DK14: 88000 | DL14: 88000 | DM14: 88000 | DN14: 88000 | DO14: 88000 | DP14: 88000 | DQ14: 88000
A15: Black Hawk, City of | B15: 14 | C15: MB - Bus | D15: Cutaway (CU) | E15: Gasoline | F15: Non-ADA | G15: 1 | H15: 18 | I15: 16 | J15: 2014 | K15: =IF(K$1=Reference!$D$1,_xlfn.XLOOKUP('Fleet Info'!$L15,Reference!$A$2:$A$11,Reference!$D$2:$D$11),IF(K$1=Reference!$E$1,_xlfn.XLOOKUP('Fleet Info'!$L15,Reference!$A$2:$A$11,Reference!$E$2:$E$11),"ERROR")) -> 5 | L15: =IF($D15=Reference!$B$2,Reference!$A$2,IF($D15=Reference!$B$3,IF('Fleet Info'!$H15<=30,Reference!$A$4,Reference!$A$3),IF($D15=Reference!$B$5,IF('Fleet Info'!$I15>20,Reference!$A$5,Reference!$A$6),IF($D15=Reference!$B$7,Reference!$A$7,IF($D15=Reference!$B$8,IF('Fleet Info'!$F15="Non-ADA",Reference!$A$8,Reference!$A$7),IF($D15=Reference!$B$9,IF('Fleet Info'!$F15="Non-ADA",Reference!$A$9,Reference!$A$7),IF($D15=Reference!$B$10,IF('Fleet Info'!$F15="Non-ADA",Reference!$A$10,Reference!$A$7),IF($D15=Reference!$B$11,Reference!$A$11,IF($D15="Battery Electric Bus (BEB)",IF($H15<=30,Reference!$A$4,Reference!$A$3)))))))))) -> 5 | M15: =_xlfn.XLOOKUP(L15,Reference!$A$2:$A$11,Reference!$C$2:$C$11) -> Standard Cutaway | N15: =_xlfn.XLOOKUP($L15,Reference!$A$2:$A$11,Reference!$J$2:$J$11) -> 170000 | O15: =_xlfn.XLOOKUP($L15,Reference!$A$2:$A$11,Reference!$P$2:$P$11) -> 88000 | P15: =IF(D15="Battery Electric Bus (BEB)",0,_xlfn.XLOOKUP($L15,Reference!$A$2:$A$11,Reference!$O$2:$O$11))*G15 -> 50000 | Q15: 2026 | R15: 2031 | S15: 2036 | T15: 2041 | U15: 2046 | V15: 2051 | W15: 2056 | X15: =W15+$K15 -> 2061 | Y15: =IF($D15<>"Battery Electric Bus (BEB)",MIN(IF($Q15:$X15>=Y$2,$Q15:$X15)),2021) -> 2026 | Z15: =IF($D15<>"Battery Electric Bus (BEB)",MIN(IF($Q15:$X15>=Z$2,$Q15:$X15)),2021) -> 2026 | AA15: =IF($D15<>"Battery Electric Bus (BEB)",MIN(IF($Q15:$X15>=AA$2,$Q15:$X15)),2021) -> 2026 | AB15: =IF($D15<>"Battery Electric Bus (BEB)",MIN(IF($Q15:$X15>=AB$2,$Q15:$X15)),2021) -> 2026 | AC15: =IF($D15<>"Battery Electric Bus (BEB)",MIN(IF($Q15:$X15>=AC$2,$Q15:$X15)),2021) -> 2026 | AD15: =IF($D15<>"Battery Electric Bus (BEB)",MIN(IF($Q15:$X15>=AD$2,$Q15:$X15)),2021) -> 2031 | AE15: =IF($D15<>"Battery Electric Bus (BEB)",MIN(IF($Q15:$X15>=AE$2,$Q15:$X15)),2021) -> 2031 | AF15: =IF($D15<>"Battery Electric Bus (BEB)",MIN(IF($Q15:$X15>=AF$2,$Q15:$X15)),2021) -> 2031 | AG15: =IF($D15<>"Battery Electric Bus (BEB)",MIN(IF($Q15:$X15>=AG$2,$Q15:$X15)),2021) -> 2031 | AH15: No | AI15: No | AJ15: No | AK15: No | AL15: Yes | AM15: No | AN15: No | AO15: No | AP15: No | AQ15: Yes | AR15: No | AS15: No | AT15: No | AU15: No | AV15: Yes | AW15: No | AX15: No | AY15: No | AZ15: No | BA15: Yes | BB15: No | BC15: No | BD15: No | BE15: No | BF15: Yes | BG15: No | BH15: No | BI15: No | BJ15: No | BK15: =_xlfn.XLOOKUP($L15,Reference!$A$2:$A$11,Reference!$S$2:$S$11) -> 0.08 | BL15: 170000 | BM15: 156400 | BN15: 143888 | BO15: 132376.96 | BP15: 121786.8032 | BQ15: 112043.8589 | BR15: =IF(BQ15*(1-$BK15)>$O15,BQ15*(1-$BK15),$O15) -> 103080.3502 | BS15: 94833.92221 | BT15: 88000 | BU15: 88000 | BV15: 88000 | BW15: 88000 | BX15: 88000 | BY15: 88000 | BZ15: 88000 | CA15: 88000 | CB15: 88000 | CC15: 88000 | CD15: 88000 | CE15: 88000 | CF15: 88000 | CG15: 88000 | CH15: 88000 | CI15: 88000 | CJ15: 88000 | CK15: 88000 | CL15: 88000 | CM15: 88000 | CN15: 88000 | CO15: 88000 | CP15: 88000 | CQ15: 88000 | CR15: 88000 | CS15: 88000 | CT15: 88000 | CU15: 88000 | CV15: 88000 | CW15: 88000 | CX15: 88000 | CY15: 88000 | CZ15: 88000 | DA15: 88000 | DB15: 88000 | DC15: 88000 | DD15: 88000 | DE15: 88000 | DF15: 88000 | DG15: 88000 | DH15: 88000 | DI15: 88000 | DJ15: 88000 | DK15: 88000 | DL15: 88000 | DM15: 88000 | DN15: 88000 | DO15: 88000 | DP15: 88000 | DQ15: 88000
A16: Black Hawk, City of | B16: 15 | C16: MB - Bus | D16: Cutaway (CU) | E16: Gasoline | F16: Non-ADA | G16: 1 | H16: 18 | I16: 16 | J16: 2014 | K16: =IF(K$1=Reference!$D$1,_xlfn.XLOOKUP('Fleet Info'!$L16,Reference!$A$2:$A$11,Reference!$D$2:$D$11),IF(K$1=Reference!$E$1,_xlfn.XLOOKUP('Fleet Info'!$L16,Reference!$A$2:$A$11,Reference!$E$2:$E$11),"ERROR")) -> 5 | L16: =IF($D16=Reference!$B$2,Reference!$A$2,IF($D16=Reference!$B$3,IF('Fleet Info'!$H16<=30,Reference!$A$4,Reference!$A$3),IF($D16=Reference!$B$5,IF('Fleet Info'!$I16>20,Reference!$A$5,Reference!$A$6),IF($D16=Reference!$B$7,Reference!$A$7,IF($D16=Reference!$B$8,IF('Fleet Info'!$F16="Non-ADA",Reference!$A$8,Reference!$A$7),IF($D16=Reference!$B$9,IF('Fleet Info'!$F16="Non-ADA",Reference!$A$9,Reference!$A$7),IF($D16=Reference!$B$10,IF('Fleet Info'!$F16="Non-ADA",Reference!$A$10,Reference!$A$7),IF($D16=Reference!$B$11,Reference!$A$11,IF($D16="Battery Electric Bus (BEB)",IF($H16<=30,Reference!$A$4,Reference!$A$3)))))))))) -> 5 | M16: =_xlfn.XLOOKUP(L16,Reference!$A$2:$A$11,Reference!$C$2:$C$11) -> Standard Cutaway | N16: =_xlfn.XLOOKUP($L16,Reference!$A$2:$A$11,Reference!$J$2:$J$11) -> 170000 | O16: =_xlfn.XLOOKUP($L16,Reference!$A$2:$A$11,Reference!$P$2:$P$11) -> 88000 | P16: =IF(D16="Battery Electric Bus (BEB)",0,_xlfn.XLOOKUP($L16,Reference!$A$2:$A$11,Reference!$O$2:$O$11))*G16 -> 50000 | Q16: 2026 | R16: 2031 | S16: 2036 | T16: 2041 | U16: 2046 | V16: 2051 | W16: 2056 | X16: =W16+$K16 -> 2061 | Y16: =IF($D16<>"Battery Electric Bus (BEB)",MIN(IF($Q16:$X16>=Y$2,$Q16:$X16)),2021) -> 2026 | Z16: =IF($D16<>"Battery Electric Bus (BEB)",MIN(IF($Q16:$X16>=Z$2,$Q16:$X16)),2021) -> 2026 | AA16: =IF($D16<>"Battery Electric Bus (BEB)",MIN(IF($Q16:$X16>=AA$2,$Q16:$X16)),2021) -> 2026 | AB16: =IF($D16<>"Battery Electric Bus (BEB)",MIN(IF($Q16:$X16>=AB$2,$Q16:$X16)),2021) -> 2026 | AC16: =IF($D16<>"Battery Electric Bus (BEB)",MIN(IF($Q16:$X16>=AC$2,$Q16:$X16)),2021) -> 2026 | AD16: =IF($D16<>"Battery Electric Bus (BEB)",MIN(IF($Q16:$X16>=AD$2,$Q16:$X16)),2021) -> 2031 | AE16: =IF($D16<>"Battery Electric Bus (BEB)",MIN(IF($Q16:$X16>=AE$2,$Q16:$X16)),2021) -> 2031 | AF16: =IF($D16<>"Battery Electric Bus (BEB)",MIN(IF($Q16:$X16>=AF$2,$Q16:$X16)),2021) -> 2031 | AG16: =IF($D16<>"Battery Electric Bus (BEB)",MIN(IF($Q16:$X16>=AG$2,$Q16:$X16)),2021) -> 2031 | AH16: No | AI16: No | AJ16: No | AK16: No | AL16: Yes | AM16: No | AN16: No | AO16: No | AP16: No | AQ16: Yes | AR16: No | AS16: No | AT16: No | AU16: No | AV16: Yes | AW16: No | AX16: No | AY16: No | AZ16: No | BA16: Yes | BB16: No | BC16: No | BD16: No | BE16: No | BF16: Yes | BG16: No | BH16: No | BI16: No | BJ16: No | BK16: =_xlfn.XLOOKUP($L16,Reference!$A$2:$A$11,Reference!$S$2:$S$11) -> 0.08 | BL16: 170000 | BM16: 156400 | BN16: 143888 | BO16: 132376.96 | BP16: 121786.8032 | BQ16: 112043.8589 | BR16: =IF(BQ16*(1-$BK16)>$O16,BQ16*(1-$BK16),$O16) -> 103080.3502 | BS16: 94833.92221 | BT16: 88000 | BU16: 88000 | BV16: 88000 | BW16: 88000 | BX16: 88000 | BY16: 88000 | BZ16: 88000 | CA16: 88000 | CB16: 88000 | CC16: 88000 | CD16: 88000 | CE16: 88000 | CF16: 88000 | CG16: 88000 | CH16: 88000 | CI16: 88000 | CJ16: 88000 | CK16: 88000 | CL16: 88000 | CM16: 88000 | CN16: 88000 | CO16: 88000 | CP16: 88000 | CQ16: 88000 | CR16: 88000 | CS16: 88000 | CT16: 88000 | CU16: 88000 | CV16: 88000 | CW16: 88000 | CX16: 88000 | CY16: 88000 | CZ16: 88000 | DA16: 88000 | DB16: 88000 | DC16: 88000 | DD16: 88000 | DE16: 88000 | DF16: 88000 | DG16: 88000 | DH16: 88000 | DI16: 88000 | DJ16: 88000 | DK16: 88000 | DL16: 88000 | DM16: 88000 | DN16: 88000 | DO16: 88000 | DP16: 88000 | DQ16: 88000
A17: Black Hawk, City of | B17: 16 | C17: MB - Bus | D17: Bus (BU) | E17: Diesel Fuel | F17: Non-ADA | G17: 1 | H17: 30 | I17: 25 | J17: 2013 | K17: =IF(K$1=Reference!$D$1,_xlfn.XLOOKUP('Fleet Info'!$L17,Reference!$A$2:$A$11,Reference!$D$2:$D$11),IF(K$1=Reference!$E$1,_xlfn.XLOOKUP('Fleet Info'!$L17,Reference!$A$2:$A$11,Reference!$E$2:$E$11),"ERROR")) -> 10 | L17: =IF($D17=Reference!$B$2,Reference!$A$2,IF($D17=Reference!$B$3,IF('Fleet Info'!$H17<=30,Reference!$A$4,Reference!$A$3),IF($D17=Reference!$B$5,IF('Fleet Info'!$I17>20,Reference!$A$5,Reference!$A$6),IF($D17=Reference!$B$7,Reference!$A$7,IF($D17=Reference!$B$8,IF('Fleet Info'!$F17="Non-ADA",Reference!$A$8,Reference!$A$7),IF($D17=Reference!$B$9,IF('Fleet Info'!$F17="Non-ADA",Reference!$A$9,Reference!$A$7),IF($D17=Reference!$B$10,IF('Fleet Info'!$F17="Non-ADA",Reference!$A$10,Reference!$A$7),IF($D17=Reference!$B$11,Reference!$A$11,IF($D17="Battery Electric Bus (BEB)",IF($H17<=30,Reference!$A$4,Reference!$A$3)))))))))) -> 3 | M17: =_xlfn.XLOOKUP(L17,Reference!$A$2:$A$11,Reference!$C$2:$C$11) -> Small Bus | N17: =_xlfn.XLOOKUP($L17,Reference!$A$2:$A$11,Reference!$J$2:$J$11) -> 580000 | O17: =_xlfn.XLOOKUP($L17,Reference!$A$2:$A$11,Reference!$P$2:$P$11) -> 350000 | P17: =IF(D17="Battery Electric Bus (BEB)",0,_xlfn.XLOOKUP($L17,Reference!$A$2:$A$11,Reference!$O$2:$O$11))*G17 -> 110000 | Q17: 2023 | R17: 2033 | S17: 2043 | T17: 2053 | U17: 2063 | V17: 2073 | W17: 2083 | X17: =W17+$K17 -> 2093 | Y17: =IF($D17<>"Battery Electric Bus (BEB)",MIN(IF($Q17:$X17>=Y$2,$Q17:$X17)),2021) -> 2023 | Z17: =IF($D17<>"Battery Electric Bus (BEB)",MIN(IF($Q17:$X17>=Z$2,$Q17:$X17)),2021) -> 2023 | AA17: =IF($D17<>"Battery Electric Bus (BEB)",MIN(IF($Q17:$X17>=AA$2,$Q17:$X17)),2021) -> 2033 | AB17: =IF($D17<>"Battery Electric Bus (BEB)",MIN(IF($Q17:$X17>=AB$2,$Q17:$X17)),2021) -> 2033 | AC17: =IF($D17<>"Battery Electric Bus (BEB)",MIN(IF($Q17:$X17>=AC$2,$Q17:$X17)),2021) -> 2033 | AD17: =IF($D17<>"Battery Electric Bus (BEB)",MIN(IF($Q17:$X17>=AD$2,$Q17:$X17)),2021) -> 2033 | AE17: =IF($D17<>"Battery Electric Bus (BEB)",MIN(IF($Q17:$X17>=AE$2,$Q17:$X17)),2021) -> 2033 | AF17: =IF($D17<>"Battery Electric Bus (BEB)",MIN(IF($Q17:$X17>=AF$2,$Q17:$X17)),2021) -> 2033 | AG17: =IF($D17<>"Battery Electric Bus (BEB)",MIN(IF($Q17:$X17>=AG$2,$Q17:$X17)),2021) -> 2033 | AH17: No | AI17: Yes | AJ17: No | AK17: No | AL17: No | AM17: No | AN17: No | AO17: No | AP17: No | AQ17: No | AR17: No | AS17: Yes | AT17: No | AU17: No | AV17: No | AW17: No | AX17: No | AY17: No | AZ17: No | BA17: No | BB17: No | BC17: Yes | BD17: No | BE17: No | BF17: No | BG17: No | BH17: No | BI17: No | BJ17: No | BK17: =_xlfn.XLOOKUP($L17,Reference!$A$2:$A$11,Reference!$S$2:$S$11) -> 0.08 | BL17: 580000 | BM17: 533600 | BN17: 490912 | BO17: 451639.04 | BP17: 415507.9168 | BQ17: 382267.2835 | BR17: =IF(BQ17*(1-$BK17)>$O17,BQ17*(1-$BK17),$O17) -> 351685.9008 | BS17: 350000 | BT17: 350000 | BU17: 350000 | BV17: 350000 | BW17: 350000 | BX17: 350000 | BY17: 350000 | BZ17: 350000 | CA17: 350000 | CB17: 350000 | CC17: 350000 | CD17: 350000 | CE17: 350000 | CF17: 350000 | CG17: 350000 | CH17: 350000 | CI17: 350000 | CJ17: 350000 | CK17: 350000 | CL17: 350000 | CM17: 350000 | CN17: 350000 | CO17: 350000 | CP17: 350000 | CQ17: 350000 | CR17: 350000 | CS17: 350000 | CT17: 350000 | CU17: 350000 | CV17: 350000 | CW17: 350000 | CX17: 350000 | CY17: 350000 | CZ17: 350000 | DA17: 350000 | DB17: 350000 | DC17: 350000 | DD17: 350000 | DE17: 350000 | DF17: 350000 | DG17: 350000 | DH17: 350000 | DI17: 350000 | DJ17: 350000 | DK17: 350000 | DL17: 350000 | DM17: 350000 | DN17: 350000 | DO17: 350000 | DP17: 350000 | DQ17: 350000
A18: Black Hawk, City of | B18: 17 | C18: MB - Bus | D18: Bus (BU) | E18: Diesel Fuel | F18: Non-ADA | G18: 1 | H18: 30 | I18: 25 | J18: 2013 | K18: =IF(K$1=Reference!$D$1,_xlfn.XLOOKUP('Fleet Info'!$L18,Reference!$A$2:$A$11,Reference!$D$2:$D$11),IF(K$1=Reference!$E$1,_xlfn.XLOOKUP('Fleet Info'!$L18,Reference!$A$2:$A$11,Reference!$E$2:$E$11),"ERROR")) -> 10 | L18: =IF($D18=Reference!$B$2,Reference!$A$2,IF($D18=Reference!$B$3,IF('Fleet Info'!$H18<=30,Reference!$A$4,Reference!$A$3),IF($D18=Reference!$B$5,IF('Fleet Info'!$I18>20,Reference!$A$5,Reference!$A$6),IF($D18=Reference!$B$7,Reference!$A$7,IF($D18=Reference!$B$8,IF('Fleet Info'!$F18="Non-ADA",Reference!$A$8,Reference!$A$7),IF($D18=Reference!$B$9,IF('Fleet Info'!$F18="Non-ADA",Reference!$A$9,Reference!$A$7),IF($D18=Reference!$B$10,IF('Fleet Info'!$F18="Non-ADA",Reference!$A$10,Reference!$A$7),IF($D18=Reference!$B$11,Reference!$A$11,IF($D18="Battery Electric Bus (BEB)",IF($H18<=30,Reference!$A$4,Reference!$A$3)))))))))) -> 3 | M18: =_xlfn.XLOOKUP(L18,Reference!$A$2:$A$11,Reference!$C$2:$C$11) -> Small Bus | N18: =_xlfn.XLOOKUP($L18,Reference!$A$2:$A$11,Reference!$J$2:$J$11) -> 580000 | O18: =_xlfn.XLOOKUP($L18,Reference!$A$2:$A$11,Reference!$P$2:$P$11) -> 350000 | P18: =IF(D18="Battery Electric Bus (BEB)",0,_xlfn.XLOOKUP($L18,Reference!$A$2:$A$11,Reference!$O$2:$O$11))*G18 -> 110000 | Q18: 2023 | R18: 2033 | S18: 2043 | T18: 2053 | U18: 2063 | V18: 2073 | W18: 2083 | X18: =W18+$K18 -> 2093 | Y18: =IF($D18<>"Battery Electric Bus (BEB)",MIN(IF($Q18:$X18>=Y$2,$Q18:$X18)),2021) -> 2023 | Z18: =IF($D18<>"Battery Electric Bus (BEB)",MIN(IF($Q18:$X18>=Z$2,$Q18:$X18)),2021) -> 2023 | AA18: =IF($D18<>"Battery Electric Bus (BEB)",MIN(IF($Q18:$X18>=AA$2,$Q18:$X18)),2021) -> 2033 | AB18: =IF($D18<>"Battery Electric Bus (BEB)",MIN(IF($Q18:$X18>=AB$2,$Q18:$X18)),2021) -> 2033 | AC18: =IF($D18<>"Battery Electric Bus (BEB)",MIN(IF($Q18:$X18>=AC$2,$Q18:$X18)),2021) -> 2033 | AD18: =IF($D18<>"Battery Electric Bus (BEB)",MIN(IF($Q18:$X18>=AD$2,$Q18:$X18)),2021) -> 2033 | AE18: =IF($D18<>"Battery Electric Bus (BEB)",MIN(IF($Q18:$X18>=AE$2,$Q18:$X18)),2021) -> 2033 | AF18: =IF($D18<>"Battery Electric Bus (BEB)",MIN(IF($Q18:$X18>=AF$2,$Q18:$X18)),2021) -> 2033 | AG18: =IF($D18<>"Battery Electric Bus (BEB)",MIN(IF($Q18:$X18>=AG$2,$Q18:$X18)),2021) -> 2033 | AH18: No | AI18: Yes | AJ18: No | AK18: No | AL18: No | AM18: No | AN18: No | AO18: No | AP18: No | AQ18: No | AR18: No | AS18: Yes | AT18: No | AU18: No | AV18: No | AW18: No | AX18: No | AY18: No | AZ18: No | BA18: No | BB18: No | BC18: Yes | BD18: No | BE18: No | BF18: No | BG18: No | BH18: No | BI18: No | BJ18: No | BK18: =_xlfn.XLOOKUP($L18,Reference!$A$2:$A$11,Reference!$S$2:$S$11) -> 0.08 | BL18: 580000 | BM18: 533600 | BN18: 490912 | BO18: 451639.04 | BP18: 415507.9168 | BQ18: 382267.2835 | BR18: =IF(BQ18*(1-$BK18)>$O18,BQ18*(1-$BK18),$O18) -> 351685.9008 | BS18: 350000 | BT18: 350000 | BU18: 350000 | BV18: 350000 | BW18: 350000 | BX18: 350000 | BY18: 350000 | BZ18: 350000 | CA18: 350000 | CB18: 350000 | CC18: 350000 | CD18: 350000 | CE18: 350000 | CF18: 350000 | CG18: 350000 | CH18: 350000 | CI18: 350000 | CJ18: 350000 | CK18: 350000 | CL18: 350000 | CM18: 350000 | CN18: 350000 | CO18: 350000 | CP18: 350000 | CQ18: 350000 | CR18: 350000 | CS18: 350000 | CT18: 350000 | CU18: 350000 | CV18: 350000 | CW18: 350000 | CX18: 350000 | CY18: 350000 | CZ18: 350000 | DA18: 350000 | DB18: 350000 | DC18: 350000 | DD18: 350000 | DE18: 350000 | DF18: 350000 | DG18: 350000 | DH18: 350000 | DI18: 350000 | DJ18: 350000 | DK18: 350000 | DL18: 350000 | DM18: 350000 | DN18: 350000 | DO18: 350000 | DP18: 350000 | DQ18: 350000
A19: Black Hawk, City of | B19: 18 | C19: MB - Bus | D19: Bus (BU) | E19: Diesel Fuel | F19: Non-ADA | G19: 1 | H19: 30 | I19: 25 | J19: 2014 | K19: =IF(K$1=Reference!$D$1,_xlfn.XLOOKUP('Fleet Info'!$L19,Reference!$A$2:$A$11,Reference!$D$2:$D$11),IF(K$1=Reference!$E$1,_xlfn.XLOOKUP('Fleet Info'!$L19,Reference!$A$2:$A$11,Reference!$E$2:$E$11),"ERROR")) -> 10 | L19: =IF($D19=Reference!$B$2,Reference!$A$2,IF($D19=Reference!$B$3,IF('Fleet Info'!$H19<=30,Reference!$A$4,Reference!$A$3),IF($D19=Reference!$B$5,IF('Fleet Info'!$I19>20,Reference!$A$5,Reference!$A$6),IF($D19=Reference!$B$7,Reference!$A$7,IF($D19=Reference!$B$8,IF('Fleet Info'!$F19="Non-ADA",Reference!$A$8,Reference!$A$7),IF($D19=Reference!$B$9,IF('Fleet Info'!$F19="Non-ADA",Reference!$A$9,Reference!$A$7),IF($D19=Reference!$B$10,IF('Fleet Info'!$F19="Non-ADA",Reference!$A$10,Reference!$A$7),IF($D19=Reference!$B$11,Reference!$A$11,IF($D19="Battery Electric Bus (BEB)",IF($H19<=30,Reference!$A$4,Reference!$A$3)))))))))) -> 3 | M19: =_xlfn.XLOOKUP(L19,Reference!$A$2:$A$11,Reference!$C$2:$C$11) -> Small Bus | N19: =_xlfn.XLOOKUP($L19,Reference!$A$2:$A$11,Reference!$J$2:$J$11) -> 580000 | O19: =_xlfn.XLOOKUP($L19,Reference!$A$2:$A$11,Reference!$P$2:$P$11) -> 350000 | P19: =IF(D19="Battery Electric Bus (BEB)",0,_xlfn.XLOOKUP($L19,Reference!$A$2:$A$11,Reference!$O$2:$O$11))*G19 -> 110000 | Q19: 2024 | R19: 2034 | S19: 2044 | T19: 2054 | U19: 2064 | V19: 2074 | W19: 2084 | X19: =W19+$K19 -> 2094 | Y19: =IF($D19<>"Battery Electric Bus (BEB)",MIN(IF($Q19:$X19>=Y$2,$Q19:$X19)),2021) -> 2024 | Z19: =IF($D19<>"Battery Electric Bus (BEB)",MIN(IF($Q19:$X19>=Z$2,$Q19:$X19)),2021) -> 2024 | AA19: =IF($D19<>"Battery Electric Bus (BEB)",MIN(IF($Q19:$X19>=AA$2,$Q19:$X19)),2021) -> 2024 | AB19: =IF($D19<>"Battery Electric Bus (BEB)",MIN(IF($Q19:$X19>=AB$2,$Q19:$X19)),2021) -> 2034 | AC19: =IF($D19<>"Battery Electric Bus (BEB)",MIN(IF($Q19:$X19>=AC$2,$Q19:$X19)),2021) -> 2034 | AD19: =IF($D19<>"Battery Electric Bus (BEB)",MIN(IF($Q19:$X19>=AD$2,$Q19:$X19)),2021) -> 2034 | AE19: =IF($D19<>"Battery Electric Bus (BEB)",MIN(IF($Q19:$X19>=AE$2,$Q19:$X19)),2021) -> 2034 | AF19: =IF($D19<>"Battery Electric Bus (BEB)",MIN(IF($Q19:$X19>=AF$2,$Q19:$X19)),2021) -> 2034 | AG19: =IF($D19<>"Battery Electric Bus (BEB)",MIN(IF($Q19:$X19>=AG$2,$Q19:$X19)),2021) -> 2034 | AH19: No | AI19: No | AJ19: Yes | AK19: No | AL19: No | AM19: No | AN19: No | AO19: No | AP19: No | AQ19: No | AR19: No | AS19: No | AT19: Yes | AU19: No | AV19: No | AW19: No | AX19: No | AY19: No | AZ19: No | BA19: No | BB19: No | BC19: No | BD19: Yes | BE19: No | BF19: No | BG19: No | BH19: No | BI19: No | BJ19: No | BK19: =_xlfn.XLOOKUP($L19,Reference!$A$2:$A$11,Reference!$S$2:$S$11) -> 0.08 | BL19: 580000 | BM19: 533600 | BN19: 490912 | BO19: 451639.04 | BP19: 415507.9168 | BQ19: 382267.2835 | BR19: =IF(BQ19*(1-$BK19)>$O19,BQ19*(1-$BK19),$O19) -> 351685.9008 | BS19: 350000 | BT19: 350000 | BU19: 350000 | BV19: 350000 | BW19: 350000 | BX19: 350000 | BY19: 350000 | BZ19: 350000 | CA19: 350000 | CB19: 350000 | CC19: 350000 | CD19: 350000 | CE19: 350000 | CF19: 350000 | CG19: 350000 | CH19: 350000 | CI19: 350000 | CJ19: 350000 | CK19: 350000 | CL19: 350000 | CM19: 350000 | CN19: 350000 | CO19: 350000 | CP19: 350000 | CQ19: 350000 | CR19: 350000 | CS19: 350000 | CT19: 350000 | CU19: 350000 | CV19: 350000 | CW19: 350000 | CX19: 350000 | CY19: 350000 | CZ19: 350000 | DA19: 350000 | DB19: 350000 | DC19: 350000 | DD19: 350000 | DE19: 350000 | DF19: 350000 | DG19: 350000 | DH19: 350000 | DI19: 350000 | DJ19: 350000 | DK19: 350000 | DL19: 350000 | DM19: 350000 | DN19: 350000 | DO19: 350000 | DP19: 350000 | DQ19: 350000
A20: Black Hawk, City of | B20: 19 | C20: MB - Bus | D20: Bus (BU) | E20: Diesel Fuel | F20: Non-ADA | G20: 1 | H20: 35 | I20: 34 | J20: 2006 | K20: =IF(K$1=Reference!$D$1,_xlfn.XLOOKUP('Fleet Info'!$L20,Reference!$A$2:$A$11,Reference!$D$2:$D$11),IF(K$1=Reference!$E$1,_xlfn.XLOOKUP('Fleet Info'!$L20,Reference!$A$2:$A$11,Reference!$E$2:$E$11),"ERROR")) -> 12 | L20: =IF($D20=Reference!$B$2,Reference!$A$2,IF($D20=Reference!$B$3,IF('Fleet Info'!$H20<=30,Reference!$A$4,Reference!$A$3),IF($D20=Reference!$B$5,IF('Fleet Info'!$I20>20,Reference!$A$5,Reference!$A$6),IF($D20=Reference!$B$7,Reference!$A$7,IF($D20=Reference!$B$8,IF('Fleet Info'!$F20="Non-ADA",Reference!$A$8,Reference!$A$7),IF($D20=Reference!$B$9,IF('Fleet Info'!$F20="Non-ADA",Reference!$A$9,Reference!$A$7),IF($D20=Reference!$B$10,IF('Fleet Info'!$F20="Non-ADA",Reference!$A$10,Reference!$A$7),IF($D20=Reference!$B$11,Reference!$A$11,IF($D20="Battery Electric Bus (BEB)",IF($H20<=30,Reference!$A$4,Reference!$A$3)))))))))) -> 2 | M20: =_xlfn.XLOOKUP(L20,Reference!$A$2:$A$11,Reference!$C$2:$C$11) -> Standard Bus | N20: =_xlfn.XLOOKUP($L20,Reference!$A$2:$A$11,Reference!$J$2:$J$11) -> 950000 | O20: =_xlfn.XLOOKUP($L20,Reference!$A$2:$A$11,Reference!$P$2:$P$11) -> 500000 | P20: =IF(D20="Battery Electric Bus (BEB)",0,_xlfn.XLOOKUP($L20,Reference!$A$2:$A$11,Reference!$O$2:$O$11))*G20 -> 110000 | Q20: 2033 | R20: 2045 | S20: 2057 | T20: 2069 | U20: 2081 | V20: 2093 | W20: 2105 | X20: =W20+$K20 -> 2117 | Y20: =IF($D20<>"Battery Electric Bus (BEB)",MIN(IF($Q20:$X20>=Y$2,$Q20:$X20)),2021) -> 2033 | Z20: =IF($D20<>"Battery Electric Bus (BEB)",MIN(IF($Q20:$X20>=Z$2,$Q20:$X20)),2021) -> 2033 | AA20: =IF($D20<>"Battery Electric Bus (BEB)",MIN(IF($Q20:$X20>=AA$2,$Q20:$X20)),2021) -> 2033 | AB20: =IF($D20<>"Battery Electric Bus (BEB)",MIN(IF($Q20:$X20>=AB$2,$Q20:$X20)),2021) -> 2033 | AC20: =IF($D20<>"Battery Electric Bus (BEB)",MIN(IF($Q20:$X20>=AC$2,$Q20:$X20)),2021) -> 2033 | AD20: =IF($D20<>"Battery Electric Bus (BEB)",MIN(IF($Q20:$X20>=AD$2,$Q20:$X20)),2021) -> 2033 | AE20: =IF($D20<>"Battery Electric Bus (BEB)",MIN(IF($Q20:$X20>=AE$2,$Q20:$X20)),2021) -> 2033 | AF20: =IF($D20<>"Battery Electric Bus (BEB)",MIN(IF($Q20:$X20>=AF$2,$Q20:$X20)),2021) -> 2033 | AG20: =IF($D20<>"Battery Electric Bus (BEB)",MIN(IF($Q20:$X20>=AG$2,$Q20:$X20)),2021) -> 2033 | AH20: No | AI20: No | AJ20: No | AK20: No | AL20: No | AM20: No | AN20: No | AO20: No | AP20: No | AQ20: No | AR20: No | AS20: Yes | AT20: No | AU20: No | AV20: No | AW20: No | AX20: No | AY20: No | AZ20: No | BA20: No | BB20: No | BC20: No | BD20: No | BE20: Yes | BF20: No | BG20: No | BH20: No | BI20: No | BJ20: No | BK20: =_xlfn.XLOOKUP($L20,Reference!$A$2:$A$11,Reference!$S$2:$S$11) -> 0.08 | BL20: 950000 | BM20: 874000 | BN20: 804080 | BO20: 739753.6 | BP20: 680573.312 | BQ20: 626127.447 | BR20: =IF(BQ20*(1-$BK20)>$O20,BQ20*(1-$BK20),$O20) -> 576037.2513 | BS20: 529954.2712 | BT20: 500000 | BU20: 500000 | BV20: 500000 | BW20: 500000 | BX20: 500000 | BY20: 500000 | BZ20: 500000 | CA20: 500000 | CB20: 500000 | CC20: 500000 | CD20: 500000 | CE20: 500000 | CF20: 500000 | CG20: 500000 | CH20: 500000 | CI20: 500000 | CJ20: 500000 | CK20: 500000 | CL20: 500000 | CM20: 500000 | CN20: 500000 | CO20: 500000 | CP20: 500000 | CQ20: 500000 | CR20: 500000 | CS20: 500000 | CT20: 500000 | CU20: 500000 | CV20: 500000 | CW20: 500000 | CX20: 500000 | CY20: 500000 | CZ20: 500000 | DA20: 500000 | DB20: 500000 | DC20: 500000 | DD20: 500000 | DE20: 500000 | DF20: 500000 | DG20: 500000 | DH20: 500000 | DI20: 500000 | DJ20: 500000 | DK20: 500000 | DL20: 500000 | DM20: 500000 | DN20: 500000 | DO20: 500000 | DP20: 500000 | DQ20: 500000
A21: Breckenridge, Town of | B21: 20 | C21: MB - Bus | D21: Battery Electric Bus (BEB) | E21: Diesel Fuel | F21: Non-ADA | G21: 1 | H21: 29 | I21: 20 | J21: 2019 | K21: =IF(K$1=Reference!$D$1,_xlfn.XLOOKUP('Fleet Info'!$L21,Reference!$A$2:$A$11,Reference!$D$2:$D$11),IF(K$1=Reference!$E$1,_xlfn.XLOOKUP('Fleet Info'!$L21,Reference!$A$2:$A$11,Reference!$E$2:$E$11),"ERROR")) -> 10 | L21: =IF($D21=Reference!$B$2,Reference!$A$2,IF($D21=Reference!$B$3,IF('Fleet Info'!$H21<=30,Reference!$A$4,Reference!$A$3),IF($D21=Reference!$B$5,IF('Fleet Info'!$I21>20,Reference!$A$5,Reference!$A$6),IF($D21=Reference!$B$7,Reference!$A$7,IF($D21=Reference!$B$8,IF('Fleet Info'!$F21="Non-ADA",Reference!$A$8,Reference!$A$7),IF($D21=Reference!$B$9,IF('Fleet Info'!$F21="Non-ADA",Reference!$A$9,Reference!$A$7),IF($D21=Reference!$B$10,IF('Fleet Info'!$F21="Non-ADA",Reference!$A$10,Reference!$A$7),IF($D21=Reference!$B$11,Reference!$A$11,IF($D21="Battery Electric Bus (BEB)",IF($H21<=30,Reference!$A$4,Reference!$A$3)))))))))) -> 3 | M21: =_xlfn.XLOOKUP(L21,Reference!$A$2:$A$11,Reference!$C$2:$C$11) -> Small Bus | N21: =_xlfn.XLOOKUP($L21,Reference!$A$2:$A$11,Reference!$J$2:$J$11) -> 580000 | O21: =_xlfn.XLOOKUP($L21,Reference!$A$2:$A$11,Reference!$P$2:$P$11) -> 350000 | P21: =IF(D21="Battery Electric Bus (BEB)",0,_xlfn.XLOOKUP($L21,Reference!$A$2:$A$11,Reference!$O$2:$O$11))*G21 -> 0 | Q21: =IF(J21+K21<=2021,2021+K21,J21+K21) -> 2029 | R21: 2039 | S21: 2049 | T21: 2059 | U21: 2069 | V21: 2079 | W21: 2089 | X21: =W21+$K21 -> 2099 | Y21: =IF($D21<>"Battery Electric Bus (BEB)",MIN(IF($Q21:$X21>=Y$2,$Q21:$X21)),2021) -> 2021 | Z21: =IF($D21<>"Battery Electric Bus (BEB)",MIN(IF($Q21:$X21>=Z$2,$Q21:$X21)),2021) -> 2021 | AA21: =IF($D21<>"Battery Electric Bus (BEB)",MIN(IF($Q21:$X21>=AA$2,$Q21:$X21)),2021) -> 2021 | AB21: =IF($D21<>"Battery Electric Bus (BEB)",MIN(IF($Q21:$X21>=AB$2,$Q21:$X21)),2021) -> 2021 | AC21: =IF($D21<>"Battery Electric Bus (BEB)",MIN(IF($Q21:$X21>=AC$2,$Q21:$X21)),2021) -> 2021 | AD21: =IF($D21<>"Battery Electric Bus (BEB)",MIN(IF($Q21:$X21>=AD$2,$Q21:$X21)),2021) -> 2021 | AE21: =IF($D21<>"Battery Electric Bus (BEB)",MIN(IF($Q21:$X21>=AE$2,$Q21:$X21)),2021) -> 2021 | AF21: =IF($D21<>"Battery Electric Bus (BEB)",MIN(IF($Q21:$X21>=AF$2,$Q21:$X21)),2021) -> 2021 | AG21: =IF($D21<>"Battery Electric Bus (BEB)",MIN(IF($Q21:$X21>=AG$2,$Q21:$X21)),2021) -> 2021 | AH21: No | AI21: No | AJ21: No | AK21: No | AL21: No | AM21: No | AN21: No | AO21: Yes | AP21: No | AQ21: No | AR21: No | AS21: No | AT21: No | AU21: No | AV21: No | AW21: No | AX21: No | AY21: Yes | AZ21: No | BA21: No | BB21: No | BC21: No | BD21: No | BE21: No | BF21: No | BG21: No | BH21: No | BI21: Yes | BJ21: No | BK21: =_xlfn.XLOOKUP($L21,Reference!$A$2:$A$11,Reference!$S$2:$S$11) -> 0.08 | BL21: 580000 | BM21: 533600 | BN21: 490912 | BO21: 451639.04 | BP21: 415507.9168 | BQ21: 382267.2835 | BR21: =IF(BQ21*(1-$BK21)>$O21,BQ21*(1-$BK21),$O21) -> 351685.9008 | BS21: 350000 | BT21: 350000 | BU21: 350000 | BV21: 350000 | BW21: 350000 | BX21: 350000 | BY21: 350000 | BZ21: 350000 | CA21: 350000 | CB21: 350000 | CC21: 350000 | CD21: 350000 | CE21: 350000 | CF21: 350000 | CG21: 350000 | CH21: 350000 | CI21: 350000 | CJ21: 350000 | CK21: 350000 | CL21: 350000 | CM21: 350000 | CN21: 350000 | CO21: 580000 | CP21: 533600 | CQ21: 490912 | CR21: 451639.04 | CS21: 415507.9168 | CT21: 382267.2835 | CU21: 351685.9008 | CV21: 350000 | CW21: 350000 | CX21: 350000 | CY21: 350000 | CZ21: 350000 | DA21: 350000 | DB21: 350000 | DC21: 350000 | DD21: 350000 | DE21: 350000 | DF21: 350000 | DG21: 350000 | DH21: 350000 | DI21: 350000 | DJ21: 350000 | DK21: 350000 | DL21: 350000 | DM21: 350000 | DN21: 350000 | DO21: 350000 | DP21: 350000 | DQ21: 350000
A22: Breckenridge, Town of | B22: 21 | C22: MB - Bus | D22: Battery Electric Bus (BEB) | E22: Diesel Fuel | F22: Non-ADA | G22: 1 | H22: 30 | I22: 20 | J22: 2019 | K22: =IF(K$1=Reference!$D$1,_xlfn.XLOOKUP('Fleet Info'!$L22,Reference!$A$2:$A$11,Reference!$D$2:$D$11),IF(K$1=Reference!$E$1,_xlfn.XLOOKUP('Fleet Info'!$L22,Reference!$A$2:$A$11,Reference!$E$2:$E$11),"ERROR")) -> 10 | L22: =IF($D22=Reference!$B$2,Reference!$A$2,IF($D22=Reference!$B$3,IF('Fleet Info'!$H22<=30,Reference!$A$4,Reference!$A$3),IF($D22=Reference!$B$5,IF('Fleet Info'!$I22>20,Reference!$A$5,Reference!$A$6),IF($D22=Reference!$B$7,Reference!$A$7,IF($D22=Reference!$B$8,IF('Fleet Info'!$F22="Non-ADA",Reference!$A$8,Reference!$A$7),IF($D22=Reference!$B$9,IF('Fleet Info'!$F22="Non-ADA",Reference!$A$9,Reference!$A$7),IF($D22=Reference!$B$10,IF('Fleet Info'!$F22="Non-ADA",Reference!$A$10,Reference!$A$7),IF($D22=Reference!$B$11,Reference!$A$11,IF($D22="Battery Electric Bus (BEB)",IF($H22<=30,Reference!$A$4,Reference!$A$3)))))))))) -> 3 | M22: =_xlfn.XLOOKUP(L22,Reference!$A$2:$A$11,Reference!$C$2:$C$11) -> Small Bus | N22: =_xlfn.XLOOKUP($L22,Reference!$A$2:$A$11,Reference!$J$2:$J$11) -> 580000 | O22: =_xlfn.XLOOKUP($L22,Reference!$A$2:$A$11,Reference!$P$2:$P$11) -> 350000 | P22: =IF(D22="Battery Electric Bus (BEB)",0,_xlfn.XLOOKUP($L22,Reference!$A$2:$A$11,Reference!$O$2:$O$11))*G22 -> 0 | Q22: 2029 | R22: 2039 | S22: 2049 | T22: 2059 | U22: 2069 | V22: 2079 | W22: 2089 | X22: =W22+$K22 -> 2099 | Y22: =IF($D22<>"Battery Electric Bus (BEB)",MIN(IF($Q22:$X22>=Y$2,$Q22:$X22)),2021) -> 2021 | Z22: =IF($D22<>"Battery Electric Bus (BEB)",MIN(IF($Q22:$X22>=Z$2,$Q22:$X22)),2021) -> 2021 | AA22: =IF($D22<>"Battery Electric Bus (BEB)",MIN(IF($Q22:$X22>=AA$2,$Q22:$X22)),2021) -> 2021 | AB22: =IF($D22<>"Battery Electric Bus (BEB)",MIN(IF($Q22:$X22>=AB$2,$Q22:$X22)),2021) -> 2021 | AC22: =IF($D22<>"Battery Electric Bus (BEB)",MIN(IF($Q22:$X22>=AC$2,$Q22:$X22)),2021) -> 2021 | AD22: =IF($D22<>"Battery Electric Bus (BEB)",MIN(IF($Q22:$X22>=AD$2,$Q22:$X22)),2021) -> 2021 | AE22: =IF($D22<>"Battery Electric Bus (BEB)",MIN(IF($Q22:$X22>=AE$2,$Q22:$X22)),2021) -> 2021 | AF22: =IF($D22<>"Battery Electric Bus (BEB)",MIN(IF($Q22:$X22>=AF$2,$Q22:$X22)),2021) -> 2021 | AG22: =IF($D22<>"Battery Electric Bus (BEB)",MIN(IF($Q22:$X22>=AG$2,$Q22:$X22)),2021) -> 2021 | AH22: No | AI22: No | AJ22: No | AK22: No | AL22: No | AM22: No | AN22: No | AO22: Yes | AP22: No | AQ22: No | AR22: No | AS22: No | AT22: No | AU22: No | AV22: No | AW22: No | AX22: No | AY22: Yes | AZ22: No | BA22: No | BB22: No | BC22: No | BD22: No | BE22: No | BF22: No | BG22: No | BH22: No | BI22: Yes | BJ22: No | BK22: =_xlfn.XLOOKUP($L22,Reference!$A$2:$A$11,Reference!$S$2:$S$11) -> 0.08 | BL22: 580000 | BM22: 533600 | BN22: 490912 | BO22: 451639.04 | BP22: 415507.9168 | BQ22: 382267.2835 | BR22: =IF(BQ22*(1-$BK22)>$O22,BQ22*(1-$BK22),$O22) -> 351685.9008 | BS22: 350000 | BT22: 350000 | BU22: 350000 | BV22: 350000 | BW22: 350000 | BX22: 350000 | BY22: 350000 | BZ22: 350000 | CA22: 350000 | CB22: 350000 | CC22: 350000 | CD22: 350000 | CE22: 350000 | CF22: 350000 | CG22: 350000 | CH22: 350000 | CI22: 350000 | CJ22: 350000 | CK22: 350000 | CL22: 350000 | CM22: 350000 | CN22: 350000 | CO22: 580000 | CP22: 533600 | CQ22: 490912 | CR22: 451639.04 | CS22: 415507.9168 | CT22: 382267.2835 | CU22: 351685.9008 | CV22: 350000 | CW22: 350000 | CX22: 350000 | CY22: 350000 | CZ22: 350000 | DA22: 350000 | DB22: 350000 | DC22: 350000 | DD22: 350000 | DE22: 350000 | DF22: 350000 | DG22: 350000 | DH22: 350000 | DI22: 350000 | DJ22: 350000 | DK22: 350000 | DL22: 350000 | DM22: 350000 | DN22: 350000 | DO22: 350000 | DP22: 350000 | DQ22: 350000
A23: Breckenridge, Town of | B23: 22 | C23: MB - Bus | D23: Bus (BU) | E23: Diesel Fuel | F23: Non-ADA | G23: 1 | H23: 29 | I23: 20 | J23: 2013 | K23: =IF(K$1=Reference!$D$1,_xlfn.XLOOKUP('Fleet Info'!$L23,Reference!$A$2:$A$11,Reference!$D$2:$D$11),IF(K$1=Reference!$E$1,_xlfn.XLOOKUP('Fleet Info'!$L23,Reference!$A$2:$A$11,Reference!$E$2:$E$11),"ERROR")) -> 10 | L23: =IF($D23=Reference!$B$2,Reference!$A$2,IF($D23=Reference!$B$3,IF('Fleet Info'!$H23<=30,Reference!$A$4,Reference!$A$3),IF($D23=Reference!$B$5,IF('Fleet Info'!$I23>20,Reference!$A$5,Reference!$A$6),IF($D23=Reference!$B$7,Reference!$A$7,IF($D23=Reference!$B$8,IF('Fleet Info'!$F23="Non-ADA",Reference!$A$8,Reference!$A$7),IF($D23=Reference!$B$9,IF('Fleet Info'!$F23="Non-ADA",Reference!$A$9,Reference!$A$7),IF($D23=Reference!$B$10,IF('Fleet Info'!$F23="Non-ADA",Reference!$A$10,Reference!$A$7),IF($D23=Reference!$B$11,Reference!$A$11,IF($D23="Battery Electric Bus (BEB)",IF($H23<=30,Reference!$A$4,Reference!$A$3)))))))))) -> 3 | M23: =_xlfn.XLOOKUP(L23,Reference!$A$2:$A$11,Reference!$C$2:$C$11) -> Small Bus | N23: =_xlfn.XLOOKUP($L23,Reference!$A$2:$A$11,Reference!$J$2:$J$11) -> 580000 | O23: =_xlfn.XLOOKUP($L23,Reference!$A$2:$A$11,Reference!$P$2:$P$11) -> 350000 | P23: =IF(D23="Battery Electric Bus (BEB)",0,_xlfn.XLOOKUP($L23,Reference!$A$2:$A$11,Reference!$O$2:$O$11))*G23 -> 110000 | Q23: 2023 | R23: 2033 | S23: 2043 | T23: 2053 | U23: 2063 | V23: 2073 | W23: 2083 | X23: =W23+$K23 -> 2093 | Y23: =IF($D23<>"Battery Electric Bus (BEB)",MIN(IF($Q23:$X23>=Y$2,$Q23:$X23)),2021) -> 2023 | Z23: =IF($D23<>"Battery Electric Bus (BEB)",MIN(IF($Q23:$X23>=Z$2,$Q23:$X23)),2021) -> 2023 | AA23: =IF($D23<>"Battery Electric Bus (BEB)",MIN(IF($Q23:$X23>=AA$2,$Q23:$X23)),2021) -> 2033 | AB23: =IF($D23<>"Battery Electric Bus (BEB)",MIN(IF($Q23:$X23>=AB$2,$Q23:$X23)),2021) -> 2033 | AC23: =IF($D23<>"Battery Electric Bus (BEB)",MIN(IF($Q23:$X23>=AC$2,$Q23:$X23)),2021) -> 2033 | AD23: =IF($D23<>"Battery Electric Bus (BEB)",MIN(IF($Q23:$X23>=AD$2,$Q23:$X23)),2021) -> 2033 | AE23: =IF($D23<>"Battery Electric Bus (BEB)",MIN(IF($Q23:$X23>=AE$2,$Q23:$X23)),2021) -> 2033 | AF23: =IF($D23<>"Battery Electric Bus (BEB)",MIN(IF($Q23:$X23>=AF$2,$Q23:$X23)),2021) -> 2033 | AG23: =IF($D23<>"Battery Electric Bus (BEB)",MIN(IF($Q23:$X23>=AG$2,$Q23:$X23)),2021) -> 2033 | AH23: No | AI23: Yes | AJ23: No | AK23: No | AL23: No | AM23: No | AN23: No | AO23: No | AP23: No | AQ23: No | AR23: No | AS23: Yes | AT23: No | AU23: No | AV23: No | AW23: No | AX23: No | AY23: No | AZ23: No | BA23: No | BB23: No | BC23: Yes | BD23: No | BE23: No | BF23: No | BG23: No | BH23: No | BI23: No | BJ23: No | BK23: =_xlfn.XLOOKUP($L23,Reference!$A$2:$A$11,Reference!$S$2:$S$11) -> 0.08 | BL23: 580000 | BM23: 533600 | BN23: 490912 | BO23: 451639.04 | BP23: 415507.9168 | BQ23: 382267.2835 | BR23: =IF(BQ23*(1-$BK23)>$O23,BQ23*(1-$BK23),$O23) -> 351685.9008 | BS23: 350000 | BT23: 350000 | BU23: 350000 | BV23: 350000 | BW23: 350000 | BX23: 350000 | BY23: 350000 | BZ23: 350000 | CA23: 350000 | CB23: 350000 | CC23: 350000 | CD23: 350000 | CE23: 350000 | CF23: 350000 | CG23: 350000 | CH23: 350000 | CI23: 350000 | CJ23: 350000 | CK23: 350000 | CL23: 350000 | CM23: 350000 | CN23: 350000 | CO23: 350000 | CP23: 350000 | CQ23: 350000 | CR23: 350000 | CS23: 350000 | CT23: 350000 | CU23: 350000 | CV23: 350000 | CW23: 350000 | CX23: 350000 | CY23: 350000 | CZ23: 350000 | DA23: 350000 | DB23: 350000 | DC23: 350000 | DD23: 350000 | DE23: 350000 | DF23: 350000 | DG23: 350000 | DH23: 350000 | DI23: 350000 | DJ23: 350000 | DK23: 350000 | DL23: 350000 | DM23: 350000 | DN23: 350000 | DO23: 350000 | DP23: 350000 | DQ23: 350000
A24: Breckenridge, Town of | B24: 23 | C24: MB - Bus | D24: Cutaway (CU) | E24: Gasoline | F24: Non-ADA | G24: 1 | H24: 27 | I24: 20 | J24: 2013 | K24: =IF(K$1=Reference!$D$1,_xlfn.XLOOKUP('Fleet Info'!$L24,Reference!$A$2:$A$11,Reference!$D$2:$D$11),IF(K$1=Reference!$E$1,_xlfn.XLOOKUP('Fleet Info'!$L24,Reference!$A$2:$A$11,Reference!$E$2:$E$11),"ERROR")) -> 5 | L24: =IF($D24=Reference!$B$2,Reference!$A$2,IF($D24=Reference!$B$3,IF('Fleet Info'!$H24<=30,Reference!$A$4,Reference!$A$3),IF($D24=Reference!$B$5,IF('Fleet Info'!$I24>20,Reference!$A$5,Reference!$A$6),IF($D24=Reference!$B$7,Reference!$A$7,IF($D24=Reference!$B$8,IF('Fleet Info'!$F24="Non-ADA",Reference!$A$8,Reference!$A$7),IF($D24=Reference!$B$9,IF('Fleet Info'!$F24="Non-ADA",Reference!$A$9,Reference!$A$7),IF($D24=Reference!$B$10,IF('Fleet Info'!$F24="Non-ADA",Reference!$A$10,Reference!$A$7),IF($D24=Reference!$B$11,Reference!$A$11,IF($D24="Battery Electric Bus (BEB)",IF($H24<=30,Reference!$A$4,Reference!$A$3)))))))))) -> 5 | M24: =_xlfn.XLOOKUP(L24,Reference!$A$2:$A$11,Reference!$C$2:$C$11) -> Standard Cutaway | N24: =_xlfn.XLOOKUP($L24,Reference!$A$2:$A$11,Reference!$J$2:$J$11) -> 170000 | O24: =_xlfn.XLOOKUP($L24,Reference!$A$2:$A$11,Reference!$P$2:$P$11) -> 88000 | P24: =IF(D24="Battery Electric Bus (BEB)",0,_xlfn.XLOOKUP($L24,Reference!$A$2:$A$11,Reference!$O$2:$O$11))*G24 -> 50000 | Q24: 2026 | R24: 2031 | S24: 2036 | T24: 2041 | U24: 2046 | V24: 2051 | W24: 2056 | X24: =W24+$K24 -> 2061 | Y24: =IF($D24<>"Battery Electric Bus (BEB)",MIN(IF($Q24:$X24>=Y$2,$Q24:$X24)),2021) -> 2026 | Z24: =IF($D24<>"Battery Electric Bus (BEB)",MIN(IF($Q24:$X24>=Z$2,$Q24:$X24)),2021) -> 2026 | AA24: =IF($D24<>"Battery Electric Bus (BEB)",MIN(IF($Q24:$X24>=AA$2,$Q24:$X24)),2021) -> 2026 | AB24: =IF($D24<>"Battery Electric Bus (BEB)",MIN(IF($Q24:$X24>=AB$2,$Q24:$X24)),2021) -> 2026 | AC24: =IF($D24<>"Battery Electric Bus (BEB)",MIN(IF($Q24:$X24>=AC$2,$Q24:$X24)),2021) -> 2026 | AD24: =IF($D24<>"Battery Electric Bus (BEB)",MIN(IF($Q24:$X24>=AD$2,$Q24:$X24)),2021) -> 2031 | AE24: =IF($D24<>"Battery Electric Bus (BEB)",MIN(IF($Q24:$X24>=AE$2,$Q24:$X24)),2021) -> 2031 | AF24: =IF($D24<>"Battery Electric Bus (BEB)",MIN(IF($Q24:$X24>=AF$2,$Q24:$X24)),2021) -> 2031 | AG24: =IF($D24<>"Battery Electric Bus (BEB)",MIN(IF($Q24:$X24>=AG$2,$Q24:$X24)),2021) -> 2031 | AH24: No | AI24: No | AJ24: No | AK24: No | AL24: Yes | AM24: No | AN24: No | AO24: No | AP24: No | AQ24: Yes | AR24: No | AS24: No | AT24: No | AU24: No | AV24: Yes | AW24: No | AX24: No | AY24: No | AZ24: No | BA24: Yes | BB24: No | BC24: No | BD24: No | BE24: No | BF24: Yes | BG24: No | BH24: No | BI24: No | BJ24: No | BK24: =_xlfn.XLOOKUP($L24,Reference!$A$2:$A$11,Reference!$S$2:$S$11) -> 0.08 | BL24: 170000 | BM24: 156400 | BN24: 143888 | BO24: 132376.96 | BP24: 121786.8032 | BQ24: 112043.8589 | BR24: =IF(BQ24*(1-$BK24)>$O24,BQ24*(1-$BK24),$O24) -> 103080.3502 | BS24: 94833.92221 | BT24: 88000 | BU24: 88000 | BV24: 88000 | BW24: 88000 | BX24: 88000 | BY24: 88000 | BZ24: 88000 | CA24: 88000 | CB24: 88000 | CC24: 88000 | CD24: 88000 | CE24: 88000 | CF24: 88000 | CG24: 88000 | CH24: 88000 | CI24: 88000 | CJ24: 88000 | CK24: 88000 | CL24: 88000 | CM24: 88000 | CN24: 88000 | CO24: 88000 | CP24: 88000 | CQ24: 88000 | CR24: 88000 | CS24: 88000 | CT24: 88000 | CU24: 88000 | CV24: 88000 | CW24: 88000 | CX24: 88000 | CY24: 88000 | CZ24: 88000 | DA24: 88000 | DB24: 88000 | DC24: 88000 | DD24: 88000 | DE24: 88000 | DF24: 88000 | DG24: 88000 | DH24: 88000 | DI24: 88000 | DJ24: 88000 | DK24: 88000 | DL24: 88000 | DM24: 88000 | DN24: 88000 | DO24: 88000 | DP24: 88000 | DQ24: 88000
A25: Breckenridge, Town of | B25: 24 | C25: MB - Bus | D25: Cutaway (CU) | E25: Gasoline | F25: Non-ADA | G25: 1 | H25: 27 | I25: 20 | J25: 2013 | K25: =IF(K$1=Reference!$D$1,_xlfn.XLOOKUP('Fleet Info'!$L25,Reference!$A$2:$A$11,Reference!$D$2:$D$11),IF(K$1=Reference!$E$1,_xlfn.XLOOKUP('Fleet Info'!$L25,Reference!$A$2:$A$11,Reference!$E$2:$E$11),"ERROR")) -> 5 | L25: =IF($D25=Reference!$B$2,Reference!$A$2,IF($D25=Reference!$B$3,IF('Fleet Info'!$H25<=30,Reference!$A$4,Reference!$A$3),IF($D25=Reference!$B$5,IF('Fleet Info'!$I25>20,Reference!$A$5,Reference!$A$6),IF($D25=Reference!$B$7,Reference!$A$7,IF($D25=Reference!$B$8,IF('Fleet Info'!$F25="Non-ADA",Reference!$A$8,Reference!$A$7),IF($D25=Reference!$B$9,IF('Fleet Info'!$F25="Non-ADA",Reference!$A$9,Reference!$A$7),IF($D25=Reference!$B$10,IF('Fleet Info'!$F25="Non-ADA",Reference!$A$10,Reference!$A$7),IF($D25=Reference!$B$11,Reference!$A$11,IF($D25="Battery Electric Bus (BEB)",IF($H25<=30,Reference!$A$4,Reference!$A$3)))))))))) -> 5 | M25: =_xlfn.XLOOKUP(L25,Reference!$A$2:$A$11,Reference!$C$2:$C$11) -> Standard Cutaway | N25: =_xlfn.XLOOKUP($L25,Reference!$A$2:$A$11,Reference!$J$2:$J$11) -> 170000 | O25: =_xlfn.XLOOKUP($L25,Reference!$A$2:$A$11,Reference!$P$2:$P$11) -> 88000 | P25: =IF(D25="Battery Electric Bus (BEB)",0,_xlfn.XLOOKUP($L25,Reference!$A$2:$A$11,Reference!$O$2:$O$11))*G25 -> 50000 | Q25: 2026 | R25: 2031 | S25: 2036 | T25: 2041 | U25: 2046 | V25: 2051 | W25: 2056 | X25: =W25+$K25 -> 2061 | Y25: =IF($D25<>"Battery Electric Bus (BEB)",MIN(IF($Q25:$X25>=Y$2,$Q25:$X25)),2021) -> 2026 | Z25: =IF($D25<>"Battery Electric Bus (BEB)",MIN(IF($Q25:$X25>=Z$2,$Q25:$X25)),2021) -> 2026 | AA25: =IF($D25<>"Battery Electric Bus (BEB)",MIN(IF($Q25:$X25>=AA$2,$Q25:$X25)),2021) -> 2026 | AB25: =IF($D25<>"Battery Electric Bus (BEB)",MIN(IF($Q25:$X25>=AB$2,$Q25:$X25)),2021) -> 2026 | AC25: =IF($D25<>"Battery Electric Bus (BEB)",MIN(IF($Q25:$X25>=AC$2,$Q25:$X25)),2021) -> 2026 | AD25: =IF($D25<>"Battery Electric Bus (BEB)",MIN(IF($Q25:$X25>=AD$2,$Q25:$X25)),2021) -> 2031 | AE25: =IF($D25<>"Battery Electric Bus (BEB)",MIN(IF($Q25:$X25>=AE$2,$Q25:$X25)),2021) -> 2031 | AF25: =IF($D25<>"Battery Electric Bus (BEB)",MIN(IF($Q25:$X25>=AF$2,$Q25:$X25)),2021) -> 2031 | AG25: =IF($D25<>"Battery Electric Bus (BEB)",MIN(IF($Q25:$X25>=AG$2,$Q25:$X25)),2021) -> 2031 | AH25: No | AI25: No | AJ25: No | AK25: No | AL25: Yes | AM25: No | AN25: No | AO25: No | AP25: No | AQ25: Yes | AR25: No | AS25: No | AT25: No | AU25: No | AV25: Yes | AW25: No | AX25: No | AY25: No | AZ25: No | BA25: Yes | BB25: No | BC25: No | BD25: No | BE25: No | BF25: Yes | BG25: No | BH25: No | BI25: No | BJ25: No | BK25: =_xlfn.XLOOKUP($L25,Reference!$A$2:$A$11,Reference!$S$2:$S$11) -> 0.08 | BL25: 170000 | BM25: 156400 | BN25: 143888 | BO25: 132376.96 | BP25: 121786.8032 | BQ25: 112043.8589 | BR25: =IF(BQ25*(1-$BK25)>$O25,BQ25*(1-$BK25),$O25) -> 103080.3502 | BS25: 94833.92221 | BT25: 88000 | BU25: 88000 | BV25: 88000 | BW25: 88000 | BX25: 88000 | BY25: 88000 | BZ25: 88000 | CA25: 88000 | CB25: 88000 | CC25: 88000 | CD25: 88000 | CE25: 88000 | CF25: 88000 | CG25: 88000 | CH25: 88000 | CI25: 88000 | CJ25: 88000 | CK25: 88000 | CL25: 88000 | CM25: 88000 | CN25: 88000 | CO25: 88000 | CP25: 88000 | CQ25: 88000 | CR25: 88000 | CS25: 88000 | CT25: 88000 | CU25: 88000 | CV25: 88000 | CW25: 88000 | CX25: 88000 | CY25: 88000 | CZ25: 88000 | DA25: 88000 | DB25: 88000 | DC25: 88000 | DD25: 88000 | DE25: 88000 | DF25: 88000 | DG25: 88000 | DH25: 88000 | DI25: 88000 | DJ25: 88000 | DK25: 88000 | DL25: 88000 | DM25: 88000 | DN25: 88000 | DO25: 88000 | DP25: 88000 | DQ25: 88000
A26: Breckenridge, Town of | B26: 25 | C26: MB - Bus | D26: Bus (BU) | E26: Diesel Fuel | F26: Non-ADA | G26: 1 | H26: 32 | I26: 24 | J26: 2017 | K26: =IF(K$1=Reference!$D$1,_xlfn.XLOOKUP('Fleet Info'!$L26,Reference!$A$2:$A$11,Reference!$D$2:$D$11),IF(K$1=Reference!$E$1,_xlfn.XLOOKUP('Fleet Info'!$L26,Reference!$A$2:$A$11,Reference!$E$2:$E$11),"ERROR")) -> 12 | L26: =IF($D26=Reference!$B$2,Reference!$A$2,IF($D26=Reference!$B$3,IF('Fleet Info'!$H26<=30,Reference!$A$4,Reference!$A$3),IF($D26=Reference!$B$5,IF('Fleet Info'!$I26>20,Reference!$A$5,Reference!$A$6),IF($D26=Reference!$B$7,Reference!$A$7,IF($D26=Reference!$B$8,IF('Fleet Info'!$F26="Non-ADA",Reference!$A$8,Reference!$A$7),IF($D26=Reference!$B$9,IF('Fleet Info'!$F26="Non-ADA",Reference!$A$9,Reference!$A$7),IF($D26=Reference!$B$10,IF('Fleet Info'!$F26="Non-ADA",Reference!$A$10,Reference!$A$7),IF($D26=Reference!$B$11,Reference!$A$11,IF($D26="Battery Electric Bus (BEB)",IF($H26<=30,Reference!$A$4,Reference!$A$3)))))))))) -> 2 | M26: =_xlfn.XLOOKUP(L26,Reference!$A$2:$A$11,Reference!$C$2:$C$11) -> Standard Bus | N26: =_xlfn.XLOOKUP($L26,Reference!$A$2:$A$11,Reference!$J$2:$J$11) -> 950000 | O26: =_xlfn.XLOOKUP($L26,Reference!$A$2:$A$11,Reference!$P$2:$P$11) -> 500000 | P26: =IF(D26="Battery Electric Bus (BEB)",0,_xlfn.XLOOKUP($L26,Reference!$A$2:$A$11,Reference!$O$2:$O$11))*G26 -> 110000 | Q26: 2029 | R26: 2041 | S26: 2053 | T26: 2065 | U26: 2077 | V26: 2089 | W26: 2101 | X26: =W26+$K26 -> 2113 | Y26: =IF($D26<>"Battery Electric Bus (BEB)",MIN(IF($Q26:$X26>=Y$2,$Q26:$X26)),2021) -> 2029 | Z26: =IF($D26<>"Battery Electric Bus (BEB)",MIN(IF($Q26:$X26>=Z$2,$Q26:$X26)),2021) -> 2029 | AA26: =IF($D26<>"Battery Electric Bus (BEB)",MIN(IF($Q26:$X26>=AA$2,$Q26:$X26)),2021) -> 2029 | AB26: =IF($D26<>"Battery Electric Bus (BEB)",MIN(IF($Q26:$X26>=AB$2,$Q26:$X26)),2021) -> 2029 | AC26: =IF($D26<>"Battery Electric Bus (BEB)",MIN(IF($Q26:$X26>=AC$2,$Q26:$X26)),2021) -> 2029 | AD26: =IF($D26<>"Battery Electric Bus (BEB)",MIN(IF($Q26:$X26>=AD$2,$Q26:$X26)),2021) -> 2029 | AE26: =IF($D26<>"Battery Electric Bus (BEB)",MIN(IF($Q26:$X26>=AE$2,$Q26:$X26)),2021) -> 2029 | AF26: =IF($D26<>"Battery Electric Bus (BEB)",MIN(IF($Q26:$X26>=AF$2,$Q26:$X26)),2021) -> 2029 | AG26: =IF($D26<>"Battery Electric Bus (BEB)",MIN(IF($Q26:$X26>=AG$2,$Q26:$X26)),2021) -> 2041 | AH26: No | AI26: No | AJ26: No | AK26: No | AL26: No | AM26: No | AN26: No | AO26: Yes | AP26: No | AQ26: No | AR26: No | AS26: No | AT26: No | AU26: No | AV26: No | AW26: No | AX26: No | AY26: No | AZ26: No | BA26: Yes | BB26: No | BC26: No | BD26: No | BE26: No | BF26: No | BG26: No | BH26: No | BI26: No | BJ26: No | BK26: =_xlfn.XLOOKUP($L26,Reference!$A$2:$A$11,Reference!$S$2:$S$11) -> 0.08 | BL26: 950000 | BM26: 874000 | BN26: 804080 | BO26: 739753.6 | BP26: 680573.312 | BQ26: 626127.447 | BR26: =IF(BQ26*(1-$BK26)>$O26,BQ26*(1-$BK26),$O26) -> 576037.2513 | BS26: 529954.2712 | BT26: 500000 | BU26: 500000 | BV26: 500000 | BW26: 500000 | BX26: 500000 | BY26: 500000 | BZ26: 500000 | CA26: 500000 | CB26: 500000 | CC26: 500000 | CD26: 500000 | CE26: 500000 | CF26: 500000 | CG26: 500000 | CH26: 500000 | CI26: 500000 | CJ26: 500000 | CK26: 500000 | CL26: 500000 | CM26: 500000 | CN26: 500000 | CO26: 500000 | CP26: 500000 | CQ26: 500000 | CR26: 500000 | CS26: 500000 | CT26: 500000 | CU26: 500000 | CV26: 500000 | CW26: 500000 | CX26: 500000 | CY26: 500000 | CZ26: 500000 | DA26: 500000 | DB26: 500000 | DC26: 500000 | DD26: 500000 | DE26: 500000 | DF26: 500000 | DG26: 500000 | DH26: 500000 | DI26: 500000 | DJ26: 500000 | DK26: 500000 | DL26: 500000 | DM26: 500000 | DN26: 500000 | DO26: 500000 | DP26: 500000 | DQ26: 500000
A27: Breckenridge, Town of | B27: 26 | C27: MB - Bus | D27: Bus (BU) | E27: Diesel Fuel | F27: Non-ADA | G27: 1 | H27: 29 | I27: 25 | J27: 2016 | K27: =IF(K$1=Reference!$D$1,_xlfn.XLOOKUP('Fleet Info'!$L27,Reference!$A$2:$A$11,Reference!$D$2:$D$11),IF(K$1=Reference!$E$1,_xlfn.XLOOKUP('Fleet Info'!$L27,Reference!$A$2:$A$11,Reference!$E$2:$E$11),"ERROR")) -> 10 | L27: =IF($D27=Reference!$B$2,Reference!$A$2,IF($D27=Reference!$B$3,IF('Fleet Info'!$H27<=30,Reference!$A$4,Reference!$A$3),IF($D27=Reference!$B$5,IF('Fleet Info'!$I27>20,Reference!$A$5,Reference!$A$6),IF($D27=Reference!$B$7,Reference!$A$7,IF($D27=Reference!$B$8,IF('Fleet Info'!$F27="Non-ADA",Reference!$A$8,Reference!$A$7),IF($D27=Reference!$B$9,IF('Fleet Info'!$F27="Non-ADA",Reference!$A$9,Reference!$A$7),IF($D27=Reference!$B$10,IF('Fleet Info'!$F27="Non-ADA",Reference!$A$10,Reference!$A$7),IF($D27=Reference!$B$11,Reference!$A$11,IF($D27="Battery Electric Bus (BEB)",IF($H27<=30,Reference!$A$4,Reference!$A$3)))))))))) -> 3 | M27: =_xlfn.XLOOKUP(L27,Reference!$A$2:$A$11,Reference!$C$2:$C$11) -> Small Bus | N27: =_xlfn.XLOOKUP($L27,Reference!$A$2:$A$11,Reference!$J$2:$J$11) -> 580000 | O27: =_xlfn.XLOOKUP($L27,Reference!$A$2:$A$11,Reference!$P$2:$P$11) -> 350000 | P27: =IF(D27="Battery Electric Bus (BEB)",0,_xlfn.XLOOKUP($L27,Reference!$A$2:$A$11,Reference!$O$2:$O$11))*G27 -> 110000 | Q27: 2026 | R27: 2036 | S27: 2046 | T27: 2056 | U27: 2066 | V27: 2076 | W27: 2086 | X27: =W27+$K27 -> 2096 | Y27: =IF($D27<>"Battery Electric Bus (BEB)",MIN(IF($Q27:$X27>=Y$2,$Q27:$X27)),2021) -> 2026 | Z27: =IF($D27<>"Battery Electric Bus (BEB)",MIN(IF($Q27:$X27>=Z$2,$Q27:$X27)),2021) -> 2026 | AA27: =IF($D27<>"Battery Electric Bus (BEB)",MIN(IF($Q27:$X27>=AA$2,$Q27:$X27)),2021) -> 2026 | AB27: =IF($D27<>"Battery Electric Bus (BEB)",MIN(IF($Q27:$X27>=AB$2,$Q27:$X27)),2021) -> 2026 | AC27: =IF($D27<>"Battery Electric Bus (BEB)",MIN(IF($Q27:$X27>=AC$2,$Q27:$X27)),2021) -> 2026 | AD27: =IF($D27<>"Battery Electric Bus (BEB)",MIN(IF($Q27:$X27>=AD$2,$Q27:$X27)),2021) -> 2036 | AE27: =IF($D27<>"Battery Electric Bus (BEB)",MIN(IF($Q27:$X27>=AE$2,$Q27:$X27)),2021) -> 2036 | AF27: =IF($D27<>"Battery Electric Bus (BEB)",MIN(IF($Q27:$X27>=AF$2,$Q27:$X27)),2021) -> 2036 | AG27: =IF($D27<>"Battery Electric Bus (BEB)",MIN(IF($Q27:$X27>=AG$2,$Q27:$X27)),2021) -> 2036 | AH27: No | AI27: No | AJ27: No | AK27: No | AL27: Yes | AM27: No | AN27: No | AO27: No | AP27: No | AQ27: No | AR27: No | AS27: No | AT27: No | AU27: No | AV27: Yes | AW27: No | AX27: No | AY27: No | AZ27: No | BA27: No | BB27: No | BC27: No | BD27: No | BE27: No | BF27: Yes | BG27: No | BH27: No | BI27: No | BJ27: No | BK27: =_xlfn.XLOOKUP($L27,Reference!$A$2:$A$11,Reference!$S$2:$S$11) -> 0.08 | BL27: 580000 | BM27: 533600 | BN27: 490912 | BO27: 451639.04 | BP27: 415507.9168 | BQ27: 382267.2835 | BR27: =IF(BQ27*(1-$BK27)>$O27,BQ27*(1-$BK27),$O27) -> 351685.9008 | BS27: 350000 | BT27: 350000 | BU27: 350000 | BV27: 350000 | BW27: 350000 | BX27: 350000 | BY27: 350000 | BZ27: 350000 | CA27: 350000 | CB27: 350000 | CC27: 350000 | CD27: 350000 | CE27: 350000 | CF27: 350000 | CG27: 350000 | CH27: 350000 | CI27: 350000 | CJ27: 350000 | CK27: 350000 | CL27: 350000 | CM27: 350000 | CN27: 350000 | CO27: 350000 | CP27: 350000 | CQ27: 350000 | CR27: 350000 | CS27: 350000 | CT27: 350000 | CU27: 350000 | CV27: 350000 | CW27: 350000 | CX27: 350000 | CY27: 350000 | CZ27: 350000 | DA27: 350000 | DB27: 350000 | DC27: 350000 | DD27: 350000 | DE27: 350000 | DF27: 350000 | DG27: 350000 | DH27: 350000 | DI27: 350000 | DJ27: 350000 | DK27: 350000 | DL27: 350000 | DM27: 350000 | DN27: 350000 | DO27: 350000 | DP27: 350000 | DQ27: 350000
A28: Breckenridge, Town of | B28: 27 | C28: MB - Bus | D28: Bus (BU) | E28: Diesel Fuel | F28: Non-ADA | G28: 1 | H28: 29 | I28: 25 | J28: 2016 | K28: =IF(K$1=Reference!$D$1,_xlfn.XLOOKUP('Fleet Info'!$L28,Reference!$A$2:$A$11,Reference!$D$2:$D$11),IF(K$1=Reference!$E$1,_xlfn.XLOOKUP('Fleet Info'!$L28,Reference!$A$2:$A$11,Reference!$E$2:$E$11),"ERROR")) -> 10 | L28: =IF($D28=Reference!$B$2,Reference!$A$2,IF($D28=Reference!$B$3,IF('Fleet Info'!$H28<=30,Reference!$A$4,Reference!$A$3),IF($D28=Reference!$B$5,IF('Fleet Info'!$I28>20,Reference!$A$5,Reference!$A$6),IF($D28=Reference!$B$7,Reference!$A$7,IF($D28=Reference!$B$8,IF('Fleet Info'!$F28="Non-ADA",Reference!$A$8,Reference!$A$7),IF($D28=Reference!$B$9,IF('Fleet Info'!$F28="Non-ADA",Reference!$A$9,Reference!$A$7),IF($D28=Reference!$B$10,IF('Fleet Info'!$F28="Non-ADA",Reference!$A$10,Reference!$A$7),IF($D28=Reference!$B$11,Reference!$A$11,IF($D28="Battery Electric Bus (BEB)",IF($H28<=30,Reference!$A$4,Reference!$A$3)))))))))) -> 3 | M28: =_xlfn.XLOOKUP(L28,Reference!$A$2:$A$11,Reference!$C$2:$C$11) -> Small Bus | N28: =_xlfn.XLOOKUP($L28,Reference!$A$2:$A$11,Reference!$J$2:$J$11) -> 580000 | O28: =_xlfn.XLOOKUP($L28,Reference!$A$2:$A$11,Reference!$P$2:$P$11) -> 350000 | P28: =IF(D28="Battery Electric Bus (BEB)",0,_xlfn.XLOOKUP($L28,Reference!$A$2:$A$11,Reference!$O$2:$O$11))*G28 -> 110000 | Q28: 2026 | R28: 2036 | S28: 2046 | T28: 2056 | U28: 2066 | V28: 2076 | W28: 2086 | X28: =W28+$K28 -> 2096 | Y28: =IF($D28<>"Battery Electric Bus (BEB)",MIN(IF($Q28:$X28>=Y$2,$Q28:$X28)),2021) -> 2026 | Z28: =IF($D28<>"Battery Electric Bus (BEB)",MIN(IF($Q28:$X28>=Z$2,$Q28:$X28)),2021) -> 2026 | AA28: =IF($D28<>"Battery Electric Bus (BEB)",MIN(IF($Q28:$X28>=AA$2,$Q28:$X28)),2021) -> 2026 | AB28: =IF($D28<>"Battery Electric Bus (BEB)",MIN(IF($Q28:$X28>=AB$2,$Q28:$X28)),2021) -> 2026 | AC28: =IF($D28<>"Battery Electric Bus (BEB)",MIN(IF($Q28:$X28>=AC$2,$Q28:$X28)),2021) -> 2026 | AD28: =IF($D28<>"Battery Electric Bus (BEB)",MIN(IF($Q28:$X28>=AD$2,$Q28:$X28)),2021) -> 2036 | AE28: =IF($D28<>"Battery Electric Bus (BEB)",MIN(IF($Q28:$X28>=AE$2,$Q28:$X28)),2021) -> 2036 | AF28: =IF($D28<>"Battery Electric Bus (BEB)",MIN(IF($Q28:$X28>=AF$2,$Q28:$X28)),2021) -> 2036 | AG28: =IF($D28<>"Battery Electric Bus (BEB)",MIN(IF($Q28:$X28>=AG$2,$Q28:$X28)),2021) -> 2036 | AH28: No | AI28: No | AJ28: No | AK28: No | AL28: Yes | AM28: No | AN28: =IF(OR($Q28=AN$2,$R28=AN$2,$S28=AN$2,$T28=AN$2,$U28=AN$2,$V28=AN$2,$W28=AN$2,$X28=AN$2),"Yes","No") -> No | AO28: No | AP28: No | AQ28: No | AR28: No | AS28: No | AT28: No | AU28: No | AV28: Yes | AW28: No | AX28: No | AY28: No | AZ28: No | BA28: No | BB28: No | BC28: No | BD28: No | BE28: No | BF28: Yes | BG28: No | BH28: No | BI28: No | BJ28: No | BK28: =_xlfn.XLOOKUP($L28,Reference!$A$2:$A$11,Reference!$S$2:$S$11) -> 0.08 | BL28: 580000 | BM28: 533600 | BN28: 490912 | BO28: 451639.04 | BP28: 415507.9168 | BQ28: 382267.2835 | BR28: =IF(BQ28*(1-$BK28)>$O28,BQ28*(1-$BK28),$O28) -> 351685.9008 | BS28: 350000 | BT28: 350000 | BU28: 350000 | BV28: 350000 | BW28: 350000 | BX28: 350000 | BY28: 350000 | BZ28: 350000 | CA28: 350000 | CB28: 350000 | CC28: 350000 | CD28: 350000 | CE28: 350000 | CF28: 350000 | CG28: 350000 | CH28: 350000 | CI28: 350000 | CJ28: 350000 | CK28: 350000 | CL28: 350000 | CM28: 350000 | CN28: 350000 | CO28: 350000 | CP28: 350000 | CQ28: 350000 | CR28: 350000 | CS28: 350000 | CT28: 350000 | CU28: 350000 | CV28: 350000 | CW28: 350000 | CX28: 350000 | CY28: 350000 | CZ28: 350000 | DA28: 350000 | DB28: 350000 | DC28: 350000 | DD28: 350000 | DE28: 350000 | DF28: 350000 | DG28: 350000 | DH28: 350000 | DI28: 350000 | DJ28: 350000 | DK28: 350000 | DL28: 350000 | DM28: 350000 | DN28: 350000 | DO28: 350000 | DP28: 350000 | DQ28: 350000
A29: Breckenridge, Town of | B29: 28 | C29: MB - Bus | D29: Bus (BU) | E29: Diesel Fuel | F29: Non-ADA | G29: 1 | H29: 30 | I29: 25 | J29: 2018 | K29: =IF(K$1=Reference!$D$1,_xlfn.XLOOKUP('Fleet Info'!$L29,Reference!$A$2:$A$11,Reference!$D$2:$D$11),IF(K$1=Reference!$E$1,_xlfn.XLOOKUP('Fleet Info'!$L29,Reference!$A$2:$A$11,Reference!$E$2:$E$11),"ERROR")) -> 10 | L29: =IF($D29=Reference!$B$2,Reference!$A$2,IF($D29=Reference!$B$3,IF('Fleet Info'!$H29<=30,Reference!$A$4,Reference!$A$3),IF($D29=Reference!$B$5,IF('Fleet Info'!$I29>20,Reference!$A$5,Reference!$A$6),IF($D29=Reference!$B$7,Reference!$A$7,IF($D29=Reference!$B$8,IF('Fleet Info'!$F29="Non-ADA",Reference!$A$8,Reference!$A$7),IF($D29=Reference!$B$9,IF('Fleet Info'!$F29="Non-ADA",Reference!$A$9,Reference!$A$7),IF($D29=Reference!$B$10,IF('Fleet Info'!$F29="Non-ADA",Reference!$A$10,Reference!$A$7),IF($D29=Reference!$B$11,Reference!$A$11,IF($D29="Battery Electric Bus (BEB)",IF($H29<=30,Reference!$A$4,Reference!$A$3)))))))))) -> 3 | M29: =_xlfn.XLOOKUP(L29,Reference!$A$2:$A$11,Reference!$C$2:$C$11) -> Small Bus | N29: =_xlfn.XLOOKUP($L29,Reference!$A$2:$A$11,Reference!$J$2:$J$11) -> 580000 | O29: =_xlfn.XLOOKUP($L29,Reference!$A$2:$A$11,Reference!$P$2:$P$11) -> 350000 | P29: =IF(D29="Battery Electric Bus (BEB)",0,_xlfn.XLOOKUP($L29,Reference!$A$2:$A$11,Reference!$O$2:$O$11))*G29 -> 110000 | Q29: 2028 | R29: 2038 | S29: 2048 | T29: 2058 | U29: 2068 | V29: 2078 | W29: 2088 | X29: =W29+$K29 -> 2098 | Y29: =IF($D29<>"Battery Electric Bus (BEB)",MIN(IF($Q29:$X29>=Y$2,$Q29:$X29)),2021) -> 2028 | Z29: =IF($D29<>"Battery Electric Bus (BEB)",MIN(IF($Q29:$X29>=Z$2,$Q29:$X29)),2021) -> 2028 | AA29: =IF($D29<>"Battery Electric Bus (BEB)",MIN(IF($Q29:$X29>=AA$2,$Q29:$X29)),2021) -> 2028 | AB29: =IF($D29<>"Battery Electric Bus (BEB)",MIN(IF($Q29:$X29>=AB$2,$Q29:$X29)),2021) -> 2028 | AC29: =IF($D29<>"Battery Electric Bus (BEB)",MIN(IF($Q29:$X29>=AC$2,$Q29:$X29)),2021) -> 2028 | AD29: =IF($D29<>"Battery Electric Bus (BEB)",MIN(IF($Q29:$X29>=AD$2,$Q29:$X29)),2021) -> 2028 | AE29: =IF($D29<>"Battery Electric Bus (BEB)",MIN(IF($Q29:$X29>=AE$2,$Q29:$X29)),2021) -> 2028 | AF29: =IF($D29<>"Battery Electric Bus (BEB)",MIN(IF($Q29:$X29>=AF$2,$Q29:$X29)),2021) -> 2038 | AG29: =IF($D29<>"Battery Electric Bus (BEB)",MIN(IF($Q29:$X29>=AG$2,$Q29:$X29)),2021) -> 2038 | AH29: =IF(OR($Q29=AH$2,$R29=AH$2,$S29=AH$2,$T29=AH$2,$U29=AH$2,$V29=AH$2,$W29=AH$2,$X29=AH$2),"Yes","No") -> No | AI29: No | AJ29: No | AK29: No | AL29: No | AM29: No | AN29: Yes | AO29: No | AP29: No | AQ29: No | AR29: No | AS29: No | AT29: No | AU29: No | AV29: No | AW29: No | AX29: Yes | AY29: No | AZ29: No | BA29: No | BB29: No | BC29: No | BD29: No | BE29: No | BF29: No | BG29: No | BH29: Yes | BI29: No | BJ29: No | BK29: =_xlfn.XLOOKUP($L29,Reference!$A$2:$A$11,Reference!$S$2:$S$11) -> 0.08 | BL29: 580000 | BM29: 533600 | BN29: 490912 | BO29: 451639.04 | BP29: 415507.9168 | BQ29: 382267.2835 | BR29: =IF(BQ29*(1-$BK29)>$O29,BQ29*(1-$BK29),$O29) -> 351685.9008 | BS29: 350000 | BT29: 350000 | BU29: 350000 | BV29: 350000 | BW29: 350000 | BX29: 350000 | BY29: 350000 | BZ29: 350000 | CA29: 350000 | CB29: 350000 | CC29: 350000 | CD29: 350000 | CE29: 350000 | CF29: 350000 | CG29: 350000 | CH29: 350000 | CI29: 350000 | CJ29: 350000 | CK29: 350000 | CL29: 350000 | CM29: 350000 | CN29: 350000 | CO29: 350000 | CP29: 350000 | CQ29: 350000 | CR29: 350000 | CS29: 350000 | CT29: 350000 | CU29: 350000 | CV29: 350000 | CW29: 350000 | CX29: 350000 | CY29: 350000 | CZ29: 350000 | DA29: 350000 | DB29: 350000 | DC29: 350000 | DD29: 350000 | DE29: 350000 | DF29: 350000 | DG29: 350000 | DH29: 350000 | DI29: 350000 | DJ29: 350000 | DK29: 350000 | DL29: 350000 | DM29: 350000 | DN29: 350000 | DO29: 350000 | DP29: 350000 | DQ29: 350000
A30: Breckenridge, Town of | B30: 29 | C30: MB - Bus | D30: Battery Electric Bus (BEB) | E30: Electric Battery | F30: Non-ADA | G30: 1 | H30: 35 | I30: 28 | J30: 2019 | K30: =IF(K$1=Reference!$D$1,_xlfn.XLOOKUP('Fleet Info'!$L30,Reference!$A$2:$A$11,Reference!$D$2:$D$11),IF(K$1=Reference!$E$1,_xlfn.XLOOKUP('Fleet Info'!$L30,Reference!$A$2:$A$11,Reference!$E$2:$E$11),"ERROR")) -> 12 | L30: =IF($D30=Reference!$B$2,Reference!$A$2,IF($D30=Reference!$B$3,IF('Fleet Info'!$H30<=30,Reference!$A$4,Reference!$A$3),IF($D30=Reference!$B$5,IF('Fleet Info'!$I30>20,Reference!$A$5,Reference!$A$6),IF($D30=Reference!$B$7,Reference!$A$7,IF($D30=Reference!$B$8,IF('Fleet Info'!$F30="Non-ADA",Reference!$A$8,Reference!$A$7),IF($D30=Reference!$B$9,IF('Fleet Info'!$F30="Non-ADA",Reference!$A$9,Reference!$A$7),IF($D30=Reference!$B$10,IF('Fleet Info'!$F30="Non-ADA",Reference!$A$10,Reference!$A$7),IF($D30=Reference!$B$11,Reference!$A$11,IF($D30="Battery Electric Bus (BEB)",IF($H30<=30,Reference!$A$4,Reference!$A$3)))))))))) -> 2 | M30: =_xlfn.XLOOKUP(L30,Reference!$A$2:$A$11,Reference!$C$2:$C$11) -> Standard Bus | N30: =_xlfn.XLOOKUP($L30,Reference!$A$2:$A$11,Reference!$J$2:$J$11) -> 950000 | O30: =_xlfn.XLOOKUP($L30,Reference!$A$2:$A$11,Reference!$P$2:$P$11) -> 500000 | P30: =IF(D30="Battery Electric Bus (BEB)",0,_xlfn.XLOOKUP($L30,Reference!$A$2:$A$11,Reference!$O$2:$O$11))*G30 -> 0 | Q30: =IF(J30+K30<=2021,2021+K30,J30+K30) -> 2031 | R30: 2043 | S30: 2055 | T30: 2067 | U30: 2079 | V30: 2091 | W30: 2103 | X30: =W30+$K30 -> 2115 | Y30: =IF($D30<>"Battery Electric Bus (BEB)",MIN(IF($Q30:$X30>=Y$2,$Q30:$X30)),2021) -> 2021 | Z30: =IF($D30<>"Battery Electric Bus (BEB)",MIN(IF($Q30:$X30>=Z$2,$Q30:$X30)),2021) -> 2021 | AA30: =IF($D30<>"Battery Electric Bus (BEB)",MIN(IF($Q30:$X30>=AA$2,$Q30:$X30)),2021) -> 2021 | AB30: =IF($D30<>"Battery Electric Bus (BEB)",MIN(IF($Q30:$X30>=AB$2,$Q30:$X30)),2021) -> 2021 | AC30: =IF($D30<>"Battery Electric Bus (BEB)",MIN(IF($Q30:$X30>=AC$2,$Q30:$X30)),2021) -> 2021 | AD30: =IF($D30<>"Battery Electric Bus (BEB)",MIN(IF($Q30:$X30>=AD$2,$Q30:$X30)),2021) -> 2021 | AE30: =IF($D30<>"Battery Electric Bus (BEB)",MIN(IF($Q30:$X30>=AE$2,$Q30:$X30)),2021) -> 2021 | AF30: =IF($D30<>"Battery Electric Bus (BEB)",MIN(IF($Q30:$X30>=AF$2,$Q30:$X30)),2021) -> 2021 | AG30: =IF($D30<>"Battery Electric Bus (BEB)",MIN(IF($Q30:$X30>=AG$2,$Q30:$X30)),2021) -> 2021 | AH30: No | AI30: No | AJ30: No | AK30: No | AL30: No | AM30: No | AN30: No | AO30: No | AP30: No | AQ30: Yes | AR30: No | AS30: No | AT30: No | AU30: No | AV30: No | AW30: No | AX30: No | AY30: No | AZ30: No | BA30: No | BB30: No | BC30: Yes | BD30: No | BE30: No | BF30: No | BG30: No | BH30: No | BI30: No | BJ30: No | BK30: =_xlfn.XLOOKUP($L30,Reference!$A$2:$A$11,Reference!$S$2:$S$11) -> 0.08 | BL30: 950000 | BM30: 874000 | BN30: 804080 | BO30: 739753.6 | BP30: 680573.312 | BQ30: 626127.447 | BR30: =IF(BQ30*(1-$BK30)>$O30,BQ30*(1-$BK30),$O30) -> 576037.2513 | BS30: 529954.2712 | BT30: 500000 | BU30: 500000 | BV30: 500000 | BW30: 500000 | BX30: 500000 | BY30: 500000 | BZ30: 500000 | CA30: 500000 | CB30: 500000 | CC30: 500000 | CD30: 500000 | CE30: 500000 | CF30: 500000 | CG30: 500000 | CH30: 500000 | CI30: 500000 | CJ30: 500000 | CK30: 500000 | CL30: 500000 | CM30: 500000 | CN30: 500000 | CO30: 950000 | CP30: 874000 | CQ30: 804080 | CR30: 739753.6 | CS30: 680573.312 | CT30: 626127.447 | CU30: 576037.2513 | CV30: 529954.2712 | CW30: 500000 | CX30: 500000 | CY30: 500000 | CZ30: 500000 | DA30: 500000 | DB30: 500000 | DC30: 500000 | DD30: 500000 | DE30: 500000 | DF30: 500000 | DG30: 500000 | DH30: 500000 | DI30: 500000 | DJ30: 500000 | DK30: 500000 | DL30: 500000 | DM30: 500000 | DN30: 500000 | DO30: 500000 | DP30: 500000 | DQ30: 500000
A31: Breckenridge, Town of | B31: 30 | C31: MB - Bus | D31: Battery Electric Bus (BEB) | E31: Hybrid Diesel | F31: Non-ADA | G31: 1 | H31: 35 | I31: 28 | J31: 2021 | K31: =IF(K$1=Reference!$D$1,_xlfn.XLOOKUP('Fleet Info'!$L31,Reference!$A$2:$A$11,Reference!$D$2:$D$11),IF(K$1=Reference!$E$1,_xlfn.XLOOKUP('Fleet Info'!$L31,Reference!$A$2:$A$11,Reference!$E$2:$E$11),"ERROR")) -> 12 | L31: =IF($D31=Reference!$B$2,Reference!$A$2,IF($D31=Reference!$B$3,IF('Fleet Info'!$H31<=30,Reference!$A$4,Reference!$A$3),IF($D31=Reference!$B$5,IF('Fleet Info'!$I31>20,Reference!$A$5,Reference!$A$6),IF($D31=Reference!$B$7,Reference!$A$7,IF($D31=Reference!$B$8,IF('Fleet Info'!$F31="Non-ADA",Reference!$A$8,Reference!$A$7),IF($D31=Reference!$B$9,IF('Fleet Info'!$F31="Non-ADA",Reference!$A$9,Reference!$A$7),IF($D31=Reference!$B$10,IF('Fleet Info'!$F31="Non-ADA",Reference!$A$10,Reference!$A$7),IF($D31=Reference!$B$11,Reference!$A$11,IF($D31="Battery Electric Bus (BEB)",IF($H31<=30,Reference!$A$4,Reference!$A$3)))))))))) -> 2 | M31: =_xlfn.XLOOKUP(L31,Reference!$A$2:$A$11,Reference!$C$2:$C$11) -> Standard Bus | N31: =_xlfn.XLOOKUP($L31,Reference!$A$2:$A$11,Reference!$J$2:$J$11) -> 950000 | O31: =_xlfn.XLOOKUP($L31,Reference!$A$2:$A$11,Reference!$P$2:$P$11) -> 500000 | P31: =IF(D31="Battery Electric Bus (BEB)",0,_xlfn.XLOOKUP($L31,Reference!$A$2:$A$11,Reference!$O$2:$O$11))*G31 -> 0 | Q31: 2033 | R31: 2045 | S31: 2057 | T31: 2069 | U31: 2081 | V31: 2093 | W31: 2105 | X31: =W31+$K31 -> 2117 | Y31: =IF($D31<>"Battery Electric Bus (BEB)",MIN(IF($Q31:$X31>=Y$2,$Q31:$X31)),2021) -> 2021 | Z31: =IF($D31<>"Battery Electric Bus (BEB)",MIN(IF($Q31:$X31>=Z$2,$Q31:$X31)),2021) -> 2021 | AA31: =IF($D31<>"Battery Electric Bus (BEB)",MIN(IF($Q31:$X31>=AA$2,$Q31:$X31)),2021) -> 2021 | AB31: =IF($D31<>"Battery Electric Bus (BEB)",MIN(IF($Q31:$X31>=AB$2,$Q31:$X31)),2021) -> 2021 | AC31: =IF($D31<>"Battery Electric Bus (BEB)",MIN(IF($Q31:$X31>=AC$2,$Q31:$X31)),2021) -> 2021 | AD31: =IF($D31<>"Battery Electric Bus (BEB)",MIN(IF($Q31:$X31>=AD$2,$Q31:$X31)),2021) -> 2021 | AE31: =IF($D31<>"Battery Electric Bus (BEB)",MIN(IF($Q31:$X31>=AE$2,$Q31:$X31)),2021) -> 2021 | AF31: =IF($D31<>"Battery Electric Bus (BEB)",MIN(IF($Q31:$X31>=AF$2,$Q31:$X31)),2021) -> 2021 | AG31: =IF($D31<>"Battery Electric Bus (BEB)",MIN(IF($Q31:$X31>=AG$2,$Q31:$X31)),2021) -> 2021 | AH31: No | AI31: No | AJ31: No | AK31: No | AL31: No | AM31: No | AN31: No | AO31: No | AP31: No | AQ31: No | AR31: No | AS31: Yes | AT31: No | AU31: No | AV31: No | AW31: No | AX31: No | AY31: No | AZ31: No | BA31: No | BB31: No | BC31: No | BD31: No | BE31: Yes | BF31: No | BG31: No | BH31: No | BI31: No | BJ31: No | BK31: =_xlfn.XLOOKUP($L31,Reference!$A$2:$A$11,Reference!$S$2:$S$11) -> 0.08 | BL31: 950000 | BM31: 874000 | BN31: 804080 | BO31: 739753.6 | BP31: 680573.312 | BQ31: 626127.447 | BR31: =IF(BQ31*(1-$BK31)>$O31,BQ31*(1-$BK31),$O31) -> 576037.2513 | BS31: 529954.2712 | BT31: 500000 | BU31: 500000 | BV31: 500000 | BW31: 500000 | BX31: 500000 | BY31: 500000 | BZ31: 500000 | CA31: 500000 | CB31: 500000 | CC31: 500000 | CD31: 500000 | CE31: 500000 | CF31: 500000 | CG31: 500000 | CH31: 500000 | CI31: 500000 | CJ31: 500000 | CK31: 500000 | CL31: 500000 | CM31: 500000 | CN31: 500000 | CO31: 950000 | CP31: 874000 | CQ31: 804080 | CR31: 739753.6 | CS31: 680573.312 | CT31: 626127.447 | CU31: 576037.2513 | CV31: 529954.2712 | CW31: 500000 | CX31: 500000 | CY31: 500000 | CZ31: 500000 | DA31: 500000 | DB31: 500000 | DC31: 500000 | DD31: 500000 | DE31: 500000 | DF31: 500000 | DG31: 500000 | DH31: 500000 | DI31: 500000 | DJ31: 500000 | DK31: 500000 | DL31: 500000 | DM31: 500000 | DN31: 500000 | DO31: 500000 | DP31: 500000 | DQ31: 500000
A32: City of Colorado Springs | B32: 71 | C32: DR | D32: Automobile (AO) | E32: Gasoline | F32: ADA | G32: 1 | H32: 0 | I32: 3 | J32: 2016 | K32: =IF(K$1=Reference!$D$1,_xlfn.XLOOKUP('Fleet Info'!$L32,Reference!$A$2:$A$11,Reference!$D$2:$D$11),IF(K$1=Reference!$E$1,_xlfn.XLOOKUP('Fleet Info'!$L32,Reference!$A$2:$A$11,Reference!$E$2:$E$11),"ERROR")) -> 4 | L32: =IF($D32=Reference!$B$2,Reference!$A$2,IF($D32=Reference!$B$3,IF('Fleet Info'!$H32<=30,Reference!$A$4,Reference!$A$3),IF($D32=Reference!$B$5,IF('Fleet Info'!$I32>20,Reference!$A$5,Reference!$A$6),IF($D32=Reference!$B$7,Reference!$A$7,IF($D32=Reference!$B$8,IF('Fleet Info'!$F32="Non-ADA",Reference!$A$8,Reference!$A$7),IF($D32=Reference!$B$9,IF('Fleet Info'!$F32="Non-ADA",Reference!$A$9,Reference!$A$7),IF($D32=Reference!$B$10,IF('Fleet Info'!$F32="Non-ADA",Reference!$A$10,Reference!$A$7),IF($D32=Reference!$B$11,Reference!$A$11,IF($D32="Battery Electric Bus (BEB)",IF($H32<=30,Reference!$A$4,Reference!$A$3)))))))))) -> 6 | M32: =_xlfn.XLOOKUP(L32,Reference!$A$2:$A$11,Reference!$C$2:$C$11) -> Passenger Van | N32: =_xlfn.XLOOKUP($L32,Reference!$A$2:$A$11,Reference!$J$2:$J$11) -> 100000 | O32: =_xlfn.XLOOKUP($L32,Reference!$A$2:$A$11,Reference!$P$2:$P$11) -> 55000 | P32: =IF(D32="Battery Electric Bus (BEB)",0,_xlfn.XLOOKUP($L32,Reference!$A$2:$A$11,Reference!$O$2:$O$11))*G32 -> 50000 | Q32: 2025 | R32: 2029 | S32: 2033 | T32: 2037 | U32: 2041 | V32: 2045 | W32: 2049 | X32: =W32+$K32 -> 2053 | Y32: =IF($D32<>"Battery Electric Bus (BEB)",MIN(IF($Q32:$X32>=Y$2,$Q32:$X32)),2021) -> 2025 | Z32: =IF($D32<>"Battery Electric Bus (BEB)",MIN(IF($Q32:$X32>=Z$2,$Q32:$X32)),2021) -> 2025 | AA32: =IF($D32<>"Battery Electric Bus (BEB)",MIN(IF($Q32:$X32>=AA$2,$Q32:$X32)),2021) -> 2025 | AB32: =IF($D32<>"Battery Electric Bus (BEB)",MIN(IF($Q32:$X32>=AB$2,$Q32:$X32)),2021) -> 2025 | AC32: =IF($D32<>"Battery Electric Bus (BEB)",MIN(IF($Q32:$X32>=AC$2,$Q32:$X32)),2021) -> 2029 | AD32: =IF($D32<>"Battery Electric Bus (BEB)",MIN(IF($Q32:$X32>=AD$2,$Q32:$X32)),2021) -> 2029 | AE32: =IF($D32<>"Battery Electric Bus (BEB)",MIN(IF($Q32:$X32>=AE$2,$Q32:$X32)),2021) -> 2029 | AF32: =IF($D32<>"Battery Electric Bus (BEB)",MIN(IF($Q32:$X32>=AF$2,$Q32:$X32)),2021) -> 2029 | AG32: =IF($D32<>"Battery Electric Bus (BEB)",MIN(IF($Q32:$X32>=AG$2,$Q32:$X32)),2021) -> 2033 | AH32: No | AI32: No | AJ32: No | AK32: Yes | AL32: No | AM32: No | AN32: No | AO32: Yes | AP32: No | AQ32: No | AR32: No | AS32: Yes | AT32: No | AU32: No | AV32: No | AW32: Yes | AX32: No | AY32: No | AZ32: No | BA32: Yes | BB32: No | BC32: No | BD32: No | BE32: Yes | BF32: No | BG32: No | BH32: No | BI32: Yes | BJ32: No | BK32: =_xlfn.XLOOKUP($L32,Reference!$A$2:$A$11,Reference!$S$2:$S$11) -> 0.08 | BL32: 100000 | BM32: 92000 | BN32: 84640 | BO32: 77868.8 | BP32: 71639.296 | BQ32: 65908.15232 | BR32: =IF(BQ32*(1-$BK32)>$O32,BQ32*(1-$BK32),$O32) -> 60635.50013 | BS32: 55784.66012 | BT32: 55000 | BU32: 55000 | BV32: 55000 | BW32: 55000 | BX32: 55000 | BY32: 55000 | BZ32: 55000 | CA32: 55000 | CB32: 55000 | CC32: 55000 | CD32: 55000 | CE32: 55000 | CF32: 55000 | CG32: 55000 | CH32: 55000 | CI32: 55000 | CJ32: 55000 | CK32: 55000 | CL32: 55000 | CM32: 55000 | CN32: 55000 | CO32: 55000 | CP32: 55000 | CQ32: 55000 | CR32: 55000 | CS32: 55000 | CT32: 55000 | CU32: 55000 | CV32: 55000 | CW32: 55000 | CX32: 55000 | CY32: 55000 | CZ32: 55000 | DA32: 55000 | DB32: 55000 | DC32: 55000 | DD32: 55000 | DE32: 55000 | DF32: 55000 | DG32: 55000 | DH32: 55000 | DI32: 55000 | DJ32: 55000 | DK32: 55000 | DL32: 55000 | DM32: 55000 | DN32: 55000 | DO32: 55000 | DP32: 55000 | DQ32: 55000
A33: Broomfield, City and County of | B33: 32 | C33: DR - Demand Response | D33: Minivan (MV) | E33: Gasoline | F33: Non-ADA | G33: 1 | H33: 15 | I33: 3 | J33: 2016 | K33: =IF(K$1=Reference!$D$1,_xlfn.XLOOKUP('Fleet Info'!$L33,Reference!$A$2:$A$11,Reference!$D$2:$D$11),IF(K$1=Reference!$E$1,_xlfn.XLOOKUP('Fleet Info'!$L33,Reference!$A$2:$A$11,Reference!$E$2:$E$11),"ERROR")) -> 4 | L33: =IF($D33=Reference!$B$2,Reference!$A$2,IF($D33=Reference!$B$3,IF('Fleet Info'!$H33<=30,Reference!$A$4,Reference!$A$3),IF($D33=Reference!$B$5,IF('Fleet Info'!$I33>20,Reference!$A$5,Reference!$A$6),IF($D33=Reference!$B$7,Reference!$A$7,IF($D33=Reference!$B$8,IF('Fleet Info'!$F33="Non-ADA",Reference!$A$8,Reference!$A$7),IF($D33=Reference!$B$9,IF('Fleet Info'!$F33="Non-ADA",Reference!$A$9,Reference!$A$7),IF($D33=Reference!$B$10,IF('Fleet Info'!$F33="Non-ADA",Reference!$A$10,Reference!$A$7),IF($D33=Reference!$B$11,Reference!$A$11,IF($D33="Battery Electric Bus (BEB)",IF($H33<=30,Reference!$A$4,Reference!$A$3)))))))))) -> 8 | M33: =_xlfn.XLOOKUP(L33,Reference!$A$2:$A$11,Reference!$C$2:$C$11) -> Electric SUV | N33: =_xlfn.XLOOKUP($L33,Reference!$A$2:$A$11,Reference!$J$2:$J$11) -> 60000 | O33: =_xlfn.XLOOKUP($L33,Reference!$A$2:$A$11,Reference!$P$2:$P$11) -> 33500 | P33: =IF(D33="Battery Electric Bus (BEB)",0,_xlfn.XLOOKUP($L33,Reference!$A$2:$A$11,Reference!$O$2:$O$11))*G33 -> 50000 | Q33: 2025 | R33: 2029 | S33: 2033 | T33: 2037 | U33: 2041 | V33: 2045 | W33: 2049 | X33: =W33+$K33 -> 2053 | Y33: =IF($D33<>"Battery Electric Bus (BEB)",MIN(IF($Q33:$X33>=Y$2,$Q33:$X33)),2021) -> 2025 | Z33: =IF($D33<>"Battery Electric Bus (BEB)",MIN(IF($Q33:$X33>=Z$2,$Q33:$X33)),2021) -> 2025 | AA33: =IF($D33<>"Battery Electric Bus (BEB)",MIN(IF($Q33:$X33>=AA$2,$Q33:$X33)),2021) -> 2025 | AB33: =IF($D33<>"Battery Electric Bus (BEB)",MIN(IF($Q33:$X33>=AB$2,$Q33:$X33)),2021) -> 2025 | AC33: =IF($D33<>"Battery Electric Bus (BEB)",MIN(IF($Q33:$X33>=AC$2,$Q33:$X33)),2021) -> 2029 | AD33: =IF($D33<>"Battery Electric Bus (BEB)",MIN(IF($Q33:$X33>=AD$2,$Q33:$X33)),2021) -> 2029 | AE33: =IF($D33<>"Battery Electric Bus (BEB)",MIN(IF($Q33:$X33>=AE$2,$Q33:$X33)),2021) -> 2029 | AF33: =IF($D33<>"Battery Electric Bus (BEB)",MIN(IF($Q33:$X33>=AF$2,$Q33:$X33)),2021) -> 2029 | AG33: =IF($D33<>"Battery Electric Bus (BEB)",MIN(IF($Q33:$X33>=AG$2,$Q33:$X33)),2021) -> 2033 | AH33: No | AI33: No | AJ33: No | AK33: Yes | AL33: No | AM33: No | AN33: No | AO33: Yes | AP33: No | AQ33: No | AR33: No | AS33: Yes | AT33: No | AU33: No | AV33: No | AW33: Yes | AX33: No | AY33: No | AZ33: No | BA33: Yes | BB33: No | BC33: No | BD33: No | BE33: Yes | BF33: No | BG33: No | BH33: No | BI33: Yes | BJ33: No | BK33: =_xlfn.XLOOKUP($L33,Reference!$A$2:$A$11,Reference!$S$2:$S$11) -> 0.08 | BL33: 60000 | BM33: 55200 | BN33: 50784 | BO33: 46721.28 | BP33: 42983.5776 | BQ33: 39544.89139 | BR33: =IF(BQ33*(1-$BK33)>$O33,BQ33*(1-$BK33),$O33) -> 36381.30008 | BS33: 33500 | BT33: 33500 | BU33: 33500 | BV33: 33500 | BW33: 33500 | BX33: 33500 | BY33: 33500 | BZ33: 33500 | CA33: 33500 | CB33: 33500 | CC33: 33500 | CD33: 33500 | CE33: 33500 | CF33: 33500 | CG33: 33500 | CH33: 33500 | CI33: 33500 | CJ33: 33500 | CK33: 33500 | CL33: 33500 | CM33: 33500 | CN33: 33500 | CO33: 33500 | CP33: 33500 | CQ33: 33500 | CR33: 33500 | CS33: 33500 | CT33: 33500 | CU33: 33500 | CV33: 33500 | CW33: 33500 | CX33: 33500 | CY33: 33500 | CZ33: 33500 | DA33: 33500 | DB33: 33500 | DC33: 33500 | DD33: 33500 | DE33: 33500 | DF33: 33500 | DG33: 33500 | DH33: 33500 | DI33: 33500 | DJ33: 33500 | DK33: 33500 | DL33: 33500 | DM33: 33500 | DN33: 33500 | DO33: 33500 | DP33: 33500 | DQ33: 33500
A34: Broomfield, City and County of | B34: 33 | C34: DR - Demand Response | D34: Minivan (MV) | E34: Gasoline | F34: Non-ADA | G34: 1 | H34: 10 | I34: 5 | J34: 2017 | K34: =IF(K$1=Reference!$D$1,_xlfn.XLOOKUP('Fleet Info'!$L34,Reference!$A$2:$A$11,Reference!$D$2:$D$11),IF(K$1=Reference!$E$1,_xlfn.XLOOKUP('Fleet Info'!$L34,Reference!$A$2:$A$11,Reference!$E$2:$E$11),"ERROR")) -> 4 | L34: =IF($D34=Reference!$B$2,Reference!$A$2,IF($D34=Reference!$B$3,IF('Fleet Info'!$H34<=30,Reference!$A$4,Reference!$A$3),IF($D34=Reference!$B$5,IF('Fleet Info'!$I34>20,Reference!$A$5,Reference!$A$6),IF($D34=Reference!$B$7,Reference!$A$7,IF($D34=Reference!$B$8,IF('Fleet Info'!$F34="Non-ADA",Reference!$A$8,Reference!$A$7),IF($D34=Reference!$B$9,IF('Fleet Info'!$F34="Non-ADA",Reference!$A$9,Reference!$A$7),IF($D34=Reference!$B$10,IF('Fleet Info'!$F34="Non-ADA",Reference!$A$10,Reference!$A$7),IF($D34=Reference!$B$11,Reference!$A$11,IF($D34="Battery Electric Bus (BEB)",IF($H34<=30,Reference!$A$4,Reference!$A$3)))))))))) -> 8 | M34: =_xlfn.XLOOKUP(L34,Reference!$A$2:$A$11,Reference!$C$2:$C$11) -> Electric SUV | N34: =_xlfn.XLOOKUP($L34,Reference!$A$2:$A$11,Reference!$J$2:$J$11) -> 60000 | O34: =_xlfn.XLOOKUP($L34,Reference!$A$2:$A$11,Reference!$P$2:$P$11) -> 33500 | P34: =IF(D34="Battery Electric Bus (BEB)",0,_xlfn.XLOOKUP($L34,Reference!$A$2:$A$11,Reference!$O$2:$O$11))*G34 -> 50000 | Q34: 2021 | R34: 2025 | S34: 2029 | T34: 2033 | U34: 2037 | V34: 2041 | W34: 2045 | X34: =W34+$K34 -> 2049 | Y34: =IF($D34<>"Battery Electric Bus (BEB)",MIN(IF($Q34:$X34>=Y$2,$Q34:$X34)),2021) -> 2025 | Z34: =IF($D34<>"Battery Electric Bus (BEB)",MIN(IF($Q34:$X34>=Z$2,$Q34:$X34)),2021) -> 2025 | AA34: =IF($D34<>"Battery Electric Bus (BEB)",MIN(IF($Q34:$X34>=AA$2,$Q34:$X34)),2021) -> 2025 | AB34: =IF($D34<>"Battery Electric Bus (BEB)",MIN(IF($Q34:$X34>=AB$2,$Q34:$X34)),2021) -> 2025 | AC34: =IF($D34<>"Battery Electric Bus (BEB)",MIN(IF($Q34:$X34>=AC$2,$Q34:$X34)),2021) -> 2029 | AD34: =IF($D34<>"Battery Electric Bus (BEB)",MIN(IF($Q34:$X34>=AD$2,$Q34:$X34)),2021) -> 2029 | AE34: =IF($D34<>"Battery Electric Bus (BEB)",MIN(IF($Q34:$X34>=AE$2,$Q34:$X34)),2021) -> 2029 | AF34: =IF($D34<>"Battery Electric Bus (BEB)",MIN(IF($Q34:$X34>=AF$2,$Q34:$X34)),2021) -> 2029 | AG34: =IF($D34<>"Battery Electric Bus (BEB)",MIN(IF($Q34:$X34>=AG$2,$Q34:$X34)),2021) -> 2033 | AH34: No | AI34: No | AJ34: No | AK34: Yes | AL34: No | AM34: No | AN34: No | AO34: Yes | AP34: No | AQ34: No | AR34: No | AS34: Yes | AT34: No | AU34: No | AV34: No | AW34: Yes | AX34: No | AY34: No | AZ34: No | BA34: Yes | BB34: No | BC34: No | BD34: No | BE34: Yes | BF34: No | BG34: No | BH34: No | BI34: Yes | BJ34: No | BK34: =_xlfn.XLOOKUP($L34,Reference!$A$2:$A$11,Reference!$S$2:$S$11) -> 0.08 | BL34: 60000 | BM34: 55200 | BN34: 50784 | BO34: 46721.28 | BP34: 42983.5776 | BQ34: 39544.89139 | BR34: =IF(BQ34*(1-$BK34)>$O34,BQ34*(1-$BK34),$O34) -> 36381.30008 | BS34: 33500 | BT34: 33500 | BU34: 33500 | BV34: 33500 | BW34: 33500 | BX34: 33500 | BY34: 33500 | BZ34: 33500 | CA34: 33500 | CB34: 33500 | CC34: 33500 | CD34: 33500 | CE34: 33500 | CF34: 33500 | CG34: 33500 | CH34: 33500 | CI34: 33500 | CJ34: 33500 | CK34: 33500 | CL34: 33500 | CM34: 33500 | CN34: 33500 | CO34: 33500 | CP34: 33500 | CQ34: 33500 | CR34: 33500 | CS34: 33500 | CT34: 33500 | CU34: 33500 | CV34: 33500 | CW34: 33500 | CX34: 33500 | CY34: 33500 | CZ34: 33500 | DA34: 33500 | DB34: 33500 | DC34: 33500 | DD34: 33500 | DE34: 33500 | DF34: 33500 | DG34: 33500 | DH34: 33500 | DI34: 33500 | DJ34: 33500 | DK34: 33500 | DL34: 33500 | DM34: 33500 | DN34: 33500 | DO34: 33500 | DP34: 33500 | DQ34: 33500
A35: Broomfield, City and County of | B35: 34 | C35: DR - Demand Response | D35: Cutaway (CU) | E35: Gasoline | F35: Non-ADA | G35: 1 | H35: 23 | I35: 14 | J35: 2009 | K35: =IF(K$1=Reference!$D$1,_xlfn.XLOOKUP('Fleet Info'!$L35,Reference!$A$2:$A$11,Reference!$D$2:$D$11),IF(K$1=Reference!$E$1,_xlfn.XLOOKUP('Fleet Info'!$L35,Reference!$A$2:$A$11,Reference!$E$2:$E$11),"ERROR")) -> 5 | L35: =IF($D35=Reference!$B$2,Reference!$A$2,IF($D35=Reference!$B$3,IF('Fleet Info'!$H35<=30,Reference!$A$4,Reference!$A$3),IF($D35=Reference!$B$5,IF('Fleet Info'!$I35>20,Reference!$A$5,Reference!$A$6),IF($D35=Reference!$B$7,Reference!$A$7,IF($D35=Reference!$B$8,IF('Fleet Info'!$F35="Non-ADA",Reference!$A$8,Reference!$A$7),IF($D35=Reference!$B$9,IF('Fleet Info'!$F35="Non-ADA",Reference!$A$9,Reference!$A$7),IF($D35=Reference!$B$10,IF('Fleet Info'!$F35="Non-ADA",Reference!$A$10,Reference!$A$7),IF($D35=Reference!$B$11,Reference!$A$11,IF($D35="Battery Electric Bus (BEB)",IF($H35<=30,Reference!$A$4,Reference!$A$3)))))))))) -> 5 | M35: =_xlfn.XLOOKUP(L35,Reference!$A$2:$A$11,Reference!$C$2:$C$11) -> Standard Cutaway | N35: =_xlfn.XLOOKUP($L35,Reference!$A$2:$A$11,Reference!$J$2:$J$11) -> 170000 | O35: =_xlfn.XLOOKUP($L35,Reference!$A$2:$A$11,Reference!$P$2:$P$11) -> 88000 | P35: =IF(D35="Battery Electric Bus (BEB)",0,_xlfn.XLOOKUP($L35,Reference!$A$2:$A$11,Reference!$O$2:$O$11))*G35 -> 50000 | Q35: 2026 | R35: 2031 | S35: 2036 | T35: 2041 | U35: 2046 | V35: 2051 | W35: 2056 | X35: =W35+$K35 -> 2061 | Y35: =IF($D35<>"Battery Electric Bus (BEB)",MIN(IF($Q35:$X35>=Y$2,$Q35:$X35)),2021) -> 2026 | Z35: =IF($D35<>"Battery Electric Bus (BEB)",MIN(IF($Q35:$X35>=Z$2,$Q35:$X35)),2021) -> 2026 | AA35: =IF($D35<>"Battery Electric Bus (BEB)",MIN(IF($Q35:$X35>=AA$2,$Q35:$X35)),2021) -> 2026 | AB35: =IF($D35<>"Battery Electric Bus (BEB)",MIN(IF($Q35:$X35>=AB$2,$Q35:$X35)),2021) -> 2026 | AC35: =IF($D35<>"Battery Electric Bus (BEB)",MIN(IF($Q35:$X35>=AC$2,$Q35:$X35)),2021) -> 2026 | AD35: =IF($D35<>"Battery Electric Bus (BEB)",MIN(IF($Q35:$X35>=AD$2,$Q35:$X35)),2021) -> 2031 | AE35: =IF($D35<>"Battery Electric Bus (BEB)",MIN(IF($Q35:$X35>=AE$2,$Q35:$X35)),2021) -> 2031 | AF35: =IF($D35<>"Battery Electric Bus (BEB)",MIN(IF($Q35:$X35>=AF$2,$Q35:$X35)),2021) -> 2031 | AG35: =IF($D35<>"Battery Electric Bus (BEB)",MIN(IF($Q35:$X35>=AG$2,$Q35:$X35)),2021) -> 2031 | AH35: No | AI35: No | AJ35: No | AK35: No | AL35: Yes | AM35: No | AN35: No | AO35: No | AP35: No | AQ35: Yes | AR35: No | AS35: No | AT35: No | AU35: No | AV35: Yes | AW35: No | AX35: No | AY35: No | AZ35: No | BA35: Yes | BB35: No | BC35: No | BD35: No | BE35: No | BF35: Yes | BG35: No | BH35: No | BI35: No | BJ35: No | BK35: =_xlfn.XLOOKUP($L35,Reference!$A$2:$A$11,Reference!$S$2:$S$11) -> 0.08 | BL35: 170000 | BM35: 156400 | BN35: 143888 | BO35: 132376.96 | BP35: 121786.8032 | BQ35: 112043.8589 | BR35: =IF(BQ35*(1-$BK35)>$O35,BQ35*(1-$BK35),$O35) -> 103080.3502 | BS35: 94833.92221 | BT35: 88000 | BU35: 88000 | BV35: 88000 | BW35: 88000 | BX35: 88000 | BY35: 88000 | BZ35: 88000 | CA35: 88000 | CB35: 88000 | CC35: 88000 | CD35: 88000 | CE35: 88000 | CF35: 88000 | CG35: 88000 | CH35: 88000 | CI35: 88000 | CJ35: 88000 | CK35: 88000 | CL35: 88000 | CM35: 88000 | CN35: 88000 | CO35: 88000 | CP35: 88000 | CQ35: 88000 | CR35: 88000 | CS35: 88000 | CT35: 88000 | CU35: 88000 | CV35: 88000 | CW35: 88000 | CX35: 88000 | CY35: 88000 | CZ35: 88000 | DA35: 88000 | DB35: 88000 | DC35: 88000 | DD35: 88000 | DE35: 88000 | DF35: 88000 | DG35: 88000 | DH35: 88000 | DI35: 88000 | DJ35: 88000 | DK35: 88000 | DL35: 88000 | DM35: 88000 | DN35: 88000 | DO35: 88000 | DP35: 88000 | DQ35: 88000
A36: Broomfield, City and County of | B36: 35 | C36: DR - Demand Response | D36: Cutaway (CU) | E36: Gasoline | F36: Non-ADA | G36: 1 | H36: 23 | I36: 14 | J36: 2013 | K36: =IF(K$1=Reference!$D$1,_xlfn.XLOOKUP('Fleet Info'!$L36,Reference!$A$2:$A$11,Reference!$D$2:$D$11),IF(K$1=Reference!$E$1,_xlfn.XLOOKUP('Fleet Info'!$L36,Reference!$A$2:$A$11,Reference!$E$2:$E$11),"ERROR")) -> 5 | L36: =IF($D36=Reference!$B$2,Reference!$A$2,IF($D36=Reference!$B$3,IF('Fleet Info'!$H36<=30,Reference!$A$4,Reference!$A$3),IF($D36=Reference!$B$5,IF('Fleet Info'!$I36>20,Reference!$A$5,Reference!$A$6),IF($D36=Reference!$B$7,Reference!$A$7,IF($D36=Reference!$B$8,IF('Fleet Info'!$F36="Non-ADA",Reference!$A$8,Reference!$A$7),IF($D36=Reference!$B$9,IF('Fleet Info'!$F36="Non-ADA",Reference!$A$9,Reference!$A$7),IF($D36=Reference!$B$10,IF('Fleet Info'!$F36="Non-ADA",Reference!$A$10,Reference!$A$7),IF($D36=Reference!$B$11,Reference!$A$11,IF($D36="Battery Electric Bus (BEB)",IF($H36<=30,Reference!$A$4,Reference!$A$3)))))))))) -> 5 | M36: =_xlfn.XLOOKUP(L36,Reference!$A$2:$A$11,Reference!$C$2:$C$11) -> Standard Cutaway | N36: =_xlfn.XLOOKUP($L36,Reference!$A$2:$A$11,Reference!$J$2:$J$11) -> 170000 | O36: =_xlfn.XLOOKUP($L36,Reference!$A$2:$A$11,Reference!$P$2:$P$11) -> 88000 | P36: =IF(D36="Battery Electric Bus (BEB)",0,_xlfn.XLOOKUP($L36,Reference!$A$2:$A$11,Reference!$O$2:$O$11))*G36 -> 50000 | Q36: 2026 | R36: 2031 | S36: 2036 | T36: 2041 | U36: 2046 | V36: 2051 | W36: 2056 | X36: =W36+$K36 -> 2061 | Y36: =IF($D36<>"Battery Electric Bus (BEB)",MIN(IF($Q36:$X36>=Y$2,$Q36:$X36)),2021) -> 2026 | Z36: =IF($D36<>"Battery Electric Bus (BEB)",MIN(IF($Q36:$X36>=Z$2,$Q36:$X36)),2021) -> 2026 | AA36: =IF($D36<>"Battery Electric Bus (BEB)",MIN(IF($Q36:$X36>=AA$2,$Q36:$X36)),2021) -> 2026 | AB36: =IF($D36<>"Battery Electric Bus (BEB)",MIN(IF($Q36:$X36>=AB$2,$Q36:$X36)),2021) -> 2026 | AC36: =IF($D36<>"Battery Electric Bus (BEB)",MIN(IF($Q36:$X36>=AC$2,$Q36:$X36)),2021) -> 2026 | AD36: =IF($D36<>"Battery Electric Bus (BEB)",MIN(IF($Q36:$X36>=AD$2,$Q36:$X36)),2021) -> 2031 | AE36: =IF($D36<>"Battery Electric Bus (BEB)",MIN(IF($Q36:$X36>=AE$2,$Q36:$X36)),2021) -> 2031 | AF36: =IF($D36<>"Battery Electric Bus (BEB)",MIN(IF($Q36:$X36>=AF$2,$Q36:$X36)),2021) -> 2031 | AG36: =IF($D36<>"Battery Electric Bus (BEB)",MIN(IF($Q36:$X36>=AG$2,$Q36:$X36)),2021) -> 2031 | AH36: No | AI36: No | AJ36: No | AK36: No | AL36: Yes | AM36: No | AN36: No | AO36: No | AP36: No | AQ36: Yes | AR36: No | AS36: No | AT36: No | AU36: No | AV36: Yes | AW36: No | AX36: No | AY36: No | AZ36: No | BA36: Yes | BB36: No | BC36: No | BD36: No | BE36: No | BF36: Yes | BG36: No | BH36: No | BI36: No | BJ36: No | BK36: =_xlfn.XLOOKUP($L36,Reference!$A$2:$A$11,Reference!$S$2:$S$11) -> 0.08 | BL36: 170000 | BM36: 156400 | BN36: 143888 | BO36: 132376.96 | BP36: 121786.8032 | BQ36: 112043.8589 | BR36: =IF(BQ36*(1-$BK36)>$O36,BQ36*(1-$BK36),$O36) -> 103080.3502 | BS36: 94833.92221 | BT36: 88000 | BU36: 88000 | BV36: 88000 | BW36: 88000 | BX36: 88000 | BY36: 88000 | BZ36: 88000 | CA36: 88000 | CB36: 88000 | CC36: 88000 | CD36: 88000 | CE36: 88000 | CF36: 88000 | CG36: 88000 | CH36: 88000 | CI36: 88000 | CJ36: 88000 | CK36: 88000 | CL36: 88000 | CM36: 88000 | CN36: 88000 | CO36: 88000 | CP36: 88000 | CQ36: 88000 | CR36: 88000 | CS36: 88000 | CT36: 88000 | CU36: 88000 | CV36: 88000 | CW36: 88000 | CX36: 88000 | CY36: 88000 | CZ36: 88000 | DA36: 88000 | DB36: 88000 | DC36: 88000 | DD36: 88000 | DE36: 88000 | DF36: 88000 | DG36: 88000 | DH36: 88000 | DI36: 88000 | DJ36: 88000 | DK36: 88000 | DL36: 88000 | DM36: 88000 | DN36: 88000 | DO36: 88000 | DP36: 88000 | DQ36: 88000
A37: Broomfield, City and County of | B37: 36 | C37: DR - Demand Response | D37: Cutaway (CU) | E37: Diesel Fuel | F37: Non-ADA | G37: 1 | H37: 20 | I37: 14 | J37: 2017 | K37: =IF(K$1=Reference!$D$1,_xlfn.XLOOKUP('Fleet Info'!$L37,Reference!$A$2:$A$11,Reference!$D$2:$D$11),IF(K$1=Reference!$E$1,_xlfn.XLOOKUP('Fleet Info'!$L37,Reference!$A$2:$A$11,Reference!$E$2:$E$11),"ERROR")) -> 5 | L37: =IF($D37=Reference!$B$2,Reference!$A$2,IF($D37=Reference!$B$3,IF('Fleet Info'!$H37<=30,Reference!$A$4,Reference!$A$3),IF($D37=Reference!$B$5,IF('Fleet Info'!$I37>20,Reference!$A$5,Reference!$A$6),IF($D37=Reference!$B$7,Reference!$A$7,IF($D37=Reference!$B$8,IF('Fleet Info'!$F37="Non-ADA",Reference!$A$8,Reference!$A$7),IF($D37=Reference!$B$9,IF('Fleet Info'!$F37="Non-ADA",Reference!$A$9,Reference!$A$7),IF($D37=Reference!$B$10,IF('Fleet Info'!$F37="Non-ADA",Reference!$A$10,Reference!$A$7),IF($D37=Reference!$B$11,Reference!$A$11,IF($D37="Battery Electric Bus (BEB)",IF($H37<=30,Reference!$A$4,Reference!$A$3)))))))))) -> 5 | M37: =_xlfn.XLOOKUP(L37,Reference!$A$2:$A$11,Reference!$C$2:$C$11) -> Standard Cutaway | N37: =_xlfn.XLOOKUP($L37,Reference!$A$2:$A$11,Reference!$J$2:$J$11) -> 170000 | O37: =_xlfn.XLOOKUP($L37,Reference!$A$2:$A$11,Reference!$P$2:$P$11) -> 88000 | P37: =IF(D37="Battery Electric Bus (BEB)",0,_xlfn.XLOOKUP($L37,Reference!$A$2:$A$11,Reference!$O$2:$O$11))*G37 -> 50000 | Q37: 2022 | R37: 2027 | S37: 2032 | T37: 2037 | U37: 2042 | V37: 2047 | W37: 2052 | X37: =W37+$K37 -> 2057 | Y37: =IF($D37<>"Battery Electric Bus (BEB)",MIN(IF($Q37:$X37>=Y$2,$Q37:$X37)),2021) -> 2022 | Z37: =IF($D37<>"Battery Electric Bus (BEB)",MIN(IF($Q37:$X37>=Z$2,$Q37:$X37)),2021) -> 2027 | AA37: =IF($D37<>"Battery Electric Bus (BEB)",MIN(IF($Q37:$X37>=AA$2,$Q37:$X37)),2021) -> 2027 | AB37: =IF($D37<>"Battery Electric Bus (BEB)",MIN(IF($Q37:$X37>=AB$2,$Q37:$X37)),2021) -> 2027 | AC37: =IF($D37<>"Battery Electric Bus (BEB)",MIN(IF($Q37:$X37>=AC$2,$Q37:$X37)),2021) -> 2027 | AD37: =IF($D37<>"Battery Electric Bus (BEB)",MIN(IF($Q37:$X37>=AD$2,$Q37:$X37)),2021) -> 2027 | AE37: =IF($D37<>"Battery Electric Bus (BEB)",MIN(IF($Q37:$X37>=AE$2,$Q37:$X37)),2021) -> 2032 | AF37: =IF($D37<>"Battery Electric Bus (BEB)",MIN(IF($Q37:$X37>=AF$2,$Q37:$X37)),2021) -> 2032 | AG37: =IF($D37<>"Battery Electric Bus (BEB)",MIN(IF($Q37:$X37>=AG$2,$Q37:$X37)),2021) -> 2032 | AH37: Yes | AI37: No | AJ37: No | AK37: No | AL37: No | AM37: Yes | AN37: No | AO37: No | AP37: No | AQ37: No | AR37: Yes | AS37: No | AT37: No | AU37: No | AV37: No | AW37: Yes | AX37: No | AY37: No | AZ37: No | BA37: No | BB37: Yes | BC37: No | BD37: No | BE37: No | BF37: No | BG37: Yes | BH37: No | BI37: No | BJ37: No | BK37: =_xlfn.XLOOKUP($L37,Reference!$A$2:$A$11,Reference!$S$2:$S$11) -> 0.08 | BL37: 170000 | BM37: 156400 | BN37: 143888 | BO37: 132376.96 | BP37: 121786.8032 | BQ37: 112043.8589 | BR37: =IF(BQ37*(1-$BK37)>$O37,BQ37*(1-$BK37),$O37) -> 103080.3502 | BS37: 94833.92221 | BT37: 88000 | BU37: 88000 | BV37: 88000 | BW37: 88000 | BX37: 88000 | BY37: 88000 | BZ37: 88000 | CA37: 88000 | CB37: 88000 | CC37: 88000 | CD37: 88000 | CE37: 88000 | CF37: 88000 | CG37: 88000 | CH37: 88000 | CI37: 88000 | CJ37: 88000 | CK37: 88000 | CL37: 88000 | CM37: 88000 | CN37: 88000 | CO37: 88000 | CP37: 88000 | CQ37: 88000 | CR37: 88000 | CS37: 88000 | CT37: 88000 | CU37: 88000 | CV37: 88000 | CW37: 88000 | CX37: 88000 | CY37: 88000 | CZ37: 88000 | DA37: 88000 | DB37: 88000 | DC37: 88000 | DD37: 88000 | DE37: 88000 | DF37: 88000 | DG37: 88000 | DH37: 88000 | DI37: 88000 | DJ37: 88000 | DK37: 88000 | DL37: 88000 | DM37: 88000 | DN37: 88000 | DO37: 88000 | DP37: 88000 | DQ37: 88000
A38: Broomfield, City and County of | B38: 37 | C38: DR - Demand Response | D38: Cutaway (CU) | E38: Diesel Fuel | F38: Non-ADA | G38: 1 | H38: 20 | I38: 14 | J38: 2018 | K38: =IF(K$1=Reference!$D$1,_xlfn.XLOOKUP('Fleet Info'!$L38,Reference!$A$2:$A$11,Reference!$D$2:$D$11),IF(K$1=Reference!$E$1,_xlfn.XLOOKUP('Fleet Info'!$L38,Reference!$A$2:$A$11,Reference!$E$2:$E$11),"ERROR")) -> 5 | L38: =IF($D38=Reference!$B$2,Reference!$A$2,IF($D38=Reference!$B$3,IF('Fleet Info'!$H38<=30,Reference!$A$4,Reference!$A$3),IF($D38=Reference!$B$5,IF('Fleet Info'!$I38>20,Reference!$A$5,Reference!$A$6),IF($D38=Reference!$B$7,Reference!$A$7,IF($D38=Reference!$B$8,IF('Fleet Info'!$F38="Non-ADA",Reference!$A$8,Reference!$A$7),IF($D38=Reference!$B$9,IF('Fleet Info'!$F38="Non-ADA",Reference!$A$9,Reference!$A$7),IF($D38=Reference!$B$10,IF('Fleet Info'!$F38="Non-ADA",Reference!$A$10,Reference!$A$7),IF($D38=Reference!$B$11,Reference!$A$11,IF($D38="Battery Electric Bus (BEB)",IF($H38<=30,Reference!$A$4,Reference!$A$3)))))))))) -> 5 | M38: =_xlfn.XLOOKUP(L38,Reference!$A$2:$A$11,Reference!$C$2:$C$11) -> Standard Cutaway | N38: =_xlfn.XLOOKUP($L38,Reference!$A$2:$A$11,Reference!$J$2:$J$11) -> 170000 | O38: =_xlfn.XLOOKUP($L38,Reference!$A$2:$A$11,Reference!$P$2:$P$11) -> 88000 | P38: =IF(D38="Battery Electric Bus (BEB)",0,_xlfn.XLOOKUP($L38,Reference!$A$2:$A$11,Reference!$O$2:$O$11))*G38 -> 50000 | Q38: 2023 | R38: 2028 | S38: 2033 | T38: 2038 | U38: 2043 | V38: 2048 | W38: 2053 | X38: =W38+$K38 -> 2058 | Y38: =IF($D38<>"Battery Electric Bus (BEB)",MIN(IF($Q38:$X38>=Y$2,$Q38:$X38)),2021) -> 2023 | Z38: =IF($D38<>"Battery Electric Bus (BEB)",MIN(IF($Q38:$X38>=Z$2,$Q38:$X38)),2021) -> 2023 | AA38: =IF($D38<>"Battery Electric Bus (BEB)",MIN(IF($Q38:$X38>=AA$2,$Q38:$X38)),2021) -> 2028 | AB38: =IF($D38<>"Battery Electric Bus (BEB)",MIN(IF($Q38:$X38>=AB$2,$Q38:$X38)),2021) -> 2028 | AC38: =IF($D38<>"Battery Electric Bus (BEB)",MIN(IF($Q38:$X38>=AC$2,$Q38:$X38)),2021) -> 2028 | AD38: =IF($D38<>"Battery Electric Bus (BEB)",MIN(IF($Q38:$X38>=AD$2,$Q38:$X38)),2021) -> 2028 | AE38: =IF($D38<>"Battery Electric Bus (BEB)",MIN(IF($Q38:$X38>=AE$2,$Q38:$X38)),2021) -> 2028 | AF38: =IF($D38<>"Battery Electric Bus (BEB)",MIN(IF($Q38:$X38>=AF$2,$Q38:$X38)),2021) -> 2033 | AG38: =IF($D38<>"Battery Electric Bus (BEB)",MIN(IF($Q38:$X38>=AG$2,$Q38:$X38)),2021) -> 2033 | AH38: No | AI38: Yes | AJ38: No | AK38: No | AL38: No | AM38: No | AN38: Yes | AO38: No | AP38: No | AQ38: No | AR38: No | AS38: Yes | AT38: No | AU38: No | AV38: No | AW38: No | AX38: Yes | AY38: No | AZ38: No | BA38: No | BB38: No | BC38: Yes | BD38: No | BE38: No | BF38: No | BG38: No | BH38: Yes | BI38: No | BJ38: No | BK38: =_xlfn.XLOOKUP($L38,Reference!$A$2:$A$11,Reference!$S$2:$S$11) -> 0.08 | BL38: 170000 | BM38: 156400 | BN38: 143888 | BO38: 132376.96 | BP38: 121786.8032 | BQ38: 112043.8589 | BR38: =IF(BQ38*(1-$BK38)>$O38,BQ38*(1-$BK38),$O38) -> 103080.3502 | BS38: 94833.92221 | BT38: 88000 | BU38: 88000 | BV38: 88000 | BW38: 88000 | BX38: 88000 | BY38: 88000 | BZ38: 88000 | CA38: 88000 | CB38: 88000 | CC38: 88000 | CD38: 88000 | CE38: 88000 | CF38: 88000 | CG38: 88000 | CH38: 88000 | CI38: 88000 | CJ38: 88000 | CK38: 88000 | CL38: 88000 | CM38: 88000 | CN38: 88000 | CO38: 88000 | CP38: 88000 | CQ38: 88000 | CR38: 88000 | CS38: 88000 | CT38: 88000 | CU38: 88000 | CV38: 88000 | CW38: 88000 | CX38: 88000 | CY38: 88000 | CZ38: 88000 | DA38: 88000 | DB38: 88000 | DC38: 88000 | DD38: 88000 | DE38: 88000 | DF38: 88000 | DG38: 88000 | DH38: 88000 | DI38: 88000 | DJ38: 88000 | DK38: 88000 | DL38: 88000 | DM38: 88000 | DN38: 88000 | DO38: 88000 | DP38: 88000 | DQ38: 88000
A39: Broomfield, City and County of | B39: 38 | C39: DR - Demand Response | D39: Cutaway (CU) | E39: Gasoline | F39: Non-ADA | G39: 1 | H39: 26 | I39: 20 | J39: 2014 | K39: =IF(K$1=Reference!$D$1,_xlfn.XLOOKUP('Fleet Info'!$L39,Reference!$A$2:$A$11,Reference!$D$2:$D$11),IF(K$1=Reference!$E$1,_xlfn.XLOOKUP('Fleet Info'!$L39,Reference!$A$2:$A$11,Reference!$E$2:$E$11),"ERROR")) -> 5 | L39: =IF($D39=Reference!$B$2,Reference!$A$2,IF($D39=Reference!$B$3,IF('Fleet Info'!$H39<=30,Reference!$A$4,Reference!$A$3),IF($D39=Reference!$B$5,IF('Fleet Info'!$I39>20,Reference!$A$5,Reference!$A$6),IF($D39=Reference!$B$7,Reference!$A$7,IF($D39=Reference!$B$8,IF('Fleet Info'!$F39="Non-ADA",Reference!$A$8,Reference!$A$7),IF($D39=Reference!$B$9,IF('Fleet Info'!$F39="Non-ADA",Reference!$A$9,Reference!$A$7),IF($D39=Reference!$B$10,IF('Fleet Info'!$F39="Non-ADA",Reference!$A$10,Reference!$A$7),IF($D39=Reference!$B$11,Reference!$A$11,IF($D39="Battery Electric Bus (BEB)",IF($H39<=30,Reference!$A$4,Reference!$A$3)))))))))) -> 5 | M39: =_xlfn.XLOOKUP(L39,Reference!$A$2:$A$11,Reference!$C$2:$C$11) -> Standard Cutaway | N39: =_xlfn.XLOOKUP($L39,Reference!$A$2:$A$11,Reference!$J$2:$J$11) -> 170000 | O39: =_xlfn.XLOOKUP($L39,Reference!$A$2:$A$11,Reference!$P$2:$P$11) -> 88000 | P39: =IF(D39="Battery Electric Bus (BEB)",0,_xlfn.XLOOKUP($L39,Reference!$A$2:$A$11,Reference!$O$2:$O$11))*G39 -> 50000 | Q39: 2026 | R39: 2031 | S39: 2036 | T39: 2041 | U39: 2046 | V39: 2051 | W39: 2056 | X39: =W39+$K39 -> 2061 | Y39: =IF($D39<>"Battery Electric Bus (BEB)",MIN(IF($Q39:$X39>=Y$2,$Q39:$X39)),2021) -> 2026 | Z39: =IF($D39<>"Battery Electric Bus (BEB)",MIN(IF($Q39:$X39>=Z$2,$Q39:$X39)),2021) -> 2026 | AA39: =IF($D39<>"Battery Electric Bus (BEB)",MIN(IF($Q39:$X39>=AA$2,$Q39:$X39)),2021) -> 2026 | AB39: =IF($D39<>"Battery Electric Bus (BEB)",MIN(IF($Q39:$X39>=AB$2,$Q39:$X39)),2021) -> 2026 | AC39: =IF($D39<>"Battery Electric Bus (BEB)",MIN(IF($Q39:$X39>=AC$2,$Q39:$X39)),2021) -> 2026 | AD39: =IF($D39<>"Battery Electric Bus (BEB)",MIN(IF($Q39:$X39>=AD$2,$Q39:$X39)),2021) -> 2031 | AE39: =IF($D39<>"Battery Electric Bus (BEB)",MIN(IF($Q39:$X39>=AE$2,$Q39:$X39)),2021) -> 2031 | AF39: =IF($D39<>"Battery Electric Bus (BEB)",MIN(IF($Q39:$X39>=AF$2,$Q39:$X39)),2021) -> 2031 | AG39: =IF($D39<>"Battery Electric Bus (BEB)",MIN(IF($Q39:$X39>=AG$2,$Q39:$X39)),2021) -> 2031 | AH39: No | AI39: No | AJ39: No | AK39: No | AL39: Yes | AM39: No | AN39: No | AO39: No | AP39: No | AQ39: Yes | AR39: No | AS39: No | AT39: No | AU39: No | AV39: Yes | AW39: No | AX39: No | AY39: No | AZ39: No | BA39: Yes | BB39: No | BC39: No | BD39: No | BE39: No | BF39: Yes | BG39: No | BH39: No | BI39: No | BJ39: No | BK39: =_xlfn.XLOOKUP($L39,Reference!$A$2:$A$11,Reference!$S$2:$S$11) -> 0.08 | BL39: 170000 | BM39: 156400 | BN39: 143888 | BO39: 132376.96 | BP39: 121786.8032 | BQ39: 112043.8589 | BR39: =IF(BQ39*(1-$BK39)>$O39,BQ39*(1-$BK39),$O39) -> 103080.3502 | BS39: 94833.92221 | BT39: 88000 | BU39: 88000 | BV39: 88000 | BW39: 88000 | BX39: 88000 | BY39: 88000 | BZ39: 88000 | CA39: 88000 | CB39: 88000 | CC39: 88000 | CD39: 88000 | CE39: 88000 | CF39: 88000 | CG39: 88000 | CH39: 88000 | CI39: 88000 | CJ39: 88000 | CK39: 88000 | CL39: 88000 | CM39: 88000 | CN39: 88000 | CO39: 88000 | CP39: 88000 | CQ39: 88000 | CR39: 88000 | CS39: 88000 | CT39: 88000 | CU39: 88000 | CV39: 88000 | CW39: 88000 | CX39: 88000 | CY39: 88000 | CZ39: 88000 | DA39: 88000 | DB39: 88000 | DC39: 88000 | DD39: 88000 | DE39: 88000 | DF39: 88000 | DG39: 88000 | DH39: 88000 | DI39: 88000 | DJ39: 88000 | DK39: 88000 | DL39: 88000 | DM39: 88000 | DN39: 88000 | DO39: 88000 | DP39: 88000 | DQ39: 88000
A40: Castle Rock Senior Center | B40: 39 | C40: DR - Demand Response | D40: Automobile (AO) | E40: Gasoline | F40: Non-ADA | G40: 1 | H40: 16 | I40: 5 | J40: 2014 | K40: =IF(K$1=Reference!$D$1,_xlfn.XLOOKUP('Fleet Info'!$L40,Reference!$A$2:$A$11,Reference!$D$2:$D$11),IF(K$1=Reference!$E$1,_xlfn.XLOOKUP('Fleet Info'!$L40,Reference!$A$2:$A$11,Reference!$E$2:$E$11),"ERROR")) -> 4 | L40: =IF($D40=Reference!$B$2,Reference!$A$2,IF($D40=Reference!$B$3,IF('Fleet Info'!$H40<=30,Reference!$A$4,Reference!$A$3),IF($D40=Reference!$B$5,IF('Fleet Info'!$I40>20,Reference!$A$5,Reference!$A$6),IF($D40=Reference!$B$7,Reference!$A$7,IF($D40=Reference!$B$8,IF('Fleet Info'!$F40="Non-ADA",Reference!$A$8,Reference!$A$7),IF($D40=Reference!$B$9,IF('Fleet Info'!$F40="Non-ADA",Reference!$A$9,Reference!$A$7),IF($D40=Reference!$B$10,IF('Fleet Info'!$F40="Non-ADA",Reference!$A$10,Reference!$A$7),IF($D40=Reference!$B$11,Reference!$A$11,IF($D40="Battery Electric Bus (BEB)",IF($H40<=30,Reference!$A$4,Reference!$A$3)))))))))) -> 7 | M40: =_xlfn.XLOOKUP(L40,Reference!$A$2:$A$11,Reference!$C$2:$C$11) -> Electric SUV | N40: =_xlfn.XLOOKUP($L40,Reference!$A$2:$A$11,Reference!$J$2:$J$11) -> 60000 | O40: =_xlfn.XLOOKUP($L40,Reference!$A$2:$A$11,Reference!$P$2:$P$11) -> 30000 | P40: =IF(D40="Battery Electric Bus (BEB)",0,_xlfn.XLOOKUP($L40,Reference!$A$2:$A$11,Reference!$O$2:$O$11))*G40 -> 50000 | Q40: 2025 | R40: 2029 | S40: 2033 | T40: 2037 | U40: 2041 | V40: 2045 | W40: 2049 | X40: =W40+$K40 -> 2053 | Y40: =IF($D40<>"Battery Electric Bus (BEB)",MIN(IF($Q40:$X40>=Y$2,$Q40:$X40)),2021) -> 2025 | Z40: =IF($D40<>"Battery Electric Bus (BEB)",MIN(IF($Q40:$X40>=Z$2,$Q40:$X40)),2021) -> 2025 | AA40: =IF($D40<>"Battery Electric Bus (BEB)",MIN(IF($Q40:$X40>=AA$2,$Q40:$X40)),2021) -> 2025 | AB40: =IF($D40<>"Battery Electric Bus (BEB)",MIN(IF($Q40:$X40>=AB$2,$Q40:$X40)),2021) -> 2025 | AC40: =IF($D40<>"Battery Electric Bus (BEB)",MIN(IF($Q40:$X40>=AC$2,$Q40:$X40)),2021) -> 2029 | AD40: =IF($D40<>"Battery Electric Bus (BEB)",MIN(IF($Q40:$X40>=AD$2,$Q40:$X40)),2021) -> 2029 | AE40: =IF($D40<>"Battery Electric Bus (BEB)",MIN(IF($Q40:$X40>=AE$2,$Q40:$X40)),2021) -> 2029 | AF40: =IF($D40<>"Battery Electric Bus (BEB)",MIN(IF($Q40:$X40>=AF$2,$Q40:$X40)),2021) -> 2029 | AG40: =IF($D40<>"Battery Electric Bus (BEB)",MIN(IF($Q40:$X40>=AG$2,$Q40:$X40)),2021) -> 2033 | AH40: No | AI40: No | AJ40: No | AK40: Yes | AL40: No | AM40: No | AN40: No | AO40: Yes | AP40: No | AQ40: No | AR40: No | AS40: Yes | AT40: No | AU40: No | AV40: No | AW40: Yes | AX40: No | AY40: No | AZ40: No | BA40: Yes | BB40: No | BC40: No | BD40: No | BE40: Yes | BF40: No | BG40: No | BH40: No | BI40: Yes | BJ40: No | BK40: =_xlfn.XLOOKUP($L40,Reference!$A$2:$A$11,Reference!$S$2:$S$11) -> 0.08 | BL40: 60000 | BM40: 55200 | BN40: 50784 | BO40: 46721.28 | BP40: 42983.5776 | BQ40: 39544.89139 | BR40: =IF(BQ40*(1-$BK40)>$O40,BQ40*(1-$BK40),$O40) -> 36381.30008 | BS40: 33470.79607 | BT40: 30793.13239 | BU40: 30000 | BV40: 30000 | BW40: 30000 | BX40: 30000 | BY40: 30000 | BZ40: 30000 | CA40: 30000 | CB40: 30000 | CC40: 30000 | CD40: 30000 | CE40: 30000 | CF40: 30000 | CG40: 30000 | CH40: 30000 | CI40: 30000 | CJ40: 30000 | CK40: 30000 | CL40: 30000 | CM40: 30000 | CN40: 30000 | CO40: 30000 | CP40: 30000 | CQ40: 30000 | CR40: 30000 | CS40: 30000 | CT40: 30000 | CU40: 30000 | CV40: 30000 | CW40: 30000 | CX40: 30000 | CY40: 30000 | CZ40: 30000 | DA40: 30000 | DB40: 30000 | DC40: 30000 | DD40: 30000 | DE40: 30000 | DF40: 30000 | DG40: 30000 | DH40: 30000 | DI40: 30000 | DJ40: 30000 | DK40: 30000 | DL40: 30000 | DM40: 30000 | DN40: 30000 | DO40: 30000 | DP40: 30000 | DQ40: 30000
A41: Castle Rock Senior Center | B41: 40 | C41: DR - Demand Response | D41: Automobile (AO) | E41: Gasoline | F41: Non-ADA | G41: 1 | H41: 16 | I41: 5 | J41: 2017 | K41: =IF(K$1=Reference!$D$1,_xlfn.XLOOKUP('Fleet Info'!$L41,Reference!$A$2:$A$11,Reference!$D$2:$D$11),IF(K$1=Reference!$E$1,_xlfn.XLOOKUP('Fleet Info'!$L41,Reference!$A$2:$A$11,Reference!$E$2:$E$11),"ERROR")) -> 4 | L41: =IF($D41=Reference!$B$2,Reference!$A$2,IF($D41=Reference!$B$3,IF('Fleet Info'!$H41<=30,Reference!$A$4,Reference!$A$3),IF($D41=Reference!$B$5,IF('Fleet Info'!$I41>20,Reference!$A$5,Reference!$A$6),IF($D41=Reference!$B$7,Reference!$A$7,IF($D41=Reference!$B$8,IF('Fleet Info'!$F41="Non-ADA",Reference!$A$8,Reference!$A$7),IF($D41=Reference!$B$9,IF('Fleet Info'!$F41="Non-ADA",Reference!$A$9,Reference!$A$7),IF($D41=Reference!$B$10,IF('Fleet Info'!$F41="Non-ADA",Reference!$A$10,Reference!$A$7),IF($D41=Reference!$B$11,Reference!$A$11,IF($D41="Battery Electric Bus (BEB)",IF($H41<=30,Reference!$A$4,Reference!$A$3)))))))))) -> 7 | M41: =_xlfn.XLOOKUP(L41,Reference!$A$2:$A$11,Reference!$C$2:$C$11) -> Electric SUV | N41: =_xlfn.XLOOKUP($L41,Reference!$A$2:$A$11,Reference!$J$2:$J$11) -> 60000 | O41: =_xlfn.XLOOKUP($L41,Reference!$A$2:$A$11,Reference!$P$2:$P$11) -> 30000 | P41: =IF(D41="Battery Electric Bus (BEB)",0,_xlfn.XLOOKUP($L41,Reference!$A$2:$A$11,Reference!$O$2:$O$11))*G41 -> 50000 | Q41: 2021 | R41: 2025 | S41: 2029 | T41: 2033 | U41: 2037 | V41: 2041 | W41: 2045 | X41: =W41+$K41 -> 2049 | Y41: =IF($D41<>"Battery Electric Bus (BEB)",MIN(IF($Q41:$X41>=Y$2,$Q41:$X41)),2021) -> 2025 | Z41: =IF($D41<>"Battery Electric Bus (BEB)",MIN(IF($Q41:$X41>=Z$2,$Q41:$X41)),2021) -> 2025 | AA41: =IF($D41<>"Battery Electric Bus (BEB)",MIN(IF($Q41:$X41>=AA$2,$Q41:$X41)),2021) -> 2025 | AB41: =IF($D41<>"Battery Electric Bus (BEB)",MIN(IF($Q41:$X41>=AB$2,$Q41:$X41)),2021) -> 2025 | AC41: =IF($D41<>"Battery Electric Bus (BEB)",MIN(IF($Q41:$X41>=AC$2,$Q41:$X41)),2021) -> 2029 | AD41: =IF($D41<>"Battery Electric Bus (BEB)",MIN(IF($Q41:$X41>=AD$2,$Q41:$X41)),2021) -> 2029 | AE41: =IF($D41<>"Battery Electric Bus (BEB)",MIN(IF($Q41:$X41>=AE$2,$Q41:$X41)),2021) -> 2029 | AF41: =IF($D41<>"Battery Electric Bus (BEB)",MIN(IF($Q41:$X41>=AF$2,$Q41:$X41)),2021) -> 2029 | AG41: =IF($D41<>"Battery Electric Bus (BEB)",MIN(IF($Q41:$X41>=AG$2,$Q41:$X41)),2021) -> 2033 | AH41: No | AI41: No | AJ41: No | AK41: Yes | AL41: No | AM41: No | AN41: No | AO41: Yes | AP41: No | AQ41: No | AR41: No | AS41: Yes | AT41: No | AU41: No | AV41: No | AW41: Yes | AX41: No | AY41: No | AZ41: No | BA41: Yes | BB41: No | BC41: No | BD41: No | BE41: Yes | BF41: No | BG41: No | BH41: No | BI41: Yes | BJ41: No | BK41: =_xlfn.XLOOKUP($L41,Reference!$A$2:$A$11,Reference!$S$2:$S$11) -> 0.08 | BL41: 60000 | BM41: 55200 | BN41: 50784 | BO41: 46721.28 | BP41: 42983.5776 | BQ41: 39544.89139 | BR41: =IF(BQ41*(1-$BK41)>$O41,BQ41*(1-$BK41),$O41) -> 36381.30008 | BS41: 33470.79607 | BT41: 30793.13239 | BU41: 30000 | BV41: 30000 | BW41: 30000 | BX41: 30000 | BY41: 30000 | BZ41: 30000 | CA41: 30000 | CB41: 30000 | CC41: 30000 | CD41: 30000 | CE41: 30000 | CF41: 30000 | CG41: 30000 | CH41: 30000 | CI41: 30000 | CJ41: 30000 | CK41: 30000 | CL41: 30000 | CM41: 30000 | CN41: 30000 | CO41: 30000 | CP41: 30000 | CQ41: 30000 | CR41: 30000 | CS41: 30000 | CT41: 30000 | CU41: 30000 | CV41: 30000 | CW41: 30000 | CX41: 30000 | CY41: 30000 | CZ41: 30000 | DA41: 30000 | DB41: 30000 | DC41: 30000 | DD41: 30000 | DE41: 30000 | DF41: 30000 | DG41: 30000 | DH41: 30000 | DI41: 30000 | DJ41: 30000 | DK41: 30000 | DL41: 30000 | DM41: 30000 | DN41: 30000 | DO41: 30000 | DP41: 30000 | DQ41: 30000
A42: Castle Rock Senior Center | B42: 41 | C42: DR - Demand Response | D42: Automobile (AO) | E42: Gasoline | F42: Non-ADA | G42: 1 | H42: 16 | I42: 5 | J42: 2017 | K42: =IF(K$1=Reference!$D$1,_xlfn.XLOOKUP('Fleet Info'!$L42,Reference!$A$2:$A$11,Reference!$D$2:$D$11),IF(K$1=Reference!$E$1,_xlfn.XLOOKUP('Fleet Info'!$L42,Reference!$A$2:$A$11,Reference!$E$2:$E$11),"ERROR")) -> 4 | L42: =IF($D42=Reference!$B$2,Reference!$A$2,IF($D42=Reference!$B$3,IF('Fleet Info'!$H42<=30,Reference!$A$4,Reference!$A$3),IF($D42=Reference!$B$5,IF('Fleet Info'!$I42>20,Reference!$A$5,Reference!$A$6),IF($D42=Reference!$B$7,Reference!$A$7,IF($D42=Reference!$B$8,IF('Fleet Info'!$F42="Non-ADA",Reference!$A$8,Reference!$A$7),IF($D42=Reference!$B$9,IF('Fleet Info'!$F42="Non-ADA",Reference!$A$9,Reference!$A$7),IF($D42=Reference!$B$10,IF('Fleet Info'!$F42="Non-ADA",Reference!$A$10,Reference!$A$7),IF($D42=Reference!$B$11,Reference!$A$11,IF($D42="Battery Electric Bus (BEB)",IF($H42<=30,Reference!$A$4,Reference!$A$3)))))))))) -> 7 | M42: =_xlfn.XLOOKUP(L42,Reference!$A$2:$A$11,Reference!$C$2:$C$11) -> Electric SUV | N42: =_xlfn.XLOOKUP($L42,Reference!$A$2:$A$11,Reference!$J$2:$J$11) -> 60000 | O42: =_xlfn.XLOOKUP($L42,Reference!$A$2:$A$11,Reference!$P$2:$P$11) -> 30000 | P42: =IF(D42="Battery Electric Bus (BEB)",0,_xlfn.XLOOKUP($L42,Reference!$A$2:$A$11,Reference!$O$2:$O$11))*G42 -> 50000 | Q42: 2021 | R42: 2025 | S42: 2029 | T42: 2033 | U42: 2037 | V42: 2041 | W42: 2045 | X42: =W42+$K42 -> 2049 | Y42: =IF($D42<>"Battery Electric Bus (BEB)",MIN(IF($Q42:$X42>=Y$2,$Q42:$X42)),2021) -> 2025 | Z42: =IF($D42<>"Battery Electric Bus (BEB)",MIN(IF($Q42:$X42>=Z$2,$Q42:$X42)),2021) -> 2025 | AA42: =IF($D42<>"Battery Electric Bus (BEB)",MIN(IF($Q42:$X42>=AA$2,$Q42:$X42)),2021) -> 2025 | AB42: =IF($D42<>"Battery Electric Bus (BEB)",MIN(IF($Q42:$X42>=AB$2,$Q42:$X42)),2021) -> 2025 | AC42: =IF($D42<>"Battery Electric Bus (BEB)",MIN(IF($Q42:$X42>=AC$2,$Q42:$X42)),2021) -> 2029 | AD42: =IF($D42<>"Battery Electric Bus (BEB)",MIN(IF($Q42:$X42>=AD$2,$Q42:$X42)),2021) -> 2029 | AE42: =IF($D42<>"Battery Electric Bus (BEB)",MIN(IF($Q42:$X42>=AE$2,$Q42:$X42)),2021) -> 2029 | AF42: =IF($D42<>"Battery Electric Bus (BEB)",MIN(IF($Q42:$X42>=AF$2,$Q42:$X42)),2021) -> 2029 | AG42: =IF($D42<>"Battery Electric Bus (BEB)",MIN(IF($Q42:$X42>=AG$2,$Q42:$X42)),2021) -> 2033 | AH42: No | AI42: No | AJ42: No | AK42: Yes | AL42: No | AM42: No | AN42: No | AO42: Yes | AP42: No | AQ42: No | AR42: No | AS42: Yes | AT42: No | AU42: No | AV42: No | AW42: Yes | AX42: No | AY42: No | AZ42: No | BA42: Yes | BB42: No | BC42: No | BD42: No | BE42: Yes | BF42: No | BG42: No | BH42: No | BI42: Yes | BJ42: No | BK42: =_xlfn.XLOOKUP($L42,Reference!$A$2:$A$11,Reference!$S$2:$S$11) -> 0.08 | BL42: 60000 | BM42: 55200 | BN42: 50784 | BO42: =IF(BN42*(1-$BK42)>$O42,BN42*(1-$BK42),$O42) -> 46721.28 | BP42: 42983.5776 | BQ42: 39544.89139 | BR42: 36381.30008 | BS42: 33470.79607 | BT42: 30793.13239 | BU42: 30000 | BV42: 30000 | BW42: 30000 | BX42: 30000 | BY42: 30000 | BZ42: 30000 | CA42: 30000 | CB42: 30000 | CC42: 30000 | CD42: 30000 | CE42: 30000 | CF42: 30000 | CG42: 30000 | CH42: 30000 | CI42: 30000 | CJ42: 30000 | CK42: 30000 | CL42: 30000 | CM42: 30000 | CN42: 30000 | CO42: 30000 | CP42: 30000 | CQ42: 30000 | CR42: 30000 | CS42: 30000 | CT42: 30000 | CU42: 30000 | CV42: 30000 | CW42: 30000 | CX42: 30000 | CY42: 30000 | CZ42: 30000 | DA42: 30000 | DB42: 30000 | DC42: 30000 | DD42: 30000 | DE42: 30000 | DF42: 30000 | DG42: 30000 | DH42: 30000 | DI42: 30000 | DJ42: 30000 | DK42: 30000 | DL42: 30000 | DM42: 30000 | DN42: 30000 | DO42: 30000 | DP42: 30000 | DQ42: 30000
A43: Castle Rock Senior Center | B43: 42 | C43: DR - Demand Response | D43: Automobile (AO) | E43: Gasoline | F43: Non-ADA | G43: 1 | H43: 16 | I43: 5 | J43: 2018 | K43: =IF(K$1=Reference!$D$1,_xlfn.XLOOKUP('Fleet Info'!$L43,Reference!$A$2:$A$11,Reference!$D$2:$D$11),IF(K$1=Reference!$E$1,_xlfn.XLOOKUP('Fleet Info'!$L43,Reference!$A$2:$A$11,Reference!$E$2:$E$11),"ERROR")) -> 4 | L43: =IF($D43=Reference!$B$2,Reference!$A$2,IF($D43=Reference!$B$3,IF('Fleet Info'!$H43<=30,Reference!$A$4,Reference!$A$3),IF($D43=Reference!$B$5,IF('Fleet Info'!$I43>20,Reference!$A$5,Reference!$A$6),IF($D43=Reference!$B$7,Reference!$A$7,IF($D43=Reference!$B$8,IF('Fleet Info'!$F43="Non-ADA",Reference!$A$8,Reference!$A$7),IF($D43=Reference!$B$9,IF('Fleet Info'!$F43="Non-ADA",Reference!$A$9,Reference!$A$7),IF($D43=Reference!$B$10,IF('Fleet Info'!$F43="Non-ADA",Reference!$A$10,Reference!$A$7),IF($D43=Reference!$B$11,Reference!$A$11,IF($D43="Battery Electric Bus (BEB)",IF($H43<=30,Reference!$A$4,Reference!$A$3)))))))))) -> 7 | M43: =_xlfn.XLOOKUP(L43,Reference!$A$2:$A$11,Reference!$C$2:$C$11) -> Electric SUV | N43: =_xlfn.XLOOKUP($L43,Reference!$A$2:$A$11,Reference!$J$2:$J$11) -> 60000 | O43: =_xlfn.XLOOKUP($L43,Reference!$A$2:$A$11,Reference!$P$2:$P$11) -> 30000 | P43: =IF(D43="Battery Electric Bus (BEB)",0,_xlfn.XLOOKUP($L43,Reference!$A$2:$A$11,Reference!$O$2:$O$11))*G43 -> 50000 | Q43: 2022 | R43: 2026 | S43: 2030 | T43: 2034 | U43: 2038 | V43: 2042 | W43: 2046 | X43: =W43+$K43 -> 2050 | Y43: =IF($D43<>"Battery Electric Bus (BEB)",MIN(IF($Q43:$X43>=Y$2,$Q43:$X43)),2021) -> 2022 | Z43: =IF($D43<>"Battery Electric Bus (BEB)",MIN(IF($Q43:$X43>=Z$2,$Q43:$X43)),2021) -> 2026 | AA43: =IF($D43<>"Battery Electric Bus (BEB)",MIN(IF($Q43:$X43>=AA$2,$Q43:$X43)),2021) -> 2026 | AB43: =IF($D43<>"Battery Electric Bus (BEB)",MIN(IF($Q43:$X43>=AB$2,$Q43:$X43)),2021) -> 2026 | AC43: =IF($D43<>"Battery Electric Bus (BEB)",MIN(IF($Q43:$X43>=AC$2,$Q43:$X43)),2021) -> 2026 | AD43: =IF($D43<>"Battery Electric Bus (BEB)",MIN(IF($Q43:$X43>=AD$2,$Q43:$X43)),2021) -> 2030 | AE43: =IF($D43<>"Battery Electric Bus (BEB)",MIN(IF($Q43:$X43>=AE$2,$Q43:$X43)),2021) -> 2030 | AF43: =IF($D43<>"Battery Electric Bus (BEB)",MIN(IF($Q43:$X43>=AF$2,$Q43:$X43)),2021) -> 2030 | AG43: =IF($D43<>"Battery Electric Bus (BEB)",MIN(IF($Q43:$X43>=AG$2,$Q43:$X43)),2021) -> 2030 | AH43: Yes | AI43: No | AJ43: No | AK43: No | AL43: Yes | AM43: No | AN43: No | AO43: No | AP43: Yes | AQ43: No | AR43: No | AS43: No | AT43: Yes | AU43: No | AV43: No | AW43: No | AX43: Yes | AY43: No | AZ43: No | BA43: No | BB43: Yes | BC43: No | BD43: No | BE43: No | BF43: Yes | BG43: No | BH43: No | BI43: No | BJ43: =IF(OR($Q43=BJ$2,$R43=BJ$2,$S43=BJ$2,$T43=BJ$2,$U43=BJ$2,$V43=BJ$2,$W43=BJ$2,$X43=BJ$2),"Yes","No") -> Yes | BK43: =_xlfn.XLOOKUP($L43,Reference!$A$2:$A$11,Reference!$S$2:$S$11) -> 0.08 | BL43: 60000 | BM43: 55200 | BN43: =IF(BM43*(1-$BK43)>$O43,BM43*(1-$BK43),$O43) -> 50784 | BO43: 46721.28 | BP43: 42983.5776 | BQ43: 39544.89139 | BR43: 36381.30008 | BS43: 33470.79607 | BT43: 30793.13239 | BU43: 30000 | BV43: 30000 | BW43: 30000 | BX43: 30000 | BY43: 30000 | BZ43: 30000 | CA43: 30000 | CB43: 30000 | CC43: 30000 | CD43: 30000 | CE43: 30000 | CF43: 30000 | CG43: 30000 | CH43: 30000 | CI43: 30000 | CJ43: 30000 | CK43: 30000 | CL43: 30000 | CM43: 30000 | CN43: 30000 | CO43: 30000 | CP43: 30000 | CQ43: 30000 | CR43: 30000 | CS43: 30000 | CT43: 30000 | CU43: 30000 | CV43: 30000 | CW43: 30000 | CX43: 30000 | CY43: 30000 | CZ43: 30000 | DA43: 30000 | DB43: 30000 | DC43: 30000 | DD43: 30000 | DE43: 30000 | DF43: 30000 | DG43: 30000 | DH43: 30000 | DI43: 30000 | DJ43: 30000 | DK43: 30000 | DL43: 30000 | DM43: 30000 | DN43: 30000 | DO43: 30000 | DP43: 30000 | DQ43: 30000
A44: Castle Rock Senior Center | B44: 43 | C44: DR - Demand Response | D44: Minivan (MV) | E44: Gasoline | F44: Non-ADA | G44: 1 | H44: 17 | I44: 5 | J44: 2012 | K44: =IF(K$1=Reference!$D$1,_xlfn.XLOOKUP('Fleet Info'!$L44,Reference!$A$2:$A$11,Reference!$D$2:$D$11),IF(K$1=Reference!$E$1,_xlfn.XLOOKUP('Fleet Info'!$L44,Reference!$A$2:$A$11,Reference!$E$2:$E$11),"ERROR")) -> 4 | L44: =IF($D44=Reference!$B$2,Reference!$A$2,IF($D44=Reference!$B$3,IF('Fleet Info'!$H44<=30,Reference!$A$4,Reference!$A$3),IF($D44=Reference!$B$5,IF('Fleet Info'!$I44>20,Reference!$A$5,Reference!$A$6),IF($D44=Reference!$B$7,Reference!$A$7,IF($D44=Reference!$B$8,IF('Fleet Info'!$F44="Non-ADA",Reference!$A$8,Reference!$A$7),IF($D44=Reference!$B$9,IF('Fleet Info'!$F44="Non-ADA",Reference!$A$9,Reference!$A$7),IF($D44=Reference!$B$10,IF('Fleet Info'!$F44="Non-ADA",Reference!$A$10,Reference!$A$7),IF($D44=Reference!$B$11,Reference!$A$11,IF($D44="Battery Electric Bus (BEB)",IF($H44<=30,Reference!$A$4,Reference!$A$3)))))))))) -> 8 | M44: =_xlfn.XLOOKUP(L44,Reference!$A$2:$A$11,Reference!$C$2:$C$11) -> Electric SUV | N44: =_xlfn.XLOOKUP($L44,Reference!$A$2:$A$11,Reference!$J$2:$J$11) -> 60000 | O44: =_xlfn.XLOOKUP($L44,Reference!$A$2:$A$11,Reference!$P$2:$P$11) -> 33500 | P44: =IF(D44="Battery Electric Bus (BEB)",0,_xlfn.XLOOKUP($L44,Reference!$A$2:$A$11,Reference!$O$2:$O$11))*G44 -> 50000 | Q44: 2025 | R44: 2029 | S44: 2033 | T44: 2037 | U44: 2041 | V44: 2045 | W44: 2049 | X44: =W44+$K44 -> 2053 | Y44: =IF($D44<>"Battery Electric Bus (BEB)",MIN(IF($Q44:$X44>=Y$2,$Q44:$X44)),2021) -> 2025 | Z44: =IF($D44<>"Battery Electric Bus (BEB)",MIN(IF($Q44:$X44>=Z$2,$Q44:$X44)),2021) -> 2025 | AA44: =IF($D44<>"Battery Electric Bus (BEB)",MIN(IF($Q44:$X44>=AA$2,$Q44:$X44)),2021) -> 2025 | AB44: =IF($D44<>"Battery Electric Bus (BEB)",MIN(IF($Q44:$X44>=AB$2,$Q44:$X44)),2021) -> 2025 | AC44: =IF($D44<>"Battery Electric Bus (BEB)",MIN(IF($Q44:$X44>=AC$2,$Q44:$X44)),2021) -> 2029 | AD44: =IF($D44<>"Battery Electric Bus (BEB)",MIN(IF($Q44:$X44>=AD$2,$Q44:$X44)),2021) -> 2029 | AE44: =IF($D44<>"Battery Electric Bus (BEB)",MIN(IF($Q44:$X44>=AE$2,$Q44:$X44)),2021) -> 2029 | AF44: =IF($D44<>"Battery Electric Bus (BEB)",MIN(IF($Q44:$X44>=AF$2,$Q44:$X44)),2021) -> 2029 | AG44: =IF($D44<>"Battery Electric Bus (BEB)",MIN(IF($Q44:$X44>=AG$2,$Q44:$X44)),2021) -> 2033 | AH44: No | AI44: No | AJ44: No | AK44: Yes | AL44: No | AM44: No | AN44: No | AO44: Yes | AP44: No | AQ44: No | AR44: No | AS44: Yes | AT44: No | AU44: No | AV44: No | AW44: Yes | AX44: No | AY44: No | AZ44: No | BA44: Yes | BB44: No | BC44: No | BD44: No | BE44: Yes | BF44: No | BG44: No | BH44: No | BI44: Yes | BJ44: No | BK44: =_xlfn.XLOOKUP($L44,Reference!$A$2:$A$11,Reference!$S$2:$S$11) -> 0.08 | BL44: 60000 | BM44: 55200 | BN44: =IF(BM44*(1-$BK44)>$O44,BM44*(1-$BK44),$O44) -> 50784 | BO44: 46721.28 | BP44: 42983.5776 | BQ44: 39544.89139 | BR44: 36381.30008 | BS44: 33500 | BT44: 33500 | BU44: 33500 | BV44: 33500 | BW44: 33500 | BX44: 33500 | BY44: 33500 | BZ44: 33500 | CA44: 33500 | CB44: 33500 | CC44: 33500 | CD44: 33500 | CE44: 33500 | CF44: 33500 | CG44: 33500 | CH44: 33500 | CI44: 33500 | CJ44: 33500 | CK44: 33500 | CL44: 33500 | CM44: 33500 | CN44: 33500 | CO44: 33500 | CP44: 33500 | CQ44: 33500 | CR44: 33500 | CS44: 33500 | CT44: 33500 | CU44: 33500 | CV44: 33500 | CW44: 33500 | CX44: 33500 | CY44: 33500 | CZ44: 33500 | DA44: 33500 | DB44: 33500 | DC44: 33500 | DD44: 33500 | DE44: 33500 | DF44: 33500 | DG44: 33500 | DH44: 33500 | DI44: 33500 | DJ44: 33500 | DK44: 33500 | DL44: 33500 | DM44: 33500 | DN44: 33500 | DO44: 33500 | DP44: 33500 | DQ44: 33500
A45: Castle Rock Senior Center | B45: 44 | C45: DR - Demand Response | D45: Minivan (MV) | E45: Gasoline | F45: Non-ADA | G45: 1 | H45: 17 | I45: 7 | J45: 2005 | K45: =IF(K$1=Reference!$D$1,_xlfn.XLOOKUP('Fleet Info'!$L45,Reference!$A$2:$A$11,Reference!$D$2:$D$11),IF(K$1=Reference!$E$1,_xlfn.XLOOKUP('Fleet Info'!$L45,Reference!$A$2:$A$11,Reference!$E$2:$E$11),"ERROR")) -> 4 | L45: =IF($D45=Reference!$B$2,Reference!$A$2,IF($D45=Reference!$B$3,IF('Fleet Info'!$H45<=30,Reference!$A$4,Reference!$A$3),IF($D45=Reference!$B$5,IF('Fleet Info'!$I45>20,Reference!$A$5,Reference!$A$6),IF($D45=Reference!$B$7,Reference!$A$7,IF($D45=Reference!$B$8,IF('Fleet Info'!$F45="Non-ADA",Reference!$A$8,Reference!$A$7),IF($D45=Reference!$B$9,IF('Fleet Info'!$F45="Non-ADA",Reference!$A$9,Reference!$A$7),IF($D45=Reference!$B$10,IF('Fleet Info'!$F45="Non-ADA",Reference!$A$10,Reference!$A$7),IF($D45=Reference!$B$11,Reference!$A$11,IF($D45="Battery Electric Bus (BEB)",IF($H45<=30,Reference!$A$4,Reference!$A$3)))))))))) -> 8 | M45: =_xlfn.XLOOKUP(L45,Reference!$A$2:$A$11,Reference!$C$2:$C$11) -> Electric SUV | N45: =_xlfn.XLOOKUP($L45,Reference!$A$2:$A$11,Reference!$J$2:$J$11) -> 60000 | O45: =_xlfn.XLOOKUP($L45,Reference!$A$2:$A$11,Reference!$P$2:$P$11) -> 33500 | P45: =IF(D45="Battery Electric Bus (BEB)",0,_xlfn.XLOOKUP($L45,Reference!$A$2:$A$11,Reference!$O$2:$O$11))*G45 -> 50000 | Q45: 2025 | R45: 2029 | S45: 2033 | T45: 2037 | U45: 2041 | V45: 2045 | W45: 2049 | X45: =W45+$K45 -> 2053 | Y45: =IF($D45<>"Battery Electric Bus (BEB)",MIN(IF($Q45:$X45>=Y$2,$Q45:$X45)),2021) -> 2025 | Z45: =IF($D45<>"Battery Electric Bus (BEB)",MIN(IF($Q45:$X45>=Z$2,$Q45:$X45)),2021) -> 2025 | AA45: =IF($D45<>"Battery Electric Bus (BEB)",MIN(IF($Q45:$X45>=AA$2,$Q45:$X45)),2021) -> 2025 | AB45: =IF($D45<>"Battery Electric Bus (BEB)",MIN(IF($Q45:$X45>=AB$2,$Q45:$X45)),2021) -> 2025 | AC45: =IF($D45<>"Battery Electric Bus (BEB)",MIN(IF($Q45:$X45>=AC$2,$Q45:$X45)),2021) -> 2029 | AD45: =IF($D45<>"Battery Electric Bus (BEB)",MIN(IF($Q45:$X45>=AD$2,$Q45:$X45)),2021) -> 2029 | AE45: =IF($D45<>"Battery Electric Bus (BEB)",MIN(IF($Q45:$X45>=AE$2,$Q45:$X45)),2021) -> 2029 | AF45: =IF($D45<>"Battery Electric Bus (BEB)",MIN(IF($Q45:$X45>=AF$2,$Q45:$X45)),2021) -> 2029 | AG45: =IF($D45<>"Battery Electric Bus (BEB)",MIN(IF($Q45:$X45>=AG$2,$Q45:$X45)),2021) -> 2033 | AH45: No | AI45: No | AJ45: No | AK45: Yes | AL45: No | AM45: No | AN45: No | AO45: Yes | AP45: No | AQ45: No | AR45: No | AS45: Yes | AT45: No | AU45: No | AV45: No | AW45: Yes | AX45: No | AY45: No | AZ45: No | BA45: Yes | BB45: No | BC45: No | BD45: No | BE45: Yes | BF45: No | BG45: No | BH45: No | BI45: Yes | BJ45: No | BK45: =_xlfn.XLOOKUP($L45,Reference!$A$2:$A$11,Reference!$S$2:$S$11) -> 0.08 | BL45: 60000 | BM45: 55200 | BN45: =IF(BM45*(1-$BK45)>$O45,BM45*(1-$BK45),$O45) -> 50784 | BO45: 46721.28 | BP45: 42983.5776 | BQ45: 39544.89139 | BR45: 36381.30008 | BS45: 33500 | BT45: 33500 | BU45: 33500 | BV45: 33500 | BW45: 33500 | BX45: 33500 | BY45: 33500 | BZ45: 33500 | CA45: 33500 | CB45: 33500 | CC45: 33500 | CD45: 33500 | CE45: 33500 | CF45: 33500 | CG45: 33500 | CH45: 33500 | CI45: 33500 | CJ45: 33500 | CK45: 33500 | CL45: 33500 | CM45: 33500 | CN45: 33500 | CO45: 33500 | CP45: 33500 | CQ45: 33500 | CR45: 33500 | CS45: 33500 | CT45: 33500 | CU45: 33500 | CV45: 33500 | CW45: 33500 | CX45: 33500 | CY45: 33500 | CZ45: 33500 | DA45: 33500 | DB45: 33500 | DC45: 33500 | DD45: 33500 | DE45: 33500 | DF45: 33500 | DG45: 33500 | DH45: 33500 | DI45: 33500 | DJ45: 33500 | DK45: 33500 | DL45: 33500 | DM45: 33500 | DN45: 33500 | DO45: 33500 | DP45: 33500 | DQ45: 33500
A46: Castle Rock Senior Center | B46: 45 | C46: DR - Demand Response | D46: Minivan (MV) | E46: Gasoline | F46: Non-ADA | G46: 1 | H46: 17 | I46: 7 | J46: 2017 | K46: =IF(K$1=Reference!$D$1,_xlfn.XLOOKUP('Fleet Info'!$L46,Reference!$A$2:$A$11,Reference!$D$2:$D$11),IF(K$1=Reference!$E$1,_xlfn.XLOOKUP('Fleet Info'!$L46,Reference!$A$2:$A$11,Reference!$E$2:$E$11),"ERROR")) -> 4 | L46: =IF($D46=Reference!$B$2,Reference!$A$2,IF($D46=Reference!$B$3,IF('Fleet Info'!$H46<=30,Reference!$A$4,Reference!$A$3),IF($D46=Reference!$B$5,IF('Fleet Info'!$I46>20,Reference!$A$5,Reference!$A$6),IF($D46=Reference!$B$7,Reference!$A$7,IF($D46=Reference!$B$8,IF('Fleet Info'!$F46="Non-ADA",Reference!$A$8,Reference!$A$7),IF($D46=Reference!$B$9,IF('Fleet Info'!$F46="Non-ADA",Reference!$A$9,Reference!$A$7),IF($D46=Reference!$B$10,IF('Fleet Info'!$F46="Non-ADA",Reference!$A$10,Reference!$A$7),IF($D46=Reference!$B$11,Reference!$A$11,IF($D46="Battery Electric Bus (BEB)",IF($H46<=30,Reference!$A$4,Reference!$A$3)))))))))) -> 8 | M46: =_xlfn.XLOOKUP(L46,Reference!$A$2:$A$11,Reference!$C$2:$C$11) -> Electric SUV | N46: =_xlfn.XLOOKUP($L46,Reference!$A$2:$A$11,Reference!$J$2:$J$11) -> 60000 | O46: =_xlfn.XLOOKUP($L46,Reference!$A$2:$A$11,Reference!$P$2:$P$11) -> 33500 | P46: =IF(D46="Battery Electric Bus (BEB)",0,_xlfn.XLOOKUP($L46,Reference!$A$2:$A$11,Reference!$O$2:$O$11))*G46 -> 50000 | Q46: 2021 | R46: 2025 | S46: 2029 | T46: 2033 | U46: 2037 | V46: 2041 | W46: 2045 | X46: =W46+$K46 -> 2049 | Y46: =IF($D46<>"Battery Electric Bus (BEB)",MIN(IF($Q46:$X46>=Y$2,$Q46:$X46)),2021) -> 2025 | Z46: =IF($D46<>"Battery Electric Bus (BEB)",MIN(IF($Q46:$X46>=Z$2,$Q46:$X46)),2021) -> 2025 | AA46: =IF($D46<>"Battery Electric Bus (BEB)",MIN(IF($Q46:$X46>=AA$2,$Q46:$X46)),2021) -> 2025 | AB46: =IF($D46<>"Battery Electric Bus (BEB)",MIN(IF($Q46:$X46>=AB$2,$Q46:$X46)),2021) -> 2025 | AC46: =IF($D46<>"Battery Electric Bus (BEB)",MIN(IF($Q46:$X46>=AC$2,$Q46:$X46)),2021) -> 2029 | AD46: =IF($D46<>"Battery Electric Bus (BEB)",MIN(IF($Q46:$X46>=AD$2,$Q46:$X46)),2021) -> 2029 | AE46: =IF($D46<>"Battery Electric Bus (BEB)",MIN(IF($Q46:$X46>=AE$2,$Q46:$X46)),2021) -> 2029 | AF46: =IF($D46<>"Battery Electric Bus (BEB)",MIN(IF($Q46:$X46>=AF$2,$Q46:$X46)),2021) -> 2029 | AG46: =IF($D46<>"Battery Electric Bus (BEB)",MIN(IF($Q46:$X46>=AG$2,$Q46:$X46)),2021) -> 2033 | AH46: No | AI46: No | AJ46: No | AK46: Yes | AL46: No | AM46: No | AN46: No | AO46: Yes | AP46: No | AQ46: No | AR46: No | AS46: Yes | AT46: No | AU46: No | AV46: No | AW46: Yes | AX46: No | AY46: No | AZ46: No | BA46: Yes | BB46: No | BC46: No | BD46: No | BE46: Yes | BF46: No | BG46: No | BH46: No | BI46: Yes | BJ46: No | BK46: =_xlfn.XLOOKUP($L46,Reference!$A$2:$A$11,Reference!$S$2:$S$11) -> 0.08 | BL46: 60000 | BM46: 55200 | BN46: =IF(BM46*(1-$BK46)>$O46,BM46*(1-$BK46),$O46) -> 50784 | BO46: 46721.28 | BP46: 42983.5776 | BQ46: 39544.89139 | BR46: 36381.30008 | BS46: 33500 | BT46: 33500 | BU46: 33500 | BV46: 33500 | BW46: 33500 | BX46: 33500 | BY46: 33500 | BZ46: 33500 | CA46: 33500 | CB46: 33500 | CC46: 33500 | CD46: 33500 | CE46: 33500 | CF46: 33500 | CG46: 33500 | CH46: 33500 | CI46: 33500 | CJ46: 33500 | CK46: 33500 | CL46: 33500 | CM46: 33500 | CN46: 33500 | CO46: 33500 | CP46: 33500 | CQ46: 33500 | CR46: 33500 | CS46: 33500 | CT46: 33500 | CU46: 33500 | CV46: 33500 | CW46: 33500 | CX46: 33500 | CY46: 33500 | CZ46: 33500 | DA46: 33500 | DB46: 33500 | DC46: 33500 | DD46: 33500 | DE46: 33500 | DF46: 33500 | DG46: 33500 | DH46: 33500 | DI46: 33500 | DJ46: 33500 | DK46: 33500 | DL46: 33500 | DM46: 33500 | DN46: 33500 | DO46: 33500 | DP46: 33500 | DQ46: 33500
A47: Castle Rock Senior Center | B47: 46 | C47: DR - Demand Response | D47: Bus (BU) | E47: Gasoline | F47: Non-ADA | G47: 1 | H47: 24 | I47: 15 | J47: 2013 | K47: =IF(K$1=Reference!$D$1,_xlfn.XLOOKUP('Fleet Info'!$L47,Reference!$A$2:$A$11,Reference!$D$2:$D$11),IF(K$1=Reference!$E$1,_xlfn.XLOOKUP('Fleet Info'!$L47,Reference!$A$2:$A$11,Reference!$E$2:$E$11),"ERROR")) -> 10 | L47: =IF($D47=Reference!$B$2,Reference!$A$2,IF($D47=Reference!$B$3,IF('Fleet Info'!$H47<=30,Reference!$A$4,Reference!$A$3),IF($D47=Reference!$B$5,IF('Fleet Info'!$I47>20,Reference!$A$5,Reference!$A$6),IF($D47=Reference!$B$7,Reference!$A$7,IF($D47=Reference!$B$8,IF('Fleet Info'!$F47="Non-ADA",Reference!$A$8,Reference!$A$7),IF($D47=Reference!$B$9,IF('Fleet Info'!$F47="Non-ADA",Reference!$A$9,Reference!$A$7),IF($D47=Reference!$B$10,IF('Fleet Info'!$F47="Non-ADA",Reference!$A$10,Reference!$A$7),IF($D47=Reference!$B$11,Reference!$A$11,IF($D47="Battery Electric Bus (BEB)",IF($H47<=30,Reference!$A$4,Reference!$A$3)))))))))) -> 3 | M47: =_xlfn.XLOOKUP(L47,Reference!$A$2:$A$11,Reference!$C$2:$C$11) -> Small Bus | N47: =_xlfn.XLOOKUP($L47,Reference!$A$2:$A$11,Reference!$J$2:$J$11) -> 580000 | O47: =_xlfn.XLOOKUP($L47,Reference!$A$2:$A$11,Reference!$P$2:$P$11) -> 350000 | P47: =IF(D47="Battery Electric Bus (BEB)",0,_xlfn.XLOOKUP($L47,Reference!$A$2:$A$11,Reference!$O$2:$O$11))*G47 -> 110000 | Q47: 2023 | R47: 2033 | S47: 2043 | T47: 2053 | U47: 2063 | V47: 2073 | W47: 2083 | X47: =W47+$K47 -> 2093 | Y47: =IF($D47<>"Battery Electric Bus (BEB)",MIN(IF($Q47:$X47>=Y$2,$Q47:$X47)),2021) -> 2023 | Z47: =IF($D47<>"Battery Electric Bus (BEB)",MIN(IF($Q47:$X47>=Z$2,$Q47:$X47)),2021) -> 2023 | AA47: =IF($D47<>"Battery Electric Bus (BEB)",MIN(IF($Q47:$X47>=AA$2,$Q47:$X47)),2021) -> 2033 | AB47: =IF($D47<>"Battery Electric Bus (BEB)",MIN(IF($Q47:$X47>=AB$2,$Q47:$X47)),2021) -> 2033 | AC47: =IF($D47<>"Battery Electric Bus (BEB)",MIN(IF($Q47:$X47>=AC$2,$Q47:$X47)),2021) -> 2033 | AD47: =IF($D47<>"Battery Electric Bus (BEB)",MIN(IF($Q47:$X47>=AD$2,$Q47:$X47)),2021) -> 2033 | AE47: =IF($D47<>"Battery Electric Bus (BEB)",MIN(IF($Q47:$X47>=AE$2,$Q47:$X47)),2021) -> 2033 | AF47: =IF($D47<>"Battery Electric Bus (BEB)",MIN(IF($Q47:$X47>=AF$2,$Q47:$X47)),2021) -> 2033 | AG47: =IF($D47<>"Battery Electric Bus (BEB)",MIN(IF($Q47:$X47>=AG$2,$Q47:$X47)),2021) -> 2033 | AH47: No | AI47: Yes | AJ47: No | AK47: No | AL47: No | AM47: No | AN47: No | AO47: No | AP47: No | AQ47: No | AR47: No | AS47: Yes | AT47: No | AU47: No | AV47: No | AW47: No | AX47: No | AY47: No | AZ47: No | BA47: No | BB47: No | BC47: Yes | BD47: No | BE47: No | BF47: No | BG47: No | BH47: No | BI47: No | BJ47: No | BK47: =_xlfn.XLOOKUP($L47,Reference!$A$2:$A$11,Reference!$S$2:$S$11) -> 0.08 | BL47: 580000 | BM47: 533600 | BN47: =IF(BM47*(1-$BK47)>$O47,BM47*(1-$BK47),$O47) -> 490912 | BO47: 451639.04 | BP47: 415507.9168 | BQ47: 382267.2835 | BR47: 351685.9008 | BS47: 350000 | BT47: 350000 | BU47: 350000 | BV47: 350000 | BW47: 350000 | BX47: 350000 | BY47: 350000 | BZ47: 350000 | CA47: 350000 | CB47: 350000 | CC47: 350000 | CD47: 350000 | CE47: 350000 | CF47: 350000 | CG47: 350000 | CH47: 350000 | CI47: 350000 | CJ47: 350000 | CK47: 350000 | CL47: 350000 | CM47: 350000 | CN47: 350000 | CO47: 350000 | CP47: 350000 | CQ47: 350000 | CR47: 350000 | CS47: 350000 | CT47: 350000 | CU47: 350000 | CV47: 350000 | CW47: 350000 | CX47: 350000 | CY47: 350000 | CZ47: 350000 | DA47: 350000 | DB47: 350000 | DC47: 350000 | DD47: 350000 | DE47: 350000 | DF47: 350000 | DG47: 350000 | DH47: 350000 | DI47: 350000 | DJ47: 350000 | DK47: 350000 | DL47: 350000 | DM47: 350000 | DN47: 350000 | DO47: 350000 | DP47: 350000 | DQ47: 350000
A48: Castle Rock Senior Center | B48: 47 | C48: DR - Demand Response | D48: Bus (BU) | E48: Gasoline | F48: Non-ADA | G48: 1 | H48: 24 | I48: 15 | J48: 2017 | K48: =IF(K$1=Reference!$D$1,_xlfn.XLOOKUP('Fleet Info'!$L48,Reference!$A$2:$A$11,Reference!$D$2:$D$11),IF(K$1=Reference!$E$1,_xlfn.XLOOKUP('Fleet Info'!$L48,Reference!$A$2:$A$11,Reference!$E$2:$E$11),"ERROR")) -> 10 | L48: =IF($D48=Reference!$B$2,Reference!$A$2,IF($D48=Reference!$B$3,IF('Fleet Info'!$H48<=30,Reference!$A$4,Reference!$A$3),IF($D48=Reference!$B$5,IF('Fleet Info'!$I48>20,Reference!$A$5,Reference!$A$6),IF($D48=Reference!$B$7,Reference!$A$7,IF($D48=Reference!$B$8,IF('Fleet Info'!$F48="Non-ADA",Reference!$A$8,Reference!$A$7),IF($D48=Reference!$B$9,IF('Fleet Info'!$F48="Non-ADA",Reference!$A$9,Reference!$A$7),IF($D48=Reference!$B$10,IF('Fleet Info'!$F48="Non-ADA",Reference!$A$10,Reference!$A$7),IF($D48=Reference!$B$11,Reference!$A$11,IF($D48="Battery Electric Bus (BEB)",IF($H48<=30,Reference!$A$4,Reference!$A$3)))))))))) -> 3 | M48: =_xlfn.XLOOKUP(L48,Reference!$A$2:$A$11,Reference!$C$2:$C$11) -> Small Bus | N48: =_xlfn.XLOOKUP($L48,Reference!$A$2:$A$11,Reference!$J$2:$J$11) -> 580000 | O48: =_xlfn.XLOOKUP($L48,Reference!$A$2:$A$11,Reference!$P$2:$P$11) -> 350000 | P48: =IF(D48="Battery Electric Bus (BEB)",0,_xlfn.XLOOKUP($L48,Reference!$A$2:$A$11,Reference!$O$2:$O$11))*G48 -> 110000 | Q48: 2027 | R48: 2037 | S48: 2047 | T48: 2057 | U48: 2067 | V48: 2077 | W48: 2087 | X48: =W48+$K48 -> 2097 | Y48: =IF($D48<>"Battery Electric Bus (BEB)",MIN(IF($Q48:$X48>=Y$2,$Q48:$X48)),2021) -> 2027 | Z48: =IF($D48<>"Battery Electric Bus (BEB)",MIN(IF($Q48:$X48>=Z$2,$Q48:$X48)),2021) -> 2027 | AA48: =IF($D48<>"Battery Electric Bus (BEB)",MIN(IF($Q48:$X48>=AA$2,$Q48:$X48)),2021) -> 2027 | AB48: =IF($D48<>"Battery Electric Bus (BEB)",MIN(IF($Q48:$X48>=AB$2,$Q48:$X48)),2021) -> 2027 | AC48: =IF($D48<>"Battery Electric Bus (BEB)",MIN(IF($Q48:$X48>=AC$2,$Q48:$X48)),2021) -> 2027 | AD48: =IF($D48<>"Battery Electric Bus (BEB)",MIN(IF($Q48:$X48>=AD$2,$Q48:$X48)),2021) -> 2027 | AE48: =IF($D48<>"Battery Electric Bus (BEB)",MIN(IF($Q48:$X48>=AE$2,$Q48:$X48)),2021) -> 2037 | AF48: =IF($D48<>"Battery Electric Bus (BEB)",MIN(IF($Q48:$X48>=AF$2,$Q48:$X48)),2021) -> 2037 | AG48: =IF($D48<>"Battery Electric Bus (BEB)",MIN(IF($Q48:$X48>=AG$2,$Q48:$X48)),2021) -> 2037 | AH48: No | AI48: No | AJ48: No | AK48: No | AL48: No | AM48: Yes | AN48: No | AO48: No | AP48: No | AQ48: No | AR48: No | AS48: No | AT48: No | AU48: No | AV48: No | AW48: Yes | AX48: No | AY48: No | AZ48: No | BA48: No | BB48: No | BC48: No | BD48: No | BE48: No | BF48: No | BG48: Yes | BH48: No | BI48: No | BJ48: No | BK48: =_xlfn.XLOOKUP($L48,Reference!$A$2:$A$11,Reference!$S$2:$S$11) -> 0.08 | BL48: 580000 | BM48: 533600 | BN48: =IF(BM48*(1-$BK48)>$O48,BM48*(1-$BK48),$O48) -> 490912 | BO48: 451639.04 | BP48: 415507.9168 | BQ48: 382267.2835 | BR48: 351685.9008 | BS48: 350000 | BT48: 350000 | BU48: 350000 | BV48: 350000 | BW48: 350000 | BX48: 350000 | BY48: 350000 | BZ48: 350000 | CA48: 350000 | CB48: 350000 | CC48: 350000 | CD48: 350000 | CE48: 350000 | CF48: 350000 | CG48: 350000 | CH48: 350000 | CI48: 350000 | CJ48: 350000 | CK48: 350000 | CL48: 350000 | CM48: 350000 | CN48: 350000 | CO48: 350000 | CP48: 350000 | CQ48: 350000 | CR48: 350000 | CS48: 350000 | CT48: 350000 | CU48: 350000 | CV48: 350000 | CW48: 350000 | CX48: 350000 | CY48: 350000 | CZ48: 350000 | DA48: 350000 | DB48: 350000 | DC48: 350000 | DD48: 350000 | DE48: 350000 | DF48: 350000 | DG48: 350000 | DH48: 350000 | DI48: 350000 | DJ48: 350000 | DK48: 350000 | DL48: 350000 | DM48: 350000 | DN48: 350000 | DO48: 350000 | DP48: 350000 | DQ48: 350000
A49: Castle Rock Senior Center | B49: 48 | C49: DR - Demand Response | D49: Bus (BU) | E49: Gasoline | F49: Non-ADA | G49: 1 | H49: 24 | I49: 15 | J49: 2018 | K49: =IF(K$1=Reference!$D$1,_xlfn.XLOOKUP('Fleet Info'!$L49,Reference!$A$2:$A$11,Reference!$D$2:$D$11),IF(K$1=Reference!$E$1,_xlfn.XLOOKUP('Fleet Info'!$L49,Reference!$A$2:$A$11,Reference!$E$2:$E$11),"ERROR")) -> 10 | L49: =IF($D49=Reference!$B$2,Reference!$A$2,IF($D49=Reference!$B$3,IF('Fleet Info'!$H49<=30,Reference!$A$4,Reference!$A$3),IF($D49=Reference!$B$5,IF('Fleet Info'!$I49>20,Reference!$A$5,Reference!$A$6),IF($D49=Reference!$B$7,Reference!$A$7,IF($D49=Reference!$B$8,IF('Fleet Info'!$F49="Non-ADA",Reference!$A$8,Reference!$A$7),IF($D49=Reference!$B$9,IF('Fleet Info'!$F49="Non-ADA",Reference!$A$9,Reference!$A$7),IF($D49=Reference!$B$10,IF('Fleet Info'!$F49="Non-ADA",Reference!$A$10,Reference!$A$7),IF($D49=Reference!$B$11,Reference!$A$11,IF($D49="Battery Electric Bus (BEB)",IF($H49<=30,Reference!$A$4,Reference!$A$3)))))))))) -> 3 | M49: =_xlfn.XLOOKUP(L49,Reference!$A$2:$A$11,Reference!$C$2:$C$11) -> Small Bus | N49: =_xlfn.XLOOKUP($L49,Reference!$A$2:$A$11,Reference!$J$2:$J$11) -> 580000 | O49: =_xlfn.XLOOKUP($L49,Reference!$A$2:$A$11,Reference!$P$2:$P$11) -> 350000 | P49: =IF(D49="Battery Electric Bus (BEB)",0,_xlfn.XLOOKUP($L49,Reference!$A$2:$A$11,Reference!$O$2:$O$11))*G49 -> 110000 | Q49: 2028 | R49: 2038 | S49: 2048 | T49: 2058 | U49: 2068 | V49: 2078 | W49: 2088 | X49: =W49+$K49 -> 2098 | Y49: =IF($D49<>"Battery Electric Bus (BEB)",MIN(IF($Q49:$X49>=Y$2,$Q49:$X49)),2021) -> 2028 | Z49: =IF($D49<>"Battery Electric Bus (BEB)",MIN(IF($Q49:$X49>=Z$2,$Q49:$X49)),2021) -> 2028 | AA49: =IF($D49<>"Battery Electric Bus (BEB)",MIN(IF($Q49:$X49>=AA$2,$Q49:$X49)),2021) -> 2028 | AB49: =IF($D49<>"Battery Electric Bus (BEB)",MIN(IF($Q49:$X49>=AB$2,$Q49:$X49)),2021) -> 2028 | AC49: =IF($D49<>"Battery Electric Bus (BEB)",MIN(IF($Q49:$X49>=AC$2,$Q49:$X49)),2021) -> 2028 | AD49: =IF($D49<>"Battery Electric Bus (BEB)",MIN(IF($Q49:$X49>=AD$2,$Q49:$X49)),2021) -> 2028 | AE49: =IF($D49<>"Battery Electric Bus (BEB)",MIN(IF($Q49:$X49>=AE$2,$Q49:$X49)),2021) -> 2028 | AF49: =IF($D49<>"Battery Electric Bus (BEB)",MIN(IF($Q49:$X49>=AF$2,$Q49:$X49)),2021) -> 2038 | AG49: =IF($D49<>"Battery Electric Bus (BEB)",MIN(IF($Q49:$X49>=AG$2,$Q49:$X49)),2021) -> 2038 | AH49: No | AI49: No | AJ49: No | AK49: No | AL49: No | AM49: No | AN49: Yes | AO49: No | AP49: No | AQ49: No | AR49: No | AS49: No | AT49: No | AU49: No | AV49: No | AW49: No | AX49: Yes | AY49: No | AZ49: No | BA49: No | BB49: No | BC49: No | BD49: No | BE49: No | BF49: No | BG49: No | BH49: Yes | BI49: No | BJ49: No | BK49: =_xlfn.XLOOKUP($L49,Reference!$A$2:$A$11,Reference!$S$2:$S$11) -> 0.08 | BL49: 580000 | BM49: 533600 | BN49: =IF(BM49*(1-$BK49)>$O49,BM49*(1-$BK49),$O49) -> 490912 | BO49: 451639.04 | BP49: 415507.9168 | BQ49: 382267.2835 | BR49: 351685.9008 | BS49: 350000 | BT49: 350000 | BU49: 350000 | BV49: 350000 | BW49: 350000 | BX49: 350000 | BY49: 350000 | BZ49: 350000 | CA49: 350000 | CB49: 350000 | CC49: 350000 | CD49: 350000 | CE49: 350000 | CF49: 350000 | CG49: 350000 | CH49: 350000 | CI49: 350000 | CJ49: 350000 | CK49: 350000 | CL49: 350000 | CM49: 350000 | CN49: 350000 | CO49: 350000 | CP49: 350000 | CQ49: 350000 | CR49: 350000 | CS49: 350000 | CT49: 350000 | CU49: 350000 | CV49: 350000 | CW49: 350000 | CX49: 350000 | CY49: 350000 | CZ49: 350000 | DA49: 350000 | DB49: 350000 | DC49: 350000 | DD49: 350000 | DE49: 350000 | DF49: 350000 | DG49: 350000 | DH49: 350000 | DI49: 350000 | DJ49: 350000 | DK49: 350000 | DL49: 350000 | DM49: 350000 | DN49: 350000 | DO49: 350000 | DP49: 350000 | DQ49: 350000
A50: City of Aspen | B50: 49 | C50: MB - Bus | D50: Cutaway (CU) | E50: Gasoline | F50: Non-ADA | G50: 1 | H50: 25 | I50: 15 | J50: 2003 | K50: =IF(K$1=Reference!$D$1,_xlfn.XLOOKUP('Fleet Info'!$L50,Reference!$A$2:$A$11,Reference!$D$2:$D$11),IF(K$1=Reference!$E$1,_xlfn.XLOOKUP('Fleet Info'!$L50,Reference!$A$2:$A$11,Reference!$E$2:$E$11),"ERROR")) -> 5 | L50: =IF($D50=Reference!$B$2,Reference!$A$2,IF($D50=Reference!$B$3,IF('Fleet Info'!$H50<=30,Reference!$A$4,Reference!$A$3),IF($D50=Reference!$B$5,IF('Fleet Info'!$I50>20,Reference!$A$5,Reference!$A$6),IF($D50=Reference!$B$7,Reference!$A$7,IF($D50=Reference!$B$8,IF('Fleet Info'!$F50="Non-ADA",Reference!$A$8,Reference!$A$7),IF($D50=Reference!$B$9,IF('Fleet Info'!$F50="Non-ADA",Reference!$A$9,Reference!$A$7),IF($D50=Reference!$B$10,IF('Fleet Info'!$F50="Non-ADA",Reference!$A$10,Reference!$A$7),IF($D50=Reference!$B$11,Reference!$A$11,IF($D50="Battery Electric Bus (BEB)",IF($H50<=30,Reference!$A$4,Reference!$A$3)))))))))) -> 5 | M50: =_xlfn.XLOOKUP(L50,Reference!$A$2:$A$11,Reference!$C$2:$C$11) -> Standard Cutaway | N50: =_xlfn.XLOOKUP($L50,Reference!$A$2:$A$11,Reference!$J$2:$J$11) -> 170000 | O50: =_xlfn.XLOOKUP($L50,Reference!$A$2:$A$11,Reference!$P$2:$P$11) -> 88000 | P50: =IF(D50="Battery Electric Bus (BEB)",0,_xlfn.XLOOKUP($L50,Reference!$A$2:$A$11,Reference!$O$2:$O$11))*G50 -> 50000 | Q50: 2026 | R50: 2031 | S50: 2036 | T50: 2041 | U50: 2046 | V50: 2051 | W50: 2056 | X50: =W50+$K50 -> 2061 | Y50: =IF($D50<>"Battery Electric Bus (BEB)",MIN(IF($Q50:$X50>=Y$2,$Q50:$X50)),2021) -> 2026 | Z50: =IF($D50<>"Battery Electric Bus (BEB)",MIN(IF($Q50:$X50>=Z$2,$Q50:$X50)),2021) -> 2026 | AA50: =IF($D50<>"Battery Electric Bus (BEB)",MIN(IF($Q50:$X50>=AA$2,$Q50:$X50)),2021) -> 2026 | AB50: =IF($D50<>"Battery Electric Bus (BEB)",MIN(IF($Q50:$X50>=AB$2,$Q50:$X50)),2021) -> 2026 | AC50: =IF($D50<>"Battery Electric Bus (BEB)",MIN(IF($Q50:$X50>=AC$2,$Q50:$X50)),2021) -> 2026 | AD50: =IF($D50<>"Battery Electric Bus (BEB)",MIN(IF($Q50:$X50>=AD$2,$Q50:$X50)),2021) -> 2031 | AE50: =IF($D50<>"Battery Electric Bus (BEB)",MIN(IF($Q50:$X50>=AE$2,$Q50:$X50)),2021) -> 2031 | AF50: =IF($D50<>"Battery Electric Bus (BEB)",MIN(IF($Q50:$X50>=AF$2,$Q50:$X50)),2021) -> 2031 | AG50: =IF($D50<>"Battery Electric Bus (BEB)",MIN(IF($Q50:$X50>=AG$2,$Q50:$X50)),2021) -> 2031 | AH50: No | AI50: No | AJ50: No | AK50: No | AL50: Yes | AM50: No | AN50: No | AO50: No | AP50: No | AQ50: Yes | AR50: No | AS50: No | AT50: No | AU50: No | AV50: Yes | AW50: No | AX50: No | AY50: No | AZ50: No | BA50: Yes | BB50: No | BC50: No | BD50: No | BE50: No | BF50: Yes | BG50: No | BH50: No | BI50: No | BJ50: No | BK50: =_xlfn.XLOOKUP($L50,Reference!$A$2:$A$11,Reference!$S$2:$S$11) -> 0.08 | BL50: 170000 | BM50: 156400 | BN50: =IF(BM50*(1-$BK50)>$O50,BM50*(1-$BK50),$O50) -> 143888 | BO50: 132376.96 | BP50: 121786.8032 | BQ50: 112043.8589 | BR50: 103080.3502 | BS50: 94833.92221 | BT50: 88000 | BU50: 88000 | BV50: 88000 | BW50: 88000 | BX50: 88000 | BY50: 88000 | BZ50: 88000 | CA50: 88000 | CB50: 88000 | CC50: 88000 | CD50: 88000 | CE50: 88000 | CF50: 88000 | CG50: 88000 | CH50: 88000 | CI50: 88000 | CJ50: 88000 | CK50: 88000 | CL50: 88000 | CM50: 88000 | CN50: 88000 | CO50: 88000 | CP50: 88000 | CQ50: 88000 | CR50: 88000 | CS50: 88000 | CT50: 88000 | CU50: 88000 | CV50: 88000 | CW50: 88000 | CX50: 88000 | CY50: 88000 | CZ50: 88000 | DA50: 88000 | DB50: 88000 | DC50: 88000 | DD50: 88000 | DE50: 88000 | DF50: 88000 | DG50: 88000 | DH50: 88000 | DI50: 88000 | DJ50: 88000 | DK50: 88000 | DL50: 88000 | DM50: 88000 | DN50: 88000 | DO50: 88000 | DP50: 88000 | DQ50: 88000
A51: City of Aspen | B51: 50 | C51: MB - Bus | D51: Cutaway (CU) | E51: Gasoline | F51: Non-ADA | G51: 1 | H51: 25 | I51: 15 | J51: 2009 | K51: =IF(K$1=Reference!$D$1,_xlfn.XLOOKUP('Fleet Info'!$L51,Reference!$A$2:$A$11,Reference!$D$2:$D$11),IF(K$1=Reference!$E$1,_xlfn.XLOOKUP('Fleet Info'!$L51,Reference!$A$2:$A$11,Reference!$E$2:$E$11),"ERROR")) -> 5 | L51: =IF($D51=Reference!$B$2,Reference!$A$2,IF($D51=Reference!$B$3,IF('Fleet Info'!$H51<=30,Reference!$A$4,Reference!$A$3),IF($D51=Reference!$B$5,IF('Fleet Info'!$I51>20,Reference!$A$5,Reference!$A$6),IF($D51=Reference!$B$7,Reference!$A$7,IF($D51=Reference!$B$8,IF('Fleet Info'!$F51="Non-ADA",Reference!$A$8,Reference!$A$7),IF($D51=Reference!$B$9,IF('Fleet Info'!$F51="Non-ADA",Reference!$A$9,Reference!$A$7),IF($D51=Reference!$B$10,IF('Fleet Info'!$F51="Non-ADA",Reference!$A$10,Reference!$A$7),IF($D51=Reference!$B$11,Reference!$A$11,IF($D51="Battery Electric Bus (BEB)",IF($H51<=30,Reference!$A$4,Reference!$A$3)))))))))) -> 5 | M51: =_xlfn.XLOOKUP(L51,Reference!$A$2:$A$11,Reference!$C$2:$C$11) -> Standard Cutaway | N51: =_xlfn.XLOOKUP($L51,Reference!$A$2:$A$11,Reference!$J$2:$J$11) -> 170000 | O51: =_xlfn.XLOOKUP($L51,Reference!$A$2:$A$11,Reference!$P$2:$P$11) -> 88000 | P51: =IF(D51="Battery Electric Bus (BEB)",0,_xlfn.XLOOKUP($L51,Reference!$A$2:$A$11,Reference!$O$2:$O$11))*G51 -> 50000 | Q51: 2026 | R51: 2031 | S51: 2036 | T51: 2041 | U51: 2046 | V51: 2051 | W51: 2056 | X51: =W51+$K51 -> 2061 | Y51: =IF($D51<>"Battery Electric Bus (BEB)",MIN(IF($Q51:$X51>=Y$2,$Q51:$X51)),2021) -> 2026 | Z51: =IF($D51<>"Battery Electric Bus (BEB)",MIN(IF($Q51:$X51>=Z$2,$Q51:$X51)),2021) -> 2026 | AA51: =IF($D51<>"Battery Electric Bus (BEB)",MIN(IF($Q51:$X51>=AA$2,$Q51:$X51)),2021) -> 2026 | AB51: =IF($D51<>"Battery Electric Bus (BEB)",MIN(IF($Q51:$X51>=AB$2,$Q51:$X51)),2021) -> 2026 | AC51: =IF($D51<>"Battery Electric Bus (BEB)",MIN(IF($Q51:$X51>=AC$2,$Q51:$X51)),2021) -> 2026 | AD51: =IF($D51<>"Battery Electric Bus (BEB)",MIN(IF($Q51:$X51>=AD$2,$Q51:$X51)),2021) -> 2031 | AE51: =IF($D51<>"Battery Electric Bus (BEB)",MIN(IF($Q51:$X51>=AE$2,$Q51:$X51)),2021) -> 2031 | AF51: =IF($D51<>"Battery Electric Bus (BEB)",MIN(IF($Q51:$X51>=AF$2,$Q51:$X51)),2021) -> 2031 | AG51: =IF($D51<>"Battery Electric Bus (BEB)",MIN(IF($Q51:$X51>=AG$2,$Q51:$X51)),2021) -> 2031 | AH51: No | AI51: No | AJ51: No | AK51: No | AL51: Yes | AM51: No | AN51: No | AO51: No | AP51: No | AQ51: Yes | AR51: No | AS51: No | AT51: No | AU51: No | AV51: Yes | AW51: No | AX51: No | AY51: No | AZ51: No | BA51: Yes | BB51: No | BC51: No | BD51: No | BE51: No | BF51: Yes | BG51: No | BH51: No | BI51: No | BJ51: No | BK51: =_xlfn.XLOOKUP($L51,Reference!$A$2:$A$11,Reference!$S$2:$S$11) -> 0.08 | BL51: 170000 | BM51: 156400 | BN51: =IF(BM51*(1-$BK51)>$O51,BM51*(1-$BK51),$O51) -> 143888 | BO51: 132376.96 | BP51: 121786.8032 | BQ51: 112043.8589 | BR51: 103080.3502 | BS51: 94833.92221 | BT51: 88000 | BU51: 88000 | BV51: 88000 | BW51: 88000 | BX51: 88000 | BY51: 88000 | BZ51: 88000 | CA51: 88000 | CB51: 88000 | CC51: 88000 | CD51: 88000 | CE51: 88000 | CF51: 88000 | CG51: 88000 | CH51: 88000 | CI51: 88000 | CJ51: 88000 | CK51: 88000 | CL51: 88000 | CM51: 88000 | CN51: 88000 | CO51: 88000 | CP51: 88000 | CQ51: 88000 | CR51: 88000 | CS51: 88000 | CT51: 88000 | CU51: 88000 | CV51: 88000 | CW51: 88000 | CX51: 88000 | CY51: 88000 | CZ51: 88000 | DA51: 88000 | DB51: 88000 | DC51: 88000 | DD51: 88000 | DE51: 88000 | DF51: 88000 | DG51: 88000 | DH51: 88000 | DI51: 88000 | DJ51: 88000 | DK51: 88000 | DL51: 88000 | DM51: 88000 | DN51: 88000 | DO51: 88000 | DP51: 88000 | DQ51: 88000
A52: City of Aspen | B52: 51 | C52: MB - Bus | D52: Cutaway (CU) | E52: Gasoline | F52: Non-ADA | G52: 1 | H52: 25 | I52: 15 | J52: 2009 | K52: =IF(K$1=Reference!$D$1,_xlfn.XLOOKUP('Fleet Info'!$L52,Reference!$A$2:$A$11,Reference!$D$2:$D$11),IF(K$1=Reference!$E$1,_xlfn.XLOOKUP('Fleet Info'!$L52,Reference!$A$2:$A$11,Reference!$E$2:$E$11),"ERROR")) -> 5 | L52: =IF($D52=Reference!$B$2,Reference!$A$2,IF($D52=Reference!$B$3,IF('Fleet Info'!$H52<=30,Reference!$A$4,Reference!$A$3),IF($D52=Reference!$B$5,IF('Fleet Info'!$I52>20,Reference!$A$5,Reference!$A$6),IF($D52=Reference!$B$7,Reference!$A$7,IF($D52=Reference!$B$8,IF('Fleet Info'!$F52="Non-ADA",Reference!$A$8,Reference!$A$7),IF($D52=Reference!$B$9,IF('Fleet Info'!$F52="Non-ADA",Reference!$A$9,Reference!$A$7),IF($D52=Reference!$B$10,IF('Fleet Info'!$F52="Non-ADA",Reference!$A$10,Reference!$A$7),IF($D52=Reference!$B$11,Reference!$A$11,IF($D52="Battery Electric Bus (BEB)",IF($H52<=30,Reference!$A$4,Reference!$A$3)))))))))) -> 5 | M52: =_xlfn.XLOOKUP(L52,Reference!$A$2:$A$11,Reference!$C$2:$C$11) -> Standard Cutaway | N52: =_xlfn.XLOOKUP($L52,Reference!$A$2:$A$11,Reference!$J$2:$J$11) -> 170000 | O52: =_xlfn.XLOOKUP($L52,Reference!$A$2:$A$11,Reference!$P$2:$P$11) -> 88000 | P52: =IF(D52="Battery Electric Bus (BEB)",0,_xlfn.XLOOKUP($L52,Reference!$A$2:$A$11,Reference!$O$2:$O$11))*G52 -> 50000 | Q52: 2026 | R52: 2031 | S52: 2036 | T52: 2041 | U52: 2046 | V52: 2051 | W52: 2056 | X52: =W52+$K52 -> 2061 | Y52: =IF($D52<>"Battery Electric Bus (BEB)",MIN(IF($Q52:$X52>=Y$2,$Q52:$X52)),2021) -> 2026 | Z52: =IF($D52<>"Battery Electric Bus (BEB)",MIN(IF($Q52:$X52>=Z$2,$Q52:$X52)),2021) -> 2026 | AA52: =IF($D52<>"Battery Electric Bus (BEB)",MIN(IF($Q52:$X52>=AA$2,$Q52:$X52)),2021) -> 2026 | AB52: =IF($D52<>"Battery Electric Bus (BEB)",MIN(IF($Q52:$X52>=AB$2,$Q52:$X52)),2021) -> 2026 | AC52: =IF($D52<>"Battery Electric Bus (BEB)",MIN(IF($Q52:$X52>=AC$2,$Q52:$X52)),2021) -> 2026 | AD52: =IF($D52<>"Battery Electric Bus (BEB)",MIN(IF($Q52:$X52>=AD$2,$Q52:$X52)),2021) -> 2031 | AE52: =IF($D52<>"Battery Electric Bus (BEB)",MIN(IF($Q52:$X52>=AE$2,$Q52:$X52)),2021) -> 2031 | AF52: =IF($D52<>"Battery Electric Bus (BEB)",MIN(IF($Q52:$X52>=AF$2,$Q52:$X52)),2021) -> 2031 | AG52: =IF($D52<>"Battery Electric Bus (BEB)",MIN(IF($Q52:$X52>=AG$2,$Q52:$X52)),2021) -> 2031 | AH52: No | AI52: No | AJ52: No | AK52: No | AL52: Yes | AM52: No | AN52: No | AO52: No | AP52: No | AQ52: Yes | AR52: No | AS52: No | AT52: No | AU52: No | AV52: Yes | AW52: No | AX52: No | AY52: No | AZ52: No | BA52: Yes | BB52: No | BC52: No | BD52: No | BE52: No | BF52: Yes | BG52: No | BH52: No | BI52: No | BJ52: No | BK52: =_xlfn.XLOOKUP($L52,Reference!$A$2:$A$11,Reference!$S$2:$S$11) -> 0.08 | BL52: 170000 | BM52: 156400 | BN52: =IF(BM52*(1-$BK52)>$O52,BM52*(1-$BK52),$O52) -> 143888 | BO52: 132376.96 | BP52: 121786.8032 | BQ52: 112043.8589 | BR52: 103080.3502 | BS52: 94833.92221 | BT52: 88000 | BU52: 88000 | BV52: 88000 | BW52: 88000 | BX52: 88000 | BY52: 88000 | BZ52: 88000 | CA52: 88000 | CB52: 88000 | CC52: 88000 | CD52: 88000 | CE52: 88000 | CF52: 88000 | CG52: 88000 | CH52: 88000 | CI52: 88000 | CJ52: 88000 | CK52: 88000 | CL52: 88000 | CM52: 88000 | CN52: 88000 | CO52: 88000 | CP52: 88000 | CQ52: 88000 | CR52: 88000 | CS52: 88000 | CT52: 88000 | CU52: 88000 | CV52: 88000 | CW52: 88000 | CX52: 88000 | CY52: 88000 | CZ52: 88000 | DA52: 88000 | DB52: 88000 | DC52: 88000 | DD52: 88000 | DE52: 88000 | DF52: 88000 | DG52: 88000 | DH52: 88000 | DI52: 88000 | DJ52: 88000 | DK52: 88000 | DL52: 88000 | DM52: 88000 | DN52: 88000 | DO52: 88000 | DP52: 88000 | DQ52: 88000
A53: City of Aspen | B53: 52 | C53: MB - Bus | D53: Cutaway (CU) | E53: Gasoline | F53: Non-ADA | G53: 1 | H53: 25 | I53: 15 | J53: 2009 | K53: =IF(K$1=Reference!$D$1,_xlfn.XLOOKUP('Fleet Info'!$L53,Reference!$A$2:$A$11,Reference!$D$2:$D$11),IF(K$1=Reference!$E$1,_xlfn.XLOOKUP('Fleet Info'!$L53,Reference!$A$2:$A$11,Reference!$E$2:$E$11),"ERROR")) -> 5 | L53: =IF($D53=Reference!$B$2,Reference!$A$2,IF($D53=Reference!$B$3,IF('Fleet Info'!$H53<=30,Reference!$A$4,Reference!$A$3),IF($D53=Reference!$B$5,IF('Fleet Info'!$I53>20,Reference!$A$5,Reference!$A$6),IF($D53=Reference!$B$7,Reference!$A$7,IF($D53=Reference!$B$8,IF('Fleet Info'!$F53="Non-ADA",Reference!$A$8,Reference!$A$7),IF($D53=Reference!$B$9,IF('Fleet Info'!$F53="Non-ADA",Reference!$A$9,Reference!$A$7),IF($D53=Reference!$B$10,IF('Fleet Info'!$F53="Non-ADA",Reference!$A$10,Reference!$A$7),IF($D53=Reference!$B$11,Reference!$A$11,IF($D53="Battery Electric Bus (BEB)",IF($H53<=30,Reference!$A$4,Reference!$A$3)))))))))) -> 5 | M53: =_xlfn.XLOOKUP(L53,Reference!$A$2:$A$11,Reference!$C$2:$C$11) -> Standard Cutaway | N53: =_xlfn.XLOOKUP($L53,Reference!$A$2:$A$11,Reference!$J$2:$J$11) -> 170000 | O53: =_xlfn.XLOOKUP($L53,Reference!$A$2:$A$11,Reference!$P$2:$P$11) -> 88000 | P53: =IF(D53="Battery Electric Bus (BEB)",0,_xlfn.XLOOKUP($L53,Reference!$A$2:$A$11,Reference!$O$2:$O$11))*G53 -> 50000 | Q53: 2026 | R53: 2031 | S53: 2036 | T53: 2041 | U53: 2046 | V53: 2051 | W53: 2056 | X53: =W53+$K53 -> 2061 | Y53: =IF($D53<>"Battery Electric Bus (BEB)",MIN(IF($Q53:$X53>=Y$2,$Q53:$X53)),2021) -> 2026 | Z53: =IF($D53<>"Battery Electric Bus (BEB)",MIN(IF($Q53:$X53>=Z$2,$Q53:$X53)),2021) -> 2026 | AA53: =IF($D53<>"Battery Electric Bus (BEB)",MIN(IF($Q53:$X53>=AA$2,$Q53:$X53)),2021) -> 2026 | AB53: =IF($D53<>"Battery Electric Bus (BEB)",MIN(IF($Q53:$X53>=AB$2,$Q53:$X53)),2021) -> 2026 | AC53: =IF($D53<>"Battery Electric Bus (BEB)",MIN(IF($Q53:$X53>=AC$2,$Q53:$X53)),2021) -> 2026 | AD53: =IF($D53<>"Battery Electric Bus (BEB)",MIN(IF($Q53:$X53>=AD$2,$Q53:$X53)),2021) -> 2031 | AE53: =IF($D53<>"Battery Electric Bus (BEB)",MIN(IF($Q53:$X53>=AE$2,$Q53:$X53)),2021) -> 2031 | AF53: =IF($D53<>"Battery Electric Bus (BEB)",MIN(IF($Q53:$X53>=AF$2,$Q53:$X53)),2021) -> 2031 | AG53: =IF($D53<>"Battery Electric Bus (BEB)",MIN(IF($Q53:$X53>=AG$2,$Q53:$X53)),2021) -> 2031 | AH53: No | AI53: No | AJ53: No | AK53: =IF(OR($Q53=AK$2,$R53=AK$2,$S53=AK$2,$T53=AK$2,$U53=AK$2,$V53=AK$2,$W53=AK$2,$X53=AK$2),"Yes","No") -> No | AL53: Yes | AM53: No | AN53: No | AO53: No | AP53: No | AQ53: Yes | AR53: No | AS53: No | AT53: No | AU53: No | AV53: Yes | AW53: No | AX53: No | AY53: No | AZ53: No | BA53: =IF(OR($Q53=BA$2,$R53=BA$2,$S53=BA$2,$T53=BA$2,$U53=BA$2,$V53=BA$2,$W53=BA$2,$X53=BA$2),"Yes","No") -> Yes | BB53: No | BC53: No | BD53: No | BE53: No | BF53: Yes | BG53: No | BH53: No | BI53: No | BJ53: No | BK53: =_xlfn.XLOOKUP($L53,Reference!$A$2:$A$11,Reference!$S$2:$S$11) -> 0.08 | BL53: 170000 | BM53: 156400 | BN53: =IF(BM53*(1-$BK53)>$O53,BM53*(1-$BK53),$O53) -> 143888 | BO53: 132376.96 | BP53: 121786.8032 | BQ53: 112043.8589 | BR53: 103080.3502 | BS53: 94833.92221 | BT53: 88000 | BU53: 88000 | BV53: 88000 | BW53: 88000 | BX53: 88000 | BY53: 88000 | BZ53: 88000 | CA53: 88000 | CB53: 88000 | CC53: 88000 | CD53: 88000 | CE53: 88000 | CF53: 88000 | CG53: 88000 | CH53: 88000 | CI53: 88000 | CJ53: 88000 | CK53: 88000 | CL53: 88000 | CM53: 88000 | CN53: 88000 | CO53: 88000 | CP53: 88000 | CQ53: 88000 | CR53: 88000 | CS53: 88000 | CT53: 88000 | CU53: 88000 | CV53: 88000 | CW53: 88000 | CX53: 88000 | CY53: 88000 | CZ53: 88000 | DA53: 88000 | DB53: 88000 | DC53: 88000 | DD53: 88000 | DE53: 88000 | DF53: 88000 | DG53: 88000 | DH53: 88000 | DI53: 88000 | DJ53: 88000 | DK53: 88000 | DL53: 88000 | DM53: 88000 | DN53: 88000 | DO53: 88000 | DP53: 88000 | DQ53: 88000
A54: City of Aspen | B54: 53 | C54: MB - Bus | D54: Cutaway (CU) | E54: Gasoline | F54: Non-ADA | G54: 1 | H54: 25 | I54: 15 | J54: 2009 | K54: =IF(K$1=Reference!$D$1,_xlfn.XLOOKUP('Fleet Info'!$L54,Reference!$A$2:$A$11,Reference!$D$2:$D$11),IF(K$1=Reference!$E$1,_xlfn.XLOOKUP('Fleet Info'!$L54,Reference!$A$2:$A$11,Reference!$E$2:$E$11),"ERROR")) -> 5 | L54: =IF($D54=Reference!$B$2,Reference!$A$2,IF($D54=Reference!$B$3,IF('Fleet Info'!$H54<=30,Reference!$A$4,Reference!$A$3),IF($D54=Reference!$B$5,IF('Fleet Info'!$I54>20,Reference!$A$5,Reference!$A$6),IF($D54=Reference!$B$7,Reference!$A$7,IF($D54=Reference!$B$8,IF('Fleet Info'!$F54="Non-ADA",Reference!$A$8,Reference!$A$7),IF($D54=Reference!$B$9,IF('Fleet Info'!$F54="Non-ADA",Reference!$A$9,Reference!$A$7),IF($D54=Reference!$B$10,IF('Fleet Info'!$F54="Non-ADA",Reference!$A$10,Reference!$A$7),IF($D54=Reference!$B$11,Reference!$A$11,IF($D54="Battery Electric Bus (BEB)",IF($H54<=30,Reference!$A$4,Reference!$A$3)))))))))) -> 5 | M54: =_xlfn.XLOOKUP(L54,Reference!$A$2:$A$11,Reference!$C$2:$C$11) -> Standard Cutaway | N54: =_xlfn.XLOOKUP($L54,Reference!$A$2:$A$11,Reference!$J$2:$J$11) -> 170000 | O54: =_xlfn.XLOOKUP($L54,Reference!$A$2:$A$11,Reference!$P$2:$P$11) -> 88000 | P54: =IF(D54="Battery Electric Bus (BEB)",0,_xlfn.XLOOKUP($L54,Reference!$A$2:$A$11,Reference!$O$2:$O$11))*G54 -> 50000 | Q54: 2026 | R54: 2031 | S54: 2036 | T54: 2041 | U54: 2046 | V54: 2051 | W54: 2056 | X54: =W54+$K54 -> 2061 | Y54: =IF($D54<>"Battery Electric Bus (BEB)",MIN(IF($Q54:$X54>=Y$2,$Q54:$X54)),2021) -> 2026 | Z54: =IF($D54<>"Battery Electric Bus (BEB)",MIN(IF($Q54:$X54>=Z$2,$Q54:$X54)),2021) -> 2026 | AA54: =IF($D54<>"Battery Electric Bus (BEB)",MIN(IF($Q54:$X54>=AA$2,$Q54:$X54)),2021) -> 2026 | AB54: =IF($D54<>"Battery Electric Bus (BEB)",MIN(IF($Q54:$X54>=AB$2,$Q54:$X54)),2021) -> 2026 | AC54: =IF($D54<>"Battery Electric Bus (BEB)",MIN(IF($Q54:$X54>=AC$2,$Q54:$X54)),2021) -> 2026 | AD54: =IF($D54<>"Battery Electric Bus (BEB)",MIN(IF($Q54:$X54>=AD$2,$Q54:$X54)),2021) -> 2031 | AE54: =IF($D54<>"Battery Electric Bus (BEB)",MIN(IF($Q54:$X54>=AE$2,$Q54:$X54)),2021) -> 2031 | AF54: =IF($D54<>"Battery Electric Bus (BEB)",MIN(IF($Q54:$X54>=AF$2,$Q54:$X54)),2021) -> 2031 | AG54: =IF($D54<>"Battery Electric Bus (BEB)",MIN(IF($Q54:$X54>=AG$2,$Q54:$X54)),2021) -> 2031 | AH54: No | AI54: No | AJ54: No | AK54: No | AL54: Yes | AM54: No | AN54: No | AO54: No | AP54: No | AQ54: Yes | AR54: No | AS54: No | AT54: No | AU54: No | AV54: Yes | AW54: No | AX54: No | AY54: No | AZ54: No | BA54: Yes | BB54: No | BC54: No | BD54: No | BE54: No | BF54: Yes | BG54: No | BH54: No | BI54: No | BJ54: No | BK54: =_xlfn.XLOOKUP($L54,Reference!$A$2:$A$11,Reference!$S$2:$S$11) -> 0.08 | BL54: 170000 | BM54: 156400 | BN54: =IF(BM54*(1-$BK54)>$O54,BM54*(1-$BK54),$O54) -> 143888 | BO54: 132376.96 | BP54: 121786.8032 | BQ54: 112043.8589 | BR54: 103080.3502 | BS54: 94833.92221 | BT54: 88000 | BU54: 88000 | BV54: 88000 | BW54: 88000 | BX54: 88000 | BY54: 88000 | BZ54: 88000 | CA54: 88000 | CB54: 88000 | CC54: 88000 | CD54: 88000 | CE54: 88000 | CF54: 88000 | CG54: 88000 | CH54: 88000 | CI54: 88000 | CJ54: 88000 | CK54: 88000 | CL54: 88000 | CM54: 88000 | CN54: 88000 | CO54: 88000 | CP54: 88000 | CQ54: 88000 | CR54: 88000 | CS54: 88000 | CT54: 88000 | CU54: 88000 | CV54: 88000 | CW54: 88000 | CX54: 88000 | CY54: 88000 | CZ54: 88000 | DA54: 88000 | DB54: 88000 | DC54: 88000 | DD54: 88000 | DE54: 88000 | DF54: 88000 | DG54: 88000 | DH54: 88000 | DI54: 88000 | DJ54: 88000 | DK54: 88000 | DL54: 88000 | DM54: 88000 | DN54: 88000 | DO54: 88000 | DP54: 88000 | DQ54: 88000
A55: City of Aspen | B55: 54 | C55: MB - Bus | D55: Cutaway (CU) | E55: Gasoline | F55: Non-ADA | G55: 1 | H55: 25 | I55: 15 | J55: 2014 | K55: =IF(K$1=Reference!$D$1,_xlfn.XLOOKUP('Fleet Info'!$L55,Reference!$A$2:$A$11,Reference!$D$2:$D$11),IF(K$1=Reference!$E$1,_xlfn.XLOOKUP('Fleet Info'!$L55,Reference!$A$2:$A$11,Reference!$E$2:$E$11),"ERROR")) -> 5 | L55: =IF($D55=Reference!$B$2,Reference!$A$2,IF($D55=Reference!$B$3,IF('Fleet Info'!$H55<=30,Reference!$A$4,Reference!$A$3),IF($D55=Reference!$B$5,IF('Fleet Info'!$I55>20,Reference!$A$5,Reference!$A$6),IF($D55=Reference!$B$7,Reference!$A$7,IF($D55=Reference!$B$8,IF('Fleet Info'!$F55="Non-ADA",Reference!$A$8,Reference!$A$7),IF($D55=Reference!$B$9,IF('Fleet Info'!$F55="Non-ADA",Reference!$A$9,Reference!$A$7),IF($D55=Reference!$B$10,IF('Fleet Info'!$F55="Non-ADA",Reference!$A$10,Reference!$A$7),IF($D55=Reference!$B$11,Reference!$A$11,IF($D55="Battery Electric Bus (BEB)",IF($H55<=30,Reference!$A$4,Reference!$A$3)))))))))) -> 5 | M55: =_xlfn.XLOOKUP(L55,Reference!$A$2:$A$11,Reference!$C$2:$C$11) -> Standard Cutaway | N55: =_xlfn.XLOOKUP($L55,Reference!$A$2:$A$11,Reference!$J$2:$J$11) -> 170000 | O55: =_xlfn.XLOOKUP($L55,Reference!$A$2:$A$11,Reference!$P$2:$P$11) -> 88000 | P55: =IF(D55="Battery Electric Bus (BEB)",0,_xlfn.XLOOKUP($L55,Reference!$A$2:$A$11,Reference!$O$2:$O$11))*G55 -> 50000 | Q55: 2026 | R55: 2031 | S55: 2036 | T55: 2041 | U55: 2046 | V55: 2051 | W55: 2056 | X55: =W55+$K55 -> 2061 | Y55: =IF($D55<>"Battery Electric Bus (BEB)",MIN(IF($Q55:$X55>=Y$2,$Q55:$X55)),2021) -> 2026 | Z55: =IF($D55<>"Battery Electric Bus (BEB)",MIN(IF($Q55:$X55>=Z$2,$Q55:$X55)),2021) -> 2026 | AA55: =IF($D55<>"Battery Electric Bus (BEB)",MIN(IF($Q55:$X55>=AA$2,$Q55:$X55)),2021) -> 2026 | AB55: =IF($D55<>"Battery Electric Bus (BEB)",MIN(IF($Q55:$X55>=AB$2,$Q55:$X55)),2021) -> 2026 | AC55: =IF($D55<>"Battery Electric Bus (BEB)",MIN(IF($Q55:$X55>=AC$2,$Q55:$X55)),2021) -> 2026 | AD55: =IF($D55<>"Battery Electric Bus (BEB)",MIN(IF($Q55:$X55>=AD$2,$Q55:$X55)),2021) -> 2031 | AE55: =IF($D55<>"Battery Electric Bus (BEB)",MIN(IF($Q55:$X55>=AE$2,$Q55:$X55)),2021) -> 2031 | AF55: =IF($D55<>"Battery Electric Bus (BEB)",MIN(IF($Q55:$X55>=AF$2,$Q55:$X55)),2021) -> 2031 | AG55: =IF($D55<>"Battery Electric Bus (BEB)",MIN(IF($Q55:$X55>=AG$2,$Q55:$X55)),2021) -> 2031 | AH55: =IF(OR($Q55=AH$2,$R55=AH$2,$S55=AH$2,$T55=AH$2,$U55=AH$2,$V55=AH$2,$W55=AH$2,$X55=AH$2),"Yes","No") -> No | AI55: No | AJ55: No | AK55: No | AL55: Yes | AM55: No | AN55: No | AO55: No | AP55: No | AQ55: Yes | AR55: No | AS55: No | AT55: No | AU55: No | AV55: Yes | AW55: No | AX55: No | AY55: No | AZ55: No | BA55: Yes | BB55: No | BC55: No | BD55: No | BE55: No | BF55: Yes | BG55: No | BH55: No | BI55: No | BJ55: No | BK55: =_xlfn.XLOOKUP($L55,Reference!$A$2:$A$11,Reference!$S$2:$S$11) -> 0.08 | BL55: 170000 | BM55: 156400 | BN55: =IF(BM55*(1-$BK55)>$O55,BM55*(1-$BK55),$O55) -> 143888 | BO55: 132376.96 | BP55: 121786.8032 | BQ55: 112043.8589 | BR55: 103080.3502 | BS55: 94833.92221 | BT55: 88000 | BU55: 88000 | BV55: 88000 | BW55: 88000 | BX55: 88000 | BY55: 88000 | BZ55: 88000 | CA55: 88000 | CB55: 88000 | CC55: 88000 | CD55: 88000 | CE55: 88000 | CF55: 88000 | CG55: 88000 | CH55: 88000 | CI55: 88000 | CJ55: 88000 | CK55: 88000 | CL55: 88000 | CM55: 88000 | CN55: 88000 | CO55: 88000 | CP55: 88000 | CQ55: 88000 | CR55: 88000 | CS55: 88000 | CT55: 88000 | CU55: 88000 | CV55: 88000 | CW55: 88000 | CX55: 88000 | CY55: 88000 | CZ55: 88000 | DA55: 88000 | DB55: 88000 | DC55: 88000 | DD55: 88000 | DE55: 88000 | DF55: 88000 | DG55: 88000 | DH55: 88000 | DI55: 88000 | DJ55: 88000 | DK55: 88000 | DL55: 88000 | DM55: 88000 | DN55: 88000 | DO55: 88000 | DP55: 88000 | DQ55: 88000
A56: City of Aspen | B56: 55 | C56: MB - Bus | D56: Cutaway (CU) | E56: Gasoline | F56: Non-ADA | G56: 1 | H56: 25 | I56: 15 | J56: 2014 | K56: =IF(K$1=Reference!$D$1,_xlfn.XLOOKUP('Fleet Info'!$L56,Reference!$A$2:$A$11,Reference!$D$2:$D$11),IF(K$1=Reference!$E$1,_xlfn.XLOOKUP('Fleet Info'!$L56,Reference!$A$2:$A$11,Reference!$E$2:$E$11),"ERROR")) -> 5 | L56: =IF($D56=Reference!$B$2,Reference!$A$2,IF($D56=Reference!$B$3,IF('Fleet Info'!$H56<=30,Reference!$A$4,Reference!$A$3),IF($D56=Reference!$B$5,IF('Fleet Info'!$I56>20,Reference!$A$5,Reference!$A$6),IF($D56=Reference!$B$7,Reference!$A$7,IF($D56=Reference!$B$8,IF('Fleet Info'!$F56="Non-ADA",Reference!$A$8,Reference!$A$7),IF($D56=Reference!$B$9,IF('Fleet Info'!$F56="Non-ADA",Reference!$A$9,Reference!$A$7),IF($D56=Reference!$B$10,IF('Fleet Info'!$F56="Non-ADA",Reference!$A$10,Reference!$A$7),IF($D56=Reference!$B$11,Reference!$A$11,IF($D56="Battery Electric Bus (BEB)",IF($H56<=30,Reference!$A$4,Reference!$A$3)))))))))) -> 5 | M56: =_xlfn.XLOOKUP(L56,Reference!$A$2:$A$11,Reference!$C$2:$C$11) -> Standard Cutaway | N56: =_xlfn.XLOOKUP($L56,Reference!$A$2:$A$11,Reference!$J$2:$J$11) -> 170000 | O56: =_xlfn.XLOOKUP($L56,Reference!$A$2:$A$11,Reference!$P$2:$P$11) -> 88000 | P56: =IF(D56="Battery Electric Bus (BEB)",0,_xlfn.XLOOKUP($L56,Reference!$A$2:$A$11,Reference!$O$2:$O$11))*G56 -> 50000 | Q56: 2026 | R56: 2031 | S56: 2036 | T56: 2041 | U56: 2046 | V56: 2051 | W56: 2056 | X56: =W56+$K56 -> 2061 | Y56: =IF($D56<>"Battery Electric Bus (BEB)",MIN(IF($Q56:$X56>=Y$2,$Q56:$X56)),2021) -> 2026 | Z56: =IF($D56<>"Battery Electric Bus (BEB)",MIN(IF($Q56:$X56>=Z$2,$Q56:$X56)),2021) -> 2026 | AA56: =IF($D56<>"Battery Electric Bus (BEB)",MIN(IF($Q56:$X56>=AA$2,$Q56:$X56)),2021) -> 2026 | AB56: =IF($D56<>"Battery Electric Bus (BEB)",MIN(IF($Q56:$X56>=AB$2,$Q56:$X56)),2021) -> 2026 | AC56: =IF($D56<>"Battery Electric Bus (BEB)",MIN(IF($Q56:$X56>=AC$2,$Q56:$X56)),2021) -> 2026 | AD56: =IF($D56<>"Battery Electric Bus (BEB)",MIN(IF($Q56:$X56>=AD$2,$Q56:$X56)),2021) -> 2031 | AE56: =IF($D56<>"Battery Electric Bus (BEB)",MIN(IF($Q56:$X56>=AE$2,$Q56:$X56)),2021) -> 2031 | AF56: =IF($D56<>"Battery Electric Bus (BEB)",MIN(IF($Q56:$X56>=AF$2,$Q56:$X56)),2021) -> 2031 | AG56: =IF($D56<>"Battery Electric Bus (BEB)",MIN(IF($Q56:$X56>=AG$2,$Q56:$X56)),2021) -> 2031 | AH56: No | AI56: No | AJ56: No | AK56: No | AL56: Yes | AM56: No | AN56: No | AO56: No | AP56: No | AQ56: Yes | AR56: No | AS56: No | AT56: No | AU56: No | AV56: Yes | AW56: No | AX56: No | AY56: No | AZ56: No | BA56: Yes | BB56: No | BC56: No | BD56: No | BE56: No | BF56: Yes | BG56: No | BH56: No | BI56: No | BJ56: No | BK56: =_xlfn.XLOOKUP($L56,Reference!$A$2:$A$11,Reference!$S$2:$S$11) -> 0.08 | BL56: 170000 | BM56: 156400 | BN56: =IF(BM56*(1-$BK56)>$O56,BM56*(1-$BK56),$O56) -> 143888 | BO56: 132376.96 | BP56: 121786.8032 | BQ56: 112043.8589 | BR56: 103080.3502 | BS56: 94833.92221 | BT56: 88000 | BU56: 88000 | BV56: 88000 | BW56: 88000 | BX56: 88000 | BY56: 88000 | BZ56: 88000 | CA56: 88000 | CB56: 88000 | CC56: 88000 | CD56: 88000 | CE56: 88000 | CF56: 88000 | CG56: 88000 | CH56: 88000 | CI56: 88000 | CJ56: 88000 | CK56: 88000 | CL56: 88000 | CM56: 88000 | CN56: 88000 | CO56: 88000 | CP56: 88000 | CQ56: 88000 | CR56: 88000 | CS56: 88000 | CT56: 88000 | CU56: 88000 | CV56: 88000 | CW56: 88000 | CX56: 88000 | CY56: 88000 | CZ56: 88000 | DA56: 88000 | DB56: 88000 | DC56: 88000 | DD56: 88000 | DE56: 88000 | DF56: 88000 | DG56: 88000 | DH56: 88000 | DI56: 88000 | DJ56: 88000 | DK56: 88000 | DL56: 88000 | DM56: 88000 | DN56: 88000 | DO56: 88000 | DP56: 88000 | DQ56: 88000
A57: City of Aspen | B57: 56 | C57: MB - Bus | D57: Cutaway (CU) | E57: Gasoline | F57: Non-ADA | G57: 1 | H57: 25 | I57: 15 | J57: 2014 | K57: =IF(K$1=Reference!$D$1,_xlfn.XLOOKUP('Fleet Info'!$L57,Reference!$A$2:$A$11,Reference!$D$2:$D$11),IF(K$1=Reference!$E$1,_xlfn.XLOOKUP('Fleet Info'!$L57,Reference!$A$2:$A$11,Reference!$E$2:$E$11),"ERROR")) -> 5 | L57: =IF($D57=Reference!$B$2,Reference!$A$2,IF($D57=Reference!$B$3,IF('Fleet Info'!$H57<=30,Reference!$A$4,Reference!$A$3),IF($D57=Reference!$B$5,IF('Fleet Info'!$I57>20,Reference!$A$5,Reference!$A$6),IF($D57=Reference!$B$7,Reference!$A$7,IF($D57=Reference!$B$8,IF('Fleet Info'!$F57="Non-ADA",Reference!$A$8,Reference!$A$7),IF($D57=Reference!$B$9,IF('Fleet Info'!$F57="Non-ADA",Reference!$A$9,Reference!$A$7),IF($D57=Reference!$B$10,IF('Fleet Info'!$F57="Non-ADA",Reference!$A$10,Reference!$A$7),IF($D57=Reference!$B$11,Reference!$A$11,IF($D57="Battery Electric Bus (BEB)",IF($H57<=30,Reference!$A$4,Reference!$A$3)))))))))) -> 5 | M57: =_xlfn.XLOOKUP(L57,Reference!$A$2:$A$11,Reference!$C$2:$C$11) -> Standard Cutaway | N57: =_xlfn.XLOOKUP($L57,Reference!$A$2:$A$11,Reference!$J$2:$J$11) -> 170000 | O57: =_xlfn.XLOOKUP($L57,Reference!$A$2:$A$11,Reference!$P$2:$P$11) -> 88000 | P57: =IF(D57="Battery Electric Bus (BEB)",0,_xlfn.XLOOKUP($L57,Reference!$A$2:$A$11,Reference!$O$2:$O$11))*G57 -> 50000 | Q57: 2026 | R57: 2031 | S57: 2036 | T57: 2041 | U57: 2046 | V57: 2051 | W57: 2056 | X57: =W57+$K57 -> 2061 | Y57: =IF($D57<>"Battery Electric Bus (BEB)",MIN(IF($Q57:$X57>=Y$2,$Q57:$X57)),2021) -> 2026 | Z57: =IF($D57<>"Battery Electric Bus (BEB)",MIN(IF($Q57:$X57>=Z$2,$Q57:$X57)),2021) -> 2026 | AA57: =IF($D57<>"Battery Electric Bus (BEB)",MIN(IF($Q57:$X57>=AA$2,$Q57:$X57)),2021) -> 2026 | AB57: =IF($D57<>"Battery Electric Bus (BEB)",MIN(IF($Q57:$X57>=AB$2,$Q57:$X57)),2021) -> 2026 | AC57: =IF($D57<>"Battery Electric Bus (BEB)",MIN(IF($Q57:$X57>=AC$2,$Q57:$X57)),2021) -> 2026 | AD57: =IF($D57<>"Battery Electric Bus (BEB)",MIN(IF($Q57:$X57>=AD$2,$Q57:$X57)),2021) -> 2031 | AE57: =IF($D57<>"Battery Electric Bus (BEB)",MIN(IF($Q57:$X57>=AE$2,$Q57:$X57)),2021) -> 2031 | AF57: =IF($D57<>"Battery Electric Bus (BEB)",MIN(IF($Q57:$X57>=AF$2,$Q57:$X57)),2021) -> 2031 | AG57: =IF($D57<>"Battery Electric Bus (BEB)",MIN(IF($Q57:$X57>=AG$2,$Q57:$X57)),2021) -> 2031 | AH57: No | AI57: No | AJ57: No | AK57: No | AL57: Yes | AM57: No | AN57: No | AO57: No | AP57: No | AQ57: Yes | AR57: No | AS57: No | AT57: No | AU57: No | AV57: Yes | AW57: No | AX57: No | AY57: No | AZ57: No | BA57: Yes | BB57: No | BC57: No | BD57: No | BE57: No | BF57: Yes | BG57: No | BH57: No | BI57: No | BJ57: No | BK57: =_xlfn.XLOOKUP($L57,Reference!$A$2:$A$11,Reference!$S$2:$S$11) -> 0.08 | BL57: 170000 | BM57: 156400 | BN57: =IF(BM57*(1-$BK57)>$O57,BM57*(1-$BK57),$O57) -> 143888 | BO57: 132376.96 | BP57: 121786.8032 | BQ57: 112043.8589 | BR57: 103080.3502 | BS57: 94833.92221 | BT57: 88000 | BU57: 88000 | BV57: 88000 | BW57: 88000 | BX57: 88000 | BY57: 88000 | BZ57: 88000 | CA57: 88000 | CB57: 88000 | CC57: 88000 | CD57: 88000 | CE57: 88000 | CF57: 88000 | CG57: 88000 | CH57: 88000 | CI57: 88000 | CJ57: 88000 | CK57: 88000 | CL57: 88000 | CM57: 88000 | CN57: 88000 | CO57: 88000 | CP57: 88000 | CQ57: 88000 | CR57: 88000 | CS57: 88000 | CT57: 88000 | CU57: 88000 | CV57: 88000 | CW57: 88000 | CX57: 88000 | CY57: 88000 | CZ57: 88000 | DA57: 88000 | DB57: 88000 | DC57: 88000 | DD57: 88000 | DE57: 88000 | DF57: 88000 | DG57: 88000 | DH57: 88000 | DI57: 88000 | DJ57: 88000 | DK57: 88000 | DL57: 88000 | DM57: 88000 | DN57: 88000 | DO57: 88000 | DP57: 88000 | DQ57: 88000
A58: City of Aspen | B58: 57 | C58: MB - Bus | D58: Bus (BU) | E58: Diesel Fuel | F58: Non-ADA | G58: 1 | H58: 35 | I58: 29 | J58: 2001 | K58: =IF(K$1=Reference!$D$1,_xlfn.XLOOKUP('Fleet Info'!$L58,Reference!$A$2:$A$11,Reference!$D$2:$D$11),IF(K$1=Reference!$E$1,_xlfn.XLOOKUP('Fleet Info'!$L58,Reference!$A$2:$A$11,Reference!$E$2:$E$11),"ERROR")) -> 12 | L58: =IF($D58=Reference!$B$2,Reference!$A$2,IF($D58=Reference!$B$3,IF('Fleet Info'!$H58<=30,Reference!$A$4,Reference!$A$3),IF($D58=Reference!$B$5,IF('Fleet Info'!$I58>20,Reference!$A$5,Reference!$A$6),IF($D58=Reference!$B$7,Reference!$A$7,IF($D58=Reference!$B$8,IF('Fleet Info'!$F58="Non-ADA",Reference!$A$8,Reference!$A$7),IF($D58=Reference!$B$9,IF('Fleet Info'!$F58="Non-ADA",Reference!$A$9,Reference!$A$7),IF($D58=Reference!$B$10,IF('Fleet Info'!$F58="Non-ADA",Reference!$A$10,Reference!$A$7),IF($D58=Reference!$B$11,Reference!$A$11,IF($D58="Battery Electric Bus (BEB)",IF($H58<=30,Reference!$A$4,Reference!$A$3)))))))))) -> 2 | M58: =_xlfn.XLOOKUP(L58,Reference!$A$2:$A$11,Reference!$C$2:$C$11) -> Standard Bus | N58: =_xlfn.XLOOKUP($L58,Reference!$A$2:$A$11,Reference!$J$2:$J$11) -> 950000 | O58: =_xlfn.XLOOKUP($L58,Reference!$A$2:$A$11,Reference!$P$2:$P$11) -> 500000 | P58: =IF(D58="Battery Electric Bus (BEB)",0,_xlfn.XLOOKUP($L58,Reference!$A$2:$A$11,Reference!$O$2:$O$11))*G58 -> 110000 | Q58: 2033 | R58: 2045 | S58: 2057 | T58: 2069 | U58: 2081 | V58: 2093 | W58: 2105 | X58: =W58+$K58 -> 2117 | Y58: =IF($D58<>"Battery Electric Bus (BEB)",MIN(IF($Q58:$X58>=Y$2,$Q58:$X58)),2021) -> 2033 | Z58: =IF($D58<>"Battery Electric Bus (BEB)",MIN(IF($Q58:$X58>=Z$2,$Q58:$X58)),2021) -> 2033 | AA58: =IF($D58<>"Battery Electric Bus (BEB)",MIN(IF($Q58:$X58>=AA$2,$Q58:$X58)),2021) -> 2033 | AB58: =IF($D58<>"Battery Electric Bus (BEB)",MIN(IF($Q58:$X58>=AB$2,$Q58:$X58)),2021) -> 2033 | AC58: =IF($D58<>"Battery Electric Bus (BEB)",MIN(IF($Q58:$X58>=AC$2,$Q58:$X58)),2021) -> 2033 | AD58: =IF($D58<>"Battery Electric Bus (BEB)",MIN(IF($Q58:$X58>=AD$2,$Q58:$X58)),2021) -> 2033 | AE58: =IF($D58<>"Battery Electric Bus (BEB)",MIN(IF($Q58:$X58>=AE$2,$Q58:$X58)),2021) -> 2033 | AF58: =IF($D58<>"Battery Electric Bus (BEB)",MIN(IF($Q58:$X58>=AF$2,$Q58:$X58)),2021) -> 2033 | AG58: =IF($D58<>"Battery Electric Bus (BEB)",MIN(IF($Q58:$X58>=AG$2,$Q58:$X58)),2021) -> 2033 | AH58: No | AI58: No | AJ58: No | AK58: No | AL58: No | AM58: No | AN58: No | AO58: No | AP58: No | AQ58: No | AR58: No | AS58: Yes | AT58: No | AU58: No | AV58: No | AW58: No | AX58: No | AY58: No | AZ58: No | BA58: No | BB58: No | BC58: No | BD58: No | BE58: Yes | BF58: No | BG58: No | BH58: No | BI58: No | BJ58: No | BK58: =_xlfn.XLOOKUP($L58,Reference!$A$2:$A$11,Reference!$S$2:$S$11) -> 0.08 | BL58: 950000 | BM58: 874000 | BN58: =IF(BM58*(1-$BK58)>$O58,BM58*(1-$BK58),$O58) -> 804080 | BO58: 739753.6 | BP58: 680573.312 | BQ58: 626127.447 | BR58: 576037.2513 | BS58: 529954.2712 | BT58: 500000 | BU58: 500000 | BV58: 500000 | BW58: 500000 | BX58: 500000 | BY58: 500000 | BZ58: 500000 | CA58: 500000 | CB58: 500000 | CC58: 500000 | CD58: 500000 | CE58: 500000 | CF58: 500000 | CG58: 500000 | CH58: 500000 | CI58: 500000 | CJ58: 500000 | CK58: 500000 | CL58: 500000 | CM58: 500000 | CN58: 500000 | CO58: 500000 | CP58: 500000 | CQ58: 500000 | CR58: 500000 | CS58: 500000 | CT58: 500000 | CU58: 500000 | CV58: 500000 | CW58: 500000 | CX58: 500000 | CY58: 500000 | CZ58: 500000 | DA58: 500000 | DB58: 500000 | DC58: 500000 | DD58: 500000 | DE58: 500000 | DF58: 500000 | DG58: 500000 | DH58: 500000 | DI58: 500000 | DJ58: 500000 | DK58: 500000 | DL58: 500000 | DM58: 500000 | DN58: 500000 | DO58: 500000 | DP58: 500000 | DQ58: 500000
A59: City of Aspen | B59: 58 | C59: MB - Bus | D59: Bus (BU) | E59: Diesel Fuel | F59: Non-ADA | G59: 1 | H59: 35 | I59: 29 | J59: 2001 | K59: =IF(K$1=Reference!$D$1,_xlfn.XLOOKUP('Fleet Info'!$L59,Reference!$A$2:$A$11,Reference!$D$2:$D$11),IF(K$1=Reference!$E$1,_xlfn.XLOOKUP('Fleet Info'!$L59,Reference!$A$2:$A$11,Reference!$E$2:$E$11),"ERROR")) -> 12 | L59: =IF($D59=Reference!$B$2,Reference!$A$2,IF($D59=Reference!$B$3,IF('Fleet Info'!$H59<=30,Reference!$A$4,Reference!$A$3),IF($D59=Reference!$B$5,IF('Fleet Info'!$I59>20,Reference!$A$5,Reference!$A$6),IF($D59=Reference!$B$7,Reference!$A$7,IF($D59=Reference!$B$8,IF('Fleet Info'!$F59="Non-ADA",Reference!$A$8,Reference!$A$7),IF($D59=Reference!$B$9,IF('Fleet Info'!$F59="Non-ADA",Reference!$A$9,Reference!$A$7),IF($D59=Reference!$B$10,IF('Fleet Info'!$F59="Non-ADA",Reference!$A$10,Reference!$A$7),IF($D59=Reference!$B$11,Reference!$A$11,IF($D59="Battery Electric Bus (BEB)",IF($H59<=30,Reference!$A$4,Reference!$A$3)))))))))) -> 2 | M59: =_xlfn.XLOOKUP(L59,Reference!$A$2:$A$11,Reference!$C$2:$C$11) -> Standard Bus | N59: =_xlfn.XLOOKUP($L59,Reference!$A$2:$A$11,Reference!$J$2:$J$11) -> 950000 | O59: =_xlfn.XLOOKUP($L59,Reference!$A$2:$A$11,Reference!$P$2:$P$11) -> 500000 | P59: =IF(D59="Battery Electric Bus (BEB)",0,_xlfn.XLOOKUP($L59,Reference!$A$2:$A$11,Reference!$O$2:$O$11))*G59 -> 110000 | Q59: 2033 | R59: 2045 | S59: 2057 | T59: 2069 | U59: 2081 | V59: 2093 | W59: 2105 | X59: =W59+$K59 -> 2117 | Y59: =IF($D59<>"Battery Electric Bus (BEB)",MIN(IF($Q59:$X59>=Y$2,$Q59:$X59)),2021) -> 2033 | Z59: =IF($D59<>"Battery Electric Bus (BEB)",MIN(IF($Q59:$X59>=Z$2,$Q59:$X59)),2021) -> 2033 | AA59: =IF($D59<>"Battery Electric Bus (BEB)",MIN(IF($Q59:$X59>=AA$2,$Q59:$X59)),2021) -> 2033 | AB59: =IF($D59<>"Battery Electric Bus (BEB)",MIN(IF($Q59:$X59>=AB$2,$Q59:$X59)),2021) -> 2033 | AC59: =IF($D59<>"Battery Electric Bus (BEB)",MIN(IF($Q59:$X59>=AC$2,$Q59:$X59)),2021) -> 2033 | AD59: =IF($D59<>"Battery Electric Bus (BEB)",MIN(IF($Q59:$X59>=AD$2,$Q59:$X59)),2021) -> 2033 | AE59: =IF($D59<>"Battery Electric Bus (BEB)",MIN(IF($Q59:$X59>=AE$2,$Q59:$X59)),2021) -> 2033 | AF59: =IF($D59<>"Battery Electric Bus (BEB)",MIN(IF($Q59:$X59>=AF$2,$Q59:$X59)),2021) -> 2033 | AG59: =IF($D59<>"Battery Electric Bus (BEB)",MIN(IF($Q59:$X59>=AG$2,$Q59:$X59)),2021) -> 2033 | AH59: No | AI59: No | AJ59: No | AK59: No | AL59: No | AM59: No | AN59: No | AO59: No | AP59: No | AQ59: No | AR59: No | AS59: Yes | AT59: No | AU59: No | AV59: No | AW59: No | AX59: No | AY59: No | AZ59: No | BA59: No | BB59: No | BC59: No | BD59: No | BE59: Yes | BF59: No | BG59: No | BH59: No | BI59: No | BJ59: No | BK59: =_xlfn.XLOOKUP($L59,Reference!$A$2:$A$11,Reference!$S$2:$S$11) -> 0.08 | BL59: 950000 | BM59: 874000 | BN59: =IF(BM59*(1-$BK59)>$O59,BM59*(1-$BK59),$O59) -> 804080 | BO59: 739753.6 | BP59: 680573.312 | BQ59: 626127.447 | BR59: 576037.2513 | BS59: 529954.2712 | BT59: 500000 | BU59: 500000 | BV59: 500000 | BW59: 500000 | BX59: 500000 | BY59: 500000 | BZ59: 500000 | CA59: 500000 | CB59: 500000 | CC59: 500000 | CD59: 500000 | CE59: 500000 | CF59: 500000 | CG59: 500000 | CH59: 500000 | CI59: 500000 | CJ59: 500000 | CK59: 500000 | CL59: 500000 | CM59: 500000 | CN59: 500000 | CO59: 500000 | CP59: 500000 | CQ59: 500000 | CR59: 500000 | CS59: 500000 | CT59: 500000 | CU59: 500000 | CV59: 500000 | CW59: 500000 | CX59: 500000 | CY59: 500000 | CZ59: 500000 | DA59: 500000 | DB59: 500000 | DC59: 500000 | DD59: 500000 | DE59: 500000 | DF59: 500000 | DG59: 500000 | DH59: 500000 | DI59: 500000 | DJ59: 500000 | DK59: 500000 | DL59: 500000 | DM59: 500000 | DN59: 500000 | DO59: 500000 | DP59: 500000 | DQ59: 500000
A60: City of Aspen | B60: 59 | C60: MB - Bus | D60: Bus (BU) | E60: Diesel Fuel | F60: Non-ADA | G60: 1 | H60: 35 | I60: 29 | J60: 2001 | K60: =IF(K$1=Reference!$D$1,_xlfn.XLOOKUP('Fleet Info'!$L60,Reference!$A$2:$A$11,Reference!$D$2:$D$11),IF(K$1=Reference!$E$1,_xlfn.XLOOKUP('Fleet Info'!$L60,Reference!$A$2:$A$11,Reference!$E$2:$E$11),"ERROR")) -> 12 | L60: =IF($D60=Reference!$B$2,Reference!$A$2,IF($D60=Reference!$B$3,IF('Fleet Info'!$H60<=30,Reference!$A$4,Reference!$A$3),IF($D60=Reference!$B$5,IF('Fleet Info'!$I60>20,Reference!$A$5,Reference!$A$6),IF($D60=Reference!$B$7,Reference!$A$7,IF($D60=Reference!$B$8,IF('Fleet Info'!$F60="Non-ADA",Reference!$A$8,Reference!$A$7),IF($D60=Reference!$B$9,IF('Fleet Info'!$F60="Non-ADA",Reference!$A$9,Reference!$A$7),IF($D60=Reference!$B$10,IF('Fleet Info'!$F60="Non-ADA",Reference!$A$10,Reference!$A$7),IF($D60=Reference!$B$11,Reference!$A$11,IF($D60="Battery Electric Bus (BEB)",IF($H60<=30,Reference!$A$4,Reference!$A$3)))))))))) -> 2 | M60: =_xlfn.XLOOKUP(L60,Reference!$A$2:$A$11,Reference!$C$2:$C$11) -> Standard Bus | N60: =_xlfn.XLOOKUP($L60,Reference!$A$2:$A$11,Reference!$J$2:$J$11) -> 950000 | O60: =_xlfn.XLOOKUP($L60,Reference!$A$2:$A$11,Reference!$P$2:$P$11) -> 500000 | P60: =IF(D60="Battery Electric Bus (BEB)",0,_xlfn.XLOOKUP($L60,Reference!$A$2:$A$11,Reference!$O$2:$O$11))*G60 -> 110000 | Q60: 2033 | R60: 2045 | S60: 2057 | T60: 2069 | U60: 2081 | V60: 2093 | W60: 2105 | X60: =W60+$K60 -> 2117 | Y60: =IF($D60<>"Battery Electric Bus (BEB)",MIN(IF($Q60:$X60>=Y$2,$Q60:$X60)),2021) -> 2033 | Z60: =IF($D60<>"Battery Electric Bus (BEB)",MIN(IF($Q60:$X60>=Z$2,$Q60:$X60)),2021) -> 2033 | AA60: =IF($D60<>"Battery Electric Bus (BEB)",MIN(IF($Q60:$X60>=AA$2,$Q60:$X60)),2021) -> 2033 | AB60: =IF($D60<>"Battery Electric Bus (BEB)",MIN(IF($Q60:$X60>=AB$2,$Q60:$X60)),2021) -> 2033 | AC60: =IF($D60<>"Battery Electric Bus (BEB)",MIN(IF($Q60:$X60>=AC$2,$Q60:$X60)),2021) -> 2033 | AD60: =IF($D60<>"Battery Electric Bus (BEB)",MIN(IF($Q60:$X60>=AD$2,$Q60:$X60)),2021) -> 2033 | AE60: =IF($D60<>"Battery Electric Bus (BEB)",MIN(IF($Q60:$X60>=AE$2,$Q60:$X60)),2021) -> 2033 | AF60: =IF($D60<>"Battery Electric Bus (BEB)",MIN(IF($Q60:$X60>=AF$2,$Q60:$X60)),2021) -> 2033 | AG60: =IF($D60<>"Battery Electric Bus (BEB)",MIN(IF($Q60:$X60>=AG$2,$Q60:$X60)),2021) -> 2033 | AH60: No | AI60: No | AJ60: No | AK60: No | AL60: No | AM60: No | AN60: No | AO60: No | AP60: No | AQ60: No | AR60: No | AS60: Yes | AT60: No | AU60: No | AV60: No | AW60: No | AX60: No | AY60: No | AZ60: No | BA60: No | BB60: No | BC60: No | BD60: No | BE60: Yes | BF60: No | BG60: No | BH60: No | BI60: No | BJ60: No | BK60: =_xlfn.XLOOKUP($L60,Reference!$A$2:$A$11,Reference!$S$2:$S$11) -> 0.08 | BL60: 950000 | BM60: 874000 | BN60: =IF(BM60*(1-$BK60)>$O60,BM60*(1-$BK60),$O60) -> 804080 | BO60: 739753.6 | BP60: 680573.312 | BQ60: 626127.447 | BR60: 576037.2513 | BS60: 529954.2712 | BT60: 500000 | BU60: 500000 | BV60: 500000 | BW60: 500000 | BX60: 500000 | BY60: 500000 | BZ60: 500000 | CA60: 500000 | CB60: 500000 | CC60: 500000 | CD60: 500000 | CE60: 500000 | CF60: 500000 | CG60: 500000 | CH60: 500000 | CI60: 500000 | CJ60: 500000 | CK60: 500000 | CL60: 500000 | CM60: 500000 | CN60: 500000 | CO60: 500000 | CP60: 500000 | CQ60: 500000 | CR60: 500000 | CS60: 500000 | CT60: 500000 | CU60: 500000 | CV60: 500000 | CW60: 500000 | CX60: 500000 | CY60: 500000 | CZ60: 500000 | DA60: 500000 | DB60: 500000 | DC60: 500000 | DD60: 500000 | DE60: 500000 | DF60: 500000 | DG60: 500000 | DH60: 500000 | DI60: 500000 | DJ60: 500000 | DK60: 500000 | DL60: 500000 | DM60: 500000 | DN60: 500000 | DO60: 500000 | DP60: 500000 | DQ60: 500000
A61: City of Aspen | B61: 60 | C61: MB - Bus | D61: Bus (BU) | E61: Diesel Fuel | F61: Non-ADA | G61: 1 | H61: 35 | I61: 29 | J61: 2001 | K61: =IF(K$1=Reference!$D$1,_xlfn.XLOOKUP('Fleet Info'!$L61,Reference!$A$2:$A$11,Reference!$D$2:$D$11),IF(K$1=Reference!$E$1,_xlfn.XLOOKUP('Fleet Info'!$L61,Reference!$A$2:$A$11,Reference!$E$2:$E$11),"ERROR")) -> 12 | L61: =IF($D61=Reference!$B$2,Reference!$A$2,IF($D61=Reference!$B$3,IF('Fleet Info'!$H61<=30,Reference!$A$4,Reference!$A$3),IF($D61=Reference!$B$5,IF('Fleet Info'!$I61>20,Reference!$A$5,Reference!$A$6),IF($D61=Reference!$B$7,Reference!$A$7,IF($D61=Reference!$B$8,IF('Fleet Info'!$F61="Non-ADA",Reference!$A$8,Reference!$A$7),IF($D61=Reference!$B$9,IF('Fleet Info'!$F61="Non-ADA",Reference!$A$9,Reference!$A$7),IF($D61=Reference!$B$10,IF('Fleet Info'!$F61="Non-ADA",Reference!$A$10,Reference!$A$7),IF($D61=Reference!$B$11,Reference!$A$11,IF($D61="Battery Electric Bus (BEB)",IF($H61<=30,Reference!$A$4,Reference!$A$3)))))))))) -> 2 | M61: =_xlfn.XLOOKUP(L61,Reference!$A$2:$A$11,Reference!$C$2:$C$11) -> Standard Bus | N61: =_xlfn.XLOOKUP($L61,Reference!$A$2:$A$11,Reference!$J$2:$J$11) -> 950000 | O61: =_xlfn.XLOOKUP($L61,Reference!$A$2:$A$11,Reference!$P$2:$P$11) -> 500000 | P61: =IF(D61="Battery Electric Bus (BEB)",0,_xlfn.XLOOKUP($L61,Reference!$A$2:$A$11,Reference!$O$2:$O$11))*G61 -> 110000 | Q61: 2033 | R61: 2045 | S61: 2057 | T61: 2069 | U61: 2081 | V61: 2093 | W61: 2105 | X61: =W61+$K61 -> 2117 | Y61: =IF($D61<>"Battery Electric Bus (BEB)",MIN(IF($Q61:$X61>=Y$2,$Q61:$X61)),2021) -> 2033 | Z61: =IF($D61<>"Battery Electric Bus (BEB)",MIN(IF($Q61:$X61>=Z$2,$Q61:$X61)),2021) -> 2033 | AA61: =IF($D61<>"Battery Electric Bus (BEB)",MIN(IF($Q61:$X61>=AA$2,$Q61:$X61)),2021) -> 2033 | AB61: =IF($D61<>"Battery Electric Bus (BEB)",MIN(IF($Q61:$X61>=AB$2,$Q61:$X61)),2021) -> 2033 | AC61: =IF($D61<>"Battery Electric Bus (BEB)",MIN(IF($Q61:$X61>=AC$2,$Q61:$X61)),2021) -> 2033 | AD61: =IF($D61<>"Battery Electric Bus (BEB)",MIN(IF($Q61:$X61>=AD$2,$Q61:$X61)),2021) -> 2033 | AE61: =IF($D61<>"Battery Electric Bus (BEB)",MIN(IF($Q61:$X61>=AE$2,$Q61:$X61)),2021) -> 2033 | AF61: =IF($D61<>"Battery Electric Bus (BEB)",MIN(IF($Q61:$X61>=AF$2,$Q61:$X61)),2021) -> 2033 | AG61: =IF($D61<>"Battery Electric Bus (BEB)",MIN(IF($Q61:$X61>=AG$2,$Q61:$X61)),2021) -> 2033 | AH61: No | AI61: No | AJ61: No | AK61: No | AL61: No | AM61: No | AN61: No | AO61: No | AP61: No | AQ61: No | AR61: No | AS61: Yes | AT61: No | AU61: No | AV61: No | AW61: No | AX61: No | AY61: No | AZ61: No | BA61: No | BB61: No | BC61: No | BD61: No | BE61: Yes | BF61: No | BG61: No | BH61: No | BI61: No | BJ61: No | BK61: =_xlfn.XLOOKUP($L61,Reference!$A$2:$A$11,Reference!$S$2:$S$11) -> 0.08 | BL61: 950000 | BM61: 874000 | BN61: =IF(BM61*(1-$BK61)>$O61,BM61*(1-$BK61),$O61) -> 804080 | BO61: 739753.6 | BP61: 680573.312 | BQ61: 626127.447 | BR61: 576037.2513 | BS61: 529954.2712 | BT61: 500000 | BU61: 500000 | BV61: 500000 | BW61: 500000 | BX61: 500000 | BY61: 500000 | BZ61: 500000 | CA61: 500000 | CB61: 500000 | CC61: 500000 | CD61: 500000 | CE61: 500000 | CF61: 500000 | CG61: 500000 | CH61: 500000 | CI61: 500000 | CJ61: 500000 | CK61: 500000 | CL61: 500000 | CM61: 500000 | CN61: 500000 | CO61: 500000 | CP61: 500000 | CQ61: 500000 | CR61: 500000 | CS61: 500000 | CT61: 500000 | CU61: 500000 | CV61: 500000 | CW61: 500000 | CX61: 500000 | CY61: 500000 | CZ61: 500000 | DA61: 500000 | DB61: 500000 | DC61: 500000 | DD61: 500000 | DE61: 500000 | DF61: 500000 | DG61: 500000 | DH61: 500000 | DI61: 500000 | DJ61: 500000 | DK61: 500000 | DL61: 500000 | DM61: 500000 | DN61: 500000 | DO61: 500000 | DP61: 500000 | DQ61: 500000
A62: City of Aspen | B62: 61 | C62: MB - Bus | D62: Bus (BU) | E62: Diesel Fuel | F62: Non-ADA | G62: 1 | H62: 35 | I62: 30 | J62: 2001 | K62: =IF(K$1=Reference!$D$1,_xlfn.XLOOKUP('Fleet Info'!$L62,Reference!$A$2:$A$11,Reference!$D$2:$D$11),IF(K$1=Reference!$E$1,_xlfn.XLOOKUP('Fleet Info'!$L62,Reference!$A$2:$A$11,Reference!$E$2:$E$11),"ERROR")) -> 12 | L62: =IF($D62=Reference!$B$2,Reference!$A$2,IF($D62=Reference!$B$3,IF('Fleet Info'!$H62<=30,Reference!$A$4,Reference!$A$3),IF($D62=Reference!$B$5,IF('Fleet Info'!$I62>20,Reference!$A$5,Reference!$A$6),IF($D62=Reference!$B$7,Reference!$A$7,IF($D62=Reference!$B$8,IF('Fleet Info'!$F62="Non-ADA",Reference!$A$8,Reference!$A$7),IF($D62=Reference!$B$9,IF('Fleet Info'!$F62="Non-ADA",Reference!$A$9,Reference!$A$7),IF($D62=Reference!$B$10,IF('Fleet Info'!$F62="Non-ADA",Reference!$A$10,Reference!$A$7),IF($D62=Reference!$B$11,Reference!$A$11,IF($D62="Battery Electric Bus (BEB)",IF($H62<=30,Reference!$A$4,Reference!$A$3)))))))))) -> 2 | M62: =_xlfn.XLOOKUP(L62,Reference!$A$2:$A$11,Reference!$C$2:$C$11) -> Standard Bus | N62: =_xlfn.XLOOKUP($L62,Reference!$A$2:$A$11,Reference!$J$2:$J$11) -> 950000 | O62: =_xlfn.XLOOKUP($L62,Reference!$A$2:$A$11,Reference!$P$2:$P$11) -> 500000 | P62: =IF(D62="Battery Electric Bus (BEB)",0,_xlfn.XLOOKUP($L62,Reference!$A$2:$A$11,Reference!$O$2:$O$11))*G62 -> 110000 | Q62: 2033 | R62: 2045 | S62: 2057 | T62: 2069 | U62: 2081 | V62: 2093 | W62: 2105 | X62: =W62+$K62 -> 2117 | Y62: =IF($D62<>"Battery Electric Bus (BEB)",MIN(IF($Q62:$X62>=Y$2,$Q62:$X62)),2021) -> 2033 | Z62: =IF($D62<>"Battery Electric Bus (BEB)",MIN(IF($Q62:$X62>=Z$2,$Q62:$X62)),2021) -> 2033 | AA62: =IF($D62<>"Battery Electric Bus (BEB)",MIN(IF($Q62:$X62>=AA$2,$Q62:$X62)),2021) -> 2033 | AB62: =IF($D62<>"Battery Electric Bus (BEB)",MIN(IF($Q62:$X62>=AB$2,$Q62:$X62)),2021) -> 2033 | AC62: =IF($D62<>"Battery Electric Bus (BEB)",MIN(IF($Q62:$X62>=AC$2,$Q62:$X62)),2021) -> 2033 | AD62: =IF($D62<>"Battery Electric Bus (BEB)",MIN(IF($Q62:$X62>=AD$2,$Q62:$X62)),2021) -> 2033 | AE62: =IF($D62<>"Battery Electric Bus (BEB)",MIN(IF($Q62:$X62>=AE$2,$Q62:$X62)),2021) -> 2033 | AF62: =IF($D62<>"Battery Electric Bus (BEB)",MIN(IF($Q62:$X62>=AF$2,$Q62:$X62)),2021) -> 2033 | AG62: =IF($D62<>"Battery Electric Bus (BEB)",MIN(IF($Q62:$X62>=AG$2,$Q62:$X62)),2021) -> 2033 | AH62: No | AI62: No | AJ62: No | AK62: No | AL62: No | AM62: No | AN62: No | AO62: No | AP62: No | AQ62: No | AR62: No | AS62: Yes | AT62: No | AU62: No | AV62: No | AW62: No | AX62: No | AY62: No | AZ62: No | BA62: No | BB62: No | BC62: No | BD62: No | BE62: Yes | BF62: No | BG62: No | BH62: No | BI62: No | BJ62: No | BK62: =_xlfn.XLOOKUP($L62,Reference!$A$2:$A$11,Reference!$S$2:$S$11) -> 0.08 | BL62: 950000 | BM62: 874000 | BN62: =IF(BM62*(1-$BK62)>$O62,BM62*(1-$BK62),$O62) -> 804080 | BO62: 739753.6 | BP62: 680573.312 | BQ62: 626127.447 | BR62: 576037.2513 | BS62: 529954.2712 | BT62: 500000 | BU62: 500000 | BV62: 500000 | BW62: 500000 | BX62: 500000 | BY62: 500000 | BZ62: 500000 | CA62: 500000 | CB62: 500000 | CC62: 500000 | CD62: 500000 | CE62: 500000 | CF62: 500000 | CG62: 500000 | CH62: 500000 | CI62: 500000 | CJ62: 500000 | CK62: 500000 | CL62: 500000 | CM62: 500000 | CN62: 500000 | CO62: 500000 | CP62: 500000 | CQ62: 500000 | CR62: 500000 | CS62: 500000 | CT62: 500000 | CU62: 500000 | CV62: 500000 | CW62: 500000 | CX62: 500000 | CY62: 500000 | CZ62: 500000 | DA62: 500000 | DB62: 500000 | DC62: 500000 | DD62: 500000 | DE62: 500000 | DF62: 500000 | DG62: 500000 | DH62: 500000 | DI62: 500000 | DJ62: 500000 | DK62: 500000 | DL62: 500000 | DM62: 500000 | DN62: 500000 | DO62: 500000 | DP62: 500000 | DQ62: 500000
A63: City of Aspen | B63: 62 | C63: MB - Bus | D63: Bus (BU) | E63: Diesel Fuel | F63: Non-ADA | G63: 1 | H63: 35 | I63: 32 | J63: 2017 | K63: =IF(K$1=Reference!$D$1,_xlfn.XLOOKUP('Fleet Info'!$L63,Reference!$A$2:$A$11,Reference!$D$2:$D$11),IF(K$1=Reference!$E$1,_xlfn.XLOOKUP('Fleet Info'!$L63,Reference!$A$2:$A$11,Reference!$E$2:$E$11),"ERROR")) -> 12 | L63: =IF($D63=Reference!$B$2,Reference!$A$2,IF($D63=Reference!$B$3,IF('Fleet Info'!$H63<=30,Reference!$A$4,Reference!$A$3),IF($D63=Reference!$B$5,IF('Fleet Info'!$I63>20,Reference!$A$5,Reference!$A$6),IF($D63=Reference!$B$7,Reference!$A$7,IF($D63=Reference!$B$8,IF('Fleet Info'!$F63="Non-ADA",Reference!$A$8,Reference!$A$7),IF($D63=Reference!$B$9,IF('Fleet Info'!$F63="Non-ADA",Reference!$A$9,Reference!$A$7),IF($D63=Reference!$B$10,IF('Fleet Info'!$F63="Non-ADA",Reference!$A$10,Reference!$A$7),IF($D63=Reference!$B$11,Reference!$A$11,IF($D63="Battery Electric Bus (BEB)",IF($H63<=30,Reference!$A$4,Reference!$A$3)))))))))) -> 2 | M63: =_xlfn.XLOOKUP(L63,Reference!$A$2:$A$11,Reference!$C$2:$C$11) -> Standard Bus | N63: =_xlfn.XLOOKUP($L63,Reference!$A$2:$A$11,Reference!$J$2:$J$11) -> 950000 | O63: =_xlfn.XLOOKUP($L63,Reference!$A$2:$A$11,Reference!$P$2:$P$11) -> 500000 | P63: =IF(D63="Battery Electric Bus (BEB)",0,_xlfn.XLOOKUP($L63,Reference!$A$2:$A$11,Reference!$O$2:$O$11))*G63 -> 110000 | Q63: 2029 | R63: 2041 | S63: 2053 | T63: 2065 | U63: 2077 | V63: 2089 | W63: 2101 | X63: =W63+$K63 -> 2113 | Y63: =IF($D63<>"Battery Electric Bus (BEB)",MIN(IF($Q63:$X63>=Y$2,$Q63:$X63)),2021) -> 2029 | Z63: =IF($D63<>"Battery Electric Bus (BEB)",MIN(IF($Q63:$X63>=Z$2,$Q63:$X63)),2021) -> 2029 | AA63: =IF($D63<>"Battery Electric Bus (BEB)",MIN(IF($Q63:$X63>=AA$2,$Q63:$X63)),2021) -> 2029 | AB63: =IF($D63<>"Battery Electric Bus (BEB)",MIN(IF($Q63:$X63>=AB$2,$Q63:$X63)),2021) -> 2029 | AC63: =IF($D63<>"Battery Electric Bus (BEB)",MIN(IF($Q63:$X63>=AC$2,$Q63:$X63)),2021) -> 2029 | AD63: =IF($D63<>"Battery Electric Bus (BEB)",MIN(IF($Q63:$X63>=AD$2,$Q63:$X63)),2021) -> 2029 | AE63: =IF($D63<>"Battery Electric Bus (BEB)",MIN(IF($Q63:$X63>=AE$2,$Q63:$X63)),2021) -> 2029 | AF63: =IF($D63<>"Battery Electric Bus (BEB)",MIN(IF($Q63:$X63>=AF$2,$Q63:$X63)),2021) -> 2029 | AG63: =IF($D63<>"Battery Electric Bus (BEB)",MIN(IF($Q63:$X63>=AG$2,$Q63:$X63)),2021) -> 2041 | AH63: No | AI63: No | AJ63: No | AK63: No | AL63: No | AM63: No | AN63: No | AO63: Yes | AP63: No | AQ63: No | AR63: No | AS63: No | AT63: No | AU63: No | AV63: No | AW63: No | AX63: No | AY63: No | AZ63: No | BA63: Yes | BB63: No | BC63: No | BD63: No | BE63: No | BF63: No | BG63: No | BH63: No | BI63: No | BJ63: No | BK63: =_xlfn.XLOOKUP($L63,Reference!$A$2:$A$11,Reference!$S$2:$S$11) -> 0.08 | BL63: 950000 | BM63: 874000 | BN63: =IF(BM63*(1-$BK63)>$O63,BM63*(1-$BK63),$O63) -> 804080 | BO63: 739753.6 | BP63: 680573.312 | BQ63: 626127.447 | BR63: 576037.2513 | BS63: 529954.2712 | BT63: 500000 | BU63: 500000 | BV63: 500000 | BW63: 500000 | BX63: 500000 | BY63: 500000 | BZ63: 500000 | CA63: 500000 | CB63: 500000 | CC63: 500000 | CD63: 500000 | CE63: 500000 | CF63: 500000 | CG63: 500000 | CH63: 500000 | CI63: 500000 | CJ63: 500000 | CK63: 500000 | CL63: 500000 | CM63: 500000 | CN63: 500000 | CO63: 500000 | CP63: 500000 | CQ63: 500000 | CR63: 500000 | CS63: 500000 | CT63: 500000 | CU63: 500000 | CV63: 500000 | CW63: 500000 | CX63: 500000 | CY63: 500000 | CZ63: 500000 | DA63: 500000 | DB63: 500000 | DC63: 500000 | DD63: 500000 | DE63: 500000 | DF63: 500000 | DG63: 500000 | DH63: 500000 | DI63: 500000 | DJ63: 500000 | DK63: 500000 | DL63: 500000 | DM63: 500000 | DN63: 500000 | DO63: 500000 | DP63: 500000 | DQ63: 500000
A64: City of Aspen | B64: 63 | C64: MB - Bus | D64: Bus (BU) | E64: Diesel Fuel | F64: Non-ADA | G64: 1 | H64: 35 | I64: 32 | J64: 2017 | K64: =IF(K$1=Reference!$D$1,_xlfn.XLOOKUP('Fleet Info'!$L64,Reference!$A$2:$A$11,Reference!$D$2:$D$11),IF(K$1=Reference!$E$1,_xlfn.XLOOKUP('Fleet Info'!$L64,Reference!$A$2:$A$11,Reference!$E$2:$E$11),"ERROR")) -> 12 | L64: =IF($D64=Reference!$B$2,Reference!$A$2,IF($D64=Reference!$B$3,IF('Fleet Info'!$H64<=30,Reference!$A$4,Reference!$A$3),IF($D64=Reference!$B$5,IF('Fleet Info'!$I64>20,Reference!$A$5,Reference!$A$6),IF($D64=Reference!$B$7,Reference!$A$7,IF($D64=Reference!$B$8,IF('Fleet Info'!$F64="Non-ADA",Reference!$A$8,Reference!$A$7),IF($D64=Reference!$B$9,IF('Fleet Info'!$F64="Non-ADA",Reference!$A$9,Reference!$A$7),IF($D64=Reference!$B$10,IF('Fleet Info'!$F64="Non-ADA",Reference!$A$10,Reference!$A$7),IF($D64=Reference!$B$11,Reference!$A$11,IF($D64="Battery Electric Bus (BEB)",IF($H64<=30,Reference!$A$4,Reference!$A$3)))))))))) -> 2 | M64: =_xlfn.XLOOKUP(L64,Reference!$A$2:$A$11,Reference!$C$2:$C$11) -> Standard Bus | N64: =_xlfn.XLOOKUP($L64,Reference!$A$2:$A$11,Reference!$J$2:$J$11) -> 950000 | O64: =_xlfn.XLOOKUP($L64,Reference!$A$2:$A$11,Reference!$P$2:$P$11) -> 500000 | P64: =IF(D64="Battery Electric Bus (BEB)",0,_xlfn.XLOOKUP($L64,Reference!$A$2:$A$11,Reference!$O$2:$O$11))*G64 -> 110000 | Q64: 2029 | R64: 2041 | S64: 2053 | T64: 2065 | U64: 2077 | V64: 2089 | W64: 2101 | X64: =W64+$K64 -> 2113 | Y64: =IF($D64<>"Battery Electric Bus (BEB)",MIN(IF($Q64:$X64>=Y$2,$Q64:$X64)),2021) -> 2029 | Z64: =IF($D64<>"Battery Electric Bus (BEB)",MIN(IF($Q64:$X64>=Z$2,$Q64:$X64)),2021) -> 2029 | AA64: =IF($D64<>"Battery Electric Bus (BEB)",MIN(IF($Q64:$X64>=AA$2,$Q64:$X64)),2021) -> 2029 | AB64: =IF($D64<>"Battery Electric Bus (BEB)",MIN(IF($Q64:$X64>=AB$2,$Q64:$X64)),2021) -> 2029 | AC64: =IF($D64<>"Battery Electric Bus (BEB)",MIN(IF($Q64:$X64>=AC$2,$Q64:$X64)),2021) -> 2029 | AD64: =IF($D64<>"Battery Electric Bus (BEB)",MIN(IF($Q64:$X64>=AD$2,$Q64:$X64)),2021) -> 2029 | AE64: =IF($D64<>"Battery Electric Bus (BEB)",MIN(IF($Q64:$X64>=AE$2,$Q64:$X64)),2021) -> 2029 | AF64: =IF($D64<>"Battery Electric Bus (BEB)",MIN(IF($Q64:$X64>=AF$2,$Q64:$X64)),2021) -> 2029 | AG64: =IF($D64<>"Battery Electric Bus (BEB)",MIN(IF($Q64:$X64>=AG$2,$Q64:$X64)),2021) -> 2041 | AH64: No | AI64: No | AJ64: No | AK64: No | AL64: No | AM64: No | AN64: No | AO64: Yes | AP64: No | AQ64: No | AR64: No | AS64: No | AT64: No | AU64: No | AV64: No | AW64: No | AX64: No | AY64: No | AZ64: No | BA64: Yes | BB64: No | BC64: No | BD64: No | BE64: No | BF64: No | BG64: No | BH64: No | BI64: No | BJ64: No | BK64: =_xlfn.XLOOKUP($L64,Reference!$A$2:$A$11,Reference!$S$2:$S$11) -> 0.08 | BL64: 950000 | BM64: 874000 | BN64: =IF(BM64*(1-$BK64)>$O64,BM64*(1-$BK64),$O64) -> 804080 | BO64: 739753.6 | BP64: 680573.312 | BQ64: 626127.447 | BR64: 576037.2513 | BS64: 529954.2712 | BT64: 500000 | BU64: 500000 | BV64: 500000 | BW64: 500000 | BX64: 500000 | BY64: 500000 | BZ64: 500000 | CA64: 500000 | CB64: 500000 | CC64: 500000 | CD64: 500000 | CE64: 500000 | CF64: 500000 | CG64: 500000 | CH64: 500000 | CI64: 500000 | CJ64: 500000 | CK64: 500000 | CL64: 500000 | CM64: 500000 | CN64: 500000 | CO64: 500000 | CP64: 500000 | CQ64: 500000 | CR64: 500000 | CS64: 500000 | CT64: 500000 | CU64: 500000 | CV64: 500000 | CW64: 500000 | CX64: 500000 | CY64: 500000 | CZ64: 500000 | DA64: 500000 | DB64: 500000 | DC64: 500000 | DD64: 500000 | DE64: 500000 | DF64: 500000 | DG64: 500000 | DH64: 500000 | DI64: 500000 | DJ64: 500000 | DK64: 500000 | DL64: 500000 | DM64: 500000 | DN64: 500000 | DO64: 500000 | DP64: 500000 | DQ64: 500000
A65: City of Aspen | B65: 64 | C65: MB - Bus | D65: Bus (BU) | E65: Diesel Fuel | F65: Non-ADA | G65: 1 | H65: 35 | I65: 32 | J65: 2017 | K65: =IF(K$1=Reference!$D$1,_xlfn.XLOOKUP('Fleet Info'!$L65,Reference!$A$2:$A$11,Reference!$D$2:$D$11),IF(K$1=Reference!$E$1,_xlfn.XLOOKUP('Fleet Info'!$L65,Reference!$A$2:$A$11,Reference!$E$2:$E$11),"ERROR")) -> 12 | L65: =IF($D65=Reference!$B$2,Reference!$A$2,IF($D65=Reference!$B$3,IF('Fleet Info'!$H65<=30,Reference!$A$4,Reference!$A$3),IF($D65=Reference!$B$5,IF('Fleet Info'!$I65>20,Reference!$A$5,Reference!$A$6),IF($D65=Reference!$B$7,Reference!$A$7,IF($D65=Reference!$B$8,IF('Fleet Info'!$F65="Non-ADA",Reference!$A$8,Reference!$A$7),IF($D65=Reference!$B$9,IF('Fleet Info'!$F65="Non-ADA",Reference!$A$9,Reference!$A$7),IF($D65=Reference!$B$10,IF('Fleet Info'!$F65="Non-ADA",Reference!$A$10,Reference!$A$7),IF($D65=Reference!$B$11,Reference!$A$11,IF($D65="Battery Electric Bus (BEB)",IF($H65<=30,Reference!$A$4,Reference!$A$3)))))))))) -> 2 | M65: =_xlfn.XLOOKUP(L65,Reference!$A$2:$A$11,Reference!$C$2:$C$11) -> Standard Bus | N65: =_xlfn.XLOOKUP($L65,Reference!$A$2:$A$11,Reference!$J$2:$J$11) -> 950000 | O65: =_xlfn.XLOOKUP($L65,Reference!$A$2:$A$11,Reference!$P$2:$P$11) -> 500000 | P65: =IF(D65="Battery Electric Bus (BEB)",0,_xlfn.XLOOKUP($L65,Reference!$A$2:$A$11,Reference!$O$2:$O$11))*G65 -> 110000 | Q65: 2029 | R65: 2041 | S65: 2053 | T65: 2065 | U65: 2077 | V65: 2089 | W65: 2101 | X65: =W65+$K65 -> 2113 | Y65: =IF($D65<>"Battery Electric Bus (BEB)",MIN(IF($Q65:$X65>=Y$2,$Q65:$X65)),2021) -> 2029 | Z65: =IF($D65<>"Battery Electric Bus (BEB)",MIN(IF($Q65:$X65>=Z$2,$Q65:$X65)),2021) -> 2029 | AA65: =IF($D65<>"Battery Electric Bus (BEB)",MIN(IF($Q65:$X65>=AA$2,$Q65:$X65)),2021) -> 2029 | AB65: =IF($D65<>"Battery Electric Bus (BEB)",MIN(IF($Q65:$X65>=AB$2,$Q65:$X65)),2021) -> 2029 | AC65: =IF($D65<>"Battery Electric Bus (BEB)",MIN(IF($Q65:$X65>=AC$2,$Q65:$X65)),2021) -> 2029 | AD65: =IF($D65<>"Battery Electric Bus (BEB)",MIN(IF($Q65:$X65>=AD$2,$Q65:$X65)),2021) -> 2029 | AE65: =IF($D65<>"Battery Electric Bus (BEB)",MIN(IF($Q65:$X65>=AE$2,$Q65:$X65)),2021) -> 2029 | AF65: =IF($D65<>"Battery Electric Bus (BEB)",MIN(IF($Q65:$X65>=AF$2,$Q65:$X65)),2021) -> 2029 | AG65: =IF($D65<>"Battery Electric Bus (BEB)",MIN(IF($Q65:$X65>=AG$2,$Q65:$X65)),2021) -> 2041 | AH65: No | AI65: No | AJ65: No | AK65: No | AL65: No | AM65: No | AN65: No | AO65: Yes | AP65: No | AQ65: No | AR65: No | AS65: No | AT65: No | AU65: No | AV65: No | AW65: No | AX65: No | AY65: No | AZ65: No | BA65: Yes | BB65: No | BC65: No | BD65: No | BE65: No | BF65: No | BG65: No | BH65: No | BI65: No | BJ65: No | BK65: =_xlfn.XLOOKUP($L65,Reference!$A$2:$A$11,Reference!$S$2:$S$11) -> 0.08 | BL65: 950000 | BM65: 874000 | BN65: =IF(BM65*(1-$BK65)>$O65,BM65*(1-$BK65),$O65) -> 804080 | BO65: 739753.6 | BP65: 680573.312 | BQ65: 626127.447 | BR65: 576037.2513 | BS65: 529954.2712 | BT65: 500000 | BU65: 500000 | BV65: 500000 | BW65: 500000 | BX65: 500000 | BY65: 500000 | BZ65: 500000 | CA65: 500000 | CB65: 500000 | CC65: 500000 | CD65: 500000 | CE65: 500000 | CF65: 500000 | CG65: 500000 | CH65: 500000 | CI65: 500000 | CJ65: 500000 | CK65: 500000 | CL65: 500000 | CM65: 500000 | CN65: 500000 | CO65: 500000 | CP65: 500000 | CQ65: 500000 | CR65: 500000 | CS65: 500000 | CT65: 500000 | CU65: 500000 | CV65: 500000 | CW65: 500000 | CX65: 500000 | CY65: 500000 | CZ65: 500000 | DA65: 500000 | DB65: 500000 | DC65: 500000 | DD65: 500000 | DE65: 500000 | DF65: 500000 | DG65: 500000 | DH65: 500000 | DI65: 500000 | DJ65: 500000 | DK65: 500000 | DL65: 500000 | DM65: 500000 | DN65: 500000 | DO65: 500000 | DP65: 500000 | DQ65: 500000
A66: City of Aspen | B66: 65 | C66: MB - Bus | D66: Bus (BU) | E66: Diesel Fuel | F66: Non-ADA | G66: 1 | H66: 35 | I66: 32 | J66: 2017 | K66: =IF(K$1=Reference!$D$1,_xlfn.XLOOKUP('Fleet Info'!$L66,Reference!$A$2:$A$11,Reference!$D$2:$D$11),IF(K$1=Reference!$E$1,_xlfn.XLOOKUP('Fleet Info'!$L66,Reference!$A$2:$A$11,Reference!$E$2:$E$11),"ERROR")) -> 12 | L66: =IF($D66=Reference!$B$2,Reference!$A$2,IF($D66=Reference!$B$3,IF('Fleet Info'!$H66<=30,Reference!$A$4,Reference!$A$3),IF($D66=Reference!$B$5,IF('Fleet Info'!$I66>20,Reference!$A$5,Reference!$A$6),IF($D66=Reference!$B$7,Reference!$A$7,IF($D66=Reference!$B$8,IF('Fleet Info'!$F66="Non-ADA",Reference!$A$8,Reference!$A$7),IF($D66=Reference!$B$9,IF('Fleet Info'!$F66="Non-ADA",Reference!$A$9,Reference!$A$7),IF($D66=Reference!$B$10,IF('Fleet Info'!$F66="Non-ADA",Reference!$A$10,Reference!$A$7),IF($D66=Reference!$B$11,Reference!$A$11,IF($D66="Battery Electric Bus (BEB)",IF($H66<=30,Reference!$A$4,Reference!$A$3)))))))))) -> 2 | M66: =_xlfn.XLOOKUP(L66,Reference!$A$2:$A$11,Reference!$C$2:$C$11) -> Standard Bus | N66: =_xlfn.XLOOKUP($L66,Reference!$A$2:$A$11,Reference!$J$2:$J$11) -> 950000 | O66: =_xlfn.XLOOKUP($L66,Reference!$A$2:$A$11,Reference!$P$2:$P$11) -> 500000 | P66: =IF(D66="Battery Electric Bus (BEB)",0,_xlfn.XLOOKUP($L66,Reference!$A$2:$A$11,Reference!$O$2:$O$11))*G66 -> 110000 | Q66: 2029 | R66: 2041 | S66: 2053 | T66: 2065 | U66: 2077 | V66: 2089 | W66: 2101 | X66: =W66+$K66 -> 2113 | Y66: =IF($D66<>"Battery Electric Bus (BEB)",MIN(IF($Q66:$X66>=Y$2,$Q66:$X66)),2021) -> 2029 | Z66: =IF($D66<>"Battery Electric Bus (BEB)",MIN(IF($Q66:$X66>=Z$2,$Q66:$X66)),2021) -> 2029 | AA66: =IF($D66<>"Battery Electric Bus (BEB)",MIN(IF($Q66:$X66>=AA$2,$Q66:$X66)),2021) -> 2029 | AB66: =IF($D66<>"Battery Electric Bus (BEB)",MIN(IF($Q66:$X66>=AB$2,$Q66:$X66)),2021) -> 2029 | AC66: =IF($D66<>"Battery Electric Bus (BEB)",MIN(IF($Q66:$X66>=AC$2,$Q66:$X66)),2021) -> 2029 | AD66: =IF($D66<>"Battery Electric Bus (BEB)",MIN(IF($Q66:$X66>=AD$2,$Q66:$X66)),2021) -> 2029 | AE66: =IF($D66<>"Battery Electric Bus (BEB)",MIN(IF($Q66:$X66>=AE$2,$Q66:$X66)),2021) -> 2029 | AF66: =IF($D66<>"Battery Electric Bus (BEB)",MIN(IF($Q66:$X66>=AF$2,$Q66:$X66)),2021) -> 2029 | AG66: =IF($D66<>"Battery Electric Bus (BEB)",MIN(IF($Q66:$X66>=AG$2,$Q66:$X66)),2021) -> 2041 | AH66: No | AI66: No | AJ66: No | AK66: No | AL66: No | AM66: No | AN66: No | AO66: Yes | AP66: No | AQ66: No | AR66: No | AS66: No | AT66: No | AU66: No | AV66: No | AW66: No | AX66: No | AY66: No | AZ66: No | BA66: Yes | BB66: No | BC66: No | BD66: No | BE66: No | BF66: No | BG66: No | BH66: No | BI66: No | BJ66: No | BK66: =_xlfn.XLOOKUP($L66,Reference!$A$2:$A$11,Reference!$S$2:$S$11) -> 0.08 | BL66: 950000 | BM66: 874000 | BN66: =IF(BM66*(1-$BK66)>$O66,BM66*(1-$BK66),$O66) -> 804080 | BO66: 739753.6 | BP66: 680573.312 | BQ66: 626127.447 | BR66: 576037.2513 | BS66: 529954.2712 | BT66: 500000 | BU66: 500000 | BV66: 500000 | BW66: 500000 | BX66: 500000 | BY66: 500000 | BZ66: 500000 | CA66: 500000 | CB66: 500000 | CC66: 500000 | CD66: 500000 | CE66: 500000 | CF66: 500000 | CG66: 500000 | CH66: 500000 | CI66: 500000 | CJ66: 500000 | CK66: 500000 | CL66: 500000 | CM66: 500000 | CN66: 500000 | CO66: 500000 | CP66: 500000 | CQ66: 500000 | CR66: 500000 | CS66: 500000 | CT66: 500000 | CU66: 500000 | CV66: 500000 | CW66: 500000 | CX66: 500000 | CY66: 500000 | CZ66: 500000 | DA66: 500000 | DB66: 500000 | DC66: 500000 | DD66: 500000 | DE66: 500000 | DF66: 500000 | DG66: 500000 | DH66: 500000 | DI66: 500000 | DJ66: 500000 | DK66: 500000 | DL66: 500000 | DM66: 500000 | DN66: 500000 | DO66: 500000 | DP66: 500000 | DQ66: 500000
A67: City of Aspen | B67: 66 | C67: MB - Bus | D67: Bus (BU) | E67: Diesel Fuel | F67: Non-ADA | G67: 1 | H67: 40 | I67: 33 | J67: 2012 | K67: =IF(K$1=Reference!$D$1,_xlfn.XLOOKUP('Fleet Info'!$L67,Reference!$A$2:$A$11,Reference!$D$2:$D$11),IF(K$1=Reference!$E$1,_xlfn.XLOOKUP('Fleet Info'!$L67,Reference!$A$2:$A$11,Reference!$E$2:$E$11),"ERROR")) -> 12 | L67: =IF($D67=Reference!$B$2,Reference!$A$2,IF($D67=Reference!$B$3,IF('Fleet Info'!$H67<=30,Reference!$A$4,Reference!$A$3),IF($D67=Reference!$B$5,IF('Fleet Info'!$I67>20,Reference!$A$5,Reference!$A$6),IF($D67=Reference!$B$7,Reference!$A$7,IF($D67=Reference!$B$8,IF('Fleet Info'!$F67="Non-ADA",Reference!$A$8,Reference!$A$7),IF($D67=Reference!$B$9,IF('Fleet Info'!$F67="Non-ADA",Reference!$A$9,Reference!$A$7),IF($D67=Reference!$B$10,IF('Fleet Info'!$F67="Non-ADA",Reference!$A$10,Reference!$A$7),IF($D67=Reference!$B$11,Reference!$A$11,IF($D67="Battery Electric Bus (BEB)",IF($H67<=30,Reference!$A$4,Reference!$A$3)))))))))) -> 2 | M67: =_xlfn.XLOOKUP(L67,Reference!$A$2:$A$11,Reference!$C$2:$C$11) -> Standard Bus | N67: =_xlfn.XLOOKUP($L67,Reference!$A$2:$A$11,Reference!$J$2:$J$11) -> 950000 | O67: =_xlfn.XLOOKUP($L67,Reference!$A$2:$A$11,Reference!$P$2:$P$11) -> 500000 | P67: =IF(D67="Battery Electric Bus (BEB)",0,_xlfn.XLOOKUP($L67,Reference!$A$2:$A$11,Reference!$O$2:$O$11))*G67 -> 110000 | Q67: 2024 | R67: 2036 | S67: 2048 | T67: 2060 | U67: =T67+$K67 -> 2072 | V67: 2084 | W67: 2096 | X67: =W67+$K67 -> 2108 | Y67: =IF($D67<>"Battery Electric Bus (BEB)",MIN(IF($Q67:$X67>=Y$2,$Q67:$X67)),2021) -> 2024 | Z67: =IF($D67<>"Battery Electric Bus (BEB)",MIN(IF($Q67:$X67>=Z$2,$Q67:$X67)),2021) -> 2024 | AA67: =IF($D67<>"Battery Electric Bus (BEB)",MIN(IF($Q67:$X67>=AA$2,$Q67:$X67)),2021) -> 2024 | AB67: =IF($D67<>"Battery Electric Bus (BEB)",MIN(IF($Q67:$X67>=AB$2,$Q67:$X67)),2021) -> 2036 | AC67: =IF($D67<>"Battery Electric Bus (BEB)",MIN(IF($Q67:$X67>=AC$2,$Q67:$X67)),2021) -> 2036 | AD67: =IF($D67<>"Battery Electric Bus (BEB)",MIN(IF($Q67:$X67>=AD$2,$Q67:$X67)),2021) -> 2036 | AE67: =IF($D67<>"Battery Electric Bus (BEB)",MIN(IF($Q67:$X67>=AE$2,$Q67:$X67)),2021) -> 2036 | AF67: =IF($D67<>"Battery Electric Bus (BEB)",MIN(IF($Q67:$X67>=AF$2,$Q67:$X67)),2021) -> 2036 | AG67: =IF($D67<>"Battery Electric Bus (BEB)",MIN(IF($Q67:$X67>=AG$2,$Q67:$X67)),2021) -> 2036 | AH67: No | AI67: No | AJ67: Yes | AK67: No | AL67: No | AM67: No | AN67: No | AO67: No | AP67: No | AQ67: No | AR67: No | AS67: No | AT67: No | AU67: No | AV67: Yes | AW67: No | AX67: No | AY67: No | AZ67: No | BA67: No | BB67: No | BC67: No | BD67: No | BE67: No | BF67: No | BG67: No | BH67: Yes | BI67: No | BJ67: No | BK67: =_xlfn.XLOOKUP($L67,Reference!$A$2:$A$11,Reference!$S$2:$S$11) -> 0.08 | BL67: 950000 | BM67: 874000 | BN67: =IF(BM67*(1-$BK67)>$O67,BM67*(1-$BK67),$O67) -> 804080 | BO67: 739753.6 | BP67: 680573.312 | BQ67: 626127.447 | BR67: 576037.2513 | BS67: 529954.2712 | BT67: 500000 | BU67: 500000 | BV67: 500000 | BW67: 500000 | BX67: 500000 | BY67: 500000 | BZ67: 500000 | CA67: 500000 | CB67: 500000 | CC67: 500000 | CD67: 500000 | CE67: 500000 | CF67: 500000 | CG67: 500000 | CH67: 500000 | CI67: 500000 | CJ67: 500000 | CK67: 500000 | CL67: 500000 | CM67: 500000 | CN67: 500000 | CO67: 500000 | CP67: 500000 | CQ67: 500000 | CR67: 500000 | CS67: 500000 | CT67: 500000 | CU67: 500000 | CV67: 500000 | CW67: 500000 | CX67: 500000 | CY67: 500000 | CZ67: 500000 | DA67: 500000 | DB67: 500000 | DC67: 500000 | DD67: 500000 | DE67: 500000 | DF67: 500000 | DG67: 500000 | DH67: 500000 | DI67: 500000 | DJ67: 500000 | DK67: 500000 | DL67: 500000 | DM67: 500000 | DN67: 500000 | DO67: 500000 | DP67: 500000 | DQ67: 500000
A68: City of Aspen | B68: 67 | C68: MB - Bus | D68: Bus (BU) | E68: Hybrid Gasoline | F68: Non-ADA | G68: 1 | H68: 40 | I68: 39 | J68: 2005 | K68: =IF(K$1=Reference!$D$1,_xlfn.XLOOKUP('Fleet Info'!$L68,Reference!$A$2:$A$11,Reference!$D$2:$D$11),IF(K$1=Reference!$E$1,_xlfn.XLOOKUP('Fleet Info'!$L68,Reference!$A$2:$A$11,Reference!$E$2:$E$11),"ERROR")) -> 12 | L68: =IF($D68=Reference!$B$2,Reference!$A$2,IF($D68=Reference!$B$3,IF('Fleet Info'!$H68<=30,Reference!$A$4,Reference!$A$3),IF($D68=Reference!$B$5,IF('Fleet Info'!$I68>20,Reference!$A$5,Reference!$A$6),IF($D68=Reference!$B$7,Reference!$A$7,IF($D68=Reference!$B$8,IF('Fleet Info'!$F68="Non-ADA",Reference!$A$8,Reference!$A$7),IF($D68=Reference!$B$9,IF('Fleet Info'!$F68="Non-ADA",Reference!$A$9,Reference!$A$7),IF($D68=Reference!$B$10,IF('Fleet Info'!$F68="Non-ADA",Reference!$A$10,Reference!$A$7),IF($D68=Reference!$B$11,Reference!$A$11,IF($D68="Battery Electric Bus (BEB)",IF($H68<=30,Reference!$A$4,Reference!$A$3)))))))))) -> 2 | M68: =_xlfn.XLOOKUP(L68,Reference!$A$2:$A$11,Reference!$C$2:$C$11) -> Standard Bus | N68: =_xlfn.XLOOKUP($L68,Reference!$A$2:$A$11,Reference!$J$2:$J$11) -> 950000 | O68: =_xlfn.XLOOKUP($L68,Reference!$A$2:$A$11,Reference!$P$2:$P$11) -> 500000 | P68: =IF(D68="Battery Electric Bus (BEB)",0,_xlfn.XLOOKUP($L68,Reference!$A$2:$A$11,Reference!$O$2:$O$11))*G68 -> 110000 | Q68: =IF(J68+K68<2021,2021+K68,J68+K68) -> 2033 | R68: =Q68+$K68 -> 2045 | S68: 2057 | T68: 2069 | U68: 2081 | V68: 2093 | W68: 2105 | X68: =W68+$K68 -> 2117 | Y68: =IF($D68<>"Battery Electric Bus (BEB)",MIN(IF($Q68:$X68>=Y$2,$Q68:$X68)),2021) -> 2033 | Z68: =IF($D68<>"Battery Electric Bus (BEB)",MIN(IF($Q68:$X68>=Z$2,$Q68:$X68)),2021) -> 2033 | AA68: =IF($D68<>"Battery Electric Bus (BEB)",MIN(IF($Q68:$X68>=AA$2,$Q68:$X68)),2021) -> 2033 | AB68: =IF($D68<>"Battery Electric Bus (BEB)",MIN(IF($Q68:$X68>=AB$2,$Q68:$X68)),2021) -> 2033 | AC68: =IF($D68<>"Battery Electric Bus (BEB)",MIN(IF($Q68:$X68>=AC$2,$Q68:$X68)),2021) -> 2033 | AD68: =IF($D68<>"Battery Electric Bus (BEB)",MIN(IF($Q68:$X68>=AD$2,$Q68:$X68)),2021) -> 2033 | AE68: =IF($D68<>"Battery Electric Bus (BEB)",MIN(IF($Q68:$X68>=AE$2,$Q68:$X68)),2021) -> 2033 | AF68: =IF($D68<>"Battery Electric Bus (BEB)",MIN(IF($Q68:$X68>=AF$2,$Q68:$X68)),2021) -> 2033 | AG68: =IF($D68<>"Battery Electric Bus (BEB)",MIN(IF($Q68:$X68>=AG$2,$Q68:$X68)),2021) -> 2033 | AH68: No | AI68: No | AJ68: No | AK68: No | AL68: No | AM68: No | AN68: No | AO68: No | AP68: No | AQ68: No | AR68: No | AS68: Yes | AT68: No | AU68: No | AV68: No | AW68: No | AX68: No | AY68: No | AZ68: No | BA68: No | BB68: No | BC68: No | BD68: No | BE68: Yes | BF68: No | BG68: No | BH68: No | BI68: No | BJ68: No | BK68: =_xlfn.XLOOKUP($L68,Reference!$A$2:$A$11,Reference!$S$2:$S$11) -> 0.08 | BL68: =N68 -> 950000 | BM68: =IF(BL68*(1-$BK68)>$O68,BL68*(1-$BK68),$O68) -> 874000 | BN68: 804080 | BO68: 739753.6 | BP68: 680573.312 | BQ68: 626127.447 | BR68: =IF(BQ68*(1-$BK68)>$O68,BQ68*(1-$BK68),$O68) -> 576037.2513 | BS68: 529954.2712 | BT68: 500000 | BU68: 500000 | BV68: 500000 | BW68: 500000 | BX68: 500000 | BY68: 500000 | BZ68: 500000 | CA68: 500000 | CB68: 500000 | CC68: 500000 | CD68: 500000 | CE68: 500000 | CF68: 500000 | CG68: 500000 | CH68: 500000 | CI68: 500000 | CJ68: 500000 | CK68: 500000 | CL68: 500000 | CM68: 500000 | CN68: 500000 | CO68: =IF($D68="Battery Electric Bus (BEB)",BL68,$O68) -> 500000 | CP68: =IF($D68="Battery Electric Bus (BEB)",BM68,$O68) -> 500000 | CQ68: =IF($D68="Battery Electric Bus (BEB)",BN68,$O68) -> 500000 | CR68: =IF($D68="Battery Electric Bus (BEB)",BO68,$O68) -> 500000 | CS68: =IF($D68="Battery Electric Bus (BEB)",BP68,$O68) -> 500000 | CT68: =IF($D68="Battery Electric Bus (BEB)",BQ68,$O68) -> 500000 | CU68: =IF($D68="Battery Electric Bus (BEB)",BR68,$O68) -> 500000 | CV68: =IF($D68="Battery Electric Bus (BEB)",BS68,$O68) -> 500000 | CW68: =IF($D68="Battery Electric Bus (BEB)",BT68,$O68) -> 500000 | CX68: =IF($D68="Battery Electric Bus (BEB)",BU68,$O68) -> 500000 | CY68: =IF($D68="Battery Electric Bus (BEB)",BV68,$O68) -> 500000 | CZ68: =IF($D68="Battery Electric Bus (BEB)",BW68,$O68) -> 500000 | DA68: =IF($D68="Battery Electric Bus (BEB)",BX68,$O68) -> 500000 | DB68: =IF($D68="Battery Electric Bus (BEB)",BY68,$O68) -> 500000 | DC68: =IF($D68="Battery Electric Bus (BEB)",BZ68,$O68) -> 500000 | DD68: =IF($D68="Battery Electric Bus (BEB)",CA68,$O68) -> 500000 | DE68: =IF($D68="Battery Electric Bus (BEB)",CB68,$O68) -> 500000 | DF68: =IF($D68="Battery Electric Bus (BEB)",CC68,$O68) -> 500000 | DG68: =IF($D68="Battery Electric Bus (BEB)",CD68,$O68) -> 500000 | DH68: =IF($D68="Battery Electric Bus (BEB)",CE68,$O68) -> 500000 | DI68: =IF($D68="Battery Electric Bus (BEB)",CF68,$O68) -> 500000 | DJ68: =IF($D68="Battery Electric Bus (BEB)",CG68,$O68) -> 500000 | DK68: =IF($D68="Battery Electric Bus (BEB)",CH68,$O68) -> 500000 | DL68: =IF($D68="Battery Electric Bus (BEB)",CI68,$O68) -> 500000 | DM68: =IF($D68="Battery Electric Bus (BEB)",CJ68,$O68) -> 500000 | DN68: =IF($D68="Battery Electric Bus (BEB)",CK68,$O68) -> 500000 | DO68: =IF($D68="Battery Electric Bus (BEB)",CL68,$O68) -> 500000 | DP68: =IF($D68="Battery Electric Bus (BEB)",CM68,$O68) -> 500000 | DQ68: =IF($D68="Battery Electric Bus (BEB)",CN68,$O68) -> 500000
A69: City of Aspen | B69: 68 | C69: MB - Bus | D69: Bus (BU) | E69: Hybrid Gasoline | F69: Non-ADA | G69: 1 | H69: 40 | I69: 39 | J69: 2006 | K69: =IF(K$1=Reference!$D$1,_xlfn.XLOOKUP('Fleet Info'!$L69,Reference!$A$2:$A$11,Reference!$D$2:$D$11),IF(K$1=Reference!$E$1,_xlfn.XLOOKUP('Fleet Info'!$L69,Reference!$A$2:$A$11,Reference!$E$2:$E$11),"ERROR")) -> 12 | L69: =IF($D69=Reference!$B$2,Reference!$A$2,IF($D69=Reference!$B$3,IF('Fleet Info'!$H69<=30,Reference!$A$4,Reference!$A$3),IF($D69=Reference!$B$5,IF('Fleet Info'!$I69>20,Reference!$A$5,Reference!$A$6),IF($D69=Reference!$B$7,Reference!$A$7,IF($D69=Reference!$B$8,IF('Fleet Info'!$F69="Non-ADA",Reference!$A$8,Reference!$A$7),IF($D69=Reference!$B$9,IF('Fleet Info'!$F69="Non-ADA",Reference!$A$9,Reference!$A$7),IF($D69=Reference!$B$10,IF('Fleet Info'!$F69="Non-ADA",Reference!$A$10,Reference!$A$7),IF($D69=Reference!$B$11,Reference!$A$11,IF($D69="Battery Electric Bus (BEB)",IF($H69<=30,Reference!$A$4,Reference!$A$3)))))))))) -> 2 | M69: =_xlfn.XLOOKUP(L69,Reference!$A$2:$A$11,Reference!$C$2:$C$11) -> Standard Bus | N69: =_xlfn.XLOOKUP($L69,Reference!$A$2:$A$11,Reference!$J$2:$J$11) -> 950000 | O69: =_xlfn.XLOOKUP($L69,Reference!$A$2:$A$11,Reference!$P$2:$P$11) -> 500000 | P69: =IF(D69="Battery Electric Bus (BEB)",0,_xlfn.XLOOKUP($L69,Reference!$A$2:$A$11,Reference!$O$2:$O$11))*G69 -> 110000 | Q69: 2033 | R69: 2045 | S69: 2057 | T69: 2069 | U69: 2081 | V69: 2093 | W69: 2105 | X69: =W69+$K69 -> 2117 | Y69: =IF($D69<>"Battery Electric Bus (BEB)",MIN(IF($Q69:$X69>=Y$2,$Q69:$X69)),2021) -> 2033 | Z69: =IF($D69<>"Battery Electric Bus (BEB)",MIN(IF($Q69:$X69>=Z$2,$Q69:$X69)),2021) -> 2033 | AA69: =IF($D69<>"Battery Electric Bus (BEB)",MIN(IF($Q69:$X69>=AA$2,$Q69:$X69)),2021) -> 2033 | AB69: =IF($D69<>"Battery Electric Bus (BEB)",MIN(IF($Q69:$X69>=AB$2,$Q69:$X69)),2021) -> 2033 | AC69: =IF($D69<>"Battery Electric Bus (BEB)",MIN(IF($Q69:$X69>=AC$2,$Q69:$X69)),2021) -> 2033 | AD69: =IF($D69<>"Battery Electric Bus (BEB)",MIN(IF($Q69:$X69>=AD$2,$Q69:$X69)),2021) -> 2033 | AE69: =IF($D69<>"Battery Electric Bus (BEB)",MIN(IF($Q69:$X69>=AE$2,$Q69:$X69)),2021) -> 2033 | AF69: =IF($D69<>"Battery Electric Bus (BEB)",MIN(IF($Q69:$X69>=AF$2,$Q69:$X69)),2021) -> 2033 | AG69: =IF($D69<>"Battery Electric Bus (BEB)",MIN(IF($Q69:$X69>=AG$2,$Q69:$X69)),2021) -> 2033 | AH69: No | AI69: No | AJ69: No | AK69: No | AL69: No | AM69: No | AN69: No | AO69: No | AP69: No | AQ69: No | AR69: No | AS69: Yes | AT69: No | AU69: No | AV69: No | AW69: No | AX69: No | AY69: No | AZ69: No | BA69: No | BB69: No | BC69: No | BD69: No | BE69: Yes | BF69: No | BG69: No | BH69: No | BI69: No | BJ69: No | BK69: =_xlfn.XLOOKUP($L69,Reference!$A$2:$A$11,Reference!$S$2:$S$11) -> 0.08 | BL69: 950000 | BM69: 874000 | BN69: 804080 | BO69: 739753.6 | BP69: 680573.312 | BQ69: 626127.447 | BR69: =IF(BQ69*(1-$BK69)>$O69,BQ69*(1-$BK69),$O69) -> 576037.2513 | BS69: 529954.2712 | BT69: 500000 | BU69: 500000 | BV69: 500000 | BW69: 500000 | BX69: 500000 | BY69: 500000 | BZ69: 500000 | CA69: 500000 | CB69: 500000 | CC69: 500000 | CD69: 500000 | CE69: 500000 | CF69: 500000 | CG69: 500000 | CH69: 500000 | CI69: 500000 | CJ69: 500000 | CK69: 500000 | CL69: 500000 | CM69: 500000 | CN69: 500000 | CO69: 500000 | CP69: 500000 | CQ69: 500000 | CR69: 500000 | CS69: 500000 | CT69: 500000 | CU69: 500000 | CV69: 500000 | CW69: 500000 | CX69: 500000 | CY69: 500000 | CZ69: 500000 | DA69: 500000 | DB69: 500000 | DC69: 500000 | DD69: 500000 | DE69: 500000 | DF69: 500000 | DG69: 500000 | DH69: 500000 | DI69: 500000 | DJ69: 500000 | DK69: 500000 | DL69: 500000 | DM69: 500000 | DN69: 500000 | DO69: 500000 | DP69: 500000 | DQ69: 500000
A70: City of Aspen | B70: 69 | C70: MB - Bus | D70: Bus (BU) | E70: Hybrid Gasoline | F70: Non-ADA | G70: 1 | H70: 40 | I70: 39 | J70: 2006 | K70: =IF(K$1=Reference!$D$1,_xlfn.XLOOKUP('Fleet Info'!$L70,Reference!$A$2:$A$11,Reference!$D$2:$D$11),IF(K$1=Reference!$E$1,_xlfn.XLOOKUP('Fleet Info'!$L70,Reference!$A$2:$A$11,Reference!$E$2:$E$11),"ERROR")) -> 12 | L70: =IF($D70=Reference!$B$2,Reference!$A$2,IF($D70=Reference!$B$3,IF('Fleet Info'!$H70<=30,Reference!$A$4,Reference!$A$3),IF($D70=Reference!$B$5,IF('Fleet Info'!$I70>20,Reference!$A$5,Reference!$A$6),IF($D70=Reference!$B$7,Reference!$A$7,IF($D70=Reference!$B$8,IF('Fleet Info'!$F70="Non-ADA",Reference!$A$8,Reference!$A$7),IF($D70=Reference!$B$9,IF('Fleet Info'!$F70="Non-ADA",Reference!$A$9,Reference!$A$7),IF($D70=Reference!$B$10,IF('Fleet Info'!$F70="Non-ADA",Reference!$A$10,Reference!$A$7),IF($D70=Reference!$B$11,Reference!$A$11,IF($D70="Battery Electric Bus (BEB)",IF($H70<=30,Reference!$A$4,Reference!$A$3)))))))))) -> 2 | M70: =_xlfn.XLOOKUP(L70,Reference!$A$2:$A$11,Reference!$C$2:$C$11) -> Standard Bus | N70: =_xlfn.XLOOKUP($L70,Reference!$A$2:$A$11,Reference!$J$2:$J$11) -> 950000 | O70: =_xlfn.XLOOKUP($L70,Reference!$A$2:$A$11,Reference!$P$2:$P$11) -> 500000 | P70: =IF(D70="Battery Electric Bus (BEB)",0,_xlfn.XLOOKUP($L70,Reference!$A$2:$A$11,Reference!$O$2:$O$11))*G70 -> 110000 | Q70: 2033 | R70: 2045 | S70: 2057 | T70: 2069 | U70: 2081 | V70: 2093 | W70: 2105 | X70: =W70+$K70 -> 2117 | Y70: =IF($D70<>"Battery Electric Bus (BEB)",MIN(IF($Q70:$X70>=Y$2,$Q70:$X70)),2021) -> 2033 | Z70: =IF($D70<>"Battery Electric Bus (BEB)",MIN(IF($Q70:$X70>=Z$2,$Q70:$X70)),2021) -> 2033 | AA70: =IF($D70<>"Battery Electric Bus (BEB)",MIN(IF($Q70:$X70>=AA$2,$Q70:$X70)),2021) -> 2033 | AB70: =IF($D70<>"Battery Electric Bus (BEB)",MIN(IF($Q70:$X70>=AB$2,$Q70:$X70)),2021) -> 2033 | AC70: =IF($D70<>"Battery Electric Bus (BEB)",MIN(IF($Q70:$X70>=AC$2,$Q70:$X70)),2021) -> 2033 | AD70: =IF($D70<>"Battery Electric Bus (BEB)",MIN(IF($Q70:$X70>=AD$2,$Q70:$X70)),2021) -> 2033 | AE70: =IF($D70<>"Battery Electric Bus (BEB)",MIN(IF($Q70:$X70>=AE$2,$Q70:$X70)),2021) -> 2033 | AF70: =IF($D70<>"Battery Electric Bus (BEB)",MIN(IF($Q70:$X70>=AF$2,$Q70:$X70)),2021) -> 2033 | AG70: =IF($D70<>"Battery Electric Bus (BEB)",MIN(IF($Q70:$X70>=AG$2,$Q70:$X70)),2021) -> 2033 | AH70: No | AI70: No | AJ70: No | AK70: No | AL70: No | AM70: No | AN70: No | AO70: No | AP70: No | AQ70: No | AR70: No | AS70: Yes | AT70: No | AU70: No | AV70: No | AW70: =IF(OR($Q70=AW$2,$R70=AW$2,$S70=AW$2,$T70=AW$2,$U70=AW$2,$V70=AW$2,$W70=AW$2,$X70=AW$2),"Yes","No") -> No | AX70: No | AY70: No | AZ70: No | BA70: No | BB70: No | BC70: No | BD70: No | BE70: Yes | BF70: No | BG70: No | BH70: No | BI70: No | BJ70: No | BK70: =_xlfn.XLOOKUP($L70,Reference!$A$2:$A$11,Reference!$S$2:$S$11) -> 0.08 | BL70: 950000 | BM70: 874000 | BN70: 804080 | BO70: 739753.6 | BP70: 680573.312 | BQ70: 626127.447 | BR70: =IF(BQ70*(1-$BK70)>$O70,BQ70*(1-$BK70),$O70) -> 576037.2513 | BS70: 529954.2712 | BT70: 500000 | BU70: 500000 | BV70: 500000 | BW70: 500000 | BX70: 500000 | BY70: 500000 | BZ70: 500000 | CA70: 500000 | CB70: 500000 | CC70: 500000 | CD70: 500000 | CE70: 500000 | CF70: 500000 | CG70: 500000 | CH70: 500000 | CI70: 500000 | CJ70: 500000 | CK70: 500000 | CL70: 500000 | CM70: 500000 | CN70: 500000 | CO70: 500000 | CP70: 500000 | CQ70: 500000 | CR70: 500000 | CS70: 500000 | CT70: 500000 | CU70: 500000 | CV70: 500000 | CW70: 500000 | CX70: 500000 | CY70: 500000 | CZ70: 500000 | DA70: 500000 | DB70: 500000 | DC70: 500000 | DD70: 500000 | DE70: 500000 | DF70: 500000 | DG70: 500000 | DH70: 500000 | DI70: 500000 | DJ70: 500000 | DK70: 500000 | DL70: 500000 | DM70: 500000 | DN70: 500000 | DO70: 500000 | DP70: 500000 | DQ70: 500000
A71: City of Aspen | B71: 70 | C71: MB - Bus | D71: Bus (BU) | E71: Hybrid Gasoline | F71: Non-ADA | G71: 1 | H71: 40 | I71: 39 | J71: 2006 | K71: =IF(K$1=Reference!$D$1,_xlfn.XLOOKUP('Fleet Info'!$L71,Reference!$A$2:$A$11,Reference!$D$2:$D$11),IF(K$1=Reference!$E$1,_xlfn.XLOOKUP('Fleet Info'!$L71,Reference!$A$2:$A$11,Reference!$E$2:$E$11),"ERROR")) -> 12 | L71: =IF($D71=Reference!$B$2,Reference!$A$2,IF($D71=Reference!$B$3,IF('Fleet Info'!$H71<=30,Reference!$A$4,Reference!$A$3),IF($D71=Reference!$B$5,IF('Fleet Info'!$I71>20,Reference!$A$5,Reference!$A$6),IF($D71=Reference!$B$7,Reference!$A$7,IF($D71=Reference!$B$8,IF('Fleet Info'!$F71="Non-ADA",Reference!$A$8,Reference!$A$7),IF($D71=Reference!$B$9,IF('Fleet Info'!$F71="Non-ADA",Reference!$A$9,Reference!$A$7),IF($D71=Reference!$B$10,IF('Fleet Info'!$F71="Non-ADA",Reference!$A$10,Reference!$A$7),IF($D71=Reference!$B$11,Reference!$A$11,IF($D71="Battery Electric Bus (BEB)",IF($H71<=30,Reference!$A$4,Reference!$A$3)))))))))) -> 2 | M71: =_xlfn.XLOOKUP(L71,Reference!$A$2:$A$11,Reference!$C$2:$C$11) -> Standard Bus | N71: =_xlfn.XLOOKUP($L71,Reference!$A$2:$A$11,Reference!$J$2:$J$11) -> 950000 | O71: =_xlfn.XLOOKUP($L71,Reference!$A$2:$A$11,Reference!$P$2:$P$11) -> 500000 | P71: =IF(D71="Battery Electric Bus (BEB)",0,_xlfn.XLOOKUP($L71,Reference!$A$2:$A$11,Reference!$O$2:$O$11))*G71 -> 110000 | Q71: 2033 | R71: 2045 | S71: 2057 | T71: 2069 | U71: 2081 | V71: 2093 | W71: 2105 | X71: =W71+$K71 -> 2117 | Y71: =IF($D71<>"Battery Electric Bus (BEB)",MIN(IF($Q71:$X71>=Y$2,$Q71:$X71)),2021) -> 2033 | Z71: =IF($D71<>"Battery Electric Bus (BEB)",MIN(IF($Q71:$X71>=Z$2,$Q71:$X71)),2021) -> 2033 | AA71: =IF($D71<>"Battery Electric Bus (BEB)",MIN(IF($Q71:$X71>=AA$2,$Q71:$X71)),2021) -> 2033 | AB71: =IF($D71<>"Battery Electric Bus (BEB)",MIN(IF($Q71:$X71>=AB$2,$Q71:$X71)),2021) -> 2033 | AC71: =IF($D71<>"Battery Electric Bus (BEB)",MIN(IF($Q71:$X71>=AC$2,$Q71:$X71)),2021) -> 2033 | AD71: =IF($D71<>"Battery Electric Bus (BEB)",MIN(IF($Q71:$X71>=AD$2,$Q71:$X71)),2021) -> 2033 | AE71: =IF($D71<>"Battery Electric Bus (BEB)",MIN(IF($Q71:$X71>=AE$2,$Q71:$X71)),2021) -> 2033 | AF71: =IF($D71<>"Battery Electric Bus (BEB)",MIN(IF($Q71:$X71>=AF$2,$Q71:$X71)),2021) -> 2033 | AG71: =IF($D71<>"Battery Electric Bus (BEB)",MIN(IF($Q71:$X71>=AG$2,$Q71:$X71)),2021) -> 2033 | AH71: =IF(OR($Q71=AH$2,$R71=AH$2,$S71=AH$2,$T71=AH$2,$U71=AH$2,$V71=AH$2,$W71=AH$2,$X71=AH$2),"Yes","No") -> No | AI71: No | AJ71: No | AK71: No | AL71: No | AM71: No | AN71: No | AO71: No | AP71: No | AQ71: No | AR71: No | AS71: Yes | AT71: No | AU71: No | AV71: No | AW71: No | AX71: No | AY71: No | AZ71: No | BA71: No | BB71: No | BC71: No | BD71: No | BE71: Yes | BF71: No | BG71: No | BH71: No | BI71: No | BJ71: No | BK71: =_xlfn.XLOOKUP($L71,Reference!$A$2:$A$11,Reference!$S$2:$S$11) -> 0.08 | BL71: 950000 | BM71: 874000 | BN71: 804080 | BO71: 739753.6 | BP71: 680573.312 | BQ71: 626127.447 | BR71: =IF(BQ71*(1-$BK71)>$O71,BQ71*(1-$BK71),$O71) -> 576037.2513 | BS71: 529954.2712 | BT71: 500000 | BU71: 500000 | BV71: 500000 | BW71: 500000 | BX71: 500000 | BY71: 500000 | BZ71: 500000 | CA71: 500000 | CB71: 500000 | CC71: 500000 | CD71: 500000 | CE71: 500000 | CF71: 500000 | CG71: 500000 | CH71: 500000 | CI71: 500000 | CJ71: 500000 | CK71: 500000 | CL71: 500000 | CM71: 500000 | CN71: 500000 | CO71: 500000 | CP71: 500000 | CQ71: 500000 | CR71: 500000 | CS71: 500000 | CT71: 500000 | CU71: 500000 | CV71: 500000 | CW71: 500000 | CX71: 500000 | CY71: 500000 | CZ71: 500000 | DA71: 500000 | DB71: 500000 | DC71: 500000 | DD71: 500000 | DE71: 500000 | DF71: 500000 | DG71: 500000 | DH71: 500000 | DI71: 500000 | DJ71: 500000 | DK71: 500000 | DL71: 500000 | DM71: 500000 | DN71: 500000 | DO71: 500000 | DP71: 500000 | DQ71: 500000
A72: City of Colorado Springs | B72: 72 | C72: DR | D72: Minivan (MV) | E72: Gasoline | F72: ADA | G72: 2 | H72: 0 | I72: 3 | J72: 2015 | K72: =IF(K$1=Reference!$D$1,_xlfn.XLOOKUP('Fleet Info'!$L72,Reference!$A$2:$A$11,Reference!$D$2:$D$11),IF(K$1=Reference!$E$1,_xlfn.XLOOKUP('Fleet Info'!$L72,Reference!$A$2:$A$11,Reference!$E$2:$E$11),"ERROR")) -> 4 | L72: =IF($D72=Reference!$B$2,Reference!$A$2,IF($D72=Reference!$B$3,IF('Fleet Info'!$H72<=30,Reference!$A$4,Reference!$A$3),IF($D72=Reference!$B$5,IF('Fleet Info'!$I72>20,Reference!$A$5,Reference!$A$6),IF($D72=Reference!$B$7,Reference!$A$7,IF($D72=Reference!$B$8,IF('Fleet Info'!$F72="Non-ADA",Reference!$A$8,Reference!$A$7),IF($D72=Reference!$B$9,IF('Fleet Info'!$F72="Non-ADA",Reference!$A$9,Reference!$A$7),IF($D72=Reference!$B$10,IF('Fleet Info'!$F72="Non-ADA",Reference!$A$10,Reference!$A$7),IF($D72=Reference!$B$11,Reference!$A$11,IF($D72="Battery Electric Bus (BEB)",IF($H72<=30,Reference!$A$4,Reference!$A$3)))))))))) -> 6 | M72: =_xlfn.XLOOKUP(L72,Reference!$A$2:$A$11,Reference!$C$2:$C$11) -> Passenger Van | N72: =_xlfn.XLOOKUP($L72,Reference!$A$2:$A$11,Reference!$J$2:$J$11) -> 100000 | O72: =_xlfn.XLOOKUP($L72,Reference!$A$2:$A$11,Reference!$P$2:$P$11) -> 55000 | P72: =IF(D72="Battery Electric Bus (BEB)",0,_xlfn.XLOOKUP($L72,Reference!$A$2:$A$11,Reference!$O$2:$O$11))*G72 -> 100000 | Q72: 2025 | R72: 2029 | S72: 2033 | T72: 2037 | U72: 2041 | V72: 2045 | W72: 2049 | X72: =W72+$K72 -> 2053 | Y72: =IF($D72<>"Battery Electric Bus (BEB)",MIN(IF($Q72:$X72>=Y$2,$Q72:$X72)),2021) -> 2025 | Z72: =IF($D72<>"Battery Electric Bus (BEB)",MIN(IF($Q72:$X72>=Z$2,$Q72:$X72)),2021) -> 2025 | AA72: =IF($D72<>"Battery Electric Bus (BEB)",MIN(IF($Q72:$X72>=AA$2,$Q72:$X72)),2021) -> 2025 | AB72: =IF($D72<>"Battery Electric Bus (BEB)",MIN(IF($Q72:$X72>=AB$2,$Q72:$X72)),2021) -> 2025 | AC72: =IF($D72<>"Battery Electric Bus (BEB)",MIN(IF($Q72:$X72>=AC$2,$Q72:$X72)),2021) -> 2029 | AD72: =IF($D72<>"Battery Electric Bus (BEB)",MIN(IF($Q72:$X72>=AD$2,$Q72:$X72)),2021) -> 2029 | AE72: =IF($D72<>"Battery Electric Bus (BEB)",MIN(IF($Q72:$X72>=AE$2,$Q72:$X72)),2021) -> 2029 | AF72: =IF($D72<>"Battery Electric Bus (BEB)",MIN(IF($Q72:$X72>=AF$2,$Q72:$X72)),2021) -> 2029 | AG72: =IF($D72<>"Battery Electric Bus (BEB)",MIN(IF($Q72:$X72>=AG$2,$Q72:$X72)),2021) -> 2033 | AH72: No | AI72: No | AJ72: No | AK72: Yes | AL72: No | AM72: No | AN72: No | AO72: Yes | AP72: No | AQ72: No | AR72: No | AS72: Yes | AT72: No | AU72: No | AV72: No | AW72: Yes | AX72: No | AY72: No | AZ72: No | BA72: Yes | BB72: No | BC72: No | BD72: No | BE72: Yes | BF72: No | BG72: No | BH72: No | BI72: Yes | BJ72: No | BK72: =_xlfn.XLOOKUP($L72,Reference!$A$2:$A$11,Reference!$S$2:$S$11) -> 0.08 | BL72: 100000 | BM72: 92000 | BN72: 84640 | BO72: 77868.8 | BP72: 71639.296 | BQ72: 65908.15232 | BR72: =IF(BQ72*(1-$BK72)>$O72,BQ72*(1-$BK72),$O72) -> 60635.50013 | BS72: 55784.66012 | BT72: 55000 | BU72: 55000 | BV72: 55000 | BW72: 55000 | BX72: 55000 | BY72: 55000 | BZ72: 55000 | CA72: 55000 | CB72: 55000 | CC72: 55000 | CD72: 55000 | CE72: 55000 | CF72: 55000 | CG72: 55000 | CH72: 55000 | CI72: 55000 | CJ72: 55000 | CK72: 55000 | CL72: 55000 | CM72: 55000 | CN72: 55000 | CO72: 55000 | CP72: 55000 | CQ72: 55000 | CR72: 55000 | CS72: 55000 | CT72: 55000 | CU72: 55000 | CV72: 55000 | CW72: 55000 | CX72: 55000 | CY72: 55000 | CZ72: 55000 | DA72: 55000 | DB72: 55000 | DC72: 55000 | DD72: 55000 | DE72: 55000 | DF72: 55000 | DG72: 55000 | DH72: 55000 | DI72: 55000 | DJ72: 55000 | DK72: 55000 | DL72: 55000 | DM72: 55000 | DN72: 55000 | DO72: 55000 | DP72: 55000 | DQ72: 55000
A73: City of Colorado Springs | B73: 73 | C73: DR | D73: Sports Utility Vehicle (SV) | E73: Gasoline | F73: Non-ADA | G73: 2 | H73: 0 | I73: 3 | J73: 2013 | K73: =IF(K$1=Reference!$D$1,_xlfn.XLOOKUP('Fleet Info'!$L73,Reference!$A$2:$A$11,Reference!$D$2:$D$11),IF(K$1=Reference!$E$1,_xlfn.XLOOKUP('Fleet Info'!$L73,Reference!$A$2:$A$11,Reference!$E$2:$E$11),"ERROR")) -> 4 | L73: =IF($D73=Reference!$B$2,Reference!$A$2,IF($D73=Reference!$B$3,IF('Fleet Info'!$H73<=30,Reference!$A$4,Reference!$A$3),IF($D73=Reference!$B$5,IF('Fleet Info'!$I73>20,Reference!$A$5,Reference!$A$6),IF($D73=Reference!$B$7,Reference!$A$7,IF($D73=Reference!$B$8,IF('Fleet Info'!$F73="Non-ADA",Reference!$A$8,Reference!$A$7),IF($D73=Reference!$B$9,IF('Fleet Info'!$F73="Non-ADA",Reference!$A$9,Reference!$A$7),IF($D73=Reference!$B$10,IF('Fleet Info'!$F73="Non-ADA",Reference!$A$10,Reference!$A$7),IF($D73=Reference!$B$11,Reference!$A$11,IF($D73="Battery Electric Bus (BEB)",IF($H73<=30,Reference!$A$4,Reference!$A$3)))))))))) -> 9 | M73: =_xlfn.XLOOKUP(L73,Reference!$A$2:$A$11,Reference!$C$2:$C$11) -> Electric SUV | N73: =_xlfn.XLOOKUP($L73,Reference!$A$2:$A$11,Reference!$J$2:$J$11) -> 60000 | O73: =_xlfn.XLOOKUP($L73,Reference!$A$2:$A$11,Reference!$P$2:$P$11) -> 33500 | P73: =IF(D73="Battery Electric Bus (BEB)",0,_xlfn.XLOOKUP($L73,Reference!$A$2:$A$11,Reference!$O$2:$O$11))*G73 -> 100000 | Q73: =IF(J73+K73<=2021,2021+K73,J73+K73) -> 2025 | R73: 2029 | S73: 2033 | T73: 2037 | U73: 2041 | V73: 2045 | W73: 2049 | X73: =W73+$K73 -> 2053 | Y73: =IF($D73<>"Battery Electric Bus (BEB)",MIN(IF($Q73:$X73>=Y$2,$Q73:$X73)),2021) -> 2025 | Z73: =IF($D73<>"Battery Electric Bus (BEB)",MIN(IF($Q73:$X73>=Z$2,$Q73:$X73)),2021) -> 2025 | AA73: =IF($D73<>"Battery Electric Bus (BEB)",MIN(IF($Q73:$X73>=AA$2,$Q73:$X73)),2021) -> 2025 | AB73: =IF($D73<>"Battery Electric Bus (BEB)",MIN(IF($Q73:$X73>=AB$2,$Q73:$X73)),2021) -> 2025 | AC73: =IF($D73<>"Battery Electric Bus (BEB)",MIN(IF($Q73:$X73>=AC$2,$Q73:$X73)),2021) -> 2029 | AD73: =IF($D73<>"Battery Electric Bus (BEB)",MIN(IF($Q73:$X73>=AD$2,$Q73:$X73)),2021) -> 2029 | AE73: =IF($D73<>"Battery Electric Bus (BEB)",MIN(IF($Q73:$X73>=AE$2,$Q73:$X73)),2021) -> 2029 | AF73: =IF($D73<>"Battery Electric Bus (BEB)",MIN(IF($Q73:$X73>=AF$2,$Q73:$X73)),2021) -> 2029 | AG73: =IF($D73<>"Battery Electric Bus (BEB)",MIN(IF($Q73:$X73>=AG$2,$Q73:$X73)),2021) -> 2033 | AH73: No | AI73: No | AJ73: No | AK73: Yes | AL73: No | AM73: No | AN73: No | AO73: Yes | AP73: No | AQ73: No | AR73: No | AS73: Yes | AT73: No | AU73: No | AV73: No | AW73: Yes | AX73: No | AY73: No | AZ73: No | BA73: Yes | BB73: No | BC73: No | BD73: No | BE73: Yes | BF73: No | BG73: No | BH73: No | BI73: Yes | BJ73: No | BK73: =_xlfn.XLOOKUP($L73,Reference!$A$2:$A$11,Reference!$S$2:$S$11) -> 0.08 | BL73: 60000 | BM73: 55200 | BN73: 50784 | BO73: 46721.28 | BP73: 42983.5776 | BQ73: 39544.89139 | BR73: =IF(BQ73*(1-$BK73)>$O73,BQ73*(1-$BK73),$O73) -> 36381.30008 | BS73: 33500 | BT73: 33500 | BU73: 33500 | BV73: 33500 | BW73: 33500 | BX73: 33500 | BY73: 33500 | BZ73: 33500 | CA73: 33500 | CB73: 33500 | CC73: 33500 | CD73: 33500 | CE73: 33500 | CF73: 33500 | CG73: 33500 | CH73: 33500 | CI73: 33500 | CJ73: 33500 | CK73: 33500 | CL73: 33500 | CM73: 33500 | CN73: 33500 | CO73: 33500 | CP73: 33500 | CQ73: 33500 | CR73: 33500 | CS73: 33500 | CT73: 33500 | CU73: 33500 | CV73: 33500 | CW73: 33500 | CX73: 33500 | CY73: 33500 | CZ73: 33500 | DA73: 33500 | DB73: 33500 | DC73: 33500 | DD73: 33500 | DE73: 33500 | DF73: 33500 | DG73: 33500 | DH73: 33500 | DI73: 33500 | DJ73: 33500 | DK73: 33500 | DL73: 33500 | DM73: 33500 | DN73: 33500 | DO73: 33500 | DP73: 33500 | DQ73: 33500
A74: City of Colorado Springs | B74: 74 | C74: DR | D74: Van (VN) | E74: Gasoline | F74: Non-ADA | G74: 1 | H74: 0 | I74: 3 | J74: 2018 | K74: =IF(K$1=Reference!$D$1,_xlfn.XLOOKUP('Fleet Info'!$L74,Reference!$A$2:$A$11,Reference!$D$2:$D$11),IF(K$1=Reference!$E$1,_xlfn.XLOOKUP('Fleet Info'!$L74,Reference!$A$2:$A$11,Reference!$E$2:$E$11),"ERROR")) -> 4 | L74: =IF($D74=Reference!$B$2,Reference!$A$2,IF($D74=Reference!$B$3,IF('Fleet Info'!$H74<=30,Reference!$A$4,Reference!$A$3),IF($D74=Reference!$B$5,IF('Fleet Info'!$I74>20,Reference!$A$5,Reference!$A$6),IF($D74=Reference!$B$7,Reference!$A$7,IF($D74=Reference!$B$8,IF('Fleet Info'!$F74="Non-ADA",Reference!$A$8,Reference!$A$7),IF($D74=Reference!$B$9,IF('Fleet Info'!$F74="Non-ADA",Reference!$A$9,Reference!$A$7),IF($D74=Reference!$B$10,IF('Fleet Info'!$F74="Non-ADA",Reference!$A$10,Reference!$A$7),IF($D74=Reference!$B$11,Reference!$A$11,IF($D74="Battery Electric Bus (BEB)",IF($H74<=30,Reference!$A$4,Reference!$A$3)))))))))) -> 6 | M74: =_xlfn.XLOOKUP(L74,Reference!$A$2:$A$11,Reference!$C$2:$C$11) -> Passenger Van | N74: =_xlfn.XLOOKUP($L74,Reference!$A$2:$A$11,Reference!$J$2:$J$11) -> 100000 | O74: =_xlfn.XLOOKUP($L74,Reference!$A$2:$A$11,Reference!$P$2:$P$11) -> 55000 | P74: =IF(D74="Battery Electric Bus (BEB)",0,_xlfn.XLOOKUP($L74,Reference!$A$2:$A$11,Reference!$O$2:$O$11))*G74 -> 50000 | Q74: 2022 | R74: 2026 | S74: 2030 | T74: 2034 | U74: 2038 | V74: 2042 | W74: 2046 | X74: =W74+$K74 -> 2050 | Y74: =IF($D74<>"Battery Electric Bus (BEB)",MIN(IF($Q74:$X74>=Y$2,$Q74:$X74)),2021) -> 2022 | Z74: =IF($D74<>"Battery Electric Bus (BEB)",MIN(IF($Q74:$X74>=Z$2,$Q74:$X74)),2021) -> 2026 | AA74: =IF($D74<>"Battery Electric Bus (BEB)",MIN(IF($Q74:$X74>=AA$2,$Q74:$X74)),2021) -> 2026 | AB74: =IF($D74<>"Battery Electric Bus (BEB)",MIN(IF($Q74:$X74>=AB$2,$Q74:$X74)),2021) -> 2026 | AC74: =IF($D74<>"Battery Electric Bus (BEB)",MIN(IF($Q74:$X74>=AC$2,$Q74:$X74)),2021) -> 2026 | AD74: =IF($D74<>"Battery Electric Bus (BEB)",MIN(IF($Q74:$X74>=AD$2,$Q74:$X74)),2021) -> 2030 | AE74: =IF($D74<>"Battery Electric Bus (BEB)",MIN(IF($Q74:$X74>=AE$2,$Q74:$X74)),2021) -> 2030 | AF74: =IF($D74<>"Battery Electric Bus (BEB)",MIN(IF($Q74:$X74>=AF$2,$Q74:$X74)),2021) -> 2030 | AG74: =IF($D74<>"Battery Electric Bus (BEB)",MIN(IF($Q74:$X74>=AG$2,$Q74:$X74)),2021) -> 2030 | AH74: Yes | AI74: No | AJ74: No | AK74: No | AL74: Yes | AM74: No | AN74: No | AO74: No | AP74: Yes | AQ74: No | AR74: No | AS74: No | AT74: Yes | AU74: No | AV74: No | AW74: No | AX74: Yes | AY74: No | AZ74: No | BA74: No | BB74: Yes | BC74: No | BD74: No | BE74: No | BF74: Yes | BG74: No | BH74: No | BI74: No | BJ74: Yes | BK74: =_xlfn.XLOOKUP($L74,Reference!$A$2:$A$11,Reference!$S$2:$S$11) -> 0.08 | BL74: 100000 | BM74: 92000 | BN74: 84640 | BO74: 77868.8 | BP74: 71639.296 | BQ74: 65908.15232 | BR74: =IF(BQ74*(1-$BK74)>$O74,BQ74*(1-$BK74),$O74) -> 60635.50013 | BS74: 55784.66012 | BT74: 55000 | BU74: 55000 | BV74: 55000 | BW74: 55000 | BX74: 55000 | BY74: 55000 | BZ74: 55000 | CA74: 55000 | CB74: 55000 | CC74: 55000 | CD74: 55000 | CE74: 55000 | CF74: 55000 | CG74: 55000 | CH74: 55000 | CI74: 55000 | CJ74: 55000 | CK74: 55000 | CL74: 55000 | CM74: 55000 | CN74: 55000 | CO74: 55000 | CP74: 55000 | CQ74: 55000 | CR74: 55000 | CS74: 55000 | CT74: 55000 | CU74: 55000 | CV74: 55000 | CW74: 55000 | CX74: 55000 | CY74: 55000 | CZ74: 55000 | DA74: 55000 | DB74: 55000 | DC74: 55000 | DD74: 55000 | DE74: 55000 | DF74: 55000 | DG74: 55000 | DH74: 55000 | DI74: 55000 | DJ74: 55000 | DK74: 55000 | DL74: 55000 | DM74: 55000 | DN74: 55000 | DO74: 55000 | DP74: 55000 | DQ74: 55000
A75: City of Colorado Springs | B75: 75 | C75: DR | D75: Minivan (MV) | E75: Gasoline | F75: ADA | G75: 2 | H75: 0 | I75: 4 | J75: 2013 | K75: =IF(K$1=Reference!$D$1,_xlfn.XLOOKUP('Fleet Info'!$L75,Reference!$A$2:$A$11,Reference!$D$2:$D$11),IF(K$1=Reference!$E$1,_xlfn.XLOOKUP('Fleet Info'!$L75,Reference!$A$2:$A$11,Reference!$E$2:$E$11),"ERROR")) -> 4 | L75: =IF($D75=Reference!$B$2,Reference!$A$2,IF($D75=Reference!$B$3,IF('Fleet Info'!$H75<=30,Reference!$A$4,Reference!$A$3),IF($D75=Reference!$B$5,IF('Fleet Info'!$I75>20,Reference!$A$5,Reference!$A$6),IF($D75=Reference!$B$7,Reference!$A$7,IF($D75=Reference!$B$8,IF('Fleet Info'!$F75="Non-ADA",Reference!$A$8,Reference!$A$7),IF($D75=Reference!$B$9,IF('Fleet Info'!$F75="Non-ADA",Reference!$A$9,Reference!$A$7),IF($D75=Reference!$B$10,IF('Fleet Info'!$F75="Non-ADA",Reference!$A$10,Reference!$A$7),IF($D75=Reference!$B$11,Reference!$A$11,IF($D75="Battery Electric Bus (BEB)",IF($H75<=30,Reference!$A$4,Reference!$A$3)))))))))) -> 6 | M75: =_xlfn.XLOOKUP(L75,Reference!$A$2:$A$11,Reference!$C$2:$C$11) -> Passenger Van | N75: =_xlfn.XLOOKUP($L75,Reference!$A$2:$A$11,Reference!$J$2:$J$11) -> 100000 | O75: =_xlfn.XLOOKUP($L75,Reference!$A$2:$A$11,Reference!$P$2:$P$11) -> 55000 | P75: =IF(D75="Battery Electric Bus (BEB)",0,_xlfn.XLOOKUP($L75,Reference!$A$2:$A$11,Reference!$O$2:$O$11))*G75 -> 100000 | Q75: =IF(J75+K75<=2021,2021+K75,J75+K75) -> 2025 | R75: 2029 | S75: 2033 | T75: 2037 | U75: 2041 | V75: 2045 | W75: 2049 | X75: =W75+$K75 -> 2053 | Y75: =IF($D75<>"Battery Electric Bus (BEB)",MIN(IF($Q75:$X75>=Y$2,$Q75:$X75)),2021) -> 2025 | Z75: =IF($D75<>"Battery Electric Bus (BEB)",MIN(IF($Q75:$X75>=Z$2,$Q75:$X75)),2021) -> 2025 | AA75: =IF($D75<>"Battery Electric Bus (BEB)",MIN(IF($Q75:$X75>=AA$2,$Q75:$X75)),2021) -> 2025 | AB75: =IF($D75<>"Battery Electric Bus (BEB)",MIN(IF($Q75:$X75>=AB$2,$Q75:$X75)),2021) -> 2025 | AC75: =IF($D75<>"Battery Electric Bus (BEB)",MIN(IF($Q75:$X75>=AC$2,$Q75:$X75)),2021) -> 2029 | AD75: =IF($D75<>"Battery Electric Bus (BEB)",MIN(IF($Q75:$X75>=AD$2,$Q75:$X75)),2021) -> 2029 | AE75: =IF($D75<>"Battery Electric Bus (BEB)",MIN(IF($Q75:$X75>=AE$2,$Q75:$X75)),2021) -> 2029 | AF75: =IF($D75<>"Battery Electric Bus (BEB)",MIN(IF($Q75:$X75>=AF$2,$Q75:$X75)),2021) -> 2029 | AG75: =IF($D75<>"Battery Electric Bus (BEB)",MIN(IF($Q75:$X75>=AG$2,$Q75:$X75)),2021) -> 2033 | AH75: No | AI75: No | AJ75: No | AK75: Yes | AL75: No | AM75: No | AN75: No | AO75: Yes | AP75: No | AQ75: No | AR75: No | AS75: Yes | AT75: No | AU75: No | AV75: No | AW75: Yes | AX75: No | AY75: No | AZ75: No | BA75: Yes | BB75: No | BC75: No | BD75: No | BE75: Yes | BF75: No | BG75: No | BH75: No | BI75: Yes | BJ75: No | BK75: =_xlfn.XLOOKUP($L75,Reference!$A$2:$A$11,Reference!$S$2:$S$11) -> 0.08 | BL75: 100000 | BM75: 92000 | BN75: 84640 | BO75: 77868.8 | BP75: 71639.296 | BQ75: 65908.15232 | BR75: =IF(BQ75*(1-$BK75)>$O75,BQ75*(1-$BK75),$O75) -> 60635.50013 | BS75: 55784.66012 | BT75: 55000 | BU75: 55000 | BV75: 55000 | BW75: 55000 | BX75: 55000 | BY75: 55000 | BZ75: 55000 | CA75: 55000 | CB75: 55000 | CC75: 55000 | CD75: 55000 | CE75: 55000 | CF75: 55000 | CG75: 55000 | CH75: 55000 | CI75: 55000 | CJ75: 55000 | CK75: 55000 | CL75: 55000 | CM75: 55000 | CN75: 55000 | CO75: 55000 | CP75: 55000 | CQ75: 55000 | CR75: 55000 | CS75: 55000 | CT75: 55000 | CU75: 55000 | CV75: 55000 | CW75: 55000 | CX75: 55000 | CY75: 55000 | CZ75: 55000 | DA75: 55000 | DB75: 55000 | DC75: 55000 | DD75: 55000 | DE75: 55000 | DF75: 55000 | DG75: 55000 | DH75: 55000 | DI75: 55000 | DJ75: 55000 | DK75: 55000 | DL75: 55000 | DM75: 55000 | DN75: 55000 | DO75: 55000 | DP75: 55000 | DQ75: 55000
A76: City of Colorado Springs | B76: 76 | C76: DR | D76: Automobile (AO) | E76: Gasoline | F76: Non-ADA | G76: 2 | H76: 0 | I76: 5 | J76: 2016 | K76: =IF(K$1=Reference!$D$1,_xlfn.XLOOKUP('Fleet Info'!$L76,Reference!$A$2:$A$11,Reference!$D$2:$D$11),IF(K$1=Reference!$E$1,_xlfn.XLOOKUP('Fleet Info'!$L76,Reference!$A$2:$A$11,Reference!$E$2:$E$11),"ERROR")) -> 4 | L76: =IF($D76=Reference!$B$2,Reference!$A$2,IF($D76=Reference!$B$3,IF('Fleet Info'!$H76<=30,Reference!$A$4,Reference!$A$3),IF($D76=Reference!$B$5,IF('Fleet Info'!$I76>20,Reference!$A$5,Reference!$A$6),IF($D76=Reference!$B$7,Reference!$A$7,IF($D76=Reference!$B$8,IF('Fleet Info'!$F76="Non-ADA",Reference!$A$8,Reference!$A$7),IF($D76=Reference!$B$9,IF('Fleet Info'!$F76="Non-ADA",Reference!$A$9,Reference!$A$7),IF($D76=Reference!$B$10,IF('Fleet Info'!$F76="Non-ADA",Reference!$A$10,Reference!$A$7),IF($D76=Reference!$B$11,Reference!$A$11,IF($D76="Battery Electric Bus (BEB)",IF($H76<=30,Reference!$A$4,Reference!$A$3)))))))))) -> 7 | M76: =_xlfn.XLOOKUP(L76,Reference!$A$2:$A$11,Reference!$C$2:$C$11) -> Electric SUV | N76: =_xlfn.XLOOKUP($L76,Reference!$A$2:$A$11,Reference!$J$2:$J$11) -> 60000 | O76: =_xlfn.XLOOKUP($L76,Reference!$A$2:$A$11,Reference!$P$2:$P$11) -> 30000 | P76: =IF(D76="Battery Electric Bus (BEB)",0,_xlfn.XLOOKUP($L76,Reference!$A$2:$A$11,Reference!$O$2:$O$11))*G76 -> 100000 | Q76: 2025 | R76: 2029 | S76: 2033 | T76: 2037 | U76: 2041 | V76: 2045 | W76: 2049 | X76: =W76+$K76 -> 2053 | Y76: =IF($D76<>"Battery Electric Bus (BEB)",MIN(IF($Q76:$X76>=Y$2,$Q76:$X76)),2021) -> 2025 | Z76: =IF($D76<>"Battery Electric Bus (BEB)",MIN(IF($Q76:$X76>=Z$2,$Q76:$X76)),2021) -> 2025 | AA76: =IF($D76<>"Battery Electric Bus (BEB)",MIN(IF($Q76:$X76>=AA$2,$Q76:$X76)),2021) -> 2025 | AB76: =IF($D76<>"Battery Electric Bus (BEB)",MIN(IF($Q76:$X76>=AB$2,$Q76:$X76)),2021) -> 2025 | AC76: =IF($D76<>"Battery Electric Bus (BEB)",MIN(IF($Q76:$X76>=AC$2,$Q76:$X76)),2021) -> 2029 | AD76: =IF($D76<>"Battery Electric Bus (BEB)",MIN(IF($Q76:$X76>=AD$2,$Q76:$X76)),2021) -> 2029 | AE76: =IF($D76<>"Battery Electric Bus (BEB)",MIN(IF($Q76:$X76>=AE$2,$Q76:$X76)),2021) -> 2029 | AF76: =IF($D76<>"Battery Electric Bus (BEB)",MIN(IF($Q76:$X76>=AF$2,$Q76:$X76)),2021) -> 2029 | AG76: =IF($D76<>"Battery Electric Bus (BEB)",MIN(IF($Q76:$X76>=AG$2,$Q76:$X76)),2021) -> 2033 | AH76: No | AI76: No | AJ76: No | AK76: Yes | AL76: No | AM76: No | AN76: No | AO76: Yes | AP76: No | AQ76: No | AR76: No | AS76: Yes | AT76: No | AU76: No | AV76: No | AW76: Yes | AX76: No | AY76: No | AZ76: No | BA76: Yes | BB76: No | BC76: No | BD76: No | BE76: Yes | BF76: No | BG76: No | BH76: No | BI76: Yes | BJ76: No | BK76: =_xlfn.XLOOKUP($L76,Reference!$A$2:$A$11,Reference!$S$2:$S$11) -> 0.08 | BL76: 60000 | BM76: 55200 | BN76: 50784 | BO76: 46721.28 | BP76: 42983.5776 | BQ76: 39544.89139 | BR76: =IF(BQ76*(1-$BK76)>$O76,BQ76*(1-$BK76),$O76) -> 36381.30008 | BS76: 33470.79607 | BT76: 30793.13239 | BU76: 30000 | BV76: 30000 | BW76: 30000 | BX76: 30000 | BY76: 30000 | BZ76: 30000 | CA76: 30000 | CB76: 30000 | CC76: 30000 | CD76: 30000 | CE76: 30000 | CF76: 30000 | CG76: 30000 | CH76: 30000 | CI76: 30000 | CJ76: 30000 | CK76: 30000 | CL76: 30000 | CM76: 30000 | CN76: 30000 | CO76: 30000 | CP76: 30000 | CQ76: 30000 | CR76: 30000 | CS76: 30000 | CT76: 30000 | CU76: 30000 | CV76: 30000 | CW76: 30000 | CX76: 30000 | CY76: 30000 | CZ76: 30000 | DA76: 30000 | DB76: 30000 | DC76: 30000 | DD76: 30000 | DE76: 30000 | DF76: 30000 | DG76: 30000 | DH76: 30000 | DI76: 30000 | DJ76: 30000 | DK76: 30000 | DL76: 30000 | DM76: 30000 | DN76: 30000 | DO76: 30000 | DP76: 30000 | DQ76: 30000
A77: City of Colorado Springs | B77: 77 | C77: DR | D77: Van (VN) | E77: Gasoline | F77: ADA | G77: 1 | H77: 0 | I77: 5 | J77: 2017 | K77: =IF(K$1=Reference!$D$1,_xlfn.XLOOKUP('Fleet Info'!$L77,Reference!$A$2:$A$11,Reference!$D$2:$D$11),IF(K$1=Reference!$E$1,_xlfn.XLOOKUP('Fleet Info'!$L77,Reference!$A$2:$A$11,Reference!$E$2:$E$11),"ERROR")) -> 4 | L77: =IF($D77=Reference!$B$2,Reference!$A$2,IF($D77=Reference!$B$3,IF('Fleet Info'!$H77<=30,Reference!$A$4,Reference!$A$3),IF($D77=Reference!$B$5,IF('Fleet Info'!$I77>20,Reference!$A$5,Reference!$A$6),IF($D77=Reference!$B$7,Reference!$A$7,IF($D77=Reference!$B$8,IF('Fleet Info'!$F77="Non-ADA",Reference!$A$8,Reference!$A$7),IF($D77=Reference!$B$9,IF('Fleet Info'!$F77="Non-ADA",Reference!$A$9,Reference!$A$7),IF($D77=Reference!$B$10,IF('Fleet Info'!$F77="Non-ADA",Reference!$A$10,Reference!$A$7),IF($D77=Reference!$B$11,Reference!$A$11,IF($D77="Battery Electric Bus (BEB)",IF($H77<=30,Reference!$A$4,Reference!$A$3)))))))))) -> 6 | M77: =_xlfn.XLOOKUP(L77,Reference!$A$2:$A$11,Reference!$C$2:$C$11) -> Passenger Van | N77: =_xlfn.XLOOKUP($L77,Reference!$A$2:$A$11,Reference!$J$2:$J$11) -> 100000 | O77: =_xlfn.XLOOKUP($L77,Reference!$A$2:$A$11,Reference!$P$2:$P$11) -> 55000 | P77: =IF(D77="Battery Electric Bus (BEB)",0,_xlfn.XLOOKUP($L77,Reference!$A$2:$A$11,Reference!$O$2:$O$11))*G77 -> 50000 | Q77: 2021 | R77: 2025 | S77: 2029 | T77: 2033 | U77: 2037 | V77: 2041 | W77: 2045 | X77: =W77+$K77 -> 2049 | Y77: =IF($D77<>"Battery Electric Bus (BEB)",MIN(IF($Q77:$X77>=Y$2,$Q77:$X77)),2021) -> 2025 | Z77: =IF($D77<>"Battery Electric Bus (BEB)",MIN(IF($Q77:$X77>=Z$2,$Q77:$X77)),2021) -> 2025 | AA77: =IF($D77<>"Battery Electric Bus (BEB)",MIN(IF($Q77:$X77>=AA$2,$Q77:$X77)),2021) -> 2025 | AB77: =IF($D77<>"Battery Electric Bus (BEB)",MIN(IF($Q77:$X77>=AB$2,$Q77:$X77)),2021) -> 2025 | AC77: =IF($D77<>"Battery Electric Bus (BEB)",MIN(IF($Q77:$X77>=AC$2,$Q77:$X77)),2021) -> 2029 | AD77: =IF($D77<>"Battery Electric Bus (BEB)",MIN(IF($Q77:$X77>=AD$2,$Q77:$X77)),2021) -> 2029 | AE77: =IF($D77<>"Battery Electric Bus (BEB)",MIN(IF($Q77:$X77>=AE$2,$Q77:$X77)),2021) -> 2029 | AF77: =IF($D77<>"Battery Electric Bus (BEB)",MIN(IF($Q77:$X77>=AF$2,$Q77:$X77)),2021) -> 2029 | AG77: =IF($D77<>"Battery Electric Bus (BEB)",MIN(IF($Q77:$X77>=AG$2,$Q77:$X77)),2021) -> 2033 | AH77: No | AI77: No | AJ77: No | AK77: Yes | AL77: No | AM77: No | AN77: No | AO77: Yes | AP77: No | AQ77: No | AR77: No | AS77: Yes | AT77: No | AU77: No | AV77: No | AW77: Yes | AX77: No | AY77: No | AZ77: No | BA77: Yes | BB77: No | BC77: No | BD77: No | BE77: Yes | BF77: No | BG77: No | BH77: No | BI77: Yes | BJ77: No | BK77: =_xlfn.XLOOKUP($L77,Reference!$A$2:$A$11,Reference!$S$2:$S$11) -> 0.08 | BL77: 100000 | BM77: 92000 | BN77: 84640 | BO77: 77868.8 | BP77: 71639.296 | BQ77: 65908.15232 | BR77: =IF(BQ77*(1-$BK77)>$O77,BQ77*(1-$BK77),$O77) -> 60635.50013 | BS77: 55784.66012 | BT77: 55000 | BU77: 55000 | BV77: 55000 | BW77: 55000 | BX77: 55000 | BY77: 55000 | BZ77: 55000 | CA77: 55000 | CB77: 55000 | CC77: 55000 | CD77: 55000 | CE77: 55000 | CF77: 55000 | CG77: 55000 | CH77: 55000 | CI77: 55000 | CJ77: 55000 | CK77: 55000 | CL77: 55000 | CM77: 55000 | CN77: 55000 | CO77: 55000 | CP77: 55000 | CQ77: 55000 | CR77: 55000 | CS77: 55000 | CT77: 55000 | CU77: 55000 | CV77: 55000 | CW77: 55000 | CX77: 55000 | CY77: 55000 | CZ77: 55000 | DA77: 55000 | DB77: 55000 | DC77: 55000 | DD77: 55000 | DE77: 55000 | DF77: 55000 | DG77: 55000 | DH77: 55000 | DI77: 55000 | DJ77: 55000 | DK77: 55000 | DL77: 55000 | DM77: 55000 | DN77: 55000 | DO77: 55000 | DP77: 55000 | DQ77: 55000
A78: City of Colorado Springs | B78: 78 | C78: DR | D78: Cutaway (CU) | E78: Gasoline | F78: ADA | G78: 14 | H78: 20 | I78: 7 | J78: 2017 | K78: =IF(K$1=Reference!$D$1,_xlfn.XLOOKUP('Fleet Info'!$L78,Reference!$A$2:$A$11,Reference!$D$2:$D$11),IF(K$1=Reference!$E$1,_xlfn.XLOOKUP('Fleet Info'!$L78,Reference!$A$2:$A$11,Reference!$E$2:$E$11),"ERROR")) -> 5 | L78: =IF($D78=Reference!$B$2,Reference!$A$2,IF($D78=Reference!$B$3,IF('Fleet Info'!$H78<=30,Reference!$A$4,Reference!$A$3),IF($D78=Reference!$B$5,IF('Fleet Info'!$I78>20,Reference!$A$5,Reference!$A$6),IF($D78=Reference!$B$7,Reference!$A$7,IF($D78=Reference!$B$8,IF('Fleet Info'!$F78="Non-ADA",Reference!$A$8,Reference!$A$7),IF($D78=Reference!$B$9,IF('Fleet Info'!$F78="Non-ADA",Reference!$A$9,Reference!$A$7),IF($D78=Reference!$B$10,IF('Fleet Info'!$F78="Non-ADA",Reference!$A$10,Reference!$A$7),IF($D78=Reference!$B$11,Reference!$A$11,IF($D78="Battery Electric Bus (BEB)",IF($H78<=30,Reference!$A$4,Reference!$A$3)))))))))) -> 5 | M78: =_xlfn.XLOOKUP(L78,Reference!$A$2:$A$11,Reference!$C$2:$C$11) -> Standard Cutaway | N78: =_xlfn.XLOOKUP($L78,Reference!$A$2:$A$11,Reference!$J$2:$J$11) -> 170000 | O78: =_xlfn.XLOOKUP($L78,Reference!$A$2:$A$11,Reference!$P$2:$P$11) -> 88000 | P78: =IF(D78="Battery Electric Bus (BEB)",0,_xlfn.XLOOKUP($L78,Reference!$A$2:$A$11,Reference!$O$2:$O$11))*G78 -> 700000 | Q78: 2022 | R78: 2027 | S78: 2032 | T78: 2037 | U78: 2042 | V78: 2047 | W78: 2052 | X78: =W78+$K78 -> 2057 | Y78: =IF($D78<>"Battery Electric Bus (BEB)",MIN(IF($Q78:$X78>=Y$2,$Q78:$X78)),2021) -> 2022 | Z78: =IF($D78<>"Battery Electric Bus (BEB)",MIN(IF($Q78:$X78>=Z$2,$Q78:$X78)),2021) -> 2027 | AA78: =IF($D78<>"Battery Electric Bus (BEB)",MIN(IF($Q78:$X78>=AA$2,$Q78:$X78)),2021) -> 2027 | AB78: =IF($D78<>"Battery Electric Bus (BEB)",MIN(IF($Q78:$X78>=AB$2,$Q78:$X78)),2021) -> 2027 | AC78: =IF($D78<>"Battery Electric Bus (BEB)",MIN(IF($Q78:$X78>=AC$2,$Q78:$X78)),2021) -> 2027 | AD78: =IF($D78<>"Battery Electric Bus (BEB)",MIN(IF($Q78:$X78>=AD$2,$Q78:$X78)),2021) -> 2027 | AE78: =IF($D78<>"Battery Electric Bus (BEB)",MIN(IF($Q78:$X78>=AE$2,$Q78:$X78)),2021) -> 2032 | AF78: =IF($D78<>"Battery Electric Bus (BEB)",MIN(IF($Q78:$X78>=AF$2,$Q78:$X78)),2021) -> 2032 | AG78: =IF($D78<>"Battery Electric Bus (BEB)",MIN(IF($Q78:$X78>=AG$2,$Q78:$X78)),2021) -> 2032 | AH78: Yes | AI78: No | AJ78: No | AK78: No | AL78: No | AM78: Yes | AN78: No | AO78: No | AP78: No | AQ78: No | AR78: Yes | AS78: No | AT78: No | AU78: No | AV78: No | AW78: Yes | AX78: No | AY78: No | AZ78: No | BA78: No | BB78: Yes | BC78: No | BD78: No | BE78: No | BF78: No | BG78: Yes | BH78: No | BI78: No | BJ78: No | BK78: =_xlfn.XLOOKUP($L78,Reference!$A$2:$A$11,Reference!$S$2:$S$11) -> 0.08 | BL78: 170000 | BM78: 156400 | BN78: 143888 | BO78: 132376.96 | BP78: 121786.8032 | BQ78: 112043.8589 | BR78: =IF(BQ78*(1-$BK78)>$O78,BQ78*(1-$BK78),$O78) -> 103080.3502 | BS78: 94833.92221 | BT78: 88000 | BU78: 88000 | BV78: 88000 | BW78: 88000 | BX78: 88000 | BY78: 88000 | BZ78: 88000 | CA78: 88000 | CB78: 88000 | CC78: 88000 | CD78: 88000 | CE78: 88000 | CF78: 88000 | CG78: 88000 | CH78: 88000 | CI78: 88000 | CJ78: 88000 | CK78: 88000 | CL78: 88000 | CM78: 88000 | CN78: 88000 | CO78: 88000 | CP78: 88000 | CQ78: 88000 | CR78: 88000 | CS78: 88000 | CT78: 88000 | CU78: 88000 | CV78: 88000 | CW78: 88000 | CX78: 88000 | CY78: 88000 | CZ78: 88000 | DA78: 88000 | DB78: 88000 | DC78: 88000 | DD78: 88000 | DE78: 88000 | DF78: 88000 | DG78: 88000 | DH78: 88000 | DI78: 88000 | DJ78: 88000 | DK78: 88000 | DL78: 88000 | DM78: 88000 | DN78: 88000 | DO78: 88000 | DP78: 88000 | DQ78: 88000
A79: City of Colorado Springs | B79: 79 | C79: DR | D79: Van (VN) | E79: Gasoline | F79: Non-ADA | G79: 1 | H79: 0 | I79: 7 | J79: 2013 | K79: =IF(K$1=Reference!$D$1,_xlfn.XLOOKUP('Fleet Info'!$L79,Reference!$A$2:$A$11,Reference!$D$2:$D$11),IF(K$1=Reference!$E$1,_xlfn.XLOOKUP('Fleet Info'!$L79,Reference!$A$2:$A$11,Reference!$E$2:$E$11),"ERROR")) -> 4 | L79: =IF($D79=Reference!$B$2,Reference!$A$2,IF($D79=Reference!$B$3,IF('Fleet Info'!$H79<=30,Reference!$A$4,Reference!$A$3),IF($D79=Reference!$B$5,IF('Fleet Info'!$I79>20,Reference!$A$5,Reference!$A$6),IF($D79=Reference!$B$7,Reference!$A$7,IF($D79=Reference!$B$8,IF('Fleet Info'!$F79="Non-ADA",Reference!$A$8,Reference!$A$7),IF($D79=Reference!$B$9,IF('Fleet Info'!$F79="Non-ADA",Reference!$A$9,Reference!$A$7),IF($D79=Reference!$B$10,IF('Fleet Info'!$F79="Non-ADA",Reference!$A$10,Reference!$A$7),IF($D79=Reference!$B$11,Reference!$A$11,IF($D79="Battery Electric Bus (BEB)",IF($H79<=30,Reference!$A$4,Reference!$A$3)))))))))) -> 6 | M79: =_xlfn.XLOOKUP(L79,Reference!$A$2:$A$11,Reference!$C$2:$C$11) -> Passenger Van | N79: =_xlfn.XLOOKUP($L79,Reference!$A$2:$A$11,Reference!$J$2:$J$11) -> 100000 | O79: =_xlfn.XLOOKUP($L79,Reference!$A$2:$A$11,Reference!$P$2:$P$11) -> 55000 | P79: =IF(D79="Battery Electric Bus (BEB)",0,_xlfn.XLOOKUP($L79,Reference!$A$2:$A$11,Reference!$O$2:$O$11))*G79 -> 50000 | Q79: =IF(J79+K79<=2021,2021+K79,J79+K79) -> 2025 | R79: 2029 | S79: 2033 | T79: 2037 | U79: 2041 | V79: 2045 | W79: 2049 | X79: =W79+$K79 -> 2053 | Y79: =IF($D79<>"Battery Electric Bus (BEB)",MIN(IF($Q79:$X79>=Y$2,$Q79:$X79)),2021) -> 2025 | Z79: =IF($D79<>"Battery Electric Bus (BEB)",MIN(IF($Q79:$X79>=Z$2,$Q79:$X79)),2021) -> 2025 | AA79: =IF($D79<>"Battery Electric Bus (BEB)",MIN(IF($Q79:$X79>=AA$2,$Q79:$X79)),2021) -> 2025 | AB79: =IF($D79<>"Battery Electric Bus (BEB)",MIN(IF($Q79:$X79>=AB$2,$Q79:$X79)),2021) -> 2025 | AC79: =IF($D79<>"Battery Electric Bus (BEB)",MIN(IF($Q79:$X79>=AC$2,$Q79:$X79)),2021) -> 2029 | AD79: =IF($D79<>"Battery Electric Bus (BEB)",MIN(IF($Q79:$X79>=AD$2,$Q79:$X79)),2021) -> 2029 | AE79: =IF($D79<>"Battery Electric Bus (BEB)",MIN(IF($Q79:$X79>=AE$2,$Q79:$X79)),2021) -> 2029 | AF79: =IF($D79<>"Battery Electric Bus (BEB)",MIN(IF($Q79:$X79>=AF$2,$Q79:$X79)),2021) -> 2029 | AG79: =IF($D79<>"Battery Electric Bus (BEB)",MIN(IF($Q79:$X79>=AG$2,$Q79:$X79)),2021) -> 2033 | AH79: No | AI79: No | AJ79: No | AK79: Yes | AL79: No | AM79: No | AN79: No | AO79: Yes | AP79: No | AQ79: No | AR79: No | AS79: Yes | AT79: No | AU79: No | AV79: No | AW79: Yes | AX79: No | AY79: No | AZ79: No | BA79: Yes | BB79: No | BC79: No | BD79: No | BE79: Yes | BF79: No | BG79: No | BH79: No | BI79: Yes | BJ79: No | BK79: =_xlfn.XLOOKUP($L79,Reference!$A$2:$A$11,Reference!$S$2:$S$11) -> 0.08 | BL79: 100000 | BM79: 92000 | BN79: 84640 | BO79: 77868.8 | BP79: 71639.296 | BQ79: 65908.15232 | BR79: =IF(BQ79*(1-$BK79)>$O79,BQ79*(1-$BK79),$O79) -> 60635.50013 | BS79: 55784.66012 | BT79: 55000 | BU79: 55000 | BV79: 55000 | BW79: 55000 | BX79: 55000 | BY79: 55000 | BZ79: 55000 | CA79: 55000 | CB79: 55000 | CC79: 55000 | CD79: 55000 | CE79: 55000 | CF79: 55000 | CG79: 55000 | CH79: 55000 | CI79: 55000 | CJ79: 55000 | CK79: 55000 | CL79: 55000 | CM79: 55000 | CN79: 55000 | CO79: 55000 | CP79: 55000 | CQ79: 55000 | CR79: 55000 | CS79: 55000 | CT79: 55000 | CU79: 55000 | CV79: 55000 | CW79: 55000 | CX79: 55000 | CY79: 55000 | CZ79: 55000 | DA79: 55000 | DB79: 55000 | DC79: 55000 | DD79: 55000 | DE79: 55000 | DF79: 55000 | DG79: 55000 | DH79: 55000 | DI79: 55000 | DJ79: 55000 | DK79: 55000 | DL79: 55000 | DM79: 55000 | DN79: 55000 | DO79: 55000 | DP79: 55000 | DQ79: 55000
A80: City of Colorado Springs | B80: 80 | C80: DR | D80: Van (VN) | E80: Gasoline | F80: Non-ADA | G80: 1 | H80: 0 | I80: 7 | J80: 2013 | K80: =IF(K$1=Reference!$D$1,_xlfn.XLOOKUP('Fleet Info'!$L80,Reference!$A$2:$A$11,Reference!$D$2:$D$11),IF(K$1=Reference!$E$1,_xlfn.XLOOKUP('Fleet Info'!$L80,Reference!$A$2:$A$11,Reference!$E$2:$E$11),"ERROR")) -> 4 | L80: =IF($D80=Reference!$B$2,Reference!$A$2,IF($D80=Reference!$B$3,IF('Fleet Info'!$H80<=30,Reference!$A$4,Reference!$A$3),IF($D80=Reference!$B$5,IF('Fleet Info'!$I80>20,Reference!$A$5,Reference!$A$6),IF($D80=Reference!$B$7,Reference!$A$7,IF($D80=Reference!$B$8,IF('Fleet Info'!$F80="Non-ADA",Reference!$A$8,Reference!$A$7),IF($D80=Reference!$B$9,IF('Fleet Info'!$F80="Non-ADA",Reference!$A$9,Reference!$A$7),IF($D80=Reference!$B$10,IF('Fleet Info'!$F80="Non-ADA",Reference!$A$10,Reference!$A$7),IF($D80=Reference!$B$11,Reference!$A$11,IF($D80="Battery Electric Bus (BEB)",IF($H80<=30,Reference!$A$4,Reference!$A$3)))))))))) -> 6 | M80: =_xlfn.XLOOKUP(L80,Reference!$A$2:$A$11,Reference!$C$2:$C$11) -> Passenger Van | N80: =_xlfn.XLOOKUP($L80,Reference!$A$2:$A$11,Reference!$J$2:$J$11) -> 100000 | O80: =_xlfn.XLOOKUP($L80,Reference!$A$2:$A$11,Reference!$P$2:$P$11) -> 55000 | P80: =IF(D80="Battery Electric Bus (BEB)",0,_xlfn.XLOOKUP($L80,Reference!$A$2:$A$11,Reference!$O$2:$O$11))*G80 -> 50000 | Q80: 2025 | R80: 2029 | S80: 2033 | T80: 2037 | U80: 2041 | V80: 2045 | W80: 2049 | X80: =W80+$K80 -> 2053 | Y80: =IF($D80<>"Battery Electric Bus (BEB)",MIN(IF($Q80:$X80>=Y$2,$Q80:$X80)),2021) -> 2025 | Z80: =IF($D80<>"Battery Electric Bus (BEB)",MIN(IF($Q80:$X80>=Z$2,$Q80:$X80)),2021) -> 2025 | AA80: =IF($D80<>"Battery Electric Bus (BEB)",MIN(IF($Q80:$X80>=AA$2,$Q80:$X80)),2021) -> 2025 | AB80: =IF($D80<>"Battery Electric Bus (BEB)",MIN(IF($Q80:$X80>=AB$2,$Q80:$X80)),2021) -> 2025 | AC80: =IF($D80<>"Battery Electric Bus (BEB)",MIN(IF($Q80:$X80>=AC$2,$Q80:$X80)),2021) -> 2029 | AD80: =IF($D80<>"Battery Electric Bus (BEB)",MIN(IF($Q80:$X80>=AD$2,$Q80:$X80)),2021) -> 2029 | AE80: =IF($D80<>"Battery Electric Bus (BEB)",MIN(IF($Q80:$X80>=AE$2,$Q80:$X80)),2021) -> 2029 | AF80: =IF($D80<>"Battery Electric Bus (BEB)",MIN(IF($Q80:$X80>=AF$2,$Q80:$X80)),2021) -> 2029 | AG80: =IF($D80<>"Battery Electric Bus (BEB)",MIN(IF($Q80:$X80>=AG$2,$Q80:$X80)),2021) -> 2033 | AH80: No | AI80: No | AJ80: No | AK80: Yes | AL80: No | AM80: No | AN80: No | AO80: Yes | AP80: No | AQ80: No | AR80: No | AS80: Yes | AT80: No | AU80: No | AV80: No | AW80: Yes | AX80: No | AY80: No | AZ80: No | BA80: Yes | BB80: No | BC80: No | BD80: No | BE80: Yes | BF80: No | BG80: No | BH80: No | BI80: Yes | BJ80: No | BK80: =_xlfn.XLOOKUP($L80,Reference!$A$2:$A$11,Reference!$S$2:$S$11) -> 0.08 | BL80: 100000 | BM80: 92000 | BN80: 84640 | BO80: 77868.8 | BP80: 71639.296 | BQ80: 65908.15232 | BR80: =IF(BQ80*(1-$BK80)>$O80,BQ80*(1-$BK80),$O80) -> 60635.50013 | BS80: 55784.66012 | BT80: 55000 | BU80: 55000 | BV80: 55000 | BW80: 55000 | BX80: 55000 | BY80: 55000 | BZ80: 55000 | CA80: 55000 | CB80: 55000 | CC80: 55000 | CD80: 55000 | CE80: 55000 | CF80: 55000 | CG80: 55000 | CH80: 55000 | CI80: 55000 | CJ80: 55000 | CK80: 55000 | CL80: 55000 | CM80: 55000 | CN80: 55000 | CO80: 55000 | CP80: 55000 | CQ80: 55000 | CR80: 55000 | CS80: 55000 | CT80: 55000 | CU80: 55000 | CV80: 55000 | CW80: 55000 | CX80: 55000 | CY80: 55000 | CZ80: 55000 | DA80: 55000 | DB80: 55000 | DC80: 55000 | DD80: 55000 | DE80: 55000 | DF80: 55000 | DG80: 55000 | DH80: 55000 | DI80: 55000 | DJ80: 55000 | DK80: 55000 | DL80: 55000 | DM80: 55000 | DN80: 55000 | DO80: 55000 | DP80: 55000 | DQ80: 55000
A81: City of Colorado Springs | B81: 81 | C81: DR | D81: Van (VN) | E81: Gasoline | F81: Non-ADA | G81: 1 | H81: 0 | I81: 7 | J81: 2013 | K81: =IF(K$1=Reference!$D$1,_xlfn.XLOOKUP('Fleet Info'!$L81,Reference!$A$2:$A$11,Reference!$D$2:$D$11),IF(K$1=Reference!$E$1,_xlfn.XLOOKUP('Fleet Info'!$L81,Reference!$A$2:$A$11,Reference!$E$2:$E$11),"ERROR")) -> 4 | L81: =IF($D81=Reference!$B$2,Reference!$A$2,IF($D81=Reference!$B$3,IF('Fleet Info'!$H81<=30,Reference!$A$4,Reference!$A$3),IF($D81=Reference!$B$5,IF('Fleet Info'!$I81>20,Reference!$A$5,Reference!$A$6),IF($D81=Reference!$B$7,Reference!$A$7,IF($D81=Reference!$B$8,IF('Fleet Info'!$F81="Non-ADA",Reference!$A$8,Reference!$A$7),IF($D81=Reference!$B$9,IF('Fleet Info'!$F81="Non-ADA",Reference!$A$9,Reference!$A$7),IF($D81=Reference!$B$10,IF('Fleet Info'!$F81="Non-ADA",Reference!$A$10,Reference!$A$7),IF($D81=Reference!$B$11,Reference!$A$11,IF($D81="Battery Electric Bus (BEB)",IF($H81<=30,Reference!$A$4,Reference!$A$3)))))))))) -> 6 | M81: =_xlfn.XLOOKUP(L81,Reference!$A$2:$A$11,Reference!$C$2:$C$11) -> Passenger Van | N81: =_xlfn.XLOOKUP($L81,Reference!$A$2:$A$11,Reference!$J$2:$J$11) -> 100000 | O81: =_xlfn.XLOOKUP($L81,Reference!$A$2:$A$11,Reference!$P$2:$P$11) -> 55000 | P81: =IF(D81="Battery Electric Bus (BEB)",0,_xlfn.XLOOKUP($L81,Reference!$A$2:$A$11,Reference!$O$2:$O$11))*G81 -> 50000 | Q81: 2025 | R81: 2029 | S81: 2033 | T81: 2037 | U81: 2041 | V81: 2045 | W81: 2049 | X81: =W81+$K81 -> 2053 | Y81: =IF($D81<>"Battery Electric Bus (BEB)",MIN(IF($Q81:$X81>=Y$2,$Q81:$X81)),2021) -> 2025 | Z81: =IF($D81<>"Battery Electric Bus (BEB)",MIN(IF($Q81:$X81>=Z$2,$Q81:$X81)),2021) -> 2025 | AA81: =IF($D81<>"Battery Electric Bus (BEB)",MIN(IF($Q81:$X81>=AA$2,$Q81:$X81)),2021) -> 2025 | AB81: =IF($D81<>"Battery Electric Bus (BEB)",MIN(IF($Q81:$X81>=AB$2,$Q81:$X81)),2021) -> 2025 | AC81: =IF($D81<>"Battery Electric Bus (BEB)",MIN(IF($Q81:$X81>=AC$2,$Q81:$X81)),2021) -> 2029 | AD81: =IF($D81<>"Battery Electric Bus (BEB)",MIN(IF($Q81:$X81>=AD$2,$Q81:$X81)),2021) -> 2029 | AE81: =IF($D81<>"Battery Electric Bus (BEB)",MIN(IF($Q81:$X81>=AE$2,$Q81:$X81)),2021) -> 2029 | AF81: =IF($D81<>"Battery Electric Bus (BEB)",MIN(IF($Q81:$X81>=AF$2,$Q81:$X81)),2021) -> 2029 | AG81: =IF($D81<>"Battery Electric Bus (BEB)",MIN(IF($Q81:$X81>=AG$2,$Q81:$X81)),2021) -> 2033 | AH81: No | AI81: No | AJ81: No | AK81: Yes | AL81: No | AM81: No | AN81: No | AO81: Yes | AP81: No | AQ81: No | AR81: No | AS81: Yes | AT81: No | AU81: No | AV81: No | AW81: Yes | AX81: No | AY81: No | AZ81: No | BA81: Yes | BB81: No | BC81: No | BD81: No | BE81: Yes | BF81: No | BG81: No | BH81: No | BI81: Yes | BJ81: No | BK81: =_xlfn.XLOOKUP($L81,Reference!$A$2:$A$11,Reference!$S$2:$S$11) -> 0.08 | BL81: 100000 | BM81: 92000 | BN81: 84640 | BO81: 77868.8 | BP81: 71639.296 | BQ81: 65908.15232 | BR81: =IF(BQ81*(1-$BK81)>$O81,BQ81*(1-$BK81),$O81) -> 60635.50013 | BS81: 55784.66012 | BT81: 55000 | BU81: 55000 | BV81: 55000 | BW81: 55000 | BX81: 55000 | BY81: 55000 | BZ81: 55000 | CA81: 55000 | CB81: 55000 | CC81: 55000 | CD81: 55000 | CE81: 55000 | CF81: 55000 | CG81: 55000 | CH81: 55000 | CI81: 55000 | CJ81: 55000 | CK81: 55000 | CL81: 55000 | CM81: 55000 | CN81: 55000 | CO81: 55000 | CP81: 55000 | CQ81: 55000 | CR81: 55000 | CS81: 55000 | CT81: 55000 | CU81: 55000 | CV81: 55000 | CW81: 55000 | CX81: 55000 | CY81: 55000 | CZ81: 55000 | DA81: 55000 | DB81: 55000 | DC81: 55000 | DD81: 55000 | DE81: 55000 | DF81: 55000 | DG81: 55000 | DH81: 55000 | DI81: 55000 | DJ81: 55000 | DK81: 55000 | DL81: 55000 | DM81: 55000 | DN81: 55000 | DO81: 55000 | DP81: 55000 | DQ81: 55000
A82: City of Colorado Springs | B82: 82 | C82: DR | D82: Van (VN) | E82: Gasoline | F82: Non-ADA | G82: 1 | H82: 0 | I82: 7 | J82: 2017 | K82: =IF(K$1=Reference!$D$1,_xlfn.XLOOKUP('Fleet Info'!$L82,Reference!$A$2:$A$11,Reference!$D$2:$D$11),IF(K$1=Reference!$E$1,_xlfn.XLOOKUP('Fleet Info'!$L82,Reference!$A$2:$A$11,Reference!$E$2:$E$11),"ERROR")) -> 4 | L82: =IF($D82=Reference!$B$2,Reference!$A$2,IF($D82=Reference!$B$3,IF('Fleet Info'!$H82<=30,Reference!$A$4,Reference!$A$3),IF($D82=Reference!$B$5,IF('Fleet Info'!$I82>20,Reference!$A$5,Reference!$A$6),IF($D82=Reference!$B$7,Reference!$A$7,IF($D82=Reference!$B$8,IF('Fleet Info'!$F82="Non-ADA",Reference!$A$8,Reference!$A$7),IF($D82=Reference!$B$9,IF('Fleet Info'!$F82="Non-ADA",Reference!$A$9,Reference!$A$7),IF($D82=Reference!$B$10,IF('Fleet Info'!$F82="Non-ADA",Reference!$A$10,Reference!$A$7),IF($D82=Reference!$B$11,Reference!$A$11,IF($D82="Battery Electric Bus (BEB)",IF($H82<=30,Reference!$A$4,Reference!$A$3)))))))))) -> 6 | M82: =_xlfn.XLOOKUP(L82,Reference!$A$2:$A$11,Reference!$C$2:$C$11) -> Passenger Van | N82: =_xlfn.XLOOKUP($L82,Reference!$A$2:$A$11,Reference!$J$2:$J$11) -> 100000 | O82: =_xlfn.XLOOKUP($L82,Reference!$A$2:$A$11,Reference!$P$2:$P$11) -> 55000 | P82: =IF(D82="Battery Electric Bus (BEB)",0,_xlfn.XLOOKUP($L82,Reference!$A$2:$A$11,Reference!$O$2:$O$11))*G82 -> 50000 | Q82: 2021 | R82: 2025 | S82: 2029 | T82: 2033 | U82: 2037 | V82: 2041 | W82: 2045 | X82: =W82+$K82 -> 2049 | Y82: =IF($D82<>"Battery Electric Bus (BEB)",MIN(IF($Q82:$X82>=Y$2,$Q82:$X82)),2021) -> 2025 | Z82: =IF($D82<>"Battery Electric Bus (BEB)",MIN(IF($Q82:$X82>=Z$2,$Q82:$X82)),2021) -> 2025 | AA82: =IF($D82<>"Battery Electric Bus (BEB)",MIN(IF($Q82:$X82>=AA$2,$Q82:$X82)),2021) -> 2025 | AB82: =IF($D82<>"Battery Electric Bus (BEB)",MIN(IF($Q82:$X82>=AB$2,$Q82:$X82)),2021) -> 2025 | AC82: =IF($D82<>"Battery Electric Bus (BEB)",MIN(IF($Q82:$X82>=AC$2,$Q82:$X82)),2021) -> 2029 | AD82: =IF($D82<>"Battery Electric Bus (BEB)",MIN(IF($Q82:$X82>=AD$2,$Q82:$X82)),2021) -> 2029 | AE82: =IF($D82<>"Battery Electric Bus (BEB)",MIN(IF($Q82:$X82>=AE$2,$Q82:$X82)),2021) -> 2029 | AF82: =IF($D82<>"Battery Electric Bus (BEB)",MIN(IF($Q82:$X82>=AF$2,$Q82:$X82)),2021) -> 2029 | AG82: =IF($D82<>"Battery Electric Bus (BEB)",MIN(IF($Q82:$X82>=AG$2,$Q82:$X82)),2021) -> 2033 | AH82: No | AI82: No | AJ82: No | AK82: Yes | AL82: No | AM82: No | AN82: No | AO82: Yes | AP82: No | AQ82: No | AR82: No | AS82: Yes | AT82: No | AU82: No | AV82: No | AW82: Yes | AX82: No | AY82: No | AZ82: No | BA82: Yes | BB82: No | BC82: No | BD82: No | BE82: Yes | BF82: No | BG82: No | BH82: No | BI82: Yes | BJ82: No | BK82: =_xlfn.XLOOKUP($L82,Reference!$A$2:$A$11,Reference!$S$2:$S$11) -> 0.08 | BL82: 100000 | BM82: 92000 | BN82: 84640 | BO82: 77868.8 | BP82: 71639.296 | BQ82: 65908.15232 | BR82: =IF(BQ82*(1-$BK82)>$O82,BQ82*(1-$BK82),$O82) -> 60635.50013 | BS82: 55784.66012 | BT82: 55000 | BU82: 55000 | BV82: 55000 | BW82: 55000 | BX82: 55000 | BY82: 55000 | BZ82: 55000 | CA82: 55000 | CB82: 55000 | CC82: 55000 | CD82: 55000 | CE82: 55000 | CF82: 55000 | CG82: 55000 | CH82: 55000 | CI82: 55000 | CJ82: 55000 | CK82: 55000 | CL82: 55000 | CM82: 55000 | CN82: 55000 | CO82: 55000 | CP82: 55000 | CQ82: 55000 | CR82: 55000 | CS82: 55000 | CT82: 55000 | CU82: 55000 | CV82: 55000 | CW82: 55000 | CX82: 55000 | CY82: 55000 | CZ82: 55000 | DA82: 55000 | DB82: 55000 | DC82: 55000 | DD82: 55000 | DE82: 55000 | DF82: 55000 | DG82: 55000 | DH82: 55000 | DI82: 55000 | DJ82: 55000 | DK82: 55000 | DL82: 55000 | DM82: 55000 | DN82: 55000 | DO82: 55000 | DP82: 55000 | DQ82: 55000
